Workbook

Sheet Indice
B11: INTRODUCCIÓN
B12: A los fines de facilitar la tarea profesional, te entregamos sin cargo esta planilla de Excel® para retenciones de ganancias de cuarta categoría [RG (AFIP) 4003-E]. Con ella, podrás efectuar la liquidación de las retenciones mensuales del impuesto a las ganancias de los empleados en relación de dependencia.
B15: IMPORTANTE
B16: La presente planilla contempla los valores de las deducciones personales publicados en el sitio oficial de AFIP. Por defecto la planilla calcula un sólo tope para bono por productividad, viáticos y viáticos de larga distancia. En versiones posteriores se podrá incorporar la posibilidad de calcular más de un tope por estos conceptos
B17: En cuanto a la liquidación de las retenciones, ciertos aspectos se encuentran sin reglamentar por la autoridad de aplicación. Por ello, al momento de su utilización, se sugiere consultar si hemos puesto a su disposición una nueva versión de la presente planilla en www.errepar.com
B20: ACLARACIONES
B21: En los últimos días nuestros suscriptores nos han planteado algunas dudas en relación con el cómputo de las deducciones personales a los efectos del cálculo de las retenciones del impuesto a las ganancias de cuarta categoría.
B22: Incluye las modificaciones de los Decretos 414/2023 y 415/2023 y la RG (AFIP) 5358 y 5402
B24: RECOMENDACIONES DE USO
B25: La planilla consta de varias hojas de Datos (Ingresos, Deducciones generales, Deducciones personales, Pagos a cuenta, etc.) donde el usuario podrá volcar la información.
B26: Deben ingresarse en Datos, todos los datos en forma manual.
B27: En la hoja Liquidación se realizan los cálculos. Se encuentra totalmente automatizada por lo que se recomienda no modificar las fórmulas.
B28: En la solapa Tablas se detallan las tablas y deducciones vigentes. Se sugiere verificar los valores vigentes. El usuario puede modificar los importes si es necesario.
B30: ACLARACIONES
B31: La planilla tiene un carácter general y orientativo y cada profesional puede adecuarla a su necesidad particular, ya que la planilla no contempla todos los casos posibles (como ser liquidación final, SAC proporcional, etc.), sino que constituye, simplemente, un ejemplo. Resaltamos, por ende, que cada usuario es responsable por su utilización.
B34: Atento a ello, remarcamos que la planilla no reemplaza ni desautoriza el criterio profesional, así como tampoco lo dispuesto por la normativa vigente, los programas de liquidación diseñados al respecto,ni los aplicativos que pudieran resultar de utilización obligatoria.
B36: En consideración de lo antes expuesto, deseamos manifestar que Errepar no se responsabiliza por ningún tipo de daño o perjuicio que el uso de esta planilla, o la imposibilidad de su utilización, pudiera ocasionar tanto a nivel profesional, al usuario y/o a los terceros ante quienes se presente, como en su equipamiento informático (hardware/software).
B39: * Microsoft Excel es un programa registrado por Microsoft Corporation. La presente planilla de Excel es independiente y no se encuentra afiliada con Microsoft Corporation, ni ha sido autorizada, sponsoreada, o de cualquier otra forma aprobada por Microsoft Corporation.
Q43: Versión 2023.18
Q44: Actualizada a diciembre 2023

Sheet Datos
B3: CONFIGURACIÓN DE LA PLANILLA
B9: Tratamiento del SAC gravado | F9: Ajuste anual
B11: DATOS DEL EMPLEADOR Y DEL TRABAJADOR
B13: PERÍODO FISCAL: | F13: 2023
B15: DATOS DEL TRABAJADOR
B16: Nombres:
B17: Apellido:
B18: Legajo:
B19: CUIL:
B20: Dato adicional (optativo):
B21: Zona geográfica | F21: Todo el país excepto zona patagónica
B22: Transporte de larga distancia | F22: No desarrolla la actividad
B24: DATOS DEL AGENTE DE RETENCIÓN
B25: CUIT:
B26: Denominación legal:
B29: DEDUCCIÓN ESPECÍFICA PARA JUBILADOS
B30: Aplica deducción específica por jubilación | F30: No | H30: =IF(F30="Si","Recuerde que la deducción específica por jubilación se incrementa periódicamente por lo que tendrá que bajar una nueva planilla o actualizar el importe en la hoja Tablas","") -> 

Sheet Ingresos
B5: INGRESOS BRUTOS PAGADOS POR EL AGENTE DE RETENCIÓN
P6: Tratamiento en el impuesto | U6: Formulario 1357
B7: Concepto ($) | C7: =IF(Check!$B$1<>"Ok","enero (percibido y devengado)","enero (devengado diciembre)") -> enero (devengado diciembre) | D7: =IF(Check!$B$1<>"Ok","febrero (percibido y devengado)","febrero (devengado enero)") -> febrero (devengado enero) | E7: =IF(Check!$B$1<>"Ok","marzo (percibido y devengado)","marzo (devengado febrero)") -> marzo (devengado febrero) | F7: =IF(Check!$B$1<>"Ok","abril (percibido y devengado)","abril (devengado marzo)") -> abril (devengado marzo) | G7: =IF(Check!$B$1<>"Ok","mayo (percibido y devengado)","mayo (devengado abril)") -> mayo (devengado abril) | H7: =IF(Check!$B$1<>"Ok","junio (percibido y devengado)","junio (devengado mayo)") -> junio (devengado mayo) | I7: =IF(Check!$B$1<>"Ok","julio (percibido y devengado)","julio (devengado junio)") -> julio (devengado junio) | J7: =IF(Check!$B$1<>"Ok","agosto (percibido y devengado)","agosto (devengado julio)") -> agosto (devengado julio) | K7: =IF(Check!$B$1<>"Ok","septiembre (percibido y devengado)","septiembre (devengado agosto)") -> septiembre (devengado agosto) | L7: =IF(Check!$B$1<>"Ok","octubre (percibido y devengado)","octubre (devengado septiembre)") -> octubre (devengado septiembre) | M7: =IF(Check!$B$1<>"Ok","noviembre (percibido y devengado)","noviembre (devengado octubre)") -> noviembre (devengado octubre) | N7: =IF(Check!$B$1<>"Ok","diciembre (percibido y devengado)","diciembre (devengado noviembre)") -> diciembre (devengado noviembre) | P7: G/E/NG | Q7: Prorrateo | R7: Remunerativo | S7: Base del SAC | T7: Base del promedio | Y7: Remuneración bruta gravada
B8: Sueldo bruto | P8: Gravado | Q8: No | R8: Sí | S8: Sí | T8: Sí | U8: Remuneración bruta gravada | Y8: Retribuciones no habituales gravadas
B9: Horas extras (días inhábiles) | P9: Gravado | Q9: No | R9: Sí | S9: Sí | T9: Sí | U9: Horas extras remuneración gravada | Y9: SAC primera cuota gravado
B10: Plus horas extras (días inhábiles) | P10: Exento | Q10: No | R10: Sí | S10: No | T10: Sí | U10: Horas extras remuneración exenta | Y10: SAC segunda cuota gravado
B11: Horas extras (días hábiles) | P11: Gravado | Q11: No | R11: Sí | S11: Sí | T11: Sí | U11: Horas extras remuneración gravada | Y11: Horas extras remuneración gravada
B12: SAC gravado | P12: Gravado | Q12: Sí | R12: Sí | S12: No | T12: No | U12: SAC | Y12: Material didáctico personal docente remuneración gravada
B13: SAC no gravado o exento | P13: Exento | Q13: No | R13: Sí | S13: No | T13: No | U13: SAC | Y13: Remuneración no alcanzada o exenta
B14: Plus Vacacional | P14: Gravado | Q14: Sí | R14: Sí | S14: Sí | T14: Sí | U14: Retribuciones no habituales gravadas | Y14: Remuneración exenta ley 27549
B15: Plus Feriado | P15: Gravado | Q15: No | R15: Sí | S15: Sí | T15: Sí | U15: Remuneración bruta gravada | Y15: Retribuciones no habituales exentas
B16: Movilidad y viáticos (gravado) | P16: Gravado | Q16: No | R16: Sí | S16: No | T16: Sí | U16: Movilidad y viáticos remuneración gravada | Y16: Bonos de productividad gravados
B17: Movilidad y viáticos (exento) | P17: Exento | Q17: No | R17: Sí | S17: No | T17: Sí | U17: Movilidad y viáticos remuneración exenta | Y17: Bonos de productividad exentos
B18: Compensación de gastos por teletrabajo | P18: Exento | Q18: No | R18: Sí | S18: Sí | T18: Sí | U18: Compensación gastos teletrabajo exentos | Y18: Fallos de caja gravados
B19: Bono por productividad (gravado) | P19: Gravado | Q19: No | R19: Sí | S19: Sí | T19: Sí | U19: Bonos de productividad gravados | Y19: Fallos de caja exentos
A20: =IF(SUM(C20:N20)>Tablas!$O$36*0.4,1,IF(AND(Tablas!$N$45>300000,SUM(C20:N20)<>0),1,0)) -> 0 | B20: Bono por productividad (exento) | P20: Exento | Q20: No | R20: Sí | S20: Sí | T20: Sí | U20: Bonos de productividad exentos | Y20: Conceptos de similar naturaleza gravados
B21: Fallo de caja (gravado) | P21: Gravado | Q21: No | R21: Sí | S21: Sí | T21: Sí | U21: Fallos de caja gravados | Y21: Conceptos de similar naturaleza exentos
A22: =IF(SUM(C22:N22)>Tablas!$O$36*0.4,1,IF(AND(Tablas!$N$45>300000,SUM(C22:N22)<>0),1,0)) -> 0 | B22: Fallo de caja (exento) | P22: Exento | Q22: No | R22: Sí | S22: Sí | T22: Sí | U22: Fallos de caja exentos | Y22: Suplementos particulares artículo 57 de la Ley 19.101 exentos
B23: Suplementos particulares por actividad militar | P23: Exento | Q23: No | R23: Sí | S23: Sí | T23: Sí | U23: Remuneración no alcanzada o exenta | Y23: Compensación gastos teletrabajo exentos
B24: Cursos o seminarios de capacitación | P24: Exento | Q24: No | R24: Sí | S24: Sí | T24: Sí | U24: Remuneración no alcanzada o exenta | Y24: Horas extras remuneración exenta
B25: Reintegro de gastos de guardería y/o jardín materno-infantil | P25: Exento | Q25: No | R25: Sí | S25: Sí | T25: Sí | U25: Remuneración no alcanzada o exenta | Y25: Movilidad - Remuneración gravada
B26: Provisión de herramientas educativas (gravado) | P26: Gravado | Q26: No | R26: Sí | S26: Sí | T26: Sí | U26: Remuneración bruta gravada | Y26: Viáticos - Remuneración gravada
B27: Cursos o seminarios de capacitación para hijos/as y hijastros/as (gravado) | P27: Gravado | Q27: No | R27: Sí | S27: Sí | T27: Sí | U27: Remuneración bruta gravada | Y27: Compensación análogos - Remuneración gravada
A28: =IF(SUM(C28:N28)>Tablas!$O$36*0.4,1,0) -> 0 | B28: Cursos o seminarios de capacitación para hijos/as y hijastros/as (exento) | P28: Exento | Q28: No | R28: Sí | S28: Sí | T28: Sí | U28: Conceptos de similar naturaleza exentos | Y28: Material didáctico personal docente remuneración gravada
B29: Licencias varias | P29: Gravado | Q29: No | R29: Sí | S29: Sí | T29: Sí | U29: Remuneración bruta gravada | Y29: Material didáctico personal docente remuneración exenta
B30: Benef. Soc. (no rem.) | P30: Gravado | Q30: No | R30: No | S30: No | T30: Sí | U30: Remuneración bruta gravada | Y30: SAC primera cuota - No alcanzado o exento
B31: Indemnización art. 245 | P31: No gravado | Q31: No | R31: No | S31: No | T31: Sí | U31: Remuneración no alcanzada o exenta | Y31: SAC segunda cuota - No alcanzado o exento
B32: Preaviso | P32: Gravado | Q32: No | R32: Sí | S32: No | T32: Sí | U32: Remuneración bruta gravada | Y32: Ajustes períodos anteriores - Remuneración gravada
B33: SAC s/preaviso | P33: Gravado | Q33: No | R33: No | S33: No | T33: Sí | U33: Remuneración bruta gravada | Y33: Ajustes períodos anteriores - Remuneración exenta / no alcanzada
B34: Vacaciones no gozadas | P34: Gravado | Q34: No | R34: No | S34: No | T34: Sí | U34: Remuneración bruta gravada
B35: SAC s/vacaciones no gozadas | P35: Gravado | Q35: No | R35: No | S35: No | T35: Sí | U35: Remuneración bruta gravada
B36: Integración mes de despido | P36: Gravado | Q36: No | R36: No | S36: No | T36: Sí | U36: Remuneración bruta gravada
B37: SAC s/integración mes de despido | P37: Gravado | Q37: No | R37: No | S37: No | T37: Sí | U37: Remuneración bruta gravada
B38: Gratificación por cese | P38: No gravado | Q38: No | R38: No | S38: No | T38: Sí | U38: Remuneración no alcanzada o exenta
B39: Total | C39: =SUM(C8:C38) -> 0 | D39: 0 | E39: 0 | F39: 0 | G39: 0 | H39: 0 | I39: 0 | J39: 0 | K39: 0 | L39: 0 | M39: 0 | N39: 0
B40: SAC neto estimado (automático) | C40: =Auxiliares!D198 -> 0 | D40: =Auxiliares!E198 -> 0 | E40: =Auxiliares!F198 -> 0 | F40: =Auxiliares!G198 -> 0 | G40: =Auxiliares!H198 -> 0 | H40: =Auxiliares!I198 -> 0 | I40: =Auxiliares!J198 -> 0 | J40: =Auxiliares!K198 -> 0 | K40: =Auxiliares!L198 -> 0 | L40: =Auxiliares!M198 -> 0 | M40: =Auxiliares!N198 -> 0 | N40: =Auxiliares!O198 -> 0
B41: SAC neto estimado (manual)
B42: Horas extras netas (automático) | C42: =+Auxiliares!D228 -> 0 | D42: =+Auxiliares!E228 -> 0 | E42: =+Auxiliares!F228 -> 0 | F42: =+Auxiliares!G228 -> 0 | G42: =+Auxiliares!H228 -> 0 | H42: =+Auxiliares!I228 -> 0 | I42: =+Auxiliares!J228 -> 0 | J42: =+Auxiliares!K228 -> 0 | K42: =+Auxiliares!L228 -> 0 | L42: =+Auxiliares!M228 -> 0 | M42: =+Auxiliares!N228 -> 0 | N42: =+Auxiliares!O228 -> 0
B43: Horas extras netas (para art. 90)
B45: PLURIEMPLEO | P45: Tratamiento en el impuesto | U45: Formulario 1357
B46: Concepto | C46: =IF(Check!$B$1<>"Ok","enero (percibido y devengado)","enero (devengado diciembre)") -> enero (devengado diciembre) | D46: =IF(Check!$B$1<>"Ok","febrero (percibido y devengado)","febrero (devengado enero)") -> febrero (devengado enero) | E46: =IF(Check!$B$1<>"Ok","marzo (percibido y devengado)","marzo (devengado febrero)") -> marzo (devengado febrero) | F46: =IF(Check!$B$1<>"Ok","abril (percibido y devengado)","abril (devengado marzo") -> abril (devengado marzo | G46: =IF(Check!$B$1<>"Ok","mayo (percibido y devengado)","mayo (devengado abril)") -> mayo (devengado abril) | H46: =IF(Check!$B$1<>"Ok","junio (percibido y devengado)","junio (devengado mayo)") -> junio (devengado mayo) | I46: =IF(Check!$B$1<>"Ok","julio (percibido y devengado)","julio (devengado junio)") -> julio (devengado junio) | J46: =IF(Check!$B$1<>"Ok","agosto (percibido y devengado)","agosto (devengado julio)") -> agosto (devengado julio) | K46: =IF(Check!$B$1<>"Ok","septiembre (percibido y devengado)","septiembre (devengado agosto)") -> septiembre (devengado agosto) | L46: =IF(Check!$B$1<>"Ok","octubre (percibido y devengado)","octubre (devengado septiembre)") -> octubre (devengado septiembre) | M46: =IF(Check!$B$1<>"Ok","noviembre (percibido y devengado)","noviembre (devengado octubre)") -> noviembre (devengado octubre) | N46: =IF(Check!$B$1<>"Ok","diciembre (percibido y devengado)","diciembre (devengado noviembre)") -> diciembre (devengado noviembre) | P46: G/E/NG | Q46: Prorrateo | R46: Remunerativo | S46: Base del SAC | T46: Base del promedio
B47: Sueldo bruto | P47: Gravado | Q47: No | R47: Sí | S47: Sí | T47: Sí | U47: Remuneración bruta gravada | Y47: Remuneración bruta gravada
B48: Horas extras (días inhábiles) | P48: Gravado | Q48: No | R48: Sí | S48: Sí | T48: Sí | U48: Horas extras remuneración gravada | Y48: Retribuciones no habituales gravadas
B49: Plus horas extras (días inhábiles) | P49: Exento | Q49: No | R49: Sí | S49: Sí | T49: Sí | U49: Horas extras remuneración exenta | Y49: SAC primera cuota gravado
B50: Horas extras (días hábiles) | P50: Gravado | Q50: Sí | R50: Sí | S50: Sí | T50: Sí | U50: Horas extras remuneración gravada | Y50: SAC segunda cuota gravado
B51: SAC gravado | P51: Gravado | Q51: Sí | R51: Sí | S51: No | T51: No | U51: SAC | Y51: Horas extras remuneración gravada
B52: SAC no gravado o exento | P52: Exento | Q52: No | R52: Sí | S52: No | T52: No | U52: SAC | Y52: Material didáctico personal docente remuneración gravada
B53: Plus Vacacional | P53: Gravado | Q53: Sí | R53: Sí | S53: Sí | T53: Sí | U53: Remuneración bruta gravada | Y53: Remuneración no alcanzada o exenta
B54: Plus Feriado | P54: Gravado | Q54: No | R54: Sí | S54: Sí | T54: Sí | U54: Remuneración bruta gravada | Y54: Remuneración exenta ley 27549
B55: Movilidad y viáticos (gravado) | P55: Gravado | Q55: No | R55: Sí | S55: No | T55: Sí | U55: Movilidad y viáticos remuneración gravada | Y55: Retribuciones no habituales exentas
B56: Movilidad y viáticos (exento) | P56: Exento | Q56: No | R56: Sí | S56: No | T56: Sí | U56: Movilidad y viáticos remuneración exenta | Y56: Bonos de productividad gravados
B57: Compensación de gastos por teletrabajo | P57: Exento | Q57: No | R57: Sí | S57: Sí | T57: Sí | U57: Compensación gastos teletrabajo exentos | Y57: Bonos de productividad exentos
B58: Bono por productividad (gravado) | P58: Gravado | Q58: No | R58: Sí | S58: Sí | T58: Sí | U58: Bonos de productividad gravados | Y58: Fallos de caja gravados
A59: =IF(SUM(C59:N59)>Tablas!$O$36*0.4,1,IF(AND(Tablas!$N$45>300000,SUM(C59:N59)<>0),1,0)) -> 0 | B59: Bono por productividad (exento) | P59: Exento | Q59: No | R59: Sí | S59: Sí | T59: Sí | U59: Bonos de productividad exentos | Y59: Fallos de caja exentos
B60: Fallo de caja (gravado) | P60: Gravado | Q60: No | R60: Sí | S60: Sí | T60: Sí | U60: Fallos de caja gravados | Y60: Conceptos de similar naturaleza gravados
A61: =IF(SUM(C61:N61)>Tablas!$O$36*0.4,1,IF(AND(Tablas!$N$45>300000,SUM(C61:N61)<>0),1,0)) -> 0 | B61: Fallo de caja (exento) | P61: Exento | Q61: No | R61: Sí | S61: Sí | T61: Sí | U61: Fallos de caja exentos | Y61: Conceptos de similar naturaleza exentos
B62: Suplementos particulares por actividad militar | P62: Exento | Q62: No | R62: Sí | S62: Sí | T62: Sí | U62: Suplementos particulares artículo 57 de la Ley 19.101 exentos | Y62: Suplementos particulares artículo 57 de la Ley 19.101 exentos
B63: Cursos o seminarios de capacitación | P63: Exento | Q63: No | R63: Sí | S63: Sí | T63: Sí | U63: Remuneración no alcanzada o exenta | Y63: Compensación gastos teletrabajo exentos
B64: Reintegro de gastos de guardería y/o jardín materno-infantil | P64: Exento | Q64: No | R64: Sí | S64: Sí | T64: Sí | U64: Remuneración no alcanzada o exenta | Y64: Horas extras remuneración exenta
B65: Provisión de herramientas educativas (gravado) | P65: Gravado | Q65: No | R65: Sí | S65: Sí | T65: Sí | U65: Remuneración bruta gravada | Y65: Movilidad - Remuneración gravada
B66: Cursos o seminarios de capacitación para hijos/as y hijastros/as (gravado) | P66: Gravado | Q66: No | R66: Sí | S66: Sí | T66: Sí | U66: Remuneración bruta gravada | Y66: Viáticos - Remuneración gravada
A67: =IF(SUM(C67:N67)>Tablas!$O$36*0.4,1,0) -> 0 | B67: Cursos o seminarios de capacitación para hijos/as y hijastros/as (exento) | P67: Exento | Q67: No | R67: Sí | S67: Sí | T67: Sí | U67: Conceptos de similar naturaleza exentos | Y67: Compensación análogos - Remuneración gravada
B68: Licencias varias | P68: Gravado | Q68: No | R68: Sí | S68: Sí | T68: Sí | U68: Remuneración bruta gravada | Y68: Material didáctico personal docente remuneración gravada
B69: Benef. Soc. (no rem.) | P69: Gravado | Q69: No | R69: No | S69: No | T69: Sí | U69: Remuneración bruta gravada | Y69: Material didáctico personal docente remuneración exenta
B70: Indemnización art. 245 | P70: No gravado | Q70: No | R70: No | S70: No | T70: Sí | U70: Remuneración no alcanzada o exenta | Y70: SAC primera cuota - No alcanzado o exento
B71: Preaviso | P71: Gravado | Q71: No | R71: Sí | S71: No | T71: Sí | U71: Remuneración bruta gravada | Y71: SAC segunda cuota - No alcanzado o exento
B72: SAC s/preaviso | P72: Gravado | Q72: No | R72: No | S72: No | T72: Sí | U72: Remuneración bruta gravada | Y72: Ajustes períodos anteriores - Remuneración gravada
B73: Vacaciones no gozadas | P73: Gravado | Q73: No | R73: No | S73: No | T73: Sí | U73: Remuneración bruta gravada | Y73: Ajustes períodos anteriores - Remuneración exenta / no alcanzada
B74: SAC s/vacaciones no gozadas | P74: Gravado | Q74: No | R74: No | S74: No | T74: Sí | U74: Remuneración bruta gravada
B75: Integración mes de despido | P75: Gravado | Q75: No | R75: No | S75: No | T75: Sí | U75: Remuneración bruta gravada
B76: SAC s/integración mes de despido | P76: Gravado | Q76: No | R76: No | S76: No | T76: Sí | U76: Remuneración bruta gravada
B77: Gratificación por cese | P77: No gravado | Q77: No | R77: No | S77: No | T77: Sí | U77: Remuneración no alcanzada o exenta
B78: Total | C78: =SUM(C47:C77) -> 0 | D78: =SUM(D47:D77) -> 0 | E78: 0 | F78: 0 | G78: 0 | H78: 0 | I78: 0 | J78: 0 | K78: 0 | L78: 0 | M78: 0 | N78: 0
B79: SAC neto estimado (automático) | C79: =Auxiliares!D203 -> 0 | D79: =Auxiliares!E203 -> 0 | E79: =Auxiliares!F203 -> 0 | F79: =Auxiliares!G203 -> 0 | G79: =Auxiliares!H203 -> 0 | H79: =IF(Tablas!H47="<150000",0,Auxiliares!I203) -> 0 | I79: =IF(Tablas!I47="<150000",0,Auxiliares!J203) -> 0 | J79: =IF(Tablas!J47="<150000",0,Auxiliares!K203) -> 0 | K79: =IF(Tablas!K47="<150000",0,Auxiliares!L203) -> 0 | L79: =IF(Tablas!L47="<150000",0,Auxiliares!M203) -> 0 | M79: =IF(Tablas!M47="<150000",0,Auxiliares!N203) -> 0 | N79: =IF(Tablas!N47="<150000",0,Auxiliares!O203) -> 0
B80: SAC neto estimado (manual)
B81: Horas extras netas (automático) | C81: =+Auxiliares!D236 -> 0 | D81: =+Auxiliares!E236 -> 0 | E81: =+Auxiliares!F236 -> 0 | F81: =+Auxiliares!G236 -> 0 | G81: =+Auxiliares!H236 -> 0 | H81: =+Auxiliares!I236 -> 0 | I81: =+Auxiliares!J236 -> 0 | J81: =+Auxiliares!K236 -> 0 | K81: =+Auxiliares!L236 -> 0 | L81: =+Auxiliares!M236 -> 0 | M81: =+Auxiliares!N236 -> 0 | N81: =+Auxiliares!O236 -> 0
B82: Horas extras netas (para art. 90)

Sheet DedGrales
B3: DEDUCCIONES GENERALES
C11: Concepto | D11: Enero | E11: Febrero | F11: Marzo | G11: Abril | H11: Mayo | I11: Junio | J11: Julio | K11: Agosto | L11: Septiembre | M11: Octubre | N11: Noviembre | O11: Diciembre
C12: Jubilación
C13: Ley 19032
C14: Obra social
C15: Sindicato
C18: Ded. al SAC Prorrateado
C20: Pluriempleo
C22: Concepto | D22: Enero | E22: Febrero | F22: Marzo | G22: Abril | H22: Mayo | I22: Junio | J22: Julio | K22: Agosto | L22: Septiembre | M22: Octubre | N22: Noviembre | O22: Diciembre
C23: Jubilación
C24: Ley 19032
C25: Obra social
C26: Sindicato
C29: Ded. al SAC Prorrateado
C34: Concepto | D34: Enero | E34: Febrero | F34: Marzo | G34: Abril | H34: Mayo | I34: Junio | J34: Julio | K34: Agosto | L34: Septiembre | M34: Octubre | N34: Noviembre | O34: Diciembre
C35: Importe
C36: Total acumulado | D36: =+D35 -> 0 | E36: =+D36+E35 -> 0 | F36: =+E36+F35 -> 0 | G36: 0 | H36: 0 | I36: 0 | J36: 0 | K36: 0 | L36: 0 | M36: 0 | N36: 0 | O36: 0
C37: Mes en que se informa | D37: 1 | E37: 2 | F37: 3 | G37: 4 | H37: 5 | I37: 6 | J37: 7 | K37: 8 | L37: 9 | M37: 10 | N37: 11 | O37: 12
C42: Concepto | D42: Enero | E42: Febrero | F42: Marzo | G42: Abril | H42: Mayo | I42: Junio | J42: Julio | K42: Agosto | L42: Septiembre | M42: Octubre | N42: Noviembre | O42: Diciembre
C43: Importe
C44: Total acumulado | D44: =+D43 -> 0 | E44: =+D44+E43 -> 0 | F44: =+E44+F43 -> 0 | G44: 0 | H44: 0 | I44: 0 | J44: 0 | K44: 0 | L44: 0 | M44: 0 | N44: 0 | O44: 0
C45: Mes en que se informa | D45: 1 | E45: 2 | F45: 3 | G45: 4 | H45: 5 | I45: 6 | J45: 7 | K45: 8 | L45: 9 | M45: 10 | N45: 11 | O45: 12
C50: Concepto | D50: Enero | E50: Febrero | F50: Marzo | G50: Abril | H50: Mayo | I50: Junio | J50: Julio | K50: Agosto | L50: Septiembre | M50: Octubre | N50: Noviembre | O50: Diciembre
C51: Importe
C52: Total acumulado | D52: =+D51 -> 0 | E52: =+D52+E51 -> 0 | F52: =+E52+F51 -> 0 | G52: 0 | H52: 0 | I52: 0 | J52: 0 | K52: 0 | L52: 0 | M52: 0 | N52: 0 | O52: 0
C53: Mes en que se informa | D53: 1 | E53: 2 | F53: 3 | G53: 4 | H53: 5 | I53: 6 | J53: 7 | K53: 8 | L53: 9 | M53: 10 | N53: 11 | O53: 12
C58: Concepto | D58: Enero | E58: Febrero | F58: Marzo | G58: Abril | H58: Mayo | I58: Junio | J58: Julio | K58: Agosto | L58: Septiembre | M58: Octubre | N58: Noviembre | O58: Diciembre
C59: Importe
C60: Total acumulado | D60: =+D59 -> 0 | E60: =+D60+E59 -> 0 | F60: =+E60+F59 -> 0 | G60: 0 | H60: 0 | I60: 0 | J60: 0 | K60: 0 | L60: 0 | M60: 0 | N60: 0 | O60: 0
C61: Mes en que se informa | D61: 1 | E61: 2 | F61: 3 | G61: 4 | H61: 5 | I61: 6 | J61: 7 | K61: 8 | L61: 9 | M61: 10 | N61: 11 | O61: 12
C67: Concepto | D67: Enero | E67: Febrero | F67: Marzo | G67: Abril | H67: Mayo | I67: Junio | J67: Julio | K67: Agosto | L67: Septiembre | M67: Octubre | N67: Noviembre | O67: Diciembre
C68: Importe
C69: Total acumulado | D69: =+D68 -> 0 | E69: =+D69+E68 -> 0 | F69: =+E69+F68 -> 0 | G69: 0 | H69: 0 | I69: 0 | J69: 0 | K69: 0 | L69: 0 | M69: 0 | N69: 0 | O69: 0
C70: Mes en que se informa | D70: 1 | E70: 2 | F70: 3 | G70: 4 | H70: 5 | I70: 6 | J70: 7 | K70: 8 | L70: 9 | M70: 10 | N70: 11 | O70: 12
C76: Concepto | D76: Enero | E76: Febrero | F76: Marzo | G76: Abril | H76: Mayo | I76: Junio | J76: Julio | K76: Agosto | L76: Septiembre | M76: Octubre | N76: Noviembre | O76: Diciembre
C77: Importe
C78: Total acumulado | D78: =+D77 -> 0 | E78: =+E77+DedGrales!$D78 -> 0 | F78: =+DedGrales!$E78+F77 -> 0 | G78: =+DedGrales!$F78+G77 -> 0 | H78: =+DedGrales!$G78+H77 -> 0 | I78: =+DedGrales!$H78+I77 -> 0 | J78: =+DedGrales!$I78+J77 -> 0 | K78: =+DedGrales!$J78+K77 -> 0 | L78: =+DedGrales!$K78+L77 -> 0 | M78: =+DedGrales!$L78+M77 -> 0 | N78: =+DedGrales!$M78+N77 -> 0 | O78: =+DedGrales!$N78+O77 -> 0
C79: Mes en que se informa | D79: 1 | E79: 2 | F79: 3 | G79: 4 | H79: 5 | I79: 6 | J79: 7 | K79: 8 | L79: 9 | M79: 10 | N79: 11 | O79: 12
C85: Cantidad de sepelios | D85: 1
C87: Concepto | D87: Enero | E87: Febrero | F87: Marzo | G87: Abril | H87: Mayo | I87: Junio | J87: Julio | K87: Agosto | L87: Septiembre | M87: Octubre | N87: Noviembre | O87: Diciembre
C88: Importe
C89: Total acumulado | D89: =+D88 -> 0 | E89: =+D89+E88 -> 0 | F89: =+E89+F88 -> 0 | G89: =+F89+G88 -> 0 | H89: 0 | I89: 0 | J89: 0 | K89: 0 | L89: 0 | M89: 0 | N89: 0 | O89: 0
C90: Mes en que se informa | D90: 1 | E90: 2 | F90: 3 | G90: 4 | H90: 5 | I90: 6 | J90: 7 | K90: 8 | L90: 9 | M90: 10 | N90: 11 | O90: 12
C95: Concepto | D95: Enero | E95: Febrero | F95: Marzo | G95: Abril | H95: Mayo | I95: Junio | J95: Julio | K95: Agosto | L95: Septiembre | M95: Octubre | N95: Noviembre | O95: Diciembre
C96: Importe
C97: Total acumulado | D97: =+D96 -> 0 | E97: =+D97+E96 -> 0 | F97: 0 | G97: 0 | H97: 0 | I97: 0 | J97: 0 | K97: 0 | L97: 0 | M97: 0 | N97: 0 | O97: 0
C98: Mes en que se informa | D98: 1 | E98: 2 | F98: 3 | G98: 4 | H98: 5 | I98: 6 | J98: 7 | K98: 8 | L98: 9 | M98: 10 | N98: 11 | O98: 12
C104: Concepto | D104: Enero | E104: Febrero | F104: Marzo | G104: Abril | H104: Mayo | I104: Junio | J104: Julio | K104: Agosto | L104: Septiembre | M104: Octubre | N104: Noviembre | O104: Diciembre
C105: Importe
C106: Total acumulado | D106: =+D105 -> 0 | E106: =+D106+E105 -> 0 | F106: =+E106+F105 -> 0 | G106: 0 | H106: 0 | I106: 0 | J106: 0 | K106: 0 | L106: 0 | M106: 0 | N106: 0 | O106: 0
C107: Mes en que se informa | D107: 1 | E107: 2 | F107: 3 | G107: 4 | H107: 5 | I107: 6 | J107: 7 | K107: 8 | L107: 9 | M107: 10 | N107: 11 | O107: 12
C113: Concepto | D113: Enero | E113: Febrero | F113: Marzo | G113: Abril | H113: Mayo | I113: Junio | J113: Julio | K113: Agosto | L113: Septiembre | M113: Octubre | N113: Noviembre | O113: Diciembre
C114: Importe
C115: Total acumulado | D115: =+D114 -> 0 | E115: =+D115+E114 -> 0 | F115: 0 | G115: 0 | H115: 0 | I115: 0 | J115: 0 | K115: 0 | L115: 0 | M115: 0 | N115: 0 | O115: 0
C116: Mes en que se informa | D116: 1 | E116: 2 | F116: 3 | G116: 4 | H116: 5 | I116: 6 | J116: 7 | K116: 8 | L116: 9 | M116: 10 | N116: 11 | O116: 12
C122: Concepto | D122: Enero | E122: Febrero | F122: Marzo | G122: Abril | H122: Mayo | I122: Junio | J122: Julio | K122: Agosto | L122: Septiembre | M122: Octubre | N122: Noviembre | O122: Diciembre
C123: Importe
C124: Total acumulado | D124: =+D123 -> 0 | E124: =+D124+E123 -> 0 | F124: =+E124+F123 -> 0 | G124: 0 | H124: 0 | I124: 0 | J124: 0 | K124: 0 | L124: 0 | M124: 0 | N124: 0 | O124: 0
C125: Mes en que se informa | D125: 1 | E125: 2 | F125: 3 | G125: 4 | H125: 5 | I125: 6 | J125: 7 | K125: 8 | L125: 9 | M125: 10 | N125: 11 | O125: 12
C130: Concepto | D130: Enero | E130: Febrero | F130: Marzo | G130: Abril | H130: Mayo | I130: Junio | J130: Julio | K130: Agosto | L130: Septiembre | M130: Octubre | N130: Noviembre | O130: Diciembre
C131: Importe
C132: Total acumulado | D132: =+D131 -> 0 | E132: =+D132+E131 -> 0 | F132: 0 | G132: 0 | H132: 0 | I132: 0 | J132: 0 | K132: 0 | L132: 0 | M132: 0 | N132: 0 | O132: 0
C133: Mes en que se informa | D133: 1 | E133: 2 | F133: 3 | G133: 4 | H133: 5 | I133: 6 | J133: 7 | K133: 8 | L133: 9 | M133: 10 | N133: 11 | O133: 12
C138: Concepto | D138: Enero | E138: Febrero | F138: Marzo | G138: Abril | H138: Mayo | I138: Junio | J138: Julio | K138: Agosto | L138: Septiembre | M138: Octubre | N138: Noviembre | O138: Diciembre
C139: Importe
C140: Total acumulado | D140: =+D139 -> 0 | E140: =+D140+E139 -> 0 | F140: =+E140+F139 -> 0 | G140: =+F140+G139 -> 0 | H140: =+G140+H139 -> 0 | I140: =+H140+I139 -> 0 | J140: =+I140+J139 -> 0 | K140: =+J140+K139 -> 0 | L140: =+K140+L139 -> 0 | M140: =+L140+M139 -> 0 | N140: =+M140+N139 -> 0 | O140: =+N140+O139 -> 0
C141: Mes en que se informa | D141: 1 | E141: 2 | F141: 3 | G141: 4 | H141: 5 | I141: 6 | J141: 7 | K141: 8 | L141: 9 | M141: 10 | N141: 11 | O141: 12
C147: Concepto | D147: Enero | E147: Febrero | F147: Marzo | G147: Abril | H147: Mayo | I147: Junio | J147: Julio | K147: Agosto | L147: Septiembre | M147: Octubre | N147: Noviembre | O147: Diciembre
C148: Importe
C149: Total acumulado | D149: =+D148 -> 0 | E149: =+D149+E148 -> 0 | F149: =+E149+F148 -> 0 | G149: =+F149+G148 -> 0 | H149: =+G149+H148 -> 0 | I149: =+H149+I148 -> 0 | J149: =+I149+J148 -> 0 | K149: =+J149+K148 -> 0 | L149: =+K149+L148 -> 0 | M149: =+L149+M148 -> 0 | N149: =+M149+N148 -> 0 | O149: =+N149+O148 -> 0
C150: Mes en que se informa | D150: 1 | E150: 2 | F150: 3 | G150: 4 | H150: 5 | I150: 6 | J150: 7 | K150: 8 | L150: 9 | M150: 10 | N150: 11 | O150: 12
C157: Concepto | D157: Enero | E157: Febrero | F157: Marzo | G157: Abril | H157: Mayo | I157: Junio | J157: Julio | K157: Agosto | L157: Septiembre | M157: Octubre | N157: Noviembre | O157: Diciembre
C158: Importe
C159: Total acumulado | D159: =+D158 -> 0 | E159: =+D159+E158 -> 0 | F159: =+E159+F158 -> 0 | G159: =+F159+G158 -> 0 | H159: =+G159+H158 -> 0 | I159: =+H159+I158 -> 0 | J159: =+I159+J158 -> 0 | K159: =+J159+K158 -> 0 | L159: =+K159+L158 -> 0 | M159: =+L159+M158 -> 0 | N159: =+M159+N158 -> 0 | O159: =+N159+O158 -> 0
C160: Mes en que se informa | D160: 1 | E160: 2 | F160: 3 | G160: 4 | H160: 5 | I160: 6 | J160: 7 | K160: 8 | L160: 9 | M160: 10 | N160: 11 | O160: 12
C167: Concepto | D167: Enero | E167: Febrero | F167: Marzo | G167: Abril | H167: Mayo | I167: Junio | J167: Julio | K167: Agosto | L167: Septiembre | M167: Octubre | N167: Noviembre | O167: Diciembre
C168: Importe
C169: Total acumulado | D169: =+D168 -> 0 | E169: =+D169+E168 -> 0 | F169: =+E169+F168 -> 0 | G169: =+F169+G168 -> 0 | H169: =+G169+H168 -> 0 | I169: =+H169+I168 -> 0 | J169: =+I169+J168 -> 0 | K169: =+J169+K168 -> 0 | L169: =+K169+L168 -> 0 | M169: =+L169+M168 -> 0 | N169: =+M169+N168 -> 0 | O169: =+N169+O168 -> 0
C170: Mes en que se informa | D170: 1 | E170: 2 | F170: 3 | G170: 4 | H170: 5 | I170: 6 | J170: 7 | K170: 8 | L170: 9 | M170: 10 | N170: 11 | O170: 12
C176: Concepto | D176: Enero | E176: Febrero | F176: Marzo | G176: Abril | H176: Mayo | I176: Junio | J176: Julio | K176: Agosto | L176: Septiembre | M176: Octubre | N176: Noviembre | O176: Diciembre
C177: Importe
C178: Total acumulado | D178: =+D177 -> 0 | E178: =+D178+E177 -> 0 | F178: =+E178+F177 -> 0 | G178: =+F178+G177 -> 0 | H178: =+G178+H177 -> 0 | I178: =+H178+I177 -> 0 | J178: =+I178+J177 -> 0 | K178: =+J178+K177 -> 0 | L178: =+K178+L177 -> 0 | M178: =+L178+M177 -> 0 | N178: =+M178+N177 -> 0 | O178: =+N178+O177 -> 0
C179: Mes en que se informa | D179: 1 | E179: 2 | F179: 3 | G179: 4 | H179: 5 | I179: 6 | J179: 7 | K179: 8 | L179: 9 | M179: 10 | N179: 11 | O179: 12
C185: Concepto | D185: Enero | E185: Febrero | F185: Marzo | G185: Abril | H185: Mayo | I185: Junio | J185: Julio | K185: Agosto | L185: Septiembre | M185: Octubre | N185: Noviembre | O185: Diciembre
C186: Importe
C187: Total acumulado | D187: =+D186 -> 0 | E187: =+D187+E186 -> 0 | F187: =+E187+F186 -> 0 | G187: =+F187+G186 -> 0 | H187: =+G187+H186 -> 0 | I187: =+H187+I186 -> 0 | J187: =+I187+J186 -> 0 | K187: =+J187+K186 -> 0 | L187: =+K187+L186 -> 0 | M187: =+L187+M186 -> 0 | N187: =+M187+N186 -> 0 | O187: =+N187+O186 -> 0
C188: Mes en que se informa | D188: 1 | E188: 2 | F188: 3 | G188: 4 | H188: 5 | I188: 6 | J188: 7 | K188: 8 | L188: 9 | M188: 10 | N188: 11 | O188: 12
C193: Concepto | D193: Enero | E193: Febrero | F193: Marzo | G193: Abril | H193: Mayo | I193: Junio | J193: Julio | K193: Agosto | L193: Septiembre | M193: Octubre | N193: Noviembre | O193: Diciembre
C194: Importe
C195: Total acumulado | D195: =+D194 -> 0 | E195: =+D195+E194 -> 0 | F195: =+E195+F194 -> 0 | G195: =+F195+G194 -> 0 | H195: =+G195+H194 -> 0 | I195: =+H195+I194 -> 0 | J195: =+I195+J194 -> 0 | K195: =+J195+K194 -> 0 | L195: =+K195+L194 -> 0 | M195: =+L195+M194 -> 0 | N195: =+M195+N194 -> 0 | O195: =+N195+O194 -> 0
C196: Mes en que se informa | D196: 1 | E196: 2 | F196: 3 | G196: 4 | H196: 5 | I196: 6 | J196: 7 | K196: 8 | L196: 9 | M196: 10 | N196: 11 | O196: 12
C200: Concepto | D200: Enero | E200: Febrero | F200: Marzo | G200: Abril | H200: Mayo | I200: Junio | J200: Julio | K200: Agosto | L200: Septiembre | M200: Octubre | N200: Noviembre | O200: Diciembre
C201: Importe
C202: Total acumulado | D202: =+D201 -> 0 | E202: =+D202+E201 -> 0 | F202: =+E202+F201 -> 0 | G202: =+F202+G201 -> 0 | H202: =+G202+H201 -> 0 | I202: =+H202+I201 -> 0 | J202: =+I202+J201 -> 0 | K202: =+J202+K201 -> 0 | L202: =+K202+L201 -> 0 | M202: =+L202+M201 -> 0 | N202: =+M202+N201 -> 0 | O202: =+N202+O201 -> 0
C203: Mes en que se informa | D203: 1 | E203: 2 | F203: 3 | G203: 4 | H203: 5 | I203: 6 | J203: 7 | K203: 8 | L203: 9 | M203: 10 | N203: 11 | O203: 12

Sheet Check
A1: Pago del sueldo en el mes siguiente | B1: Ok | D1: Otra hoja
A2: Seguro de vida | B2: Ok | C2: chkSeguro
A3: Gastos de sepelio | B3: Ok | C3: chkSepelio
A4: Crédito hipotecario | B4: Ok | C4: chkCredito
A5: PCP | B5: Ok | C5: chkDomestico
A6: Cuota médico asistencial | B6: Ok | C6: chkMedico
A7: Donaciones | B7: Ok | C7: chkDonaciones
A8: Retenciones automáticas | B8: Ok | C8: Retenciones
A9: Aportes a fondos de jubilaciones | B9: Ok | C9: chkAportesJub
A10: Alquiler de casa habitación | B10: Ok | C10: chkAlquiler
A11: Viáticos | B11: Ok | C11: chkViaticos
A12: Descuentos obligatorios | B12: Ok | C12: chkDescuentos
A13: SGR | B13: Ok | C13: chkSGR
A14: Cajas complementarias de previsión | B14: Ok | C14: chkAportesCajas
A15: Honorarios por asistencia sanitaria, médica | B15: Ok | C15: chkHonorarios
A16: Viajantes | B16: Ok | C16: chkViajantes
A17: 35% de límite anual | B17: Ok | C17: chkLimite | D17: Otra hoja
A18: Planes de seguro de retiro privado | B18: Ok | C18: chkAportesRetirosPrivados
A19: Gastos de indumentaria | B19: Ok | C19: chkIndumentaria
A20: Viáticos (larga distancia) | B20: Ok | C20: chkLargaDistancia
A21: Seguros mixtos | B21: Ok | C21: chkSegurosMixtos
A22: Fondo común de inversión | B22: Ok | C22: chkFondosComunes
A23: Criterio SAC | B23: 0 | C23: No sirve
A24: Gastos educativos | B24: Ok | C24: chkGastosEducativos

Sheet DedPersonales
B3: DEDUCCIONES PERSONALES
B5: Cónyuge/Unión convivencial/Conviviente
B6: ="Sean residentes en el país, estén a cargo del contribuyente y no tengan en el año ingresos netos superiores a pesos "&Tablas!O36&", cualquiera sea su origen y estén o no sujetas al impuesto" -> Sean residentes en el país, estén a cargo del contribuyente y no tengan en el año ingresos netos superiores a pesos 451683,19, cualquiera sea su origen y estén o no sujetas al impuesto
C7: Nombre y apellido | D7: CUIL | E7: Mes de alta | F7: Mes de baja | G7: Mes en que se informa
K8: =IF(AND(E8="",F8="",G8=""),"",IF(AND(OR(E8<>"",F8<>""),G8=""),"Recuerde completar el campo 'Mes en que se informa' para computar las deducciones","")) -> 
B10: Hijos
B11: ="Hijo, hija, hijastro o hijastra menor de dieciocho (18) años o incapacitado para el trabajo; residentes en el país, estén a cargo del contribuyente y no tengan en el año ingresos netos superiores a "&Tablas!O36&", cualquiera sea su origen y estén o no sujetas al impuesto" -> Hijo, hija, hijastro o hijastra menor de dieciocho (18) años o incapacitado para el trabajo; residentes en el país, estén a cargo del contribuyente y no tengan en el año ingresos netos superiores a 451683,19, cualquiera sea su origen y estén o no sujetas al impuesto
J12: Cambio de imputación
C13: Nombre y apellido | D13: CUIL | E13: Causal | F13: Mes de alta | G13: Mes de baja | H13: Mes en que se informa | I13: Porcentaje de imputación | J13: Porcentaje de imputación (cambio) | K13: Mes de cambio | AA13: 1 | AB13: 2 | AC13: 3 | AD13: 4 | AE13: =+AD13+1 -> 5 | AF13: =+AE13+1 -> 6 | AG13: 7 | AH13: 8 | AI13: 9 | AJ13: 10 | AK13: 11 | AL13: =+AK13+1 -> 12
I14: 1 | L14: =IF(U14=1,"",IF(AND(S14=0,T14=1),"Ingrese porcentaje de imputación y mes de cambio, de corresponder el cambio de la RG 4286",IF(AND(S14=0,T14=0),"",IF(S14=1,"Ingrese Mes de alta y mes que se informa")))) ->  | S14: =IF(AND(Tabla1[[#This Row],[Mes de alta]]<>"",Tabla1[[#This Row],[Mes en que se informa]]<>""),0,1) -> 1 | T14: =IF(AND(Tabla1[[#This Row],[Porcentaje de imputación (cambio)]]<>"",Tabla1[[#This Row],[Mes de cambio]]<>""),0,1) -> 1 | U14: =IF(OR(Tabla1[[#This Row],[Mes de alta]]<>"",Tabla1[[#This Row],[Mes de baja]]<>"",Tabla1[[#This Row],[Mes en que se informa]]<>"",Tabla1[[#This Row],[Porcentaje de imputación (cambio)]]<>"",Tabla1[[#This Row],[Mes de cambio]]<>""),0,1) -> 1 | V14: =Tabla1[[#This Row],[Causal]]&";"&Tabla1[[#This Row],[Porcentaje de imputación (cambio)]] -> ;
I15: 1 | L15: =IF(U15=1,"",IF(AND(S15=0,T15=1),"Ingrese porcentaje de imputación y mes de cambio, de corresponder",IF(AND(S15=0,T15=0),"",IF(S15=1,"Ingrese Mes de alta y mes que se informa")))) ->  | S15: =IF(OR(Tabla1[[#This Row],[Mes de alta]]<>"",Tabla1[[#This Row],[Mes en que se informa]]<>""),0,1) -> 1 | T15: =IF(AND(Tabla1[[#This Row],[Porcentaje de imputación (cambio)]]<>"",Tabla1[[#This Row],[Mes de cambio]]<>""),0,1) -> 1 | U15: =IF(OR(Tabla1[[#This Row],[Mes de alta]]<>"",Tabla1[[#This Row],[Mes de baja]]<>"",Tabla1[[#This Row],[Mes en que se informa]]<>"",Tabla1[[#This Row],[Porcentaje de imputación (cambio)]]<>"",Tabla1[[#This Row],[Mes de cambio]]<>""),0,1) -> 1 | V15: =Tabla1[[#This Row],[Causal]]&";"&Tabla1[[#This Row],[Porcentaje de imputación (cambio)]] -> ;
I16: 1 | S16: =IF(OR(Tabla1[[#This Row],[Mes de alta]]<>"",Tabla1[[#This Row],[Mes en que se informa]]<>""),0,1) -> 1 | T16: =IF(AND(Tabla1[[#This Row],[Porcentaje de imputación (cambio)]]<>"",Tabla1[[#This Row],[Mes de cambio]]<>""),0,1) -> 1 | U16: =IF(OR(Tabla1[[#This Row],[Mes de alta]]<>"",Tabla1[[#This Row],[Mes de baja]]<>"",Tabla1[[#This Row],[Mes en que se informa]]<>"",Tabla1[[#This Row],[Porcentaje de imputación (cambio)]]<>"",Tabla1[[#This Row],[Mes de cambio]]<>""),0,1) -> 1 | V16: =Tabla1[[#This Row],[Causal]]&";"&Tabla1[[#This Row],[Porcentaje de imputación (cambio)]] -> ;
I17: 1 | S17: =IF(OR(Tabla1[[#This Row],[Mes de alta]]<>"",Tabla1[[#This Row],[Mes en que se informa]]<>""),0,1) -> 1 | T17: =IF(AND(Tabla1[[#This Row],[Porcentaje de imputación (cambio)]]<>"",Tabla1[[#This Row],[Mes de cambio]]<>""),0,1) -> 1 | U17: =IF(OR(Tabla1[[#This Row],[Mes de alta]]<>"",Tabla1[[#This Row],[Mes de baja]]<>"",Tabla1[[#This Row],[Mes en que se informa]]<>"",Tabla1[[#This Row],[Porcentaje de imputación (cambio)]]<>"",Tabla1[[#This Row],[Mes de cambio]]<>""),0,1) -> 1 | V17: =Tabla1[[#This Row],[Causal]]&";"&Tabla1[[#This Row],[Porcentaje de imputación (cambio)]] -> ;
I18: 1 | S18: =IF(OR(Tabla1[[#This Row],[Mes de alta]]<>"",Tabla1[[#This Row],[Mes en que se informa]]<>""),0,1) -> 1 | T18: =IF(AND(Tabla1[[#This Row],[Porcentaje de imputación (cambio)]]<>"",Tabla1[[#This Row],[Mes de cambio]]<>""),0,1) -> 1 | U18: =IF(OR(Tabla1[[#This Row],[Mes de alta]]<>"",Tabla1[[#This Row],[Mes de baja]]<>"",Tabla1[[#This Row],[Mes en que se informa]]<>"",Tabla1[[#This Row],[Porcentaje de imputación (cambio)]]<>"",Tabla1[[#This Row],[Mes de cambio]]<>""),0,1) -> 1 | V18: =Tabla1[[#This Row],[Causal]]&";"&Tabla1[[#This Row],[Porcentaje de imputación (cambio)]] -> ;
I19: 1 | S19: =IF(OR(Tabla1[[#This Row],[Mes de alta]]<>"",Tabla1[[#This Row],[Mes en que se informa]]<>""),0,1) -> 1 | T19: =IF(AND(Tabla1[[#This Row],[Porcentaje de imputación (cambio)]]<>"",Tabla1[[#This Row],[Mes de cambio]]<>""),0,1) -> 1 | U19: =IF(OR(Tabla1[[#This Row],[Mes de alta]]<>"",Tabla1[[#This Row],[Mes de baja]]<>"",Tabla1[[#This Row],[Mes en que se informa]]<>"",Tabla1[[#This Row],[Porcentaje de imputación (cambio)]]<>"",Tabla1[[#This Row],[Mes de cambio]]<>""),0,1) -> 1 | V19: =Tabla1[[#This Row],[Causal]]&";"&Tabla1[[#This Row],[Porcentaje de imputación (cambio)]] -> ;
I20: 1 | S20: =IF(OR(Tabla1[[#This Row],[Mes de alta]]<>"",Tabla1[[#This Row],[Mes en que se informa]]<>""),0,1) -> 1 | T20: =IF(AND(Tabla1[[#This Row],[Porcentaje de imputación (cambio)]]<>"",Tabla1[[#This Row],[Mes de cambio]]<>""),0,1) -> 1 | U20: =IF(OR(Tabla1[[#This Row],[Mes de alta]]<>"",Tabla1[[#This Row],[Mes de baja]]<>"",Tabla1[[#This Row],[Mes en que se informa]]<>"",Tabla1[[#This Row],[Porcentaje de imputación (cambio)]]<>"",Tabla1[[#This Row],[Mes de cambio]]<>""),0,1) -> 1 | V20: =Tabla1[[#This Row],[Causal]]&";"&Tabla1[[#This Row],[Porcentaje de imputación (cambio)]] -> ;
I21: 1 | S21: =IF(OR(Tabla1[[#This Row],[Mes de alta]]<>"",Tabla1[[#This Row],[Mes en que se informa]]<>""),0,1) -> 1 | T21: =IF(AND(Tabla1[[#This Row],[Porcentaje de imputación (cambio)]]<>"",Tabla1[[#This Row],[Mes de cambio]]<>""),0,1) -> 1 | U21: =IF(OR(Tabla1[[#This Row],[Mes de alta]]<>"",Tabla1[[#This Row],[Mes de baja]]<>"",Tabla1[[#This Row],[Mes en que se informa]]<>"",Tabla1[[#This Row],[Porcentaje de imputación (cambio)]]<>"",Tabla1[[#This Row],[Mes de cambio]]<>""),0,1) -> 1 | V21: =Tabla1[[#This Row],[Causal]]&";"&Tabla1[[#This Row],[Porcentaje de imputación (cambio)]] -> ;
I22: 1 | S22: =IF(OR(Tabla1[[#This Row],[Mes de alta]]<>"",Tabla1[[#This Row],[Mes en que se informa]]<>""),0,1) -> 1 | T22: =IF(AND(Tabla1[[#This Row],[Porcentaje de imputación (cambio)]]<>"",Tabla1[[#This Row],[Mes de cambio]]<>""),0,1) -> 1 | U22: =IF(OR(Tabla1[[#This Row],[Mes de alta]]<>"",Tabla1[[#This Row],[Mes de baja]]<>"",Tabla1[[#This Row],[Mes en que se informa]]<>"",Tabla1[[#This Row],[Porcentaje de imputación (cambio)]]<>"",Tabla1[[#This Row],[Mes de cambio]]<>""),0,1) -> 1 | V22: =Tabla1[[#This Row],[Causal]]&";"&Tabla1[[#This Row],[Porcentaje de imputación (cambio)]] -> ;
I23: 1 | S23: =IF(OR(Tabla1[[#This Row],[Mes de alta]]<>"",Tabla1[[#This Row],[Mes en que se informa]]<>""),0,1) -> 1 | T23: =IF(AND(Tabla1[[#This Row],[Porcentaje de imputación (cambio)]]<>"",Tabla1[[#This Row],[Mes de cambio]]<>""),0,1) -> 1 | U23: =IF(OR(Tabla1[[#This Row],[Mes de alta]]<>"",Tabla1[[#This Row],[Mes de baja]]<>"",Tabla1[[#This Row],[Mes en que se informa]]<>"",Tabla1[[#This Row],[Porcentaje de imputación (cambio)]]<>"",Tabla1[[#This Row],[Mes de cambio]]<>""),0,1) -> 1 | V23: =Tabla1[[#This Row],[Causal]]&";"&Tabla1[[#This Row],[Porcentaje de imputación (cambio)]] -> ;
I24: 1 | S24: =IF(OR(Tabla1[[#This Row],[Mes de alta]]<>"",Tabla1[[#This Row],[Mes en que se informa]]<>""),0,1) -> 1 | T24: =IF(AND(Tabla1[[#This Row],[Porcentaje de imputación (cambio)]]<>"",Tabla1[[#This Row],[Mes de cambio]]<>""),0,1) -> 1 | U24: =IF(OR(Tabla1[[#This Row],[Mes de alta]]<>"",Tabla1[[#This Row],[Mes de baja]]<>"",Tabla1[[#This Row],[Mes en que se informa]]<>"",Tabla1[[#This Row],[Porcentaje de imputación (cambio)]]<>"",Tabla1[[#This Row],[Mes de cambio]]<>""),0,1) -> 1 | V24: =Tabla1[[#This Row],[Causal]]&";"&Tabla1[[#This Row],[Porcentaje de imputación (cambio)]] -> ;
I25: 1 | S25: =IF(OR(Tabla1[[#This Row],[Mes de alta]]<>"",Tabla1[[#This Row],[Mes en que se informa]]<>""),0,1) -> 1 | T25: =IF(AND(Tabla1[[#This Row],[Porcentaje de imputación (cambio)]]<>"",Tabla1[[#This Row],[Mes de cambio]]<>""),0,1) -> 1 | U25: =IF(OR(Tabla1[[#This Row],[Mes de alta]]<>"",Tabla1[[#This Row],[Mes de baja]]<>"",Tabla1[[#This Row],[Mes en que se informa]]<>"",Tabla1[[#This Row],[Porcentaje de imputación (cambio)]]<>"",Tabla1[[#This Row],[Mes de cambio]]<>""),0,1) -> 1 | V25: =Tabla1[[#This Row],[Causal]]&";"&Tabla1[[#This Row],[Porcentaje de imputación (cambio)]] -> ;
I26: 1 | S26: =IF(OR(Tabla1[[#This Row],[Mes de alta]]<>"",Tabla1[[#This Row],[Mes en que se informa]]<>""),0,1) -> 1 | T26: =IF(AND(Tabla1[[#This Row],[Porcentaje de imputación (cambio)]]<>"",Tabla1[[#This Row],[Mes de cambio]]<>""),0,1) -> 1 | U26: =IF(OR(Tabla1[[#This Row],[Mes de alta]]<>"",Tabla1[[#This Row],[Mes de baja]]<>"",Tabla1[[#This Row],[Mes en que se informa]]<>"",Tabla1[[#This Row],[Porcentaje de imputación (cambio)]]<>"",Tabla1[[#This Row],[Mes de cambio]]<>""),0,1) -> 1 | V26: =Tabla1[[#This Row],[Causal]]&";"&Tabla1[[#This Row],[Porcentaje de imputación (cambio)]] -> ;
I27: 1 | S27: =IF(OR(Tabla1[[#This Row],[Mes de alta]]<>"",Tabla1[[#This Row],[Mes en que se informa]]<>""),0,1) -> 1 | T27: =IF(AND(Tabla1[[#This Row],[Porcentaje de imputación (cambio)]]<>"",Tabla1[[#This Row],[Mes de cambio]]<>""),0,1) -> 1 | U27: =IF(OR(Tabla1[[#This Row],[Mes de alta]]<>"",Tabla1[[#This Row],[Mes de baja]]<>"",Tabla1[[#This Row],[Mes en que se informa]]<>"",Tabla1[[#This Row],[Porcentaje de imputación (cambio)]]<>"",Tabla1[[#This Row],[Mes de cambio]]<>""),0,1) -> 1 | V27: =Tabla1[[#This Row],[Causal]]&";"&Tabla1[[#This Row],[Porcentaje de imputación (cambio)]] -> ;
I28: 1 | S28: =IF(OR(Tabla1[[#This Row],[Mes de alta]]<>"",Tabla1[[#This Row],[Mes en que se informa]]<>""),0,1) -> 1 | T28: =IF(AND(Tabla1[[#This Row],[Porcentaje de imputación (cambio)]]<>"",Tabla1[[#This Row],[Mes de cambio]]<>""),0,1) -> 1 | U28: =IF(OR(Tabla1[[#This Row],[Mes de alta]]<>"",Tabla1[[#This Row],[Mes de baja]]<>"",Tabla1[[#This Row],[Mes en que se informa]]<>"",Tabla1[[#This Row],[Porcentaje de imputación (cambio)]]<>"",Tabla1[[#This Row],[Mes de cambio]]<>""),0,1) -> 1 | V28: =Tabla1[[#This Row],[Causal]]&";"&Tabla1[[#This Row],[Porcentaje de imputación (cambio)]] -> ;
I29: 1 | S29: =IF(OR(Tabla1[[#This Row],[Mes de alta]]<>"",Tabla1[[#This Row],[Mes en que se informa]]<>""),0,1) -> 1 | T29: =IF(AND(Tabla1[[#This Row],[Porcentaje de imputación (cambio)]]<>"",Tabla1[[#This Row],[Mes de cambio]]<>""),0,1) -> 1 | U29: =IF(OR(Tabla1[[#This Row],[Mes de alta]]<>"",Tabla1[[#This Row],[Mes de baja]]<>"",Tabla1[[#This Row],[Mes en que se informa]]<>"",Tabla1[[#This Row],[Porcentaje de imputación (cambio)]]<>"",Tabla1[[#This Row],[Mes de cambio]]<>""),0,1) -> 1 | V29: =Tabla1[[#This Row],[Causal]]&";"&Tabla1[[#This Row],[Porcentaje de imputación (cambio)]] -> ;

Sheet PagosACuenta
B4: PERCEPCIONES EFECTUADAS POR LA DIRECCIÓN GENERAL DE ADUANAS, IMPUESTO SOBRE LOS CRÉDITOS Y DÉBITOS BANCARIOS Y PERCEPCIONES DE LA RG 3819
B6: Concepto | C6: enero | D6: febrero | E6: marzo | F6: abril | G6: mayo | H6: junio | I6: julio | J6: agosto | K6: septiembre | L6: octubre | M6: noviembre | N6: diciembre | O6: anual
B7: Importe
B8: Acumulado | C8: =+C7 -> 0 | D8: =+D7+C8 -> 0 | E8: =+E7+D8 -> 0 | F8: 0 | G8: 0 | H8: 0 | I8: 0 | J8: 0 | K8: 0 | L8: 0 | M8: 0 | N8: 0 | O8: 0
B10: IMPUESTO SOBRE LOS CRÉDITOS Y DÉBITOS BANCARIOS
B12: Concepto | C12: enero | D12: febrero | E12: marzo | F12: abril | G12: mayo | H12: junio | I12: julio | J12: agosto | K12: septiembre | L12: octubre | M12: noviembre | N12: diciembre | O12: anual
B13: Importe
B14: Acumulado | C14: =+C13 -> 0 | D14: =+D13+C14 -> 0 | E14: =+E13+D14 -> 0 | F14: 0 | G14: 0 | H14: 0 | I14: 0 | J14: 0 | K14: 0 | L14: 0 | M14: 0 | N14: 0 | O14: 0
B16: PAGOS A CUENTA - PERCEPCIONES / RETENCIONES ADUANERAS
B18: Concepto | C18: enero | D18: febrero | E18: marzo | F18: abril | G18: mayo | H18: junio | I18: julio | J18: agosto | K18: septiembre | L18: octubre | M18: noviembre | N18: diciembre | O18: anual
B19: Importe
B20: Acumulado | C20: =+C19 -> 0 | D20: =+D19+C20 -> 0 | E20: =+E19+D20 -> 0 | F20: 0 | G20: 0 | H20: 0 | I20: 0 | J20: 0 | K20: 0 | L20: 0 | M20: 0 | N20: 0 | O20: 0
B22: PAGOS A CUENTA - RG (AFIP) 3819/2015 - CANCELACIONES EN EFECTIVO
B24: Concepto | C24: enero | D24: febrero | E24: marzo | F24: abril | G24: mayo | H24: junio | I24: julio | J24: agosto | K24: septiembre | L24: octubre | M24: noviembre | N24: diciembre | O24: anual
B25: Importe
B26: Acumulado | C26: =+C25 -> 0 | D26: =+D25+C26 -> 0 | E26: =+E25+D26 -> 0 | F26: 0 | G26: 0 | H26: 0 | I26: 0 | J26: 0 | K26: 0 | L26: 0 | M26: 0 | N26: 0 | O26: 0
B28: PAGOS A CUENTA - BONO LEY 27.424
B30: Concepto | C30: enero | D30: febrero | E30: marzo | F30: abril | G30: mayo | H30: junio | I30: julio | J30: agosto | K30: septiembre | L30: octubre | M30: noviembre | N30: diciembre | O30: anual
B31: Importe
B32: Acumulado | C32: =+C31 -> 0 | D32: =+D31+C32 -> 0 | E32: =+E31+D32 -> 0 | F32: 0 | G32: 0 | H32: 0 | I32: 0 | J32: 0 | K32: 0 | L32: 0 | M32: 0 | N32: 0 | O32: 0
B34: PAGOS A CUENTA - RG 4815 [LEY 27.541 ART. 35 INCISO A)]
B36: Concepto | C36: enero | D36: febrero | E36: marzo | F36: abril | G36: mayo | H36: junio | I36: julio | J36: agosto | K36: septiembre | L36: octubre | M36: noviembre | N36: diciembre | O36: anual
B37: Importe
B38: Acumulado | C38: =+C37 -> 0 | D38: =+D37+C38 -> 0 | E38: =+E37+D38 -> 0 | F38: 0 | G38: 0 | H38: 0 | I38: 0 | J38: 0 | K38: 0 | L38: 0 | M38: 0 | N38: 0 | O38: 0
B40: PAGOS A CUENTA - RG 4815 [LEY 27.541 ART. 35 INCISO B)]
B42: Concepto | C42: enero | D42: febrero | E42: marzo | F42: abril | G42: mayo | H42: junio | I42: julio | J42: agosto | K42: septiembre | L42: octubre | M42: noviembre | N42: diciembre | O42: anual
B43: Importe
B44: Acumulado | C44: =+C43 -> 0 | D44: =+D43+C44 -> 0 | E44: =+E43+D44 -> 0 | F44: 0 | G44: 0 | H44: 0 | I44: 0 | J44: 0 | K44: 0 | L44: 0 | M44: 0 | N44: 0 | O44: 0
B46: PAGOS A CUENTA - RG 4815 [LEY 27.541 ART. 35 INCISO C)]
B48: Concepto | C48: enero | D48: febrero | E48: marzo | F48: abril | G48: mayo | H48: junio | I48: julio | J48: agosto | K48: septiembre | L48: octubre | M48: noviembre | N48: diciembre | O48: anual
B49: Importe
B50: Acumulado | C50: =+C49 -> 0 | D50: =+D49+C50 -> 0 | E50: =+E49+D50 -> 0 | F50: 0 | G50: 0 | H50: 0 | I50: 0 | J50: 0 | K50: 0 | L50: 0 | M50: 0 | N50: 0 | O50: 0
B52: PAGOS A CUENTA - RG 4815 [LEY 27.541 ART. 35 INCISO D)]
B54: Concepto | C54: enero | D54: febrero | E54: marzo | F54: abril | G54: mayo | H54: junio | I54: julio | J54: agosto | K54: septiembre | L54: octubre | M54: noviembre | N54: diciembre | O54: anual
B55: Importe
B56: Acumulado | C56: =+C55 -> 0 | D56: =+D55+C56 -> 0 | E56: =+E55+D56 -> 0 | F56: 0 | G56: 0 | H56: 0 | I56: 0 | J56: 0 | K56: 0 | L56: 0 | M56: 0 | N56: 0 | O56: 0
B58: PAGOS A CUENTA - RG 4815 [LEY 27.541 ART. 35 INCISO E)]
B60: Concepto | C60: enero | D60: febrero | E60: marzo | F60: abril | G60: mayo | H60: junio | I60: julio | J60: agosto | K60: septiembre | L60: octubre | M60: noviembre | N60: diciembre | O60: anual
B61: Importe
B62: Acumulado | C62: =+C61 -> 0 | D62: =+D61+C62 -> 0 | E62: =+E61+D62 -> 0 | F62: 0 | G62: 0 | H62: 0 | I62: 0 | J62: 0 | K62: 0 | L62: 0 | M62: 0 | N62: 0 | O62: 0
B64: PAGOS A CUENTA - IMPUESTO SOBRE CRÉDITOS Y DÉBITOS - SOBRE MOVIMIENTOS DE FONDOS PROPIOS O DE TERCEROS
B66: Concepto | C66: enero | D66: febrero | E66: marzo | F66: abril | G66: mayo | H66: junio | I66: julio | J66: agosto | K66: septiembre | L66: octubre | M66: noviembre | N66: diciembre | O66: anual
B67: Importe
B68: Acumulado | C68: =+C67 -> 0 | D68: =+D67+C68 -> 0 | E68: =+E67+D68 -> 0 | F68: 0 | G68: 0 | H68: 0 | I68: 0 | J68: 0 | K68: 0 | L68: 0 | M68: 0 | N68: 0 | O68: 0
B70: PAGOS A CUENTA - RESOLUCIÓN GENERAL (AFIP) 3819/2015 - CANCELACIONES EN EFECTIVO -SERVICIOS DE TRANSPORTE TERRESTRE, AÉREO Y POR VÍA ACUÁTICA DE PASAJEROS CON DESTINO FUERA DEL PAÍS
B72: Concepto | C72: enero | D72: febrero | E72: marzo | F72: abril | G72: mayo | H72: junio | I72: julio | J72: agosto | K72: septiembre | L72: octubre | M72: noviembre | N72: diciembre | O72: anual
B73: Importe
B74: Acumulado | C74: =+C73 -> 0 | D74: =+D73+C74 -> 0 | E74: =+E73+D74 -> 0 | F74: 0 | G74: 0 | H74: 0 | I74: 0 | J74: 0 | K74: 0 | L74: 0 | M74: 0 | N74: 0 | O74: 0
B76: IMPORTE EFECTIVAMENTE RETENIDO/DEVUELTO (MENSUAL)
B78: Concepto | C78: enero | D78: febrero | E78: marzo | F78: abril | G78: mayo | H78: junio | I78: julio | J78: agosto | K78: septiembre | L78: octubre | M78: noviembre | N78: diciembre | O78: anual
B79: Retenciones
B80: Devoluciones
B81: Acumulado | C81: =+C79-C80 -> 0 | D81: =+D79-D80+C81 -> 0 | E81: =+E79-E80+D81 -> 0 | F81: 0 | G81: 0 | H81: 0 | I81: 0 | J81: 0 | K81: 0 | L81: 0 | M81: 0 | N81: 0 | O81: 0

Sheet Auxiliares
C3: No
C5: Mes | D5: 2017-01-01 | E5: 2017-02-01 | F5: 2017-03-01 | G5: 2017-04-01 | H5: 2017-05-01 | I5: 2017-06-01 | J5: 2017-07-01 | K5: 2017-08-01 | L5: 2017-09-01 | M5: 2017-10-01 | N5: 2017-11-01 | O5: 2017-12-01
C7: Concepto | D7: 2017-01-01 | E7: 2017-02-01 | F7: 2017-03-01 | G7: 2017-04-01 | H7: 2017-05-01 | I7: 2017-06-01 | J7: 2017-07-01 | K7: 2017-08-01 | L7: 2017-09-01 | M7: 2017-10-01 | N7: 2017-11-01 | O7: 2017-12-01 | P7: Anual
C8: Gravado - SAC
C9: Sueldo Rem. (no prorrateo) | D9: =SUMIFS(Ingresos!C$8:C$38,Ingresos!$P$8:$P$38,"Gravado",Ingresos!$R$8:$R$38,"Sí",Ingresos!$Q$8:$Q$38,"No")+SUMIFS(Ingresos!C$47:C$77,Ingresos!$P$47:$P$77,"Gravado",Ingresos!$R$47:$R$77,"Sí",Ingresos!$Q$47:$Q$77,"No") -> 0 | E9: =SUMIFS(Ingresos!D$8:D$38,Ingresos!$P$8:$P$38,"Gravado",Ingresos!$R$8:$R$38,"Sí",Ingresos!$Q$8:$Q$38,"No")+SUMIFS(Ingresos!D$47:D$77,Ingresos!$P$47:$P$77,"Gravado",Ingresos!$R$47:$R$77,"Sí",Ingresos!$Q$47:$Q$77,"No") -> 0 | F9: =SUMIFS(Ingresos!E$8:E$38,Ingresos!$P$8:$P$38,"Gravado",Ingresos!$R$8:$R$38,"Sí",Ingresos!$Q$8:$Q$38,"No")+SUMIFS(Ingresos!E$47:E$77,Ingresos!$P$47:$P$77,"Gravado",Ingresos!$R$47:$R$77,"Sí",Ingresos!$Q$47:$Q$77,"No") -> 0 | G9: =SUMIFS(Ingresos!F$8:F$38,Ingresos!$P$8:$P$38,"Gravado",Ingresos!$R$8:$R$38,"Sí",Ingresos!$Q$8:$Q$38,"No")+SUMIFS(Ingresos!F$47:F$77,Ingresos!$P$47:$P$77,"Gravado",Ingresos!$R$47:$R$77,"Sí",Ingresos!$Q$47:$Q$77,"No") -> 0 | H9: =SUMIFS(Ingresos!G$8:G$38,Ingresos!$P$8:$P$38,"Gravado",Ingresos!$R$8:$R$38,"Sí",Ingresos!$Q$8:$Q$38,"No")+SUMIFS(Ingresos!G$47:G$77,Ingresos!$P$47:$P$77,"Gravado",Ingresos!$R$47:$R$77,"Sí",Ingresos!$Q$47:$Q$77,"No") -> 0 | I9: =SUMIFS(Ingresos!H$8:H$38,Ingresos!$P$8:$P$38,"Gravado",Ingresos!$R$8:$R$38,"Sí",Ingresos!$Q$8:$Q$38,"No")+SUMIFS(Ingresos!H$47:H$77,Ingresos!$P$47:$P$77,"Gravado",Ingresos!$R$47:$R$77,"Sí",Ingresos!$Q$47:$Q$77,"No") -> 0 | J9: =SUMIFS(Ingresos!I$8:I$38,Ingresos!$P$8:$P$38,"Gravado",Ingresos!$R$8:$R$38,"Sí",Ingresos!$Q$8:$Q$38,"No")+SUMIFS(Ingresos!I$47:I$77,Ingresos!$P$47:$P$77,"Gravado",Ingresos!$R$47:$R$77,"Sí",Ingresos!$Q$47:$Q$77,"No") -> 0 | K9: =SUMIFS(Ingresos!J$8:J$38,Ingresos!$P$8:$P$38,"Gravado",Ingresos!$R$8:$R$38,"Sí",Ingresos!$Q$8:$Q$38,"No")+SUMIFS(Ingresos!J$47:J$77,Ingresos!$P$47:$P$77,"Gravado",Ingresos!$R$47:$R$77,"Sí",Ingresos!$Q$47:$Q$77,"No") -> 0 | L9: =SUMIFS(Ingresos!K$8:K$38,Ingresos!$P$8:$P$38,"Gravado",Ingresos!$R$8:$R$38,"Sí",Ingresos!$Q$8:$Q$38,"No")+SUMIFS(Ingresos!K$47:K$77,Ingresos!$P$47:$P$77,"Gravado",Ingresos!$R$47:$R$77,"Sí",Ingresos!$Q$47:$Q$77,"No") -> 0 | M9: =SUMIFS(Ingresos!L$8:L$38,Ingresos!$P$8:$P$38,"Gravado",Ingresos!$R$8:$R$38,"Sí",Ingresos!$Q$8:$Q$38,"No")+SUMIFS(Ingresos!L$47:L$77,Ingresos!$P$47:$P$77,"Gravado",Ingresos!$R$47:$R$77,"Sí",Ingresos!$Q$47:$Q$77,"No") -> 0 | N9: =SUMIFS(Ingresos!M$8:M$38,Ingresos!$P$8:$P$38,"Gravado",Ingresos!$R$8:$R$38,"Sí",Ingresos!$Q$8:$Q$38,"No")+SUMIFS(Ingresos!M$47:M$77,Ingresos!$P$47:$P$77,"Gravado",Ingresos!$R$47:$R$77,"Sí",Ingresos!$Q$47:$Q$77,"No") -> 0 | O9: =SUMIFS(Ingresos!N$8:N$38,Ingresos!$P$8:$P$38,"Gravado",Ingresos!$R$8:$R$38,"Sí",Ingresos!$Q$8:$Q$38,"No")+SUMIFS(Ingresos!N$47:N$77,Ingresos!$P$47:$P$77,"Gravado",Ingresos!$R$47:$R$77,"Sí",Ingresos!$Q$47:$Q$77,"No") -> 0 | P9: =SUM(D9:O9) -> 0
C10: Sueldo Rem. (prorrateo) | D10: =SUMIFS(Ingresos!C$8:C$38,Ingresos!$P$8:$P$38,"Gravado",Ingresos!$R$8:$R$38,"Sí",Ingresos!$Q$8:$Q$38,"Sí")+SUMIFS(Ingresos!C$47:C$77,Ingresos!$P$47:$P$77,"Gravado",Ingresos!$R$47:$R$77,"Sí",Ingresos!$Q$47:$Q$77,"Sí")-Ingresos!C12-Ingresos!C51 -> 0 | E10: =SUMIFS(Ingresos!D$8:D$38,Ingresos!$P$8:$P$38,"Gravado",Ingresos!$R$8:$R$38,"Sí",Ingresos!$Q$8:$Q$38,"Sí")+SUMIFS(Ingresos!D$47:D$77,Ingresos!$P$47:$P$77,"Gravado",Ingresos!$R$47:$R$77,"Sí",Ingresos!$Q$47:$Q$77,"Sí")-Ingresos!D12-Ingresos!D51 -> 0 | F10: =SUMIFS(Ingresos!E$8:E$38,Ingresos!$P$8:$P$38,"Gravado",Ingresos!$R$8:$R$38,"Sí",Ingresos!$Q$8:$Q$38,"Sí")+SUMIFS(Ingresos!E$47:E$77,Ingresos!$P$47:$P$77,"Gravado",Ingresos!$R$47:$R$77,"Sí",Ingresos!$Q$47:$Q$77,"Sí")-Ingresos!E12-Ingresos!E51 -> 0 | G10: =SUMIFS(Ingresos!F$8:F$38,Ingresos!$P$8:$P$38,"Gravado",Ingresos!$R$8:$R$38,"Sí",Ingresos!$Q$8:$Q$38,"Sí")+SUMIFS(Ingresos!F$47:F$77,Ingresos!$P$47:$P$77,"Gravado",Ingresos!$R$47:$R$77,"Sí",Ingresos!$Q$47:$Q$77,"Sí")-Ingresos!F12-Ingresos!F51 -> 0 | H10: =SUMIFS(Ingresos!G$8:G$38,Ingresos!$P$8:$P$38,"Gravado",Ingresos!$R$8:$R$38,"Sí",Ingresos!$Q$8:$Q$38,"Sí")+SUMIFS(Ingresos!G$47:G$77,Ingresos!$P$47:$P$77,"Gravado",Ingresos!$R$47:$R$77,"Sí",Ingresos!$Q$47:$Q$77,"Sí")-Ingresos!G12-Ingresos!G51 -> 0 | I10: =SUMIFS(Ingresos!H$8:H$38,Ingresos!$P$8:$P$38,"Gravado",Ingresos!$R$8:$R$38,"Sí",Ingresos!$Q$8:$Q$38,"Sí")+SUMIFS(Ingresos!H$47:H$77,Ingresos!$P$47:$P$77,"Gravado",Ingresos!$R$47:$R$77,"Sí",Ingresos!$Q$47:$Q$77,"Sí")-Ingresos!H12-Ingresos!H51 -> 0 | J10: =SUMIFS(Ingresos!I$8:I$38,Ingresos!$P$8:$P$38,"Gravado",Ingresos!$R$8:$R$38,"Sí",Ingresos!$Q$8:$Q$38,"Sí")+SUMIFS(Ingresos!I$47:I$77,Ingresos!$P$47:$P$77,"Gravado",Ingresos!$R$47:$R$77,"Sí",Ingresos!$Q$47:$Q$77,"Sí")-Ingresos!I12-Ingresos!I51 -> 0 | K10: =SUMIFS(Ingresos!J$8:J$38,Ingresos!$P$8:$P$38,"Gravado",Ingresos!$R$8:$R$38,"Sí",Ingresos!$Q$8:$Q$38,"Sí")+SUMIFS(Ingresos!J$47:J$77,Ingresos!$P$47:$P$77,"Gravado",Ingresos!$R$47:$R$77,"Sí",Ingresos!$Q$47:$Q$77,"Sí")-Ingresos!J12-Ingresos!J51 -> 0 | L10: =SUMIFS(Ingresos!K$8:K$38,Ingresos!$P$8:$P$38,"Gravado",Ingresos!$R$8:$R$38,"Sí",Ingresos!$Q$8:$Q$38,"Sí")+SUMIFS(Ingresos!K$47:K$77,Ingresos!$P$47:$P$77,"Gravado",Ingresos!$R$47:$R$77,"Sí",Ingresos!$Q$47:$Q$77,"Sí")-Ingresos!K12-Ingresos!K51 -> 0 | M10: =SUMIFS(Ingresos!L$8:L$38,Ingresos!$P$8:$P$38,"Gravado",Ingresos!$R$8:$R$38,"Sí",Ingresos!$Q$8:$Q$38,"Sí")+SUMIFS(Ingresos!L$47:L$77,Ingresos!$P$47:$P$77,"Gravado",Ingresos!$R$47:$R$77,"Sí",Ingresos!$Q$47:$Q$77,"Sí")-Ingresos!L12-Ingresos!L51 -> 0 | N10: =SUMIFS(Ingresos!M$8:M$38,Ingresos!$P$8:$P$38,"Gravado",Ingresos!$R$8:$R$38,"Sí",Ingresos!$Q$8:$Q$38,"Sí")+SUMIFS(Ingresos!M$47:M$77,Ingresos!$P$47:$P$77,"Gravado",Ingresos!$R$47:$R$77,"Sí",Ingresos!$Q$47:$Q$77,"Sí")-Ingresos!M12-Ingresos!M51 -> 0 | O10: =SUMIFS(Ingresos!N$8:N$38,Ingresos!$P$8:$P$38,"Gravado",Ingresos!$R$8:$R$38,"Sí",Ingresos!$Q$8:$Q$38,"Sí")+SUMIFS(Ingresos!N$47:N$77,Ingresos!$P$47:$P$77,"Gravado",Ingresos!$R$47:$R$77,"Sí",Ingresos!$Q$47:$Q$77,"Sí")-Ingresos!N12-Ingresos!N51 -> 0 | P10: =SUM(D10:O10) -> 0
C11: Sueldo no Rem. (no prorrateo) | D11: =SUMIFS(Ingresos!C$8:C$38,Ingresos!$P$8:$P$38,"Gravado",Ingresos!$R$8:$R$38,"No",Ingresos!$Q$8:$Q$38,"No")+SUMIFS(Ingresos!C$47:C$77,Ingresos!$P$47:$P$77,"Gravado",Ingresos!$R$47:$R$77,"No",Ingresos!$Q$47:$Q$77,"No") -> 0 | E11: =SUMIFS(Ingresos!D$8:D$38,Ingresos!$P$8:$P$38,"Gravado",Ingresos!$R$8:$R$38,"No",Ingresos!$Q$8:$Q$38,"No")+SUMIFS(Ingresos!D$47:D$77,Ingresos!$P$47:$P$77,"Gravado",Ingresos!$R$47:$R$77,"No",Ingresos!$Q$47:$Q$77,"No") -> 0 | F11: =SUMIFS(Ingresos!E$8:E$38,Ingresos!$P$8:$P$38,"Gravado",Ingresos!$R$8:$R$38,"No",Ingresos!$Q$8:$Q$38,"No")+SUMIFS(Ingresos!E$47:E$77,Ingresos!$P$47:$P$77,"Gravado",Ingresos!$R$47:$R$77,"No",Ingresos!$Q$47:$Q$77,"No") -> 0 | G11: =SUMIFS(Ingresos!F$8:F$38,Ingresos!$P$8:$P$38,"Gravado",Ingresos!$R$8:$R$38,"No",Ingresos!$Q$8:$Q$38,"No")+SUMIFS(Ingresos!F$47:F$77,Ingresos!$P$47:$P$77,"Gravado",Ingresos!$R$47:$R$77,"No",Ingresos!$Q$47:$Q$77,"No") -> 0 | H11: =SUMIFS(Ingresos!G$8:G$38,Ingresos!$P$8:$P$38,"Gravado",Ingresos!$R$8:$R$38,"No",Ingresos!$Q$8:$Q$38,"No")+SUMIFS(Ingresos!G$47:G$77,Ingresos!$P$47:$P$77,"Gravado",Ingresos!$R$47:$R$77,"No",Ingresos!$Q$47:$Q$77,"No") -> 0 | I11: =SUMIFS(Ingresos!H$8:H$38,Ingresos!$P$8:$P$38,"Gravado",Ingresos!$R$8:$R$38,"No",Ingresos!$Q$8:$Q$38,"No")+SUMIFS(Ingresos!H$47:H$77,Ingresos!$P$47:$P$77,"Gravado",Ingresos!$R$47:$R$77,"No",Ingresos!$Q$47:$Q$77,"No") -> 0 | J11: =SUMIFS(Ingresos!I$8:I$38,Ingresos!$P$8:$P$38,"Gravado",Ingresos!$R$8:$R$38,"No",Ingresos!$Q$8:$Q$38,"No")+SUMIFS(Ingresos!I$47:I$77,Ingresos!$P$47:$P$77,"Gravado",Ingresos!$R$47:$R$77,"No",Ingresos!$Q$47:$Q$77,"No") -> 0 | K11: =SUMIFS(Ingresos!J$8:J$38,Ingresos!$P$8:$P$38,"Gravado",Ingresos!$R$8:$R$38,"No",Ingresos!$Q$8:$Q$38,"No")+SUMIFS(Ingresos!J$47:J$77,Ingresos!$P$47:$P$77,"Gravado",Ingresos!$R$47:$R$77,"No",Ingresos!$Q$47:$Q$77,"No") -> 0 | L11: =SUMIFS(Ingresos!K$8:K$38,Ingresos!$P$8:$P$38,"Gravado",Ingresos!$R$8:$R$38,"No",Ingresos!$Q$8:$Q$38,"No")+SUMIFS(Ingresos!K$47:K$77,Ingresos!$P$47:$P$77,"Gravado",Ingresos!$R$47:$R$77,"No",Ingresos!$Q$47:$Q$77,"No") -> 0 | M11: =SUMIFS(Ingresos!L$8:L$38,Ingresos!$P$8:$P$38,"Gravado",Ingresos!$R$8:$R$38,"No",Ingresos!$Q$8:$Q$38,"No")+SUMIFS(Ingresos!L$47:L$77,Ingresos!$P$47:$P$77,"Gravado",Ingresos!$R$47:$R$77,"No",Ingresos!$Q$47:$Q$77,"No") -> 0 | N11: =SUMIFS(Ingresos!M$8:M$38,Ingresos!$P$8:$P$38,"Gravado",Ingresos!$R$8:$R$38,"No",Ingresos!$Q$8:$Q$38,"No")+SUMIFS(Ingresos!M$47:M$77,Ingresos!$P$47:$P$77,"Gravado",Ingresos!$R$47:$R$77,"No",Ingresos!$Q$47:$Q$77,"No") -> 0 | O11: =SUMIFS(Ingresos!N$8:N$38,Ingresos!$P$8:$P$38,"Gravado",Ingresos!$R$8:$R$38,"No",Ingresos!$Q$8:$Q$38,"No")+SUMIFS(Ingresos!N$47:N$77,Ingresos!$P$47:$P$77,"Gravado",Ingresos!$R$47:$R$77,"No",Ingresos!$Q$47:$Q$77,"No") -> 0 | P11: 0
C12: Sueldo no Rem. (prorrateo) | D12: =SUMIFS(Ingresos!C$8:C$38,Ingresos!$P$8:$P$38,"Gravado",Ingresos!$R$8:$R$38,"No",Ingresos!$Q$8:$Q$38,"Sí")+SUMIFS(Ingresos!C$47:C$77,Ingresos!$P$47:$P$77,"Gravado",Ingresos!$R$47:$R$77,"No",Ingresos!$Q$47:$Q$77,"Sí") -> 0 | E12: =SUMIFS(Ingresos!D$8:D$38,Ingresos!$P$8:$P$38,"Gravado",Ingresos!$R$8:$R$38,"No",Ingresos!$Q$8:$Q$38,"Sí")+SUMIFS(Ingresos!D$47:D$77,Ingresos!$P$47:$P$77,"Gravado",Ingresos!$R$47:$R$77,"No",Ingresos!$Q$47:$Q$77,"Sí") -> 0 | F12: =SUMIFS(Ingresos!E$8:E$38,Ingresos!$P$8:$P$38,"Gravado",Ingresos!$R$8:$R$38,"No",Ingresos!$Q$8:$Q$38,"Sí")+SUMIFS(Ingresos!E$47:E$77,Ingresos!$P$47:$P$77,"Gravado",Ingresos!$R$47:$R$77,"No",Ingresos!$Q$47:$Q$77,"Sí") -> 0 | G12: =SUMIFS(Ingresos!F$8:F$38,Ingresos!$P$8:$P$38,"Gravado",Ingresos!$R$8:$R$38,"No",Ingresos!$Q$8:$Q$38,"Sí")+SUMIFS(Ingresos!F$47:F$77,Ingresos!$P$47:$P$77,"Gravado",Ingresos!$R$47:$R$77,"No",Ingresos!$Q$47:$Q$77,"Sí") -> 0 | H12: =SUMIFS(Ingresos!G$8:G$38,Ingresos!$P$8:$P$38,"Gravado",Ingresos!$R$8:$R$38,"No",Ingresos!$Q$8:$Q$38,"Sí")+SUMIFS(Ingresos!G$47:G$77,Ingresos!$P$47:$P$77,"Gravado",Ingresos!$R$47:$R$77,"No",Ingresos!$Q$47:$Q$77,"Sí") -> 0 | I12: =SUMIFS(Ingresos!H$8:H$38,Ingresos!$P$8:$P$38,"Gravado",Ingresos!$R$8:$R$38,"No",Ingresos!$Q$8:$Q$38,"Sí")+SUMIFS(Ingresos!H$47:H$77,Ingresos!$P$47:$P$77,"Gravado",Ingresos!$R$47:$R$77,"No",Ingresos!$Q$47:$Q$77,"Sí") -> 0 | J12: =SUMIFS(Ingresos!I$8:I$38,Ingresos!$P$8:$P$38,"Gravado",Ingresos!$R$8:$R$38,"No",Ingresos!$Q$8:$Q$38,"Sí")+SUMIFS(Ingresos!I$47:I$77,Ingresos!$P$47:$P$77,"Gravado",Ingresos!$R$47:$R$77,"No",Ingresos!$Q$47:$Q$77,"Sí") -> 0 | K12: =SUMIFS(Ingresos!J$8:J$38,Ingresos!$P$8:$P$38,"Gravado",Ingresos!$R$8:$R$38,"No",Ingresos!$Q$8:$Q$38,"Sí")+SUMIFS(Ingresos!J$47:J$77,Ingresos!$P$47:$P$77,"Gravado",Ingresos!$R$47:$R$77,"No",Ingresos!$Q$47:$Q$77,"Sí") -> 0 | L12: =SUMIFS(Ingresos!K$8:K$38,Ingresos!$P$8:$P$38,"Gravado",Ingresos!$R$8:$R$38,"No",Ingresos!$Q$8:$Q$38,"Sí")+SUMIFS(Ingresos!K$47:K$77,Ingresos!$P$47:$P$77,"Gravado",Ingresos!$R$47:$R$77,"No",Ingresos!$Q$47:$Q$77,"Sí") -> 0 | M12: =SUMIFS(Ingresos!L$8:L$38,Ingresos!$P$8:$P$38,"Gravado",Ingresos!$R$8:$R$38,"No",Ingresos!$Q$8:$Q$38,"Sí")+SUMIFS(Ingresos!L$47:L$77,Ingresos!$P$47:$P$77,"Gravado",Ingresos!$R$47:$R$77,"No",Ingresos!$Q$47:$Q$77,"Sí") -> 0 | N12: =SUMIFS(Ingresos!M$8:M$38,Ingresos!$P$8:$P$38,"Gravado",Ingresos!$R$8:$R$38,"No",Ingresos!$Q$8:$Q$38,"Sí")+SUMIFS(Ingresos!M$47:M$77,Ingresos!$P$47:$P$77,"Gravado",Ingresos!$R$47:$R$77,"No",Ingresos!$Q$47:$Q$77,"Sí") -> 0 | O12: =SUMIFS(Ingresos!N$8:N$38,Ingresos!$P$8:$P$38,"Gravado",Ingresos!$R$8:$R$38,"No",Ingresos!$Q$8:$Q$38,"Sí")+SUMIFS(Ingresos!N$47:N$77,Ingresos!$P$47:$P$77,"Gravado",Ingresos!$R$47:$R$77,"No",Ingresos!$Q$47:$Q$77,"Sí") -> 0 | P12: 0
C13: Gravado total
C15: No gravado
C16: Sueldo Rem. (no prorrateo) | D16: =SUMIFS(Ingresos!C$8:C$38,Ingresos!$P$8:$P$38,"No gravado",Ingresos!$R$8:$R$38,"Sí",Ingresos!$Q$8:$Q$38,"No")+SUMIFS(Ingresos!C$47:C$77,Ingresos!$P$47:$P$77,"No gravado",Ingresos!$R$47:$R$77,"Sí",Ingresos!$Q$47:$Q$77,"No") -> 0 | E16: =SUMIFS(Ingresos!D$8:D$38,Ingresos!$P$8:$P$38,"No gravado",Ingresos!$R$8:$R$38,"Sí",Ingresos!$Q$8:$Q$38,"No") -> 0 | F16: =SUMIFS(Ingresos!E$8:E$38,Ingresos!$P$8:$P$38,"No gravado",Ingresos!$R$8:$R$38,"Sí",Ingresos!$Q$8:$Q$38,"No") -> 0 | G16: =SUMIFS(Ingresos!F$8:F$38,Ingresos!$P$8:$P$38,"No gravado",Ingresos!$R$8:$R$38,"Sí",Ingresos!$Q$8:$Q$38,"No") -> 0 | H16: =SUMIFS(Ingresos!G$8:G$38,Ingresos!$P$8:$P$38,"No gravado",Ingresos!$R$8:$R$38,"Sí",Ingresos!$Q$8:$Q$38,"No") -> 0 | I16: =SUMIFS(Ingresos!H$8:H$38,Ingresos!$P$8:$P$38,"No gravado",Ingresos!$R$8:$R$38,"Sí",Ingresos!$Q$8:$Q$38,"No") -> 0 | J16: =SUMIFS(Ingresos!I$8:I$38,Ingresos!$P$8:$P$38,"No gravado",Ingresos!$R$8:$R$38,"Sí",Ingresos!$Q$8:$Q$38,"No") -> 0 | K16: =SUMIFS(Ingresos!J$8:J$38,Ingresos!$P$8:$P$38,"No gravado",Ingresos!$R$8:$R$38,"Sí",Ingresos!$Q$8:$Q$38,"No") -> 0 | L16: =SUMIFS(Ingresos!K$8:K$38,Ingresos!$P$8:$P$38,"No gravado",Ingresos!$R$8:$R$38,"Sí",Ingresos!$Q$8:$Q$38,"No") -> 0 | M16: =SUMIFS(Ingresos!L$8:L$38,Ingresos!$P$8:$P$38,"No gravado",Ingresos!$R$8:$R$38,"Sí",Ingresos!$Q$8:$Q$38,"No") -> 0 | N16: =SUMIFS(Ingresos!M$8:M$38,Ingresos!$P$8:$P$38,"No gravado",Ingresos!$R$8:$R$38,"Sí",Ingresos!$Q$8:$Q$38,"No") -> 0 | O16: =SUMIFS(Ingresos!N$8:N$38,Ingresos!$P$8:$P$38,"No gravado",Ingresos!$R$8:$R$38,"Sí",Ingresos!$Q$8:$Q$38,"No") -> 0 | P16: =SUM(D16:O16) -> 0
C17: Sueldo Rem. (prorrateo) | D17: =SUMIFS(Ingresos!C$8:C$38,Ingresos!$P$8:$P$38,"No gravado",Ingresos!$R$8:$R$38,"Sí",Ingresos!$Q$8:$Q$38,"Sí")+SUMIFS(Ingresos!C$47:C$77,Ingresos!$P$47:$P$77,"No gravado",Ingresos!$R$47:$R$77,"Sí",Ingresos!$Q$47:$Q$77,"Sí") -> 0 | E17: =SUMIFS(Ingresos!D$8:D$38,Ingresos!$P$8:$P$38,"No gravado",Ingresos!$R$8:$R$38,"Sí",Ingresos!$Q$8:$Q$38,"Sí")+SUMIFS(Ingresos!D$47:D$77,Ingresos!$P$47:$P$77,"No gravado",Ingresos!$R$47:$R$77,"Sí",Ingresos!$Q$47:$Q$77,"Sí") -> 0 | F17: =SUMIFS(Ingresos!E$8:E$38,Ingresos!$P$8:$P$38,"No gravado",Ingresos!$R$8:$R$38,"Sí",Ingresos!$Q$8:$Q$38,"Sí")+SUMIFS(Ingresos!E$47:E$77,Ingresos!$P$47:$P$77,"No gravado",Ingresos!$R$47:$R$77,"Sí",Ingresos!$Q$47:$Q$77,"Sí") -> 0 | G17: =SUMIFS(Ingresos!F$8:F$38,Ingresos!$P$8:$P$38,"No gravado",Ingresos!$R$8:$R$38,"Sí",Ingresos!$Q$8:$Q$38,"Sí")+SUMIFS(Ingresos!F$47:F$77,Ingresos!$P$47:$P$77,"No gravado",Ingresos!$R$47:$R$77,"Sí",Ingresos!$Q$47:$Q$77,"Sí") -> 0 | H17: =SUMIFS(Ingresos!G$8:G$38,Ingresos!$P$8:$P$38,"No gravado",Ingresos!$R$8:$R$38,"Sí",Ingresos!$Q$8:$Q$38,"Sí")+SUMIFS(Ingresos!G$47:G$77,Ingresos!$P$47:$P$77,"No gravado",Ingresos!$R$47:$R$77,"Sí",Ingresos!$Q$47:$Q$77,"Sí") -> 0 | I17: =SUMIFS(Ingresos!H$8:H$38,Ingresos!$P$8:$P$38,"No gravado",Ingresos!$R$8:$R$38,"Sí",Ingresos!$Q$8:$Q$38,"Sí")+SUMIFS(Ingresos!H$47:H$77,Ingresos!$P$47:$P$77,"No gravado",Ingresos!$R$47:$R$77,"Sí",Ingresos!$Q$47:$Q$77,"Sí") -> 0 | J17: =SUMIFS(Ingresos!I$8:I$38,Ingresos!$P$8:$P$38,"No gravado",Ingresos!$R$8:$R$38,"Sí",Ingresos!$Q$8:$Q$38,"Sí")+SUMIFS(Ingresos!I$47:I$77,Ingresos!$P$47:$P$77,"No gravado",Ingresos!$R$47:$R$77,"Sí",Ingresos!$Q$47:$Q$77,"Sí") -> 0 | K17: =SUMIFS(Ingresos!J$8:J$38,Ingresos!$P$8:$P$38,"No gravado",Ingresos!$R$8:$R$38,"Sí",Ingresos!$Q$8:$Q$38,"Sí")+SUMIFS(Ingresos!J$47:J$77,Ingresos!$P$47:$P$77,"No gravado",Ingresos!$R$47:$R$77,"Sí",Ingresos!$Q$47:$Q$77,"Sí") -> 0 | L17: =SUMIFS(Ingresos!K$8:K$38,Ingresos!$P$8:$P$38,"No gravado",Ingresos!$R$8:$R$38,"Sí",Ingresos!$Q$8:$Q$38,"Sí")+SUMIFS(Ingresos!K$47:K$77,Ingresos!$P$47:$P$77,"No gravado",Ingresos!$R$47:$R$77,"Sí",Ingresos!$Q$47:$Q$77,"Sí") -> 0 | M17: =SUMIFS(Ingresos!L$8:L$38,Ingresos!$P$8:$P$38,"No gravado",Ingresos!$R$8:$R$38,"Sí",Ingresos!$Q$8:$Q$38,"Sí")+SUMIFS(Ingresos!L$47:L$77,Ingresos!$P$47:$P$77,"No gravado",Ingresos!$R$47:$R$77,"Sí",Ingresos!$Q$47:$Q$77,"Sí") -> 0 | N17: =SUMIFS(Ingresos!M$8:M$38,Ingresos!$P$8:$P$38,"No gravado",Ingresos!$R$8:$R$38,"Sí",Ingresos!$Q$8:$Q$38,"Sí")+SUMIFS(Ingresos!M$47:M$77,Ingresos!$P$47:$P$77,"No gravado",Ingresos!$R$47:$R$77,"Sí",Ingresos!$Q$47:$Q$77,"Sí") -> 0 | O17: =SUMIFS(Ingresos!N$8:N$38,Ingresos!$P$8:$P$38,"No gravado",Ingresos!$R$8:$R$38,"Sí",Ingresos!$Q$8:$Q$38,"Sí")+SUMIFS(Ingresos!N$47:N$77,Ingresos!$P$47:$P$77,"No gravado",Ingresos!$R$47:$R$77,"Sí",Ingresos!$Q$47:$Q$77,"Sí") -> 0 | P17: 0
C18: Sueldo no Rem. (no prorrateo) | D18: =SUMIFS(Ingresos!C$8:C$38,Ingresos!$P$8:$P$38,"No gravado",Ingresos!$R$8:$R$38,"No",Ingresos!$Q$8:$Q$38,"No")+SUMIFS(Ingresos!C$47:C$77,Ingresos!$P$47:$P$77,"No gravado",Ingresos!$R$47:$R$77,"No",Ingresos!$Q$47:$Q$77,"No") -> 0 | E18: =SUMIFS(Ingresos!D$8:D$38,Ingresos!$P$8:$P$38,"No gravado",Ingresos!$R$8:$R$38,"No",Ingresos!$Q$8:$Q$38,"No")+SUMIFS(Ingresos!D$47:D$77,Ingresos!$P$47:$P$77,"No gravado",Ingresos!$R$47:$R$77,"No",Ingresos!$Q$47:$Q$77,"No") -> 0 | F18: =SUMIFS(Ingresos!E$8:E$38,Ingresos!$P$8:$P$38,"No gravado",Ingresos!$R$8:$R$38,"No",Ingresos!$Q$8:$Q$38,"No")+SUMIFS(Ingresos!E$47:E$77,Ingresos!$P$47:$P$77,"No gravado",Ingresos!$R$47:$R$77,"No",Ingresos!$Q$47:$Q$77,"No") -> 0 | G18: =SUMIFS(Ingresos!F$8:F$38,Ingresos!$P$8:$P$38,"No gravado",Ingresos!$R$8:$R$38,"No",Ingresos!$Q$8:$Q$38,"No")+SUMIFS(Ingresos!F$47:F$77,Ingresos!$P$47:$P$77,"No gravado",Ingresos!$R$47:$R$77,"No",Ingresos!$Q$47:$Q$77,"No") -> 0 | H18: =SUMIFS(Ingresos!G$8:G$38,Ingresos!$P$8:$P$38,"No gravado",Ingresos!$R$8:$R$38,"No",Ingresos!$Q$8:$Q$38,"No")+SUMIFS(Ingresos!G$47:G$77,Ingresos!$P$47:$P$77,"No gravado",Ingresos!$R$47:$R$77,"No",Ingresos!$Q$47:$Q$77,"No") -> 0 | I18: =SUMIFS(Ingresos!H$8:H$38,Ingresos!$P$8:$P$38,"No gravado",Ingresos!$R$8:$R$38,"No",Ingresos!$Q$8:$Q$38,"No")+SUMIFS(Ingresos!H$47:H$77,Ingresos!$P$47:$P$77,"No gravado",Ingresos!$R$47:$R$77,"No",Ingresos!$Q$47:$Q$77,"No") -> 0 | J18: =SUMIFS(Ingresos!I$8:I$38,Ingresos!$P$8:$P$38,"No gravado",Ingresos!$R$8:$R$38,"No",Ingresos!$Q$8:$Q$38,"No")+SUMIFS(Ingresos!I$47:I$77,Ingresos!$P$47:$P$77,"No gravado",Ingresos!$R$47:$R$77,"No",Ingresos!$Q$47:$Q$77,"No") -> 0 | K18: =SUMIFS(Ingresos!J$8:J$38,Ingresos!$P$8:$P$38,"No gravado",Ingresos!$R$8:$R$38,"No",Ingresos!$Q$8:$Q$38,"No")+SUMIFS(Ingresos!J$47:J$77,Ingresos!$P$47:$P$77,"No gravado",Ingresos!$R$47:$R$77,"No",Ingresos!$Q$47:$Q$77,"No") -> 0 | L18: =SUMIFS(Ingresos!K$8:K$38,Ingresos!$P$8:$P$38,"No gravado",Ingresos!$R$8:$R$38,"No",Ingresos!$Q$8:$Q$38,"No")+SUMIFS(Ingresos!K$47:K$77,Ingresos!$P$47:$P$77,"No gravado",Ingresos!$R$47:$R$77,"No",Ingresos!$Q$47:$Q$77,"No") -> 0 | M18: =SUMIFS(Ingresos!L$8:L$38,Ingresos!$P$8:$P$38,"No gravado",Ingresos!$R$8:$R$38,"No",Ingresos!$Q$8:$Q$38,"No")+SUMIFS(Ingresos!L$47:L$77,Ingresos!$P$47:$P$77,"No gravado",Ingresos!$R$47:$R$77,"No",Ingresos!$Q$47:$Q$77,"No") -> 0 | N18: =SUMIFS(Ingresos!M$8:M$38,Ingresos!$P$8:$P$38,"No gravado",Ingresos!$R$8:$R$38,"No",Ingresos!$Q$8:$Q$38,"No")+SUMIFS(Ingresos!M$47:M$77,Ingresos!$P$47:$P$77,"No gravado",Ingresos!$R$47:$R$77,"No",Ingresos!$Q$47:$Q$77,"No") -> 0 | O18: =SUMIFS(Ingresos!N$8:N$38,Ingresos!$P$8:$P$38,"No gravado",Ingresos!$R$8:$R$38,"No",Ingresos!$Q$8:$Q$38,"No")+SUMIFS(Ingresos!N$47:N$77,Ingresos!$P$47:$P$77,"No gravado",Ingresos!$R$47:$R$77,"No",Ingresos!$Q$47:$Q$77,"No") -> 0 | P18: 0
C19: Sueldo no Rem. (prorrateo) | D19: =SUMIFS(Ingresos!C$8:C$38,Ingresos!$P$8:$P$38,"No gravado",Ingresos!$R$8:$R$38,"No",Ingresos!$Q$8:$Q$38,"Sí")+SUMIFS(Ingresos!C$47:C$77,Ingresos!$P$47:$P$77,"No gravado",Ingresos!$R$47:$R$77,"No",Ingresos!$Q$47:$Q$77,"Sí") -> 0 | E19: =SUMIFS(Ingresos!D$8:D$38,Ingresos!$P$8:$P$38,"No gravado",Ingresos!$R$8:$R$38,"No",Ingresos!$Q$8:$Q$38,"Sí")+SUMIFS(Ingresos!D$47:D$77,Ingresos!$P$47:$P$77,"No gravado",Ingresos!$R$47:$R$77,"No",Ingresos!$Q$47:$Q$77,"Sí") -> 0 | F19: =SUMIFS(Ingresos!E$8:E$38,Ingresos!$P$8:$P$38,"No gravado",Ingresos!$R$8:$R$38,"No",Ingresos!$Q$8:$Q$38,"Sí")+SUMIFS(Ingresos!E$47:E$77,Ingresos!$P$47:$P$77,"No gravado",Ingresos!$R$47:$R$77,"No",Ingresos!$Q$47:$Q$77,"Sí") -> 0 | G19: =SUMIFS(Ingresos!F$8:F$38,Ingresos!$P$8:$P$38,"No gravado",Ingresos!$R$8:$R$38,"No",Ingresos!$Q$8:$Q$38,"Sí")+SUMIFS(Ingresos!F$47:F$77,Ingresos!$P$47:$P$77,"No gravado",Ingresos!$R$47:$R$77,"No",Ingresos!$Q$47:$Q$77,"Sí") -> 0 | H19: =SUMIFS(Ingresos!G$8:G$38,Ingresos!$P$8:$P$38,"No gravado",Ingresos!$R$8:$R$38,"No",Ingresos!$Q$8:$Q$38,"Sí")+SUMIFS(Ingresos!G$47:G$77,Ingresos!$P$47:$P$77,"No gravado",Ingresos!$R$47:$R$77,"No",Ingresos!$Q$47:$Q$77,"Sí") -> 0 | I19: =SUMIFS(Ingresos!H$8:H$38,Ingresos!$P$8:$P$38,"No gravado",Ingresos!$R$8:$R$38,"No",Ingresos!$Q$8:$Q$38,"Sí")+SUMIFS(Ingresos!H$47:H$77,Ingresos!$P$47:$P$77,"No gravado",Ingresos!$R$47:$R$77,"No",Ingresos!$Q$47:$Q$77,"Sí") -> 0 | J19: =SUMIFS(Ingresos!I$8:I$38,Ingresos!$P$8:$P$38,"No gravado",Ingresos!$R$8:$R$38,"No",Ingresos!$Q$8:$Q$38,"Sí")+SUMIFS(Ingresos!I$47:I$77,Ingresos!$P$47:$P$77,"No gravado",Ingresos!$R$47:$R$77,"No",Ingresos!$Q$47:$Q$77,"Sí") -> 0 | K19: =SUMIFS(Ingresos!J$8:J$38,Ingresos!$P$8:$P$38,"No gravado",Ingresos!$R$8:$R$38,"No",Ingresos!$Q$8:$Q$38,"Sí")+SUMIFS(Ingresos!J$47:J$77,Ingresos!$P$47:$P$77,"No gravado",Ingresos!$R$47:$R$77,"No",Ingresos!$Q$47:$Q$77,"Sí") -> 0 | L19: =SUMIFS(Ingresos!K$8:K$38,Ingresos!$P$8:$P$38,"No gravado",Ingresos!$R$8:$R$38,"No",Ingresos!$Q$8:$Q$38,"Sí")+SUMIFS(Ingresos!K$47:K$77,Ingresos!$P$47:$P$77,"No gravado",Ingresos!$R$47:$R$77,"No",Ingresos!$Q$47:$Q$77,"Sí") -> 0 | M19: =SUMIFS(Ingresos!L$8:L$38,Ingresos!$P$8:$P$38,"No gravado",Ingresos!$R$8:$R$38,"No",Ingresos!$Q$8:$Q$38,"Sí")+SUMIFS(Ingresos!L$47:L$77,Ingresos!$P$47:$P$77,"No gravado",Ingresos!$R$47:$R$77,"No",Ingresos!$Q$47:$Q$77,"Sí") -> 0 | N19: =SUMIFS(Ingresos!M$8:M$38,Ingresos!$P$8:$P$38,"No gravado",Ingresos!$R$8:$R$38,"No",Ingresos!$Q$8:$Q$38,"Sí")+SUMIFS(Ingresos!M$47:M$77,Ingresos!$P$47:$P$77,"No gravado",Ingresos!$R$47:$R$77,"No",Ingresos!$Q$47:$Q$77,"Sí") -> 0 | O19: =SUMIFS(Ingresos!N$8:N$38,Ingresos!$P$8:$P$38,"No gravado",Ingresos!$R$8:$R$38,"No",Ingresos!$Q$8:$Q$38,"Sí")+SUMIFS(Ingresos!N$47:N$77,Ingresos!$P$47:$P$77,"No gravado",Ingresos!$R$47:$R$77,"No",Ingresos!$Q$47:$Q$77,"Sí") -> 0 | P19: 0
C20: No gravado total
C22: Exento
C23: Sueldo Rem. (no prorrateo) | D23: =SUMIFS(Ingresos!C$8:C$38,Ingresos!$P$8:$P$38,"Exento",Ingresos!$R$8:$R$38,"Sí",Ingresos!$Q$8:$Q$38,"No")+SUMIFS(Ingresos!C$47:C$77,Ingresos!$P$47:$P$77,"Exento",Ingresos!$R$47:$R$77,"Sí",Ingresos!$Q$47:$Q$77,"No") -> 0 | E23: =SUMIFS(Ingresos!D$8:D$38,Ingresos!$P$8:$P$38,"Exento",Ingresos!$R$8:$R$38,"Sí",Ingresos!$Q$8:$Q$38,"No")+SUMIFS(Ingresos!D$47:D$77,Ingresos!$P$47:$P$77,"Exento",Ingresos!$R$47:$R$77,"Sí",Ingresos!$Q$47:$Q$77,"No") -> 0 | F23: =SUMIFS(Ingresos!E$8:E$38,Ingresos!$P$8:$P$38,"Exento",Ingresos!$R$8:$R$38,"Sí",Ingresos!$Q$8:$Q$38,"No")+SUMIFS(Ingresos!E$47:E$77,Ingresos!$P$47:$P$77,"Exento",Ingresos!$R$47:$R$77,"Sí",Ingresos!$Q$47:$Q$77,"No") -> 0 | G23: =SUMIFS(Ingresos!F$8:F$38,Ingresos!$P$8:$P$38,"Exento",Ingresos!$R$8:$R$38,"Sí",Ingresos!$Q$8:$Q$38,"No")+SUMIFS(Ingresos!F$47:F$77,Ingresos!$P$47:$P$77,"Exento",Ingresos!$R$47:$R$77,"Sí",Ingresos!$Q$47:$Q$77,"No") -> 0 | H23: =SUMIFS(Ingresos!G$8:G$38,Ingresos!$P$8:$P$38,"Exento",Ingresos!$R$8:$R$38,"Sí",Ingresos!$Q$8:$Q$38,"No")+SUMIFS(Ingresos!G$47:G$77,Ingresos!$P$47:$P$77,"Exento",Ingresos!$R$47:$R$77,"Sí",Ingresos!$Q$47:$Q$77,"No") -> 0 | I23: =SUMIFS(Ingresos!H$8:H$38,Ingresos!$P$8:$P$38,"Exento",Ingresos!$R$8:$R$38,"Sí",Ingresos!$Q$8:$Q$38,"No")+SUMIFS(Ingresos!H$47:H$77,Ingresos!$P$47:$P$77,"Exento",Ingresos!$R$47:$R$77,"Sí",Ingresos!$Q$47:$Q$77,"No") -> 0 | J23: =SUMIFS(Ingresos!I$8:I$38,Ingresos!$P$8:$P$38,"Exento",Ingresos!$R$8:$R$38,"Sí",Ingresos!$Q$8:$Q$38,"No")+SUMIFS(Ingresos!I$47:I$77,Ingresos!$P$47:$P$77,"Exento",Ingresos!$R$47:$R$77,"Sí",Ingresos!$Q$47:$Q$77,"No") -> 0 | K23: =SUMIFS(Ingresos!J$8:J$38,Ingresos!$P$8:$P$38,"Exento",Ingresos!$R$8:$R$38,"Sí",Ingresos!$Q$8:$Q$38,"No")+SUMIFS(Ingresos!J$47:J$77,Ingresos!$P$47:$P$77,"Exento",Ingresos!$R$47:$R$77,"Sí",Ingresos!$Q$47:$Q$77,"No") -> 0 | L23: =SUMIFS(Ingresos!K$8:K$38,Ingresos!$P$8:$P$38,"Exento",Ingresos!$R$8:$R$38,"Sí",Ingresos!$Q$8:$Q$38,"No")+SUMIFS(Ingresos!K$47:K$77,Ingresos!$P$47:$P$77,"Exento",Ingresos!$R$47:$R$77,"Sí",Ingresos!$Q$47:$Q$77,"No") -> 0 | M23: =SUMIFS(Ingresos!L$8:L$38,Ingresos!$P$8:$P$38,"Exento",Ingresos!$R$8:$R$38,"Sí",Ingresos!$Q$8:$Q$38,"No")+SUMIFS(Ingresos!L$47:L$77,Ingresos!$P$47:$P$77,"Exento",Ingresos!$R$47:$R$77,"Sí",Ingresos!$Q$47:$Q$77,"No") -> 0 | N23: =SUMIFS(Ingresos!M$8:M$38,Ingresos!$P$8:$P$38,"Exento",Ingresos!$R$8:$R$38,"Sí",Ingresos!$Q$8:$Q$38,"No")+SUMIFS(Ingresos!M$47:M$77,Ingresos!$P$47:$P$77,"Exento",Ingresos!$R$47:$R$77,"Sí",Ingresos!$Q$47:$Q$77,"No") -> 0 | O23: =SUMIFS(Ingresos!N$8:N$38,Ingresos!$P$8:$P$38,"Exento",Ingresos!$R$8:$R$38,"Sí",Ingresos!$Q$8:$Q$38,"No")+SUMIFS(Ingresos!N$47:N$77,Ingresos!$P$47:$P$77,"Exento",Ingresos!$R$47:$R$77,"Sí",Ingresos!$Q$47:$Q$77,"No") -> 0 | P23: =SUM(D23:O23) -> 0
C24: Sueldo Rem. (prorrateo) | D24: =SUMIFS(Ingresos!C$8:C$38,Ingresos!$P$8:$P$38,"Exento",Ingresos!$R$8:$R$38,"Sí",Ingresos!$Q$8:$Q$38,"Sí")+SUMIFS(Ingresos!C$47:C$77,Ingresos!$P$47:$P$77,"Exento",Ingresos!$R$47:$R$77,"Sí",Ingresos!$Q$47:$Q$77,"Sí") -> 0 | E24: =SUMIFS(Ingresos!D$8:D$38,Ingresos!$P$8:$P$38,"Exento",Ingresos!$R$8:$R$38,"Sí",Ingresos!$Q$8:$Q$38,"Sí")+SUMIFS(Ingresos!D$47:D$77,Ingresos!$P$47:$P$77,"Exento",Ingresos!$R$47:$R$77,"Sí",Ingresos!$Q$47:$Q$77,"Sí") -> 0 | F24: =SUMIFS(Ingresos!E$8:E$38,Ingresos!$P$8:$P$38,"Exento",Ingresos!$R$8:$R$38,"Sí",Ingresos!$Q$8:$Q$38,"Sí")+SUMIFS(Ingresos!E$47:E$77,Ingresos!$P$47:$P$77,"Exento",Ingresos!$R$47:$R$77,"Sí",Ingresos!$Q$47:$Q$77,"Sí") -> 0 | G24: =SUMIFS(Ingresos!F$8:F$38,Ingresos!$P$8:$P$38,"Exento",Ingresos!$R$8:$R$38,"Sí",Ingresos!$Q$8:$Q$38,"Sí")+SUMIFS(Ingresos!F$47:F$77,Ingresos!$P$47:$P$77,"Exento",Ingresos!$R$47:$R$77,"Sí",Ingresos!$Q$47:$Q$77,"Sí") -> 0 | H24: =SUMIFS(Ingresos!G$8:G$38,Ingresos!$P$8:$P$38,"Exento",Ingresos!$R$8:$R$38,"Sí",Ingresos!$Q$8:$Q$38,"Sí")+SUMIFS(Ingresos!G$47:G$77,Ingresos!$P$47:$P$77,"Exento",Ingresos!$R$47:$R$77,"Sí",Ingresos!$Q$47:$Q$77,"Sí") -> 0 | I24: =SUMIFS(Ingresos!H$8:H$38,Ingresos!$P$8:$P$38,"Exento",Ingresos!$R$8:$R$38,"Sí",Ingresos!$Q$8:$Q$38,"Sí")+SUMIFS(Ingresos!H$47:H$77,Ingresos!$P$47:$P$77,"Exento",Ingresos!$R$47:$R$77,"Sí",Ingresos!$Q$47:$Q$77,"Sí") -> 0 | J24: =SUMIFS(Ingresos!I$8:I$38,Ingresos!$P$8:$P$38,"Exento",Ingresos!$R$8:$R$38,"Sí",Ingresos!$Q$8:$Q$38,"Sí")+SUMIFS(Ingresos!I$47:I$77,Ingresos!$P$47:$P$77,"Exento",Ingresos!$R$47:$R$77,"Sí",Ingresos!$Q$47:$Q$77,"Sí") -> 0 | K24: =SUMIFS(Ingresos!J$8:J$38,Ingresos!$P$8:$P$38,"Exento",Ingresos!$R$8:$R$38,"Sí",Ingresos!$Q$8:$Q$38,"Sí")+SUMIFS(Ingresos!J$47:J$77,Ingresos!$P$47:$P$77,"Exento",Ingresos!$R$47:$R$77,"Sí",Ingresos!$Q$47:$Q$77,"Sí") -> 0 | L24: =SUMIFS(Ingresos!K$8:K$38,Ingresos!$P$8:$P$38,"Exento",Ingresos!$R$8:$R$38,"Sí",Ingresos!$Q$8:$Q$38,"Sí")+SUMIFS(Ingresos!K$47:K$77,Ingresos!$P$47:$P$77,"Exento",Ingresos!$R$47:$R$77,"Sí",Ingresos!$Q$47:$Q$77,"Sí") -> 0 | M24: =SUMIFS(Ingresos!L$8:L$38,Ingresos!$P$8:$P$38,"Exento",Ingresos!$R$8:$R$38,"Sí",Ingresos!$Q$8:$Q$38,"Sí")+SUMIFS(Ingresos!L$47:L$77,Ingresos!$P$47:$P$77,"Exento",Ingresos!$R$47:$R$77,"Sí",Ingresos!$Q$47:$Q$77,"Sí") -> 0 | N24: =SUMIFS(Ingresos!M$8:M$38,Ingresos!$P$8:$P$38,"Exento",Ingresos!$R$8:$R$38,"Sí",Ingresos!$Q$8:$Q$38,"Sí")+SUMIFS(Ingresos!M$47:M$77,Ingresos!$P$47:$P$77,"Exento",Ingresos!$R$47:$R$77,"Sí",Ingresos!$Q$47:$Q$77,"Sí") -> 0 | O24: =SUMIFS(Ingresos!N$8:N$38,Ingresos!$P$8:$P$38,"Exento",Ingresos!$R$8:$R$38,"Sí",Ingresos!$Q$8:$Q$38,"Sí")+SUMIFS(Ingresos!N$47:N$77,Ingresos!$P$47:$P$77,"Exento",Ingresos!$R$47:$R$77,"Sí",Ingresos!$Q$47:$Q$77,"Sí") -> 0 | P24: 0
C25: Sueldo no Rem. (no prorrateo) | D25: =SUMIFS(Ingresos!C$8:C$38,Ingresos!$P$8:$P$38,"Exento",Ingresos!$R$8:$R$38,"No",Ingresos!$Q$8:$Q$38,"No")+SUMIFS(Ingresos!C$47:C$77,Ingresos!$P$47:$P$77,"Exento",Ingresos!$R$47:$R$77,"No",Ingresos!$Q$47:$Q$77,"No") -> 0 | E25: =SUMIFS(Ingresos!D$8:D$38,Ingresos!$P$8:$P$38,"Exento",Ingresos!$R$8:$R$38,"No",Ingresos!$Q$8:$Q$38,"No")+SUMIFS(Ingresos!D$47:D$77,Ingresos!$P$47:$P$77,"Exento",Ingresos!$R$47:$R$77,"No",Ingresos!$Q$47:$Q$77,"No") -> 0 | F25: =SUMIFS(Ingresos!E$8:E$38,Ingresos!$P$8:$P$38,"Exento",Ingresos!$R$8:$R$38,"No",Ingresos!$Q$8:$Q$38,"No")+SUMIFS(Ingresos!E$47:E$77,Ingresos!$P$47:$P$77,"Exento",Ingresos!$R$47:$R$77,"No",Ingresos!$Q$47:$Q$77,"No") -> 0 | G25: =SUMIFS(Ingresos!F$8:F$38,Ingresos!$P$8:$P$38,"Exento",Ingresos!$R$8:$R$38,"No",Ingresos!$Q$8:$Q$38,"No")+SUMIFS(Ingresos!F$47:F$77,Ingresos!$P$47:$P$77,"Exento",Ingresos!$R$47:$R$77,"No",Ingresos!$Q$47:$Q$77,"No") -> 0 | H25: =SUMIFS(Ingresos!G$8:G$38,Ingresos!$P$8:$P$38,"Exento",Ingresos!$R$8:$R$38,"No",Ingresos!$Q$8:$Q$38,"No")+SUMIFS(Ingresos!G$47:G$77,Ingresos!$P$47:$P$77,"Exento",Ingresos!$R$47:$R$77,"No",Ingresos!$Q$47:$Q$77,"No") -> 0 | I25: =SUMIFS(Ingresos!H$8:H$38,Ingresos!$P$8:$P$38,"Exento",Ingresos!$R$8:$R$38,"No",Ingresos!$Q$8:$Q$38,"No")+SUMIFS(Ingresos!H$47:H$77,Ingresos!$P$47:$P$77,"Exento",Ingresos!$R$47:$R$77,"No",Ingresos!$Q$47:$Q$77,"No") -> 0 | J25: =SUMIFS(Ingresos!I$8:I$38,Ingresos!$P$8:$P$38,"Exento",Ingresos!$R$8:$R$38,"No",Ingresos!$Q$8:$Q$38,"No")+SUMIFS(Ingresos!I$47:I$77,Ingresos!$P$47:$P$77,"Exento",Ingresos!$R$47:$R$77,"No",Ingresos!$Q$47:$Q$77,"No") -> 0 | K25: =SUMIFS(Ingresos!J$8:J$38,Ingresos!$P$8:$P$38,"Exento",Ingresos!$R$8:$R$38,"No",Ingresos!$Q$8:$Q$38,"No")+SUMIFS(Ingresos!J$47:J$77,Ingresos!$P$47:$P$77,"Exento",Ingresos!$R$47:$R$77,"No",Ingresos!$Q$47:$Q$77,"No") -> 0 | L25: =SUMIFS(Ingresos!K$8:K$38,Ingresos!$P$8:$P$38,"Exento",Ingresos!$R$8:$R$38,"No",Ingresos!$Q$8:$Q$38,"No")+SUMIFS(Ingresos!K$47:K$77,Ingresos!$P$47:$P$77,"Exento",Ingresos!$R$47:$R$77,"No",Ingresos!$Q$47:$Q$77,"No") -> 0 | M25: =SUMIFS(Ingresos!L$8:L$38,Ingresos!$P$8:$P$38,"Exento",Ingresos!$R$8:$R$38,"No",Ingresos!$Q$8:$Q$38,"No")+SUMIFS(Ingresos!L$47:L$77,Ingresos!$P$47:$P$77,"Exento",Ingresos!$R$47:$R$77,"No",Ingresos!$Q$47:$Q$77,"No") -> 0 | N25: =SUMIFS(Ingresos!M$8:M$38,Ingresos!$P$8:$P$38,"Exento",Ingresos!$R$8:$R$38,"No",Ingresos!$Q$8:$Q$38,"No")+SUMIFS(Ingresos!M$47:M$77,Ingresos!$P$47:$P$77,"Exento",Ingresos!$R$47:$R$77,"No",Ingresos!$Q$47:$Q$77,"No") -> 0 | O25: =SUMIFS(Ingresos!N$8:N$38,Ingresos!$P$8:$P$38,"Exento",Ingresos!$R$8:$R$38,"No",Ingresos!$Q$8:$Q$38,"No")+SUMIFS(Ingresos!N$47:N$77,Ingresos!$P$47:$P$77,"Exento",Ingresos!$R$47:$R$77,"No",Ingresos!$Q$47:$Q$77,"No") -> 0 | P25: 0
C26: Sueldo no Rem. (prorrateo) | D26: =SUMIFS(Ingresos!C$8:C$38,Ingresos!$P$8:$P$38,"Exento",Ingresos!$R$8:$R$38,"No",Ingresos!$Q$8:$Q$38,"Sí")+SUMIFS(Ingresos!C$47:C$77,Ingresos!$P$47:$P$77,"Exento",Ingresos!$R$47:$R$77,"No",Ingresos!$Q$47:$Q$77,"Sí") -> 0 | E26: =SUMIFS(Ingresos!D$8:D$38,Ingresos!$P$8:$P$38,"Exento",Ingresos!$R$8:$R$38,"No",Ingresos!$Q$8:$Q$38,"Sí")+SUMIFS(Ingresos!D$47:D$77,Ingresos!$P$47:$P$77,"Exento",Ingresos!$R$47:$R$77,"No",Ingresos!$Q$47:$Q$77,"Sí") -> 0 | F26: =SUMIFS(Ingresos!E$8:E$38,Ingresos!$P$8:$P$38,"Exento",Ingresos!$R$8:$R$38,"No",Ingresos!$Q$8:$Q$38,"Sí")+SUMIFS(Ingresos!E$47:E$77,Ingresos!$P$47:$P$77,"Exento",Ingresos!$R$47:$R$77,"No",Ingresos!$Q$47:$Q$77,"Sí") -> 0 | G26: =SUMIFS(Ingresos!F$8:F$38,Ingresos!$P$8:$P$38,"Exento",Ingresos!$R$8:$R$38,"No",Ingresos!$Q$8:$Q$38,"Sí")+SUMIFS(Ingresos!F$47:F$77,Ingresos!$P$47:$P$77,"Exento",Ingresos!$R$47:$R$77,"No",Ingresos!$Q$47:$Q$77,"Sí") -> 0 | H26: =SUMIFS(Ingresos!G$8:G$38,Ingresos!$P$8:$P$38,"Exento",Ingresos!$R$8:$R$38,"No",Ingresos!$Q$8:$Q$38,"Sí")+SUMIFS(Ingresos!G$47:G$77,Ingresos!$P$47:$P$77,"Exento",Ingresos!$R$47:$R$77,"No",Ingresos!$Q$47:$Q$77,"Sí") -> 0 | I26: =SUMIFS(Ingresos!H$8:H$38,Ingresos!$P$8:$P$38,"Exento",Ingresos!$R$8:$R$38,"No",Ingresos!$Q$8:$Q$38,"Sí")+SUMIFS(Ingresos!H$47:H$77,Ingresos!$P$47:$P$77,"Exento",Ingresos!$R$47:$R$77,"No",Ingresos!$Q$47:$Q$77,"Sí") -> 0 | J26: =SUMIFS(Ingresos!I$8:I$38,Ingresos!$P$8:$P$38,"Exento",Ingresos!$R$8:$R$38,"No",Ingresos!$Q$8:$Q$38,"Sí")+SUMIFS(Ingresos!I$47:I$77,Ingresos!$P$47:$P$77,"Exento",Ingresos!$R$47:$R$77,"No",Ingresos!$Q$47:$Q$77,"Sí") -> 0 | K26: =SUMIFS(Ingresos!J$8:J$38,Ingresos!$P$8:$P$38,"Exento",Ingresos!$R$8:$R$38,"No",Ingresos!$Q$8:$Q$38,"Sí")+SUMIFS(Ingresos!J$47:J$77,Ingresos!$P$47:$P$77,"Exento",Ingresos!$R$47:$R$77,"No",Ingresos!$Q$47:$Q$77,"Sí") -> 0 | L26: =SUMIFS(Ingresos!K$8:K$38,Ingresos!$P$8:$P$38,"Exento",Ingresos!$R$8:$R$38,"No",Ingresos!$Q$8:$Q$38,"Sí")+SUMIFS(Ingresos!K$47:K$77,Ingresos!$P$47:$P$77,"Exento",Ingresos!$R$47:$R$77,"No",Ingresos!$Q$47:$Q$77,"Sí") -> 0 | M26: =SUMIFS(Ingresos!L$8:L$38,Ingresos!$P$8:$P$38,"Exento",Ingresos!$R$8:$R$38,"No",Ingresos!$Q$8:$Q$38,"Sí")+SUMIFS(Ingresos!L$47:L$77,Ingresos!$P$47:$P$77,"Exento",Ingresos!$R$47:$R$77,"No",Ingresos!$Q$47:$Q$77,"Sí") -> 0 | N26: =SUMIFS(Ingresos!M$8:M$38,Ingresos!$P$8:$P$38,"Exento",Ingresos!$R$8:$R$38,"No",Ingresos!$Q$8:$Q$38,"Sí")+SUMIFS(Ingresos!M$47:M$77,Ingresos!$P$47:$P$77,"Exento",Ingresos!$R$47:$R$77,"No",Ingresos!$Q$47:$Q$77,"Sí") -> 0 | O26: =SUMIFS(Ingresos!N$8:N$38,Ingresos!$P$8:$P$38,"Exento",Ingresos!$R$8:$R$38,"No",Ingresos!$Q$8:$Q$38,"Sí")+SUMIFS(Ingresos!N$47:N$77,Ingresos!$P$47:$P$77,"Exento",Ingresos!$R$47:$R$77,"No",Ingresos!$Q$47:$Q$77,"Sí") -> 0 | P26: 0
C27: Exento total
C29: Deducciones | D29: 2017-01-01 | E29: 2017-02-01 | F29: 2017-03-01 | G29: 2017-04-01 | H29: 2017-05-01 | I29: 2017-06-01 | J29: 2017-07-01 | K29: 2017-08-01 | L29: 2017-09-01 | M29: 2017-10-01 | N29: 2017-11-01 | O29: 2017-12-01 | P29: Anual | R29: Aplica tope
C30: =Tablas!B8 -> Jubilación | D30: =retenciones(Check!$B$8,$R30,SUM(D$9:D$10,D$16:D$17,D$23:D$24),Tablas!C$7,Tablas!C8,D$9,DedGrales!D12+DedGrales!D23) -> 0 | E30: =retenciones(Check!$B$8,$R30,SUM(E$9:E$10,E$16:E$17,E$23:E$24),Tablas!D$7,Tablas!D8,E$9,DedGrales!E12+DedGrales!E23) -> 0 | F30: =retenciones(Check!$B$8,$R30,SUM(F$9:F$10,F$16:F$17,F$23:F$24),Tablas!E$7,Tablas!E8,F$9,DedGrales!F12+DedGrales!F23) -> 0 | G30: =retenciones(Check!$B$8,$R30,SUM(G$9:G$10,G$16:G$17,G$23:G$24),Tablas!F$7,Tablas!F8,G$9,DedGrales!G12+DedGrales!G23) -> 0 | H30: =retenciones(Check!$B$8,$R30,SUM(H$9:H$10,H$16:H$17,H$23:H$24),Tablas!G$7,Tablas!G8,H$9,DedGrales!H12+DedGrales!H23) -> 0 | I30: =retenciones(Check!$B$8,$R30,SUM(I$9:I$10,I$16:I$17,I$23:I$24),Tablas!H$7,Tablas!H8,I$9,DedGrales!I12+DedGrales!I23) -> 0 | J30: =retenciones(Check!$B$8,$R30,SUM(J$9:J$10,J$16:J$17,J$23:J$24),Tablas!I$7,Tablas!I8,J$9,DedGrales!J12+DedGrales!J23) -> 0 | K30: =retenciones(Check!$B$8,$R30,SUM(K$9:K$10,K$16:K$17,K$23:K$24),Tablas!J$7,Tablas!J8,K$9,DedGrales!K12+DedGrales!K23) -> 0 | L30: =retenciones(Check!$B$8,$R30,SUM(L$9:L$10,L$16:L$17,L$23:L$24),Tablas!K$7,Tablas!K8,L$9,DedGrales!L12+DedGrales!L23) -> 0 | M30: =retenciones(Check!$B$8,$R30,SUM(M$9:M$10,M$16:M$17,M$23:M$24),Tablas!L$7,Tablas!L8,M$9,DedGrales!M12+DedGrales!M23) -> 0 | N30: =retenciones(Check!$B$8,$R30,SUM(N$9:N$10,N$16:N$17,N$23:N$24),Tablas!M$7,Tablas!M8,N$9,DedGrales!N12+DedGrales!N23) -> 0 | O30: =retenciones(Check!$B$8,$R30,SUM(O$9:O$10,O$16:O$17,O$23:O$24),Tablas!N$7,Tablas!N8,O$9,DedGrales!O12+DedGrales!O23) -> 0 | P30: =SUM(D30:O30) -> 0 | R30: =Tablas!O8 -> Sí
C31: =Tablas!B9 -> Ley 19032 | D31: =retenciones(Check!$B$8,$R31,SUM(D$9:D$10,D$16:D$17,D$23:D$24),Tablas!C$7,Tablas!C9,D$9,DedGrales!D13+DedGrales!D24) -> 0 | E31: =retenciones(Check!$B$8,$R31,SUM(E$9:E$10,E$16:E$17,E$23:E$24),Tablas!D$7,Tablas!D9,E$9,DedGrales!E13+DedGrales!E24) -> 0 | F31: =retenciones(Check!$B$8,$R31,SUM(F$9:F$10,F$16:F$17,F$23:F$24),Tablas!E$7,Tablas!E9,F$9,DedGrales!F13+DedGrales!F24) -> 0 | G31: =retenciones(Check!$B$8,$R31,SUM(G$9:G$10,G$16:G$17,G$23:G$24),Tablas!F$7,Tablas!F9,G$9,DedGrales!G13+DedGrales!G24) -> 0 | H31: =retenciones(Check!$B$8,$R31,SUM(H$9:H$10,H$16:H$17,H$23:H$24),Tablas!G$7,Tablas!G9,H$9,DedGrales!H13+DedGrales!H24) -> 0 | I31: =retenciones(Check!$B$8,$R31,SUM(I$9:I$10,I$16:I$17,I$23:I$24),Tablas!H$7,Tablas!H9,I$9,DedGrales!I13+DedGrales!I24) -> 0 | J31: =retenciones(Check!$B$8,$R31,SUM(J$9:J$10,J$16:J$17,J$23:J$24),Tablas!I$7,Tablas!I9,J$9,DedGrales!J13+DedGrales!J24) -> 0 | K31: =retenciones(Check!$B$8,$R31,SUM(K$9:K$10,K$16:K$17,K$23:K$24),Tablas!J$7,Tablas!J9,K$9,DedGrales!K13+DedGrales!K24) -> 0 | L31: =retenciones(Check!$B$8,$R31,SUM(L$9:L$10,L$16:L$17,L$23:L$24),Tablas!K$7,Tablas!K9,L$9,DedGrales!L13+DedGrales!L24) -> 0 | M31: =retenciones(Check!$B$8,$R31,SUM(M$9:M$10,M$16:M$17,M$23:M$24),Tablas!L$7,Tablas!L9,M$9,DedGrales!M13+DedGrales!M24) -> 0 | N31: =retenciones(Check!$B$8,$R31,SUM(N$9:N$10,N$16:N$17,N$23:N$24),Tablas!M$7,Tablas!M9,N$9,DedGrales!N13+DedGrales!N24) -> 0 | O31: =retenciones(Check!$B$8,$R31,SUM(O$9:O$10,O$16:O$17,O$23:O$24),Tablas!N$7,Tablas!N9,O$9,DedGrales!O13+DedGrales!O24) -> 0 | P31: =SUM(D31:O31) -> 0 | R31: =Tablas!O9 -> Sí
C32: =Tablas!B10 -> Obra social | D32: =retenciones(Check!$B$8,$R32,SUM(D$9:D$10,D$16:D$17,D$23:D$24),Tablas!C$7,Tablas!C10,D$9,DedGrales!D14+DedGrales!D25) -> 0 | E32: =retenciones(Check!$B$8,$R32,SUM(E$9:E$10,E$16:E$17,E$23:E$24),Tablas!D$7,Tablas!D10,E$9,DedGrales!E14+DedGrales!E25) -> 0 | F32: =retenciones(Check!$B$8,$R32,SUM(F$9:F$10,F$16:F$17,F$23:F$24),Tablas!E$7,Tablas!E10,F$9,DedGrales!F14+DedGrales!F25) -> 0 | G32: =retenciones(Check!$B$8,$R32,SUM(G$9:G$10,G$16:G$17,G$23:G$24),Tablas!F$7,Tablas!F10,G$9,DedGrales!G14+DedGrales!G25) -> 0 | H32: =retenciones(Check!$B$8,$R32,SUM(H$9:H$10,H$16:H$17,H$23:H$24),Tablas!G$7,Tablas!G10,H$9,DedGrales!H14+DedGrales!H25) -> 0 | I32: =retenciones(Check!$B$8,$R32,SUM(I$9:I$10,I$16:I$17,I$23:I$24),Tablas!H$7,Tablas!H10,I$9,DedGrales!I14+DedGrales!I25) -> 0 | J32: =retenciones(Check!$B$8,$R32,SUM(J$9:J$10,J$16:J$17,J$23:J$24),Tablas!I$7,Tablas!I10,J$9,DedGrales!J14+DedGrales!J25) -> 0 | K32: =retenciones(Check!$B$8,$R32,SUM(K$9:K$10,K$16:K$17,K$23:K$24),Tablas!J$7,Tablas!J10,K$9,DedGrales!K14+DedGrales!K25) -> 0 | L32: =retenciones(Check!$B$8,$R32,SUM(L$9:L$10,L$16:L$17,L$23:L$24),Tablas!K$7,Tablas!K10,L$9,DedGrales!L14+DedGrales!L25) -> 0 | M32: =retenciones(Check!$B$8,$R32,SUM(M$9:M$10,M$16:M$17,M$23:M$24),Tablas!L$7,Tablas!L10,M$9,DedGrales!M14+DedGrales!M25) -> 0 | N32: =retenciones(Check!$B$8,$R32,SUM(N$9:N$10,N$16:N$17,N$23:N$24),Tablas!M$7,Tablas!M10,N$9,DedGrales!N14+DedGrales!N25) -> 0 | O32: =retenciones(Check!$B$8,$R32,SUM(O$9:O$10,O$16:O$17,O$23:O$24),Tablas!N$7,Tablas!N10,O$9,DedGrales!O14+DedGrales!O25) -> 0 | P32: 0 | R32: =Tablas!O10 -> Sí
C33: =Tablas!B11 -> Sindicato | D33: =retenciones(Check!$B$8,$R33,SUM(D$9:D$10,D$16:D$17,D$23:D$24),Tablas!C$7,Tablas!C11,D$9,DedGrales!D15+DedGrales!D26) -> 0 | E33: =retenciones(Check!$B$8,$R33,SUM(E$9:E$10,E$16:E$17,E$23:E$24),Tablas!D$7,Tablas!D11,E$9,DedGrales!E15+DedGrales!E26) -> 0 | F33: =retenciones(Check!$B$8,$R33,SUM(F$9:F$10,F$16:F$17,F$23:F$24),Tablas!E$7,Tablas!E11,F$9,DedGrales!F15+DedGrales!F26) -> 0 | G33: =retenciones(Check!$B$8,$R33,SUM(G$9:G$10,G$16:G$17,G$23:G$24),Tablas!F$7,Tablas!F11,G$9,DedGrales!G15+DedGrales!G26) -> 0 | H33: =retenciones(Check!$B$8,$R33,SUM(H$9:H$10,H$16:H$17,H$23:H$24),Tablas!G$7,Tablas!G11,H$9,DedGrales!H15+DedGrales!H26) -> 0 | I33: =retenciones(Check!$B$8,$R33,SUM(I$9:I$10,I$16:I$17,I$23:I$24),Tablas!H$7,Tablas!H11,I$9,DedGrales!I15+DedGrales!I26) -> 0 | J33: =retenciones(Check!$B$8,$R33,SUM(J$9:J$10,J$16:J$17,J$23:J$24),Tablas!I$7,Tablas!I11,J$9,DedGrales!J15+DedGrales!J26) -> 0 | K33: =retenciones(Check!$B$8,$R33,SUM(K$9:K$10,K$16:K$17,K$23:K$24),Tablas!J$7,Tablas!J11,K$9,DedGrales!K15+DedGrales!K26) -> 0 | L33: =retenciones(Check!$B$8,$R33,SUM(L$9:L$10,L$16:L$17,L$23:L$24),Tablas!K$7,Tablas!K11,L$9,DedGrales!L15+DedGrales!L26) -> 0 | M33: =retenciones(Check!$B$8,$R33,SUM(M$9:M$10,M$16:M$17,M$23:M$24),Tablas!L$7,Tablas!L11,M$9,DedGrales!M15+DedGrales!M26) -> 0 | N33: =retenciones(Check!$B$8,$R33,SUM(N$9:N$10,N$16:N$17,N$23:N$24),Tablas!M$7,Tablas!M11,N$9,DedGrales!N15+DedGrales!N26) -> 0 | O33: =retenciones(Check!$B$8,$R33,SUM(O$9:O$10,O$16:O$17,O$23:O$24),Tablas!N$7,Tablas!N11,O$9,DedGrales!O15+DedGrales!O26) -> 0 | P33: 0 | R33: =Tablas!O11 -> No
C34: =Tablas!B12 -> 0 | D34: =retenciones(Check!$B$8,$R34,SUM(D$9:D$10,D$16:D$17,D$23:D$24),Tablas!C$7,Tablas!C12,D$9,DedGrales!D16+DedGrales!D27) -> 0 | E34: =retenciones(Check!$B$8,$R34,SUM(E$9:E$10,E$16:E$17,E$23:E$24),Tablas!D$7,Tablas!D12,E$9,DedGrales!E16+DedGrales!E27) -> 0 | F34: =retenciones(Check!$B$8,$R34,SUM(F$9:F$10,F$16:F$17,F$23:F$24),Tablas!E$7,Tablas!E12,F$9,DedGrales!F16+DedGrales!F27) -> 0 | G34: =retenciones(Check!$B$8,$R34,SUM(G$9:G$10,G$16:G$17,G$23:G$24),Tablas!F$7,Tablas!F12,G$9,DedGrales!G16+DedGrales!G27) -> 0 | H34: =retenciones(Check!$B$8,$R34,SUM(H$9:H$10,H$16:H$17,H$23:H$24),Tablas!G$7,Tablas!G12,H$9,DedGrales!H16+DedGrales!H27) -> 0 | I34: =retenciones(Check!$B$8,$R34,SUM(I$9:I$10,I$16:I$17,I$23:I$24),Tablas!H$7,Tablas!H12,I$9,DedGrales!I16+DedGrales!I27) -> 0 | J34: =retenciones(Check!$B$8,$R34,SUM(J$9:J$10,J$16:J$17,J$23:J$24),Tablas!I$7,Tablas!I12,J$9,DedGrales!J16+DedGrales!J27) -> 0 | K34: =retenciones(Check!$B$8,$R34,SUM(K$9:K$10,K$16:K$17,K$23:K$24),Tablas!J$7,Tablas!J12,K$9,DedGrales!K16+DedGrales!K27) -> 0 | L34: =retenciones(Check!$B$8,$R34,SUM(L$9:L$10,L$16:L$17,L$23:L$24),Tablas!K$7,Tablas!K12,L$9,DedGrales!L16+DedGrales!L27) -> 0 | M34: =retenciones(Check!$B$8,$R34,SUM(M$9:M$10,M$16:M$17,M$23:M$24),Tablas!L$7,Tablas!L12,M$9,DedGrales!M16+DedGrales!M27) -> 0 | N34: =retenciones(Check!$B$8,$R34,SUM(N$9:N$10,N$16:N$17,N$23:N$24),Tablas!M$7,Tablas!M12,N$9,DedGrales!N16+DedGrales!N27) -> 0 | O34: =retenciones(Check!$B$8,$R34,SUM(O$9:O$10,O$16:O$17,O$23:O$24),Tablas!N$7,Tablas!N12,O$9,DedGrales!O16+DedGrales!O27) -> 0 | P34: 0 | R34: =Tablas!O12 -> No
C35: =Tablas!B13 -> 0 | D35: =retenciones(Check!$B$8,$R35,SUM(D$9:D$10,D$16:D$17,D$23:D$24),Tablas!C$7,Tablas!C13,D$9,DedGrales!D17+DedGrales!D28) -> 0 | E35: =retenciones(Check!$B$8,$R35,SUM(E$9:E$10,E$16:E$17,E$23:E$24),Tablas!D$7,Tablas!D13,E$9,DedGrales!E17+DedGrales!E28) -> 0 | F35: =retenciones(Check!$B$8,$R35,SUM(F$9:F$10,F$16:F$17,F$23:F$24),Tablas!E$7,Tablas!E13,F$9,DedGrales!F17+DedGrales!F28) -> 0 | G35: =retenciones(Check!$B$8,$R35,SUM(G$9:G$10,G$16:G$17,G$23:G$24),Tablas!F$7,Tablas!F13,G$9,DedGrales!G17+DedGrales!G28) -> 0 | H35: =retenciones(Check!$B$8,$R35,SUM(H$9:H$10,H$16:H$17,H$23:H$24),Tablas!G$7,Tablas!G13,H$9,DedGrales!H17+DedGrales!H28) -> 0 | I35: =retenciones(Check!$B$8,$R35,SUM(I$9:I$10,I$16:I$17,I$23:I$24),Tablas!H$7,Tablas!H13,I$9,DedGrales!I17+DedGrales!I28) -> 0 | J35: =retenciones(Check!$B$8,$R35,SUM(J$9:J$10,J$16:J$17,J$23:J$24),Tablas!I$7,Tablas!I13,J$9,DedGrales!J17+DedGrales!J28) -> 0 | K35: =retenciones(Check!$B$8,$R35,SUM(K$9:K$10,K$16:K$17,K$23:K$24),Tablas!J$7,Tablas!J13,K$9,DedGrales!K17+DedGrales!K28) -> 0 | L35: =retenciones(Check!$B$8,$R35,SUM(L$9:L$10,L$16:L$17,L$23:L$24),Tablas!K$7,Tablas!K13,L$9,DedGrales!L17+DedGrales!L28) -> 0 | M35: =retenciones(Check!$B$8,$R35,SUM(M$9:M$10,M$16:M$17,M$23:M$24),Tablas!L$7,Tablas!L13,M$9,DedGrales!M17+DedGrales!M28) -> 0 | N35: =retenciones(Check!$B$8,$R35,SUM(N$9:N$10,N$16:N$17,N$23:N$24),Tablas!M$7,Tablas!M13,N$9,DedGrales!N17+DedGrales!N28) -> 0 | O35: =retenciones(Check!$B$8,$R35,SUM(O$9:O$10,O$16:O$17,O$23:O$24),Tablas!N$7,Tablas!N13,O$9,DedGrales!O17+DedGrales!O28) -> 0 | P35: 0 | R35: =Tablas!O13 -> No
C36: Prorrateo | R36: Aplica tope
C37: =C30 -> Jubilación | D37: =retenciones(Check!$B$8,$R37,SUM(D$9:D$10,D$16:D$17,D$23:D$24),Tablas!C$7,Tablas!C8,D$10,0) -> 0 | E37: =retenciones(Check!$B$8,$R37,SUM(E$9:E$10,E$16:E$17,E$23:E$24),Tablas!D$7,Tablas!D8,E$10,0) -> 0 | F37: =retenciones(Check!$B$8,$R37,SUM(F$9:F$10,F$16:F$17,F$23:F$24),Tablas!E$7,Tablas!E8,F$10,0) -> 0 | G37: =retenciones(Check!$B$8,$R37,SUM(G$9:G$10,G$16:G$17,G$23:G$24),Tablas!F$7,Tablas!F8,G$10,0) -> 0 | H37: =retenciones(Check!$B$8,$R37,SUM(H$9:H$10,H$16:H$17,H$23:H$24),Tablas!G$7,Tablas!G8,H$10,0) -> 0 | I37: =retenciones(Check!$B$8,$R37,SUM(I$9:I$10,I$16:I$17,I$23:I$24),Tablas!H$7,Tablas!H8,I$10,0) -> 0 | J37: =retenciones(Check!$B$8,$R37,SUM(J$9:J$10,J$16:J$17,J$23:J$24),Tablas!I$7,Tablas!I8,J$10,0) -> 0 | K37: =retenciones(Check!$B$8,$R37,SUM(K$9:K$10,K$16:K$17,K$23:K$24),Tablas!J$7,Tablas!J8,K$10,0) -> 0 | L37: =retenciones(Check!$B$8,$R37,SUM(L$9:L$10,L$16:L$17,L$23:L$24),Tablas!K$7,Tablas!K8,L$10,0) -> 0 | M37: =retenciones(Check!$B$8,$R37,SUM(M$9:M$10,M$16:M$17,M$23:M$24),Tablas!L$7,Tablas!L8,M$10,0) -> 0 | N37: =retenciones(Check!$B$8,$R37,SUM(N$9:N$10,N$16:N$17,N$23:N$24),Tablas!M$7,Tablas!M8,N$10,0) -> 0 | O37: =retenciones(Check!$B$8,$R37,SUM(O$9:O$10,O$16:O$17,O$23:O$24),Tablas!N$7,Tablas!N8,O$10,0) -> 0 | P37: =SUM(D37:O37) -> 0 | R37: =R30 -> Sí
C38: =C31 -> Ley 19032 | D38: =retenciones(Check!$B$8,$R38,SUM(D$9:D$10,D$16:D$17,D$23:D$24),Tablas!C$7,Tablas!C9,D$10,0) -> 0 | E38: =retenciones(Check!$B$8,$R38,SUM(E$9:E$10,E$16:E$17,E$23:E$24),Tablas!D$7,Tablas!D9,E$10,0) -> 0 | F38: =retenciones(Check!$B$8,$R38,SUM(F$9:F$10,F$16:F$17,F$23:F$24),Tablas!E$7,Tablas!E9,F$10,0) -> 0 | G38: =retenciones(Check!$B$8,$R38,SUM(G$9:G$10,G$16:G$17,G$23:G$24),Tablas!F$7,Tablas!F9,G$10,0) -> 0 | H38: =retenciones(Check!$B$8,$R38,SUM(H$9:H$10,H$16:H$17,H$23:H$24),Tablas!G$7,Tablas!G9,H$10,0) -> 0 | I38: =retenciones(Check!$B$8,$R38,SUM(I$9:I$10,I$16:I$17,I$23:I$24),Tablas!H$7,Tablas!H9,I$10,0) -> 0 | J38: =retenciones(Check!$B$8,$R38,SUM(J$9:J$10,J$16:J$17,J$23:J$24),Tablas!I$7,Tablas!I9,J$10,0) -> 0 | K38: =retenciones(Check!$B$8,$R38,SUM(K$9:K$10,K$16:K$17,K$23:K$24),Tablas!J$7,Tablas!J9,K$10,0) -> 0 | L38: =retenciones(Check!$B$8,$R38,SUM(L$9:L$10,L$16:L$17,L$23:L$24),Tablas!K$7,Tablas!K9,L$10,0) -> 0 | M38: =retenciones(Check!$B$8,$R38,SUM(M$9:M$10,M$16:M$17,M$23:M$24),Tablas!L$7,Tablas!L9,M$10,0) -> 0 | N38: =retenciones(Check!$B$8,$R38,SUM(N$9:N$10,N$16:N$17,N$23:N$24),Tablas!M$7,Tablas!M9,N$10,0) -> 0 | O38: =retenciones(Check!$B$8,$R38,SUM(O$9:O$10,O$16:O$17,O$23:O$24),Tablas!N$7,Tablas!N9,O$10,0) -> 0 | P38: =SUM(D38:O38) -> 0 | R38: =R31 -> Sí
C39: =C32 -> Obra social | D39: =retenciones(Check!$B$8,$R39,SUM(D$9:D$10,D$16:D$17,D$23:D$24),Tablas!C$7,Tablas!C10,D$10,0) -> 0 | E39: =retenciones(Check!$B$8,$R39,SUM(E$9:E$10,E$16:E$17,E$23:E$24),Tablas!D$7,Tablas!D10,E$10,0) -> 0 | F39: =retenciones(Check!$B$8,$R39,SUM(F$9:F$10,F$16:F$17,F$23:F$24),Tablas!E$7,Tablas!E10,F$10,0) -> 0 | G39: =retenciones(Check!$B$8,$R39,SUM(G$9:G$10,G$16:G$17,G$23:G$24),Tablas!F$7,Tablas!F10,G$10,0) -> 0 | H39: =retenciones(Check!$B$8,$R39,SUM(H$9:H$10,H$16:H$17,H$23:H$24),Tablas!G$7,Tablas!G10,H$10,0) -> 0 | I39: =retenciones(Check!$B$8,$R39,SUM(I$9:I$10,I$16:I$17,I$23:I$24),Tablas!H$7,Tablas!H10,I$10,0) -> 0 | J39: =retenciones(Check!$B$8,$R39,SUM(J$9:J$10,J$16:J$17,J$23:J$24),Tablas!I$7,Tablas!I10,J$10,0) -> 0 | K39: =retenciones(Check!$B$8,$R39,SUM(K$9:K$10,K$16:K$17,K$23:K$24),Tablas!J$7,Tablas!J10,K$10,0) -> 0 | L39: =retenciones(Check!$B$8,$R39,SUM(L$9:L$10,L$16:L$17,L$23:L$24),Tablas!K$7,Tablas!K10,L$10,0) -> 0 | M39: =retenciones(Check!$B$8,$R39,SUM(M$9:M$10,M$16:M$17,M$23:M$24),Tablas!L$7,Tablas!L10,M$10,0) -> 0 | N39: =retenciones(Check!$B$8,$R39,SUM(N$9:N$10,N$16:N$17,N$23:N$24),Tablas!M$7,Tablas!M10,N$10,0) -> 0 | O39: =retenciones(Check!$B$8,$R39,SUM(O$9:O$10,O$16:O$17,O$23:O$24),Tablas!N$7,Tablas!N10,O$10,0) -> 0 | P39: 0 | R39: =R32 -> Sí
C40: =C33 -> Sindicato | D40: =retenciones(Check!$B$8,$R40,SUM(D$9:D$10,D$16:D$17,D$23:D$24),Tablas!C$7,Tablas!C11,D$10,0) -> 0 | E40: =retenciones(Check!$B$8,$R40,SUM(E$9:E$10,E$16:E$17,E$23:E$24),Tablas!D$7,Tablas!D11,E$10,0) -> 0 | F40: =retenciones(Check!$B$8,$R40,SUM(F$9:F$10,F$16:F$17,F$23:F$24),Tablas!E$7,Tablas!E11,F$10,0) -> 0 | G40: =retenciones(Check!$B$8,$R40,SUM(G$9:G$10,G$16:G$17,G$23:G$24),Tablas!F$7,Tablas!F11,G$10,0) -> 0 | H40: =retenciones(Check!$B$8,$R40,SUM(H$9:H$10,H$16:H$17,H$23:H$24),Tablas!G$7,Tablas!G11,H$10,0) -> 0 | I40: =retenciones(Check!$B$8,$R40,SUM(I$9:I$10,I$16:I$17,I$23:I$24),Tablas!H$7,Tablas!H11,I$10,0) -> 0 | J40: =retenciones(Check!$B$8,$R40,SUM(J$9:J$10,J$16:J$17,J$23:J$24),Tablas!I$7,Tablas!I11,J$10,0) -> 0 | K40: =retenciones(Check!$B$8,$R40,SUM(K$9:K$10,K$16:K$17,K$23:K$24),Tablas!J$7,Tablas!J11,K$10,0) -> 0 | L40: =retenciones(Check!$B$8,$R40,SUM(L$9:L$10,L$16:L$17,L$23:L$24),Tablas!K$7,Tablas!K11,L$10,0) -> 0 | M40: =retenciones(Check!$B$8,$R40,SUM(M$9:M$10,M$16:M$17,M$23:M$24),Tablas!L$7,Tablas!L11,M$10,0) -> 0 | N40: =retenciones(Check!$B$8,$R40,SUM(N$9:N$10,N$16:N$17,N$23:N$24),Tablas!M$7,Tablas!M11,N$10,0) -> 0 | O40: =retenciones(Check!$B$8,$R40,SUM(O$9:O$10,O$16:O$17,O$23:O$24),Tablas!N$7,Tablas!N11,O$10,0) -> 0 | P40: 0 | R40: =R33 -> No
C41: =C34 -> 0 | D41: =retenciones(Check!$B$8,$R41,SUM(D$9:D$10,D$16:D$17,D$23:D$24),Tablas!C$7,Tablas!C12,D$10,0) -> 0 | E41: =retenciones(Check!$B$8,$R41,SUM(E$9:E$10,E$16:E$17,E$23:E$24),Tablas!D$7,Tablas!D12,E$10,0) -> 0 | F41: =retenciones(Check!$B$8,$R41,SUM(F$9:F$10,F$16:F$17,F$23:F$24),Tablas!E$7,Tablas!E12,F$10,0) -> 0 | G41: =retenciones(Check!$B$8,$R41,SUM(G$9:G$10,G$16:G$17,G$23:G$24),Tablas!F$7,Tablas!F12,G$10,0) -> 0 | H41: =retenciones(Check!$B$8,$R41,SUM(H$9:H$10,H$16:H$17,H$23:H$24),Tablas!G$7,Tablas!G12,H$10,0) -> 0 | I41: =retenciones(Check!$B$8,$R41,SUM(I$9:I$10,I$16:I$17,I$23:I$24),Tablas!H$7,Tablas!H12,I$10,0) -> 0 | J41: =retenciones(Check!$B$8,$R41,SUM(J$9:J$10,J$16:J$17,J$23:J$24),Tablas!I$7,Tablas!I12,J$10,0) -> 0 | K41: =retenciones(Check!$B$8,$R41,SUM(K$9:K$10,K$16:K$17,K$23:K$24),Tablas!J$7,Tablas!J12,K$10,0) -> 0 | L41: =retenciones(Check!$B$8,$R41,SUM(L$9:L$10,L$16:L$17,L$23:L$24),Tablas!K$7,Tablas!K12,L$10,0) -> 0 | M41: =retenciones(Check!$B$8,$R41,SUM(M$9:M$10,M$16:M$17,M$23:M$24),Tablas!L$7,Tablas!L12,M$10,0) -> 0 | N41: =retenciones(Check!$B$8,$R41,SUM(N$9:N$10,N$16:N$17,N$23:N$24),Tablas!M$7,Tablas!M12,N$10,0) -> 0 | O41: =retenciones(Check!$B$8,$R41,SUM(O$9:O$10,O$16:O$17,O$23:O$24),Tablas!N$7,Tablas!N12,O$10,0) -> 0 | P41: 0 | R41: =R34 -> No
C42: 0 | D42: =retenciones(Check!$B$8,$R42,SUM(D$9:D$10,D$16:D$17,D$23:D$24),Tablas!C$7,Tablas!C13,D$10,0) -> 0 | E42: =retenciones(Check!$B$8,$R42,SUM(E$9:E$10,E$16:E$17,E$23:E$24),Tablas!D$7,Tablas!D13,E$10,0) -> 0 | F42: =retenciones(Check!$B$8,$R42,SUM(F$9:F$10,F$16:F$17,F$23:F$24),Tablas!E$7,Tablas!E13,F$10,0) -> 0 | G42: =retenciones(Check!$B$8,$R42,SUM(G$9:G$10,G$16:G$17,G$23:G$24),Tablas!F$7,Tablas!F13,G$10,0) -> 0 | H42: =retenciones(Check!$B$8,$R42,SUM(H$9:H$10,H$16:H$17,H$23:H$24),Tablas!G$7,Tablas!G13,H$10,0) -> 0 | I42: =retenciones(Check!$B$8,$R42,SUM(I$9:I$10,I$16:I$17,I$23:I$24),Tablas!H$7,Tablas!H13,I$10,0) -> 0 | J42: =retenciones(Check!$B$8,$R42,SUM(J$9:J$10,J$16:J$17,J$23:J$24),Tablas!I$7,Tablas!I13,J$10,0) -> 0 | K42: =retenciones(Check!$B$8,$R42,SUM(K$9:K$10,K$16:K$17,K$23:K$24),Tablas!J$7,Tablas!J13,K$10,0) -> 0 | L42: =retenciones(Check!$B$8,$R42,SUM(L$9:L$10,L$16:L$17,L$23:L$24),Tablas!K$7,Tablas!K13,L$10,0) -> 0 | M42: =retenciones(Check!$B$8,$R42,SUM(M$9:M$10,M$16:M$17,M$23:M$24),Tablas!L$7,Tablas!L13,M$10,0) -> 0 | N42: =retenciones(Check!$B$8,$R42,SUM(N$9:N$10,N$16:N$17,N$23:N$24),Tablas!M$7,Tablas!M13,N$10,0) -> 0 | O42: =retenciones(Check!$B$8,$R42,SUM(O$9:O$10,O$16:O$17,O$23:O$24),Tablas!N$7,Tablas!N13,O$10,0) -> 0 | P42: 0 | R42: No
C45: Total deducciones | D45: =SUM(D30:D35) -> 0 | E45: =SUM(E30:E35) -> 0 | F45: 0 | G45: 0 | H45: 0 | I45: 0 | J45: 0 | K45: 0 | L45: 0 | M45: 0 | N45: 0 | O45: 0 | P45: 0
C47: Ingresos gravados (prorrateo) acumulados
C48: Gravado
C49: Sueldo Rem. (prorrateo) | D49: =SUM(D50:D61) -> 0 | E49: =SUM(E50:E61) -> 0 | F49: 0 | G49: 0 | H49: 0 | I49: 0 | J49: 0 | K49: 0 | L49: 0 | M49: 0 | N49: 0 | O49: 0 | P49: =SUM(D49:O49) -> 0
B50: 1 | C50: Sueldo Rem. (prorrateo) | D50: =(D10+D12)/12 -> 0 | E50: =+D50 -> 0 | F50: =+E50 -> 0 | G50: 0 | H50: 0 | I50: 0 | J50: 0 | K50: 0 | L50: 0 | M50: 0 | N50: 0 | O50: 0 | P50: =SUM(D50:O50) -> 0
B51: =+B50+1 -> 2 | C51: Sueldo Rem. (prorrateo) | E51: =(+$E10+E12)/11 -> 0 | F51: =+E51 -> 0 | G51: 0 | H51: 0 | I51: 0 | J51: 0 | K51: 0 | L51: 0 | M51: 0 | N51: 0 | O51: 0 | P51: 0
B52: =+B51+1 -> 3 | C52: Sueldo Rem. (prorrateo) | F52: =(+$F10+F12)/10 -> 0 | G52: =+F52 -> 0 | H52: 0 | I52: 0 | J52: 0 | K52: 0 | L52: 0 | M52: 0 | N52: 0 | O52: 0 | P52: 0
B53: 4 | C53: Sueldo Rem. (prorrateo) | G53: =(G10+G12)/9 -> 0 | H53: =+G53 -> 0 | I53: 0 | J53: 0 | K53: 0 | L53: 0 | M53: 0 | N53: 0 | O53: 0 | P53: 0
B54: 5 | C54: Sueldo Rem. (prorrateo) | H54: =(H10+H12)/8 -> 0 | I54: =+H54 -> 0 | J54: 0 | K54: 0 | L54: 0 | M54: 0 | N54: 0 | O54: 0 | P54: 0
B55: 6 | C55: Sueldo Rem. (prorrateo) | I55: =(+I10+I12)/7 -> 0 | J55: =+I55 -> 0 | K55: 0 | L55: 0 | M55: 0 | N55: 0 | O55: 0 | P55: 0
B56: 7 | C56: Sueldo Rem. (prorrateo) | J56: =(+J10+J12)/6 -> 0 | K56: =+J56 -> 0 | L56: 0 | M56: 0 | N56: 0 | O56: 0 | P56: 0
B57: 8 | C57: Sueldo Rem. (prorrateo) | K57: =(+K10+K12)/5 -> 0 | L57: =+K57 -> 0 | M57: 0 | N57: 0 | O57: 0 | P57: 0
B58: 9 | C58: Sueldo Rem. (prorrateo) | L58: =(+L10+L12)/4 -> 0 | M58: =+L58 -> 0 | N58: 0 | O58: 0 | P58: 0
B59: 10 | C59: Sueldo Rem. (prorrateo) | M59: =(M10+M12)/3 -> 0 | N59: =+M59 -> 0 | O59: =+N59 -> 0 | P59: 0
B60: 11 | C60: Sueldo Rem. (prorrateo) | N60: =(+N10+N12)/2 -> 0 | O60: =+N60 -> 0 | P60: 0
B61: 12 | C61: Sueldo Rem. (prorrateo) | O61: =(+O10+O12)/1 -> 0 | P61: 0
C63: Deducciones Prorrateo | D63: =SUM(D64:D75) -> 0 | E63: =SUM(E64:E75) -> 0 | F63: 0 | G63: 0 | H63: 0 | I63: 0 | J63: 0 | K63: 0 | L63: 0 | M63: 0 | N63: 0 | O63: 0 | P63: =SUM(D63:O63) -> 0
B64: 1 | C64: Deducciones Prorrateo | D64: =+SUM(D$37:D$42)/12 -> 0 | E64: =+D64 -> 0 | F64: =+E64 -> 0 | G64: 0 | H64: 0 | I64: 0 | J64: 0 | K64: 0 | L64: 0 | M64: 0 | N64: 0 | O64: 0 | P64: 0
B65: =+B64+1 -> 2 | C65: Deducciones Prorrateo | E65: =+SUM(E$37:E$42)/11 -> 0 | F65: =+E65 -> 0 | G65: =+F65 -> 0 | H65: 0 | I65: 0 | J65: 0 | K65: 0 | L65: 0 | M65: 0 | N65: 0 | O65: 0 | P65: 0
B66: =+B65+1 -> 3 | C66: Deducciones Prorrateo | F66: =+SUM(F$37:F$42)/10 -> 0 | G66: =+F66 -> 0 | H66: 0 | I66: 0 | J66: 0 | K66: 0 | L66: 0 | M66: 0 | N66: 0 | O66: 0 | P66: 0
B67: 4 | C67: Deducciones Prorrateo | G67: =+SUM(G$37:G$42)/9 -> 0 | H67: =+G67 -> 0 | I67: =+H67 -> 0 | J67: 0 | K67: 0 | L67: 0 | M67: 0 | N67: 0 | O67: 0 | P67: 0
B68: 5 | C68: Deducciones Prorrateo | H68: =+SUM(H$37:H$42)/8 -> 0 | I68: =+H68 -> 0 | J68: 0 | K68: 0 | L68: 0 | M68: 0 | N68: 0 | O68: 0 | P68: 0
B69: 6 | C69: Deducciones Prorrateo | I69: =+SUM(I$37:I$42)/7 -> 0 | J69: =+I69 -> 0 | K69: 0 | L69: 0 | M69: 0 | N69: 0 | O69: 0 | P69: 0
B70: 7 | C70: Deducciones Prorrateo | J70: =+SUM(J$37:J$42)/6 -> 0 | K70: =+J70 -> 0 | L70: 0 | M70: 0 | N70: 0 | O70: 0 | P70: 0
B71: 8 | C71: Deducciones Prorrateo | K71: =+SUM(K$37:K$42)/5 -> 0 | L71: =+K71 -> 0 | M71: 0 | N71: 0 | O71: 0 | P71: 0
B72: 9 | C72: Deducciones Prorrateo | L72: =+SUM(L$37:L$42)/4 -> 0 | M72: =+L72 -> 0 | N72: 0 | O72: 0 | P72: 0
B73: 10 | C73: Deducciones Prorrateo | M73: =+SUM(M$37:M$42)/3 -> 0 | N73: =+M73 -> 0 | O73: 0 | P73: 0
B74: =+B73+1 -> 11 | C74: Deducciones Prorrateo | N74: =+SUM(N$37:N$42)/2 -> 0 | O74: =+N74 -> 0 | P74: 0
B75: =+B74+1 -> 12 | C75: Deducciones Prorrateo | O75: =+SUM(O$37:O$42) -> 0 | P75: 0
C78: Deducciones generales | D78: 2017-01-01 | E78: 2017-02-01 | F78: 2017-03-01 | G78: 2017-04-01 | H78: 2017-05-01 | I78: 2017-06-01 | J78: 2017-07-01 | K78: 2017-08-01 | L78: 2017-09-01 | M78: 2017-10-01 | N78: 2017-11-01 | O78: 2017-12-01 | P78: Anual
C79: Seguro de Vida | D79: =SUMIF(DedGrales!$D$79:$O$79,MONTH(Auxiliares!D$5),DedGrales!$D$77:$O$77) -> 0 | E79: =SUMIF(DedGrales!$D$79:$O$79,MONTH(Auxiliares!E$5),DedGrales!$D$77:$O$77) -> 0 | F79: =SUMIF(DedGrales!$D$79:$O$79,MONTH(Auxiliares!F$5),DedGrales!$D$77:$O$77) -> 0 | G79: =SUMIF(DedGrales!$D$79:$O$79,MONTH(Auxiliares!G$5),DedGrales!$D$77:$O$77) -> 0 | H79: =SUMIF(DedGrales!$D$79:$O$79,MONTH(Auxiliares!H$5),DedGrales!$D$77:$O$77) -> 0 | I79: =SUMIF(DedGrales!$D$79:$O$79,MONTH(Auxiliares!I$5),DedGrales!$D$77:$O$77) -> 0 | J79: =SUMIF(DedGrales!$D$79:$O$79,MONTH(Auxiliares!J$5),DedGrales!$D$77:$O$77) -> 0 | K79: =SUMIF(DedGrales!$D$79:$O$79,MONTH(Auxiliares!K$5),DedGrales!$D$77:$O$77) -> 0 | L79: =SUMIF(DedGrales!$D$79:$O$79,MONTH(Auxiliares!L$5),DedGrales!$D$77:$O$77) -> 0 | M79: =SUMIF(DedGrales!$D$79:$O$79,MONTH(Auxiliares!M$5),DedGrales!$D$77:$O$77) -> 0 | N79: =SUMIF(DedGrales!$D$79:$O$79,MONTH(Auxiliares!N$5),DedGrales!$D$77:$O$77) -> 0 | O79: =SUMIF(DedGrales!$D$79:$O$79,MONTH(Auxiliares!O$5),DedGrales!$D$77:$O$77) -> 0 | P79: =SUM(D79:O79) -> 0
C80: Seguros mixtos | D80: =SUMIF(DedGrales!$D$188:$O$188,MONTH(Auxiliares!D$5),DedGrales!$D$186:$O$186) -> 0 | E80: =SUMIF(DedGrales!$D$188:$O$188,MONTH(Auxiliares!E$5),DedGrales!$D$186:$O$186) -> 0 | F80: =SUMIF(DedGrales!$D$188:$O$188,MONTH(Auxiliares!F$5),DedGrales!$D$186:$O$186) -> 0 | G80: =SUMIF(DedGrales!$D$188:$O$188,MONTH(Auxiliares!G$5),DedGrales!$D$186:$O$186) -> 0 | H80: =SUMIF(DedGrales!$D$188:$O$188,MONTH(Auxiliares!H$5),DedGrales!$D$186:$O$186) -> 0 | I80: =SUMIF(DedGrales!$D$188:$O$188,MONTH(Auxiliares!I$5),DedGrales!$D$186:$O$186) -> 0 | J80: =SUMIF(DedGrales!$D$188:$O$188,MONTH(Auxiliares!J$5),DedGrales!$D$186:$O$186) -> 0 | K80: =SUMIF(DedGrales!$D$188:$O$188,MONTH(Auxiliares!K$5),DedGrales!$D$186:$O$186) -> 0 | L80: =SUMIF(DedGrales!$D$188:$O$188,MONTH(Auxiliares!L$5),DedGrales!$D$186:$O$186) -> 0 | M80: =SUMIF(DedGrales!$D$188:$O$188,MONTH(Auxiliares!M$5),DedGrales!$D$186:$O$186) -> 0 | N80: =SUMIF(DedGrales!$D$188:$O$188,MONTH(Auxiliares!N$5),DedGrales!$D$186:$O$186) -> 0 | O80: =SUMIF(DedGrales!$D$188:$O$188,MONTH(Auxiliares!O$5),DedGrales!$D$186:$O$186) -> 0 | P80: =+O80 -> 0
C81: Fondo común de inversión | D81: =SUMIF(DedGrales!$D$196:$O$196,MONTH(Auxiliares!D$5),DedGrales!$D$194:$O$194) -> 0 | E81: =SUMIF(DedGrales!$D$196:$O$196,MONTH(Auxiliares!E$5),DedGrales!$D$194:$O$194) -> 0 | F81: =SUMIF(DedGrales!$D$196:$O$196,MONTH(Auxiliares!F$5),DedGrales!$D$194:$O$194) -> 0 | G81: =SUMIF(DedGrales!$D$196:$O$196,MONTH(Auxiliares!G$5),DedGrales!$D$194:$O$194) -> 0 | H81: =SUMIF(DedGrales!$D$196:$O$196,MONTH(Auxiliares!H$5),DedGrales!$D$194:$O$194) -> 0 | I81: =SUMIF(DedGrales!$D$196:$O$196,MONTH(Auxiliares!I$5),DedGrales!$D$194:$O$194) -> 0 | J81: =SUMIF(DedGrales!$D$196:$O$196,MONTH(Auxiliares!J$5),DedGrales!$D$194:$O$194) -> 0 | K81: =SUMIF(DedGrales!$D$196:$O$196,MONTH(Auxiliares!K$5),DedGrales!$D$194:$O$194) -> 0 | L81: =SUMIF(DedGrales!$D$196:$O$196,MONTH(Auxiliares!L$5),DedGrales!$D$194:$O$194) -> 0 | M81: =SUMIF(DedGrales!$D$196:$O$196,MONTH(Auxiliares!M$5),DedGrales!$D$194:$O$194) -> 0 | N81: =SUMIF(DedGrales!$D$196:$O$196,MONTH(Auxiliares!N$5),DedGrales!$D$194:$O$194) -> 0 | O81: =SUMIF(DedGrales!$D$196:$O$196,MONTH(Auxiliares!O$5),DedGrales!$D$194:$O$194) -> 0 | P81: =+O81 -> 0
C82: Gastos de Sepelio | D82: =SUMIF(DedGrales!$D$90:$O$90,MONTH(Auxiliares!D$5),DedGrales!$D$88:$O$88) -> 0 | E82: =SUMIF(DedGrales!$D$90:$O$90,MONTH(Auxiliares!E$5),DedGrales!$D$88:$O$88) -> 0 | F82: =SUMIF(DedGrales!$D$90:$O$90,MONTH(Auxiliares!F$5),DedGrales!$D$88:$O$88) -> 0 | G82: =SUMIF(DedGrales!$D$90:$O$90,MONTH(Auxiliares!G$5),DedGrales!$D$88:$O$88) -> 0 | H82: =SUMIF(DedGrales!$D$90:$O$90,MONTH(Auxiliares!H$5),DedGrales!$D$88:$O$88) -> 0 | I82: =SUMIF(DedGrales!$D$90:$O$90,MONTH(Auxiliares!I$5),DedGrales!$D$88:$O$88) -> 0 | J82: =SUMIF(DedGrales!$D$90:$O$90,MONTH(Auxiliares!J$5),DedGrales!$D$88:$O$88) -> 0 | K82: =SUMIF(DedGrales!$D$90:$O$90,MONTH(Auxiliares!K$5),DedGrales!$D$88:$O$88) -> 0 | L82: =SUMIF(DedGrales!$D$90:$O$90,MONTH(Auxiliares!L$5),DedGrales!$D$88:$O$88) -> 0 | M82: =SUMIF(DedGrales!$D$90:$O$90,MONTH(Auxiliares!M$5),DedGrales!$D$88:$O$88) -> 0 | N82: =SUMIF(DedGrales!$D$90:$O$90,MONTH(Auxiliares!N$5),DedGrales!$D$88:$O$88) -> 0 | O82: =SUMIF(DedGrales!$D$90:$O$90,MONTH(Auxiliares!O$5),DedGrales!$D$88:$O$88) -> 0 | P82: =SUM(D82:O82) -> 0
C83: Intereses Crédito Hipotecario | D83: =SUMIF(DedGrales!$D$107:$O$107,MONTH(Auxiliares!D$5),DedGrales!$D$105:$O$105) -> 0 | E83: =SUMIF(DedGrales!$D$107:$O$107,MONTH(Auxiliares!E$5),DedGrales!$D$105:$O$105) -> 0 | F83: =SUMIF(DedGrales!$D$107:$O$107,MONTH(Auxiliares!F$5),DedGrales!$D$105:$O$105) -> 0 | G83: =SUMIF(DedGrales!$D$107:$O$107,MONTH(Auxiliares!G$5),DedGrales!$D$105:$O$105) -> 0 | H83: =SUMIF(DedGrales!$D$107:$O$107,MONTH(Auxiliares!H$5),DedGrales!$D$105:$O$105) -> 0 | I83: =SUMIF(DedGrales!$D$107:$O$107,MONTH(Auxiliares!I$5),DedGrales!$D$105:$O$105) -> 0 | J83: =SUMIF(DedGrales!$D$107:$O$107,MONTH(Auxiliares!J$5),DedGrales!$D$105:$O$105) -> 0 | K83: =SUMIF(DedGrales!$D$107:$O$107,MONTH(Auxiliares!K$5),DedGrales!$D$105:$O$105) -> 0 | L83: =SUMIF(DedGrales!$D$107:$O$107,MONTH(Auxiliares!L$5),DedGrales!$D$105:$O$105) -> 0 | M83: =SUMIF(DedGrales!$D$107:$O$107,MONTH(Auxiliares!M$5),DedGrales!$D$105:$O$105) -> 0 | N83: =SUMIF(DedGrales!$D$107:$O$107,MONTH(Auxiliares!N$5),DedGrales!$D$105:$O$105) -> 0 | O83: =SUMIF(DedGrales!$D$107:$O$107,MONTH(Auxiliares!O$5),DedGrales!$D$105:$O$105) -> 0 | P83: 0
C84: Personal de Casas Particulares | D84: =SUMIF(DedGrales!$D$98:$O$98,MONTH(Auxiliares!D$5),DedGrales!$D$96:$O$96) -> 0 | E84: =SUMIF(DedGrales!$D$98:$O$98,MONTH(Auxiliares!E$5),DedGrales!$D$96:$O$96) -> 0 | F84: =SUMIF(DedGrales!$D$98:$O$98,MONTH(Auxiliares!F$5),DedGrales!$D$96:$O$96) -> 0 | G84: =SUMIF(DedGrales!$D$98:$O$98,MONTH(Auxiliares!G$5),DedGrales!$D$96:$O$96) -> 0 | H84: =SUMIF(DedGrales!$D$98:$O$98,MONTH(Auxiliares!H$5),DedGrales!$D$96:$O$96) -> 0 | I84: =SUMIF(DedGrales!$D$98:$O$98,MONTH(Auxiliares!I$5),DedGrales!$D$96:$O$96) -> 0 | J84: =SUMIF(DedGrales!$D$98:$O$98,MONTH(Auxiliares!J$5),DedGrales!$D$96:$O$96) -> 0 | K84: =SUMIF(DedGrales!$D$98:$O$98,MONTH(Auxiliares!K$5),DedGrales!$D$96:$O$96) -> 0 | L84: =SUMIF(DedGrales!$D$98:$O$98,MONTH(Auxiliares!L$5),DedGrales!$D$96:$O$96) -> 0 | M84: =SUMIF(DedGrales!$D$98:$O$98,MONTH(Auxiliares!M$5),DedGrales!$D$96:$O$96) -> 0 | N84: =SUMIF(DedGrales!$D$98:$O$98,MONTH(Auxiliares!N$5),DedGrales!$D$96:$O$96) -> 0 | O84: =SUMIF(DedGrales!$D$98:$O$98,MONTH(Auxiliares!O$5),DedGrales!$D$96:$O$96) -> 0 | P84: 0
C85: Aportes a fondos de jubilaciones | D85: =SUMIF(DedGrales!$D$45:$O$45,MONTH(Auxiliares!D$5),DedGrales!$D$43:$O$43) -> 0 | E85: =SUMIF(DedGrales!$D$45:$O$45,MONTH(Auxiliares!E$5),DedGrales!$D$43:$O$43) -> 0 | F85: =SUMIF(DedGrales!$D$45:$O$45,MONTH(Auxiliares!F$5),DedGrales!$D$43:$O$43) -> 0 | G85: =SUMIF(DedGrales!$D$45:$O$45,MONTH(Auxiliares!G$5),DedGrales!$D$43:$O$43) -> 0 | H85: =SUMIF(DedGrales!$D$45:$O$45,MONTH(Auxiliares!H$5),DedGrales!$D$43:$O$43) -> 0 | I85: =SUMIF(DedGrales!$D$45:$O$45,MONTH(Auxiliares!I$5),DedGrales!$D$43:$O$43) -> 0 | J85: =SUMIF(DedGrales!$D$45:$O$45,MONTH(Auxiliares!J$5),DedGrales!$D$43:$O$43) -> 0 | K85: =SUMIF(DedGrales!$D$45:$O$45,MONTH(Auxiliares!K$5),DedGrales!$D$43:$O$43) -> 0 | L85: =SUMIF(DedGrales!$D$45:$O$45,MONTH(Auxiliares!L$5),DedGrales!$D$43:$O$43) -> 0 | M85: =SUMIF(DedGrales!$D$45:$O$45,MONTH(Auxiliares!M$5),DedGrales!$D$43:$O$43) -> 0 | N85: =SUMIF(DedGrales!$D$45:$O$45,MONTH(Auxiliares!N$5),DedGrales!$D$43:$O$43) -> 0 | O85: =SUMIF(DedGrales!$D$45:$O$45,MONTH(Auxiliares!O$5),DedGrales!$D$43:$O$43) -> 0 | P85: 0
C86: Alquiler de casa habitación | D86: =SUMIF(DedGrales!$D$70:$O$70,MONTH(Auxiliares!D$5),DedGrales!$D$68:$O$68) -> 0 | E86: =SUMIF(DedGrales!$D$70:$O$70,MONTH(Auxiliares!E$5),DedGrales!$D$68:$O$68) -> 0 | F86: =SUMIF(DedGrales!$D$70:$O$70,MONTH(Auxiliares!F$5),DedGrales!$D$68:$O$68) -> 0 | G86: =SUMIF(DedGrales!$D$70:$O$70,MONTH(Auxiliares!G$5),DedGrales!$D$68:$O$68) -> 0 | H86: =SUMIF(DedGrales!$D$70:$O$70,MONTH(Auxiliares!H$5),DedGrales!$D$68:$O$68) -> 0 | I86: =SUMIF(DedGrales!$D$70:$O$70,MONTH(Auxiliares!I$5),DedGrales!$D$68:$O$68) -> 0 | J86: =SUMIF(DedGrales!$D$70:$O$70,MONTH(Auxiliares!J$5),DedGrales!$D$68:$O$68) -> 0 | K86: =SUMIF(DedGrales!$D$70:$O$70,MONTH(Auxiliares!K$5),DedGrales!$D$68:$O$68) -> 0 | L86: =SUMIF(DedGrales!$D$70:$O$70,MONTH(Auxiliares!L$5),DedGrales!$D$68:$O$68) -> 0 | M86: =SUMIF(DedGrales!$D$70:$O$70,MONTH(Auxiliares!M$5),DedGrales!$D$68:$O$68) -> 0 | N86: =SUMIF(DedGrales!$D$70:$O$70,MONTH(Auxiliares!N$5),DedGrales!$D$68:$O$68) -> 0 | O86: =SUMIF(DedGrales!$D$70:$O$70,MONTH(Auxiliares!O$5),DedGrales!$D$68:$O$68) -> 0 | P86: 0
C87: Viáticos | D87: =SUMIF(DedGrales!$D$150:$O$150,MONTH(Auxiliares!D$5),DedGrales!$D$148:$O$148) -> 0 | E87: =SUMIF(DedGrales!$D$150:$O$150,MONTH(Auxiliares!E$5),DedGrales!$D$148:$O$148) -> 0 | F87: =SUMIF(DedGrales!$D$150:$O$150,MONTH(Auxiliares!F$5),DedGrales!$D$148:$O$148) -> 0 | G87: =SUMIF(DedGrales!$D$150:$O$150,MONTH(Auxiliares!G$5),DedGrales!$D$148:$O$148) -> 0 | H87: =SUMIF(DedGrales!$D$150:$O$150,MONTH(Auxiliares!H$5),DedGrales!$D$148:$O$148) -> 0 | I87: =SUMIF(DedGrales!$D$150:$O$150,MONTH(Auxiliares!I$5),DedGrales!$D$148:$O$148) -> 0 | J87: =SUMIF(DedGrales!$D$150:$O$150,MONTH(Auxiliares!J$5),DedGrales!$D$148:$O$148) -> 0 | K87: =SUMIF(DedGrales!$D$150:$O$150,MONTH(Auxiliares!K$5),DedGrales!$D$148:$O$148) -> 0 | L87: =SUMIF(DedGrales!$D$150:$O$150,MONTH(Auxiliares!L$5),DedGrales!$D$148:$O$148) -> 0 | M87: =SUMIF(DedGrales!$D$150:$O$150,MONTH(Auxiliares!M$5),DedGrales!$D$148:$O$148) -> 0 | N87: =SUMIF(DedGrales!$D$150:$O$150,MONTH(Auxiliares!N$5),DedGrales!$D$148:$O$148) -> 0 | O87: =SUMIF(DedGrales!$D$150:$O$150,MONTH(Auxiliares!O$5),DedGrales!$D$148:$O$148) -> 0 | P87: 0
C88: Viáticos (larga distancia) | D88: =SUMIF(DedGrales!$D$179:$O$179,MONTH(Auxiliares!D$5),DedGrales!$D$177:$O$177) -> 0 | E88: =SUMIF(DedGrales!$D$179:$O$179,MONTH(Auxiliares!E$5),DedGrales!$D$177:$O$177) -> 0 | F88: =SUMIF(DedGrales!$D$179:$O$179,MONTH(Auxiliares!F$5),DedGrales!$D$177:$O$177) -> 0 | G88: =SUMIF(DedGrales!$D$179:$O$179,MONTH(Auxiliares!G$5),DedGrales!$D$177:$O$177) -> 0 | H88: =SUMIF(DedGrales!$D$179:$O$179,MONTH(Auxiliares!H$5),DedGrales!$D$177:$O$177) -> 0 | I88: =SUMIF(DedGrales!$D$179:$O$179,MONTH(Auxiliares!I$5),DedGrales!$D$177:$O$177) -> 0 | J88: =SUMIF(DedGrales!$D$179:$O$179,MONTH(Auxiliares!J$5),DedGrales!$D$177:$O$177) -> 0 | K88: =SUMIF(DedGrales!$D$179:$O$179,MONTH(Auxiliares!K$5),DedGrales!$D$177:$O$177) -> 0 | L88: =SUMIF(DedGrales!$D$179:$O$179,MONTH(Auxiliares!L$5),DedGrales!$D$177:$O$177) -> 0 | M88: =SUMIF(DedGrales!$D$179:$O$179,MONTH(Auxiliares!M$5),DedGrales!$D$177:$O$177) -> 0 | N88: =SUMIF(DedGrales!$D$179:$O$179,MONTH(Auxiliares!N$5),DedGrales!$D$177:$O$177) -> 0 | O88: =SUMIF(DedGrales!$D$179:$O$179,MONTH(Auxiliares!O$5),DedGrales!$D$177:$O$177) -> 0 | P88: 0
C89: Descuentos obligatorios | D89: =SUMIF(DedGrales!$D$37:$O$37,MONTH(Auxiliares!D$5),DedGrales!$D$35:$O$35) -> 0 | E89: =SUMIF(DedGrales!$D$37:$O$37,MONTH(Auxiliares!E$5),DedGrales!$D$35:$O$35) -> 0 | F89: =SUMIF(DedGrales!$D$37:$O$37,MONTH(Auxiliares!F$5),DedGrales!$D$35:$O$35) -> 0 | G89: =SUMIF(DedGrales!$D$37:$O$37,MONTH(Auxiliares!G$5),DedGrales!$D$35:$O$35) -> 0 | H89: =SUMIF(DedGrales!$D$37:$O$37,MONTH(Auxiliares!H$5),DedGrales!$D$35:$O$35) -> 0 | I89: =SUMIF(DedGrales!$D$37:$O$37,MONTH(Auxiliares!I$5),DedGrales!$D$35:$O$35) -> 0 | J89: =SUMIF(DedGrales!$D$37:$O$37,MONTH(Auxiliares!J$5),DedGrales!$D$35:$O$35) -> 0 | K89: =SUMIF(DedGrales!$D$37:$O$37,MONTH(Auxiliares!K$5),DedGrales!$D$35:$O$35) -> 0 | L89: =SUMIF(DedGrales!$D$37:$O$37,MONTH(Auxiliares!L$5),DedGrales!$D$35:$O$35) -> 0 | M89: =SUMIF(DedGrales!$D$37:$O$37,MONTH(Auxiliares!M$5),DedGrales!$D$35:$O$35) -> 0 | N89: =SUMIF(DedGrales!$D$37:$O$37,MONTH(Auxiliares!N$5),DedGrales!$D$35:$O$35) -> 0 | O89: =SUMIF(DedGrales!$D$37:$O$37,MONTH(Auxiliares!O$5),DedGrales!$D$35:$O$35) -> 0 | P89: 0
C90: SGR | D90: =SUMIF(DedGrales!$D$61:$O$61,MONTH(Auxiliares!D$5),DedGrales!$D$59:$O$59) -> 0 | E90: =SUMIF(DedGrales!$D$61:$O$61,MONTH(Auxiliares!E$5),DedGrales!$D$59:$O$59) -> 0 | F90: =SUMIF(DedGrales!$D$61:$O$61,MONTH(Auxiliares!F$5),DedGrales!$D$59:$O$59) -> 0 | G90: =SUMIF(DedGrales!$D$61:$O$61,MONTH(Auxiliares!G$5),DedGrales!$D$59:$O$59) -> 0 | H90: =SUMIF(DedGrales!$D$61:$O$61,MONTH(Auxiliares!H$5),DedGrales!$D$59:$O$59) -> 0 | I90: =SUMIF(DedGrales!$D$61:$O$61,MONTH(Auxiliares!I$5),DedGrales!$D$59:$O$59) -> 0 | J90: =SUMIF(DedGrales!$D$61:$O$61,MONTH(Auxiliares!J$5),DedGrales!$D$59:$O$59) -> 0 | K90: =SUMIF(DedGrales!$D$61:$O$61,MONTH(Auxiliares!K$5),DedGrales!$D$59:$O$59) -> 0 | L90: =SUMIF(DedGrales!$D$61:$O$61,MONTH(Auxiliares!L$5),DedGrales!$D$59:$O$59) -> 0 | M90: =SUMIF(DedGrales!$D$61:$O$61,MONTH(Auxiliares!M$5),DedGrales!$D$59:$O$59) -> 0 | N90: =SUMIF(DedGrales!$D$61:$O$61,MONTH(Auxiliares!N$5),DedGrales!$D$59:$O$59) -> 0 | O90: =SUMIF(DedGrales!$D$61:$O$61,MONTH(Auxiliares!O$5),DedGrales!$D$59:$O$59) -> 0 | P90: 0
C91: Cajas complementarias de previsión | D91: =SUMIF(DedGrales!$D$53:$O$53,MONTH(Auxiliares!D$5),DedGrales!$D$51:$O$51) -> 0 | E91: =SUMIF(DedGrales!$D$53:$O$53,MONTH(Auxiliares!E$5),DedGrales!$D$51:$O$51) -> 0 | F91: =SUMIF(DedGrales!$D$53:$O$53,MONTH(Auxiliares!F$5),DedGrales!$D$51:$O$51) -> 0 | G91: =SUMIF(DedGrales!$D$53:$O$53,MONTH(Auxiliares!G$5),DedGrales!$D$51:$O$51) -> 0 | H91: =SUMIF(DedGrales!$D$53:$O$53,MONTH(Auxiliares!H$5),DedGrales!$D$51:$O$51) -> 0 | I91: =SUMIF(DedGrales!$D$53:$O$53,MONTH(Auxiliares!I$5),DedGrales!$D$51:$O$51) -> 0 | J91: =SUMIF(DedGrales!$D$53:$O$53,MONTH(Auxiliares!J$5),DedGrales!$D$51:$O$51) -> 0 | K91: =SUMIF(DedGrales!$D$53:$O$53,MONTH(Auxiliares!K$5),DedGrales!$D$51:$O$51) -> 0 | L91: =SUMIF(DedGrales!$D$53:$O$53,MONTH(Auxiliares!L$5),DedGrales!$D$51:$O$51) -> 0 | M91: =SUMIF(DedGrales!$D$53:$O$53,MONTH(Auxiliares!M$5),DedGrales!$D$51:$O$51) -> 0 | N91: =SUMIF(DedGrales!$D$53:$O$53,MONTH(Auxiliares!N$5),DedGrales!$D$51:$O$51) -> 0 | O91: =SUMIF(DedGrales!$D$53:$O$53,MONTH(Auxiliares!O$5),DedGrales!$D$51:$O$51) -> 0 | P91: 0
C92: Viajantes | D92: =SUMIF(DedGrales!$D$141:$O$141,MONTH(Auxiliares!D$5),DedGrales!$D$139:$O$139) -> 0 | E92: =SUMIF(DedGrales!$D$141:$O$141,MONTH(Auxiliares!E$5),DedGrales!$D$139:$O$139) -> 0 | F92: =SUMIF(DedGrales!$D$141:$O$141,MONTH(Auxiliares!F$5),DedGrales!$D$139:$O$139) -> 0 | G92: =SUMIF(DedGrales!$D$141:$O$141,MONTH(Auxiliares!G$5),DedGrales!$D$139:$O$139) -> 0 | H92: =SUMIF(DedGrales!$D$141:$O$141,MONTH(Auxiliares!H$5),DedGrales!$D$139:$O$139) -> 0 | I92: =SUMIF(DedGrales!$D$141:$O$141,MONTH(Auxiliares!I$5),DedGrales!$D$139:$O$139) -> 0 | J92: =SUMIF(DedGrales!$D$141:$O$141,MONTH(Auxiliares!J$5),DedGrales!$D$139:$O$139) -> 0 | K92: =SUMIF(DedGrales!$D$141:$O$141,MONTH(Auxiliares!K$5),DedGrales!$D$139:$O$139) -> 0 | L92: =SUMIF(DedGrales!$D$141:$O$141,MONTH(Auxiliares!L$5),DedGrales!$D$139:$O$139) -> 0 | M92: =SUMIF(DedGrales!$D$141:$O$141,MONTH(Auxiliares!M$5),DedGrales!$D$139:$O$139) -> 0 | N92: =SUMIF(DedGrales!$D$141:$O$141,MONTH(Auxiliares!N$5),DedGrales!$D$139:$O$139) -> 0 | O92: =SUMIF(DedGrales!$D$141:$O$141,MONTH(Auxiliares!O$5),DedGrales!$D$139:$O$139) -> 0 | P92: 0
C93: Retiro privado | D93: =SUMIF(DedGrales!$D$160:$O$160,MONTH(Auxiliares!D$5),DedGrales!$D$158:$O$158) -> 0 | E93: =SUMIF(DedGrales!$D$160:$O$160,MONTH(Auxiliares!E$5),DedGrales!$D$158:$O$158) -> 0 | F93: =SUMIF(DedGrales!$D$160:$O$160,MONTH(Auxiliares!F$5),DedGrales!$D$158:$O$158) -> 0 | G93: =SUMIF(DedGrales!$D$160:$O$160,MONTH(Auxiliares!G$5),DedGrales!$D$158:$O$158) -> 0 | H93: =SUMIF(DedGrales!$D$160:$O$160,MONTH(Auxiliares!H$5),DedGrales!$D$158:$O$158) -> 0 | I93: =SUMIF(DedGrales!$D$160:$O$160,MONTH(Auxiliares!I$5),DedGrales!$D$158:$O$158) -> 0 | J93: =SUMIF(DedGrales!$D$160:$O$160,MONTH(Auxiliares!J$5),DedGrales!$D$158:$O$158) -> 0 | K93: =SUMIF(DedGrales!$D$160:$O$160,MONTH(Auxiliares!K$5),DedGrales!$D$158:$O$158) -> 0 | L93: =SUMIF(DedGrales!$D$160:$O$160,MONTH(Auxiliares!L$5),DedGrales!$D$158:$O$158) -> 0 | M93: =SUMIF(DedGrales!$D$160:$O$160,MONTH(Auxiliares!M$5),DedGrales!$D$158:$O$158) -> 0 | N93: =SUMIF(DedGrales!$D$160:$O$160,MONTH(Auxiliares!N$5),DedGrales!$D$158:$O$158) -> 0 | O93: =SUMIF(DedGrales!$D$160:$O$160,MONTH(Auxiliares!O$5),DedGrales!$D$158:$O$158) -> 0 | P93: 0
C94: Indumentaria | D94: =SUMIF(DedGrales!$D$170:$O$170,MONTH(Auxiliares!D$5),DedGrales!$D$168:$O$168) -> 0 | E94: =SUMIF(DedGrales!$D$170:$O$170,MONTH(Auxiliares!E$5),DedGrales!$D$168:$O$168) -> 0 | F94: =SUMIF(DedGrales!$D$170:$O$170,MONTH(Auxiliares!F$5),DedGrales!$D$168:$O$168) -> 0 | G94: =SUMIF(DedGrales!$D$170:$O$170,MONTH(Auxiliares!G$5),DedGrales!$D$168:$O$168) -> 0 | H94: =SUMIF(DedGrales!$D$170:$O$170,MONTH(Auxiliares!H$5),DedGrales!$D$168:$O$168) -> 0 | I94: =SUMIF(DedGrales!$D$170:$O$170,MONTH(Auxiliares!I$5),DedGrales!$D$168:$O$168) -> 0 | J94: =SUMIF(DedGrales!$D$170:$O$170,MONTH(Auxiliares!J$5),DedGrales!$D$168:$O$168) -> 0 | K94: =SUMIF(DedGrales!$D$170:$O$170,MONTH(Auxiliares!K$5),DedGrales!$D$168:$O$168) -> 0 | L94: =SUMIF(DedGrales!$D$170:$O$170,MONTH(Auxiliares!L$5),DedGrales!$D$168:$O$168) -> 0 | M94: =SUMIF(DedGrales!$D$170:$O$170,MONTH(Auxiliares!M$5),DedGrales!$D$168:$O$168) -> 0 | N94: =SUMIF(DedGrales!$D$170:$O$170,MONTH(Auxiliares!N$5),DedGrales!$D$168:$O$168) -> 0 | O94: =SUMIF(DedGrales!$D$170:$O$170,MONTH(Auxiliares!O$5),DedGrales!$D$168:$O$168) -> 0 | P94: =SUM(D94:O94) -> 0
C95: Gastos educativos | D95: =SUMIF(DedGrales!$D$203:$O$203,MONTH(Auxiliares!D$5),DedGrales!$D$201:$O$201) -> 0 | E95: =SUMIF(DedGrales!$D$203:$O$203,MONTH(Auxiliares!E$5),DedGrales!$D$201:$O$201) -> 0 | F95: =SUMIF(DedGrales!$D$203:$O$203,MONTH(Auxiliares!F$5),DedGrales!$D$201:$O$201) -> 0 | G95: =SUMIF(DedGrales!$D$203:$O$203,MONTH(Auxiliares!G$5),DedGrales!$D$201:$O$201) -> 0 | H95: =SUMIF(DedGrales!$D$203:$O$203,MONTH(Auxiliares!H$5),DedGrales!$D$201:$O$201) -> 0 | I95: =SUMIF(DedGrales!$D$203:$O$203,MONTH(Auxiliares!I$5),DedGrales!$D$201:$O$201) -> 0 | J95: =SUMIF(DedGrales!$D$203:$O$203,MONTH(Auxiliares!J$5),DedGrales!$D$201:$O$201) -> 0 | K95: =SUMIF(DedGrales!$D$203:$O$203,MONTH(Auxiliares!K$5),DedGrales!$D$201:$O$201) -> 0 | L95: =SUMIF(DedGrales!$D$203:$O$203,MONTH(Auxiliares!L$5),DedGrales!$D$201:$O$201) -> 0 | M95: =SUMIF(DedGrales!$D$203:$O$203,MONTH(Auxiliares!M$5),DedGrales!$D$201:$O$201) -> 0 | N95: =SUMIF(DedGrales!$D$203:$O$203,MONTH(Auxiliares!N$5),DedGrales!$D$201:$O$201) -> 0 | O95: =SUMIF(DedGrales!$D$203:$O$203,MONTH(Auxiliares!O$5),DedGrales!$D$201:$O$201) -> 0 | P95: =SUMIF(DedGrales!$D$203:$O$203,MONTH(Auxiliares!P$5),DedGrales!$D$201:$O$201) -> 0
C96: Tope (5% de la ganancia neta) | D96: =+Liquidacion!F117*0.05 -> 0 | E96: =+Liquidacion!G117*0.05 -> 0 | F96: =+Liquidacion!H117*0.05 -> 0 | G96: =+Liquidacion!I117*0.05 -> 0 | H96: =+Liquidacion!J117*0.05 -> 0 | I96: =+Liquidacion!K117*0.05 -> 0 | J96: =+Liquidacion!L117*0.05 -> 0 | K96: =+Liquidacion!M117*0.05 -> 0 | L96: =+Liquidacion!N117*0.05 -> 0 | M96: =+Liquidacion!O117*0.05 -> 0 | N96: =+Liquidacion!P117*0.05 -> 0 | O96: =+Liquidacion!Q117*0.05 -> 0 | P96: =+Liquidacion!S117*0.05 -> 0
C97: Cuota Médico Asistencial | D97: =SUMIF(DedGrales!$D$116:$O$116,MONTH(Auxiliares!D$5),DedGrales!$D$114:$O$114) -> 0 | E97: =SUMIF(DedGrales!$D$116:$O$116,MONTH(Auxiliares!E$5),DedGrales!$D$114:$O$114) -> 0 | F97: =SUMIF(DedGrales!$D$116:$O$116,MONTH(Auxiliares!F$5),DedGrales!$D$114:$O$114) -> 0 | G97: =SUMIF(DedGrales!$D$116:$O$116,MONTH(Auxiliares!G$5),DedGrales!$D$114:$O$114) -> 0 | H97: =SUMIF(DedGrales!$D$116:$O$116,MONTH(Auxiliares!H$5),DedGrales!$D$114:$O$114) -> 0 | I97: =SUMIF(DedGrales!$D$116:$O$116,MONTH(Auxiliares!I$5),DedGrales!$D$114:$O$114) -> 0 | J97: =SUMIF(DedGrales!$D$116:$O$116,MONTH(Auxiliares!J$5),DedGrales!$D$114:$O$114) -> 0 | K97: =SUMIF(DedGrales!$D$116:$O$116,MONTH(Auxiliares!K$5),DedGrales!$D$114:$O$114) -> 0 | L97: =SUMIF(DedGrales!$D$116:$O$116,MONTH(Auxiliares!L$5),DedGrales!$D$114:$O$114) -> 0 | M97: =SUMIF(DedGrales!$D$116:$O$116,MONTH(Auxiliares!M$5),DedGrales!$D$114:$O$114) -> 0 | N97: =SUMIF(DedGrales!$D$116:$O$116,MONTH(Auxiliares!N$5),DedGrales!$D$114:$O$114) -> 0 | O97: =SUMIF(DedGrales!$D$116:$O$116,MONTH(Auxiliares!O$5),DedGrales!$D$114:$O$114) -> 0 | P97: 0
C98: Donaciones | D98: =SUMIF(DedGrales!$D$125:$O$125,MONTH(Auxiliares!D$5),DedGrales!$D$123:$O$123) -> 0 | E98: =SUMIF(DedGrales!$D$125:$O$125,MONTH(Auxiliares!E$5),DedGrales!$D$123:$O$123) -> 0 | F98: =SUMIF(DedGrales!$D$125:$O$125,MONTH(Auxiliares!F$5),DedGrales!$D$123:$O$123) -> 0 | G98: =SUMIF(DedGrales!$D$125:$O$125,MONTH(Auxiliares!G$5),DedGrales!$D$123:$O$123) -> 0 | H98: =SUMIF(DedGrales!$D$125:$O$125,MONTH(Auxiliares!H$5),DedGrales!$D$123:$O$123) -> 0 | I98: =SUMIF(DedGrales!$D$125:$O$125,MONTH(Auxiliares!I$5),DedGrales!$D$123:$O$123) -> 0 | J98: =SUMIF(DedGrales!$D$125:$O$125,MONTH(Auxiliares!J$5),DedGrales!$D$123:$O$123) -> 0 | K98: =SUMIF(DedGrales!$D$125:$O$125,MONTH(Auxiliares!K$5),DedGrales!$D$123:$O$123) -> 0 | L98: =SUMIF(DedGrales!$D$125:$O$125,MONTH(Auxiliares!L$5),DedGrales!$D$123:$O$123) -> 0 | M98: =SUMIF(DedGrales!$D$125:$O$125,MONTH(Auxiliares!M$5),DedGrales!$D$123:$O$123) -> 0 | N98: =SUMIF(DedGrales!$D$125:$O$125,MONTH(Auxiliares!N$5),DedGrales!$D$123:$O$123) -> 0 | O98: =SUMIF(DedGrales!$D$125:$O$125,MONTH(Auxiliares!O$5),DedGrales!$D$123:$O$123) -> 0 | P98: 0
C99: Honorarios Médicos Profesionales | P99: =SUM(DedGrales!$D$131:$O$131) -> 0
C102: Deducciones personales | D102: 2017-01-01 | E102: 2017-02-01 | F102: 2017-03-01 | G102: 2017-04-01 | H102: 2017-05-01 | I102: 2017-06-01 | J102: 2017-07-01 | K102: 2017-08-01 | L102: 2017-09-01 | M102: 2017-10-01 | N102: 2017-11-01 | O102: 2017-12-01 | P102: Anual
C103: Alta/baja
C104: Cónyuge | D104: =COUNTIF(DedPersonales!$E$8,"<="&MONTH(Auxiliares!D102))-COUNTIF(DedPersonales!$F$8,"<"&MONTH(Auxiliares!D102)) -> 0 | E104: =COUNTIF(DedPersonales!$E$8,"<="&MONTH(Auxiliares!E102))-COUNTIF(DedPersonales!$F$8,"<"&MONTH(Auxiliares!E102)) -> 0 | F104: =COUNTIF(DedPersonales!$E$8,"<="&MONTH(Auxiliares!F102))-COUNTIF(DedPersonales!$F$8,"<"&MONTH(Auxiliares!F102)) -> 0 | G104: =COUNTIF(DedPersonales!$E$8,"<="&MONTH(Auxiliares!G102))-COUNTIF(DedPersonales!$F$8,"<"&MONTH(Auxiliares!G102)) -> 0 | H104: =COUNTIF(DedPersonales!$E$8,"<="&MONTH(Auxiliares!H102))-COUNTIF(DedPersonales!$F$8,"<"&MONTH(Auxiliares!H102)) -> 0 | I104: =COUNTIF(DedPersonales!$E$8,"<="&MONTH(Auxiliares!I102))-COUNTIF(DedPersonales!$F$8,"<"&MONTH(Auxiliares!I102)) -> 0 | J104: =COUNTIF(DedPersonales!$E$8,"<="&MONTH(Auxiliares!J102))-COUNTIF(DedPersonales!$F$8,"<"&MONTH(Auxiliares!J102)) -> 0 | K104: =COUNTIF(DedPersonales!$E$8,"<="&MONTH(Auxiliares!K102))-COUNTIF(DedPersonales!$F$8,"<"&MONTH(Auxiliares!K102)) -> 0 | L104: =COUNTIF(DedPersonales!$E$8,"<="&MONTH(Auxiliares!L102))-COUNTIF(DedPersonales!$F$8,"<"&MONTH(Auxiliares!L102)) -> 0 | M104: =COUNTIF(DedPersonales!$E$8,"<="&MONTH(Auxiliares!M102))-COUNTIF(DedPersonales!$F$8,"<"&MONTH(Auxiliares!M102)) -> 0 | N104: =COUNTIF(DedPersonales!$E$8,"<="&MONTH(Auxiliares!N102))-COUNTIF(DedPersonales!$F$8,"<"&MONTH(Auxiliares!N102)) -> 0 | O104: =COUNTIF(DedPersonales!$E$8,"<="&MONTH(Auxiliares!O102))-COUNTIF(DedPersonales!$F$8,"<"&MONTH(Auxiliares!O102)) -> 0
C106: Hijo1 | D106: =COUNTIF(DedPersonales!$F14,"<="&MONTH(Auxiliares!D$102))-COUNTIF(DedPersonales!$G14,"<"&MONTH(Auxiliares!D$102)) -> 0 | E106: =COUNTIF(DedPersonales!$F14,"<="&MONTH(Auxiliares!E$102))-COUNTIF(DedPersonales!$G14,"<"&MONTH(Auxiliares!E$102)) -> 0 | F106: =COUNTIF(DedPersonales!$F14,"<="&MONTH(Auxiliares!F$102))-COUNTIF(DedPersonales!$G14,"<"&MONTH(Auxiliares!F$102)) -> 0 | G106: =COUNTIF(DedPersonales!$F14,"<="&MONTH(Auxiliares!G$102))-COUNTIF(DedPersonales!$G14,"<"&MONTH(Auxiliares!G$102)) -> 0 | H106: =COUNTIF(DedPersonales!$F14,"<="&MONTH(Auxiliares!H$102))-COUNTIF(DedPersonales!$G14,"<"&MONTH(Auxiliares!H$102)) -> 0 | I106: =COUNTIF(DedPersonales!$F14,"<="&MONTH(Auxiliares!I$102))-COUNTIF(DedPersonales!$G14,"<"&MONTH(Auxiliares!I$102)) -> 0 | J106: =COUNTIF(DedPersonales!$F14,"<="&MONTH(Auxiliares!J$102))-COUNTIF(DedPersonales!$G14,"<"&MONTH(Auxiliares!J$102)) -> 0 | K106: =COUNTIF(DedPersonales!$F14,"<="&MONTH(Auxiliares!K$102))-COUNTIF(DedPersonales!$G14,"<"&MONTH(Auxiliares!K$102)) -> 0 | L106: =COUNTIF(DedPersonales!$F14,"<="&MONTH(Auxiliares!L$102))-COUNTIF(DedPersonales!$G14,"<"&MONTH(Auxiliares!L$102)) -> 0 | M106: =COUNTIF(DedPersonales!$F14,"<="&MONTH(Auxiliares!M$102))-COUNTIF(DedPersonales!$G14,"<"&MONTH(Auxiliares!M$102)) -> 0 | N106: =COUNTIF(DedPersonales!$F14,"<="&MONTH(Auxiliares!N$102))-COUNTIF(DedPersonales!$G14,"<"&MONTH(Auxiliares!N$102)) -> 0 | O106: =COUNTIF(DedPersonales!$F14,"<="&MONTH(Auxiliares!O$102))-COUNTIF(DedPersonales!$G14,"<"&MONTH(Auxiliares!O$102)) -> 0 | Q106: =IF(SUM(D106:O106)<>0,1,0) -> 0
C107: Hijo2 | D107: =COUNTIF(DedPersonales!$F15,"<="&MONTH(Auxiliares!D$102))-COUNTIF(DedPersonales!$G15,"<"&MONTH(Auxiliares!D$102)) -> 0 | E107: =COUNTIF(DedPersonales!$F15,"<="&MONTH(Auxiliares!E$102))-COUNTIF(DedPersonales!$G15,"<"&MONTH(Auxiliares!E$102)) -> 0 | F107: =COUNTIF(DedPersonales!$F15,"<="&MONTH(Auxiliares!F$102))-COUNTIF(DedPersonales!$G15,"<"&MONTH(Auxiliares!F$102)) -> 0 | G107: =COUNTIF(DedPersonales!$F15,"<="&MONTH(Auxiliares!G$102))-COUNTIF(DedPersonales!$G15,"<"&MONTH(Auxiliares!G$102)) -> 0 | H107: =COUNTIF(DedPersonales!$F15,"<="&MONTH(Auxiliares!H$102))-COUNTIF(DedPersonales!$G15,"<"&MONTH(Auxiliares!H$102)) -> 0 | I107: =COUNTIF(DedPersonales!$F15,"<="&MONTH(Auxiliares!I$102))-COUNTIF(DedPersonales!$G15,"<"&MONTH(Auxiliares!I$102)) -> 0 | J107: =COUNTIF(DedPersonales!$F15,"<="&MONTH(Auxiliares!J$102))-COUNTIF(DedPersonales!$G15,"<"&MONTH(Auxiliares!J$102)) -> 0 | K107: =COUNTIF(DedPersonales!$F15,"<="&MONTH(Auxiliares!K$102))-COUNTIF(DedPersonales!$G15,"<"&MONTH(Auxiliares!K$102)) -> 0 | L107: =COUNTIF(DedPersonales!$F15,"<="&MONTH(Auxiliares!L$102))-COUNTIF(DedPersonales!$G15,"<"&MONTH(Auxiliares!L$102)) -> 0 | M107: =COUNTIF(DedPersonales!$F15,"<="&MONTH(Auxiliares!M$102))-COUNTIF(DedPersonales!$G15,"<"&MONTH(Auxiliares!M$102)) -> 0 | N107: =COUNTIF(DedPersonales!$F15,"<="&MONTH(Auxiliares!N$102))-COUNTIF(DedPersonales!$G15,"<"&MONTH(Auxiliares!N$102)) -> 0 | O107: =COUNTIF(DedPersonales!$F15,"<="&MONTH(Auxiliares!O$102))-COUNTIF(DedPersonales!$G15,"<"&MONTH(Auxiliares!O$102)) -> 0 | Q107: =IF(SUM(D107:O107)<>0,1,0) -> 0
C108: Hijo3 | D108: =COUNTIF(DedPersonales!$F16,"<="&MONTH(Auxiliares!D$102))-COUNTIF(DedPersonales!$G16,"<"&MONTH(Auxiliares!D$102)) -> 0 | E108: =COUNTIF(DedPersonales!$F16,"<="&MONTH(Auxiliares!E$102))-COUNTIF(DedPersonales!$G16,"<"&MONTH(Auxiliares!E$102)) -> 0 | F108: =COUNTIF(DedPersonales!$F16,"<="&MONTH(Auxiliares!F$102))-COUNTIF(DedPersonales!$G16,"<"&MONTH(Auxiliares!F$102)) -> 0 | G108: =COUNTIF(DedPersonales!$F16,"<="&MONTH(Auxiliares!G$102))-COUNTIF(DedPersonales!$G16,"<"&MONTH(Auxiliares!G$102)) -> 0 | H108: =COUNTIF(DedPersonales!$F16,"<="&MONTH(Auxiliares!H$102))-COUNTIF(DedPersonales!$G16,"<"&MONTH(Auxiliares!H$102)) -> 0 | I108: =COUNTIF(DedPersonales!$F16,"<="&MONTH(Auxiliares!I$102))-COUNTIF(DedPersonales!$G16,"<"&MONTH(Auxiliares!I$102)) -> 0 | J108: =COUNTIF(DedPersonales!$F16,"<="&MONTH(Auxiliares!J$102))-COUNTIF(DedPersonales!$G16,"<"&MONTH(Auxiliares!J$102)) -> 0 | K108: =COUNTIF(DedPersonales!$F16,"<="&MONTH(Auxiliares!K$102))-COUNTIF(DedPersonales!$G16,"<"&MONTH(Auxiliares!K$102)) -> 0 | L108: =COUNTIF(DedPersonales!$F16,"<="&MONTH(Auxiliares!L$102))-COUNTIF(DedPersonales!$G16,"<"&MONTH(Auxiliares!L$102)) -> 0 | M108: =COUNTIF(DedPersonales!$F16,"<="&MONTH(Auxiliares!M$102))-COUNTIF(DedPersonales!$G16,"<"&MONTH(Auxiliares!M$102)) -> 0 | N108: =COUNTIF(DedPersonales!$F16,"<="&MONTH(Auxiliares!N$102))-COUNTIF(DedPersonales!$G16,"<"&MONTH(Auxiliares!N$102)) -> 0 | O108: =COUNTIF(DedPersonales!$F16,"<="&MONTH(Auxiliares!O$102))-COUNTIF(DedPersonales!$G16,"<"&MONTH(Auxiliares!O$102)) -> 0 | Q108: 0
C109: Hijo4 | D109: =COUNTIF(DedPersonales!$F17,"<="&MONTH(Auxiliares!D$102))-COUNTIF(DedPersonales!$G17,"<"&MONTH(Auxiliares!D$102)) -> 0 | E109: =COUNTIF(DedPersonales!$F17,"<="&MONTH(Auxiliares!E$102))-COUNTIF(DedPersonales!$G17,"<"&MONTH(Auxiliares!E$102)) -> 0 | F109: =COUNTIF(DedPersonales!$F17,"<="&MONTH(Auxiliares!F$102))-COUNTIF(DedPersonales!$G17,"<"&MONTH(Auxiliares!F$102)) -> 0 | G109: =COUNTIF(DedPersonales!$F17,"<="&MONTH(Auxiliares!G$102))-COUNTIF(DedPersonales!$G17,"<"&MONTH(Auxiliares!G$102)) -> 0 | H109: =COUNTIF(DedPersonales!$F17,"<="&MONTH(Auxiliares!H$102))-COUNTIF(DedPersonales!$G17,"<"&MONTH(Auxiliares!H$102)) -> 0 | I109: =COUNTIF(DedPersonales!$F17,"<="&MONTH(Auxiliares!I$102))-COUNTIF(DedPersonales!$G17,"<"&MONTH(Auxiliares!I$102)) -> 0 | J109: =COUNTIF(DedPersonales!$F17,"<="&MONTH(Auxiliares!J$102))-COUNTIF(DedPersonales!$G17,"<"&MONTH(Auxiliares!J$102)) -> 0 | K109: =COUNTIF(DedPersonales!$F17,"<="&MONTH(Auxiliares!K$102))-COUNTIF(DedPersonales!$G17,"<"&MONTH(Auxiliares!K$102)) -> 0 | L109: =COUNTIF(DedPersonales!$F17,"<="&MONTH(Auxiliares!L$102))-COUNTIF(DedPersonales!$G17,"<"&MONTH(Auxiliares!L$102)) -> 0 | M109: =COUNTIF(DedPersonales!$F17,"<="&MONTH(Auxiliares!M$102))-COUNTIF(DedPersonales!$G17,"<"&MONTH(Auxiliares!M$102)) -> 0 | N109: =COUNTIF(DedPersonales!$F17,"<="&MONTH(Auxiliares!N$102))-COUNTIF(DedPersonales!$G17,"<"&MONTH(Auxiliares!N$102)) -> 0 | O109: =COUNTIF(DedPersonales!$F17,"<="&MONTH(Auxiliares!O$102))-COUNTIF(DedPersonales!$G17,"<"&MONTH(Auxiliares!O$102)) -> 0 | Q109: 0
C110: Hijo5 | D110: =COUNTIF(DedPersonales!$F18,"<="&MONTH(Auxiliares!D$102))-COUNTIF(DedPersonales!$G18,"<"&MONTH(Auxiliares!D$102)) -> 0 | E110: =COUNTIF(DedPersonales!$F18,"<="&MONTH(Auxiliares!E$102))-COUNTIF(DedPersonales!$G18,"<"&MONTH(Auxiliares!E$102)) -> 0 | F110: =COUNTIF(DedPersonales!$F18,"<="&MONTH(Auxiliares!F$102))-COUNTIF(DedPersonales!$G18,"<"&MONTH(Auxiliares!F$102)) -> 0 | G110: =COUNTIF(DedPersonales!$F18,"<="&MONTH(Auxiliares!G$102))-COUNTIF(DedPersonales!$G18,"<"&MONTH(Auxiliares!G$102)) -> 0 | H110: =COUNTIF(DedPersonales!$F18,"<="&MONTH(Auxiliares!H$102))-COUNTIF(DedPersonales!$G18,"<"&MONTH(Auxiliares!H$102)) -> 0 | I110: =COUNTIF(DedPersonales!$F18,"<="&MONTH(Auxiliares!I$102))-COUNTIF(DedPersonales!$G18,"<"&MONTH(Auxiliares!I$102)) -> 0 | J110: =COUNTIF(DedPersonales!$F18,"<="&MONTH(Auxiliares!J$102))-COUNTIF(DedPersonales!$G18,"<"&MONTH(Auxiliares!J$102)) -> 0 | K110: =COUNTIF(DedPersonales!$F18,"<="&MONTH(Auxiliares!K$102))-COUNTIF(DedPersonales!$G18,"<"&MONTH(Auxiliares!K$102)) -> 0 | L110: =COUNTIF(DedPersonales!$F18,"<="&MONTH(Auxiliares!L$102))-COUNTIF(DedPersonales!$G18,"<"&MONTH(Auxiliares!L$102)) -> 0 | M110: =COUNTIF(DedPersonales!$F18,"<="&MONTH(Auxiliares!M$102))-COUNTIF(DedPersonales!$G18,"<"&MONTH(Auxiliares!M$102)) -> 0 | N110: =COUNTIF(DedPersonales!$F18,"<="&MONTH(Auxiliares!N$102))-COUNTIF(DedPersonales!$G18,"<"&MONTH(Auxiliares!N$102)) -> 0 | O110: =COUNTIF(DedPersonales!$F18,"<="&MONTH(Auxiliares!O$102))-COUNTIF(DedPersonales!$G18,"<"&MONTH(Auxiliares!O$102)) -> 0 | Q110: 0
C111: Hijo6 | D111: =COUNTIF(DedPersonales!$F19,"<="&MONTH(Auxiliares!D$102))-COUNTIF(DedPersonales!$G19,"<"&MONTH(Auxiliares!D$102)) -> 0 | E111: =COUNTIF(DedPersonales!$F19,"<="&MONTH(Auxiliares!E$102))-COUNTIF(DedPersonales!$G19,"<"&MONTH(Auxiliares!E$102)) -> 0 | F111: =COUNTIF(DedPersonales!$F19,"<="&MONTH(Auxiliares!F$102))-COUNTIF(DedPersonales!$G19,"<"&MONTH(Auxiliares!F$102)) -> 0 | G111: =COUNTIF(DedPersonales!$F19,"<="&MONTH(Auxiliares!G$102))-COUNTIF(DedPersonales!$G19,"<"&MONTH(Auxiliares!G$102)) -> 0 | H111: =COUNTIF(DedPersonales!$F19,"<="&MONTH(Auxiliares!H$102))-COUNTIF(DedPersonales!$G19,"<"&MONTH(Auxiliares!H$102)) -> 0 | I111: =COUNTIF(DedPersonales!$F19,"<="&MONTH(Auxiliares!I$102))-COUNTIF(DedPersonales!$G19,"<"&MONTH(Auxiliares!I$102)) -> 0 | J111: =COUNTIF(DedPersonales!$F19,"<="&MONTH(Auxiliares!J$102))-COUNTIF(DedPersonales!$G19,"<"&MONTH(Auxiliares!J$102)) -> 0 | K111: =COUNTIF(DedPersonales!$F19,"<="&MONTH(Auxiliares!K$102))-COUNTIF(DedPersonales!$G19,"<"&MONTH(Auxiliares!K$102)) -> 0 | L111: =COUNTIF(DedPersonales!$F19,"<="&MONTH(Auxiliares!L$102))-COUNTIF(DedPersonales!$G19,"<"&MONTH(Auxiliares!L$102)) -> 0 | M111: =COUNTIF(DedPersonales!$F19,"<="&MONTH(Auxiliares!M$102))-COUNTIF(DedPersonales!$G19,"<"&MONTH(Auxiliares!M$102)) -> 0 | N111: =COUNTIF(DedPersonales!$F19,"<="&MONTH(Auxiliares!N$102))-COUNTIF(DedPersonales!$G19,"<"&MONTH(Auxiliares!N$102)) -> 0 | O111: =COUNTIF(DedPersonales!$F19,"<="&MONTH(Auxiliares!O$102))-COUNTIF(DedPersonales!$G19,"<"&MONTH(Auxiliares!O$102)) -> 0 | Q111: 0
C112: Hijo7 | D112: =COUNTIF(DedPersonales!$F20,"<="&MONTH(Auxiliares!D$102))-COUNTIF(DedPersonales!$G20,"<"&MONTH(Auxiliares!D$102)) -> 0 | E112: =COUNTIF(DedPersonales!$F20,"<="&MONTH(Auxiliares!E$102))-COUNTIF(DedPersonales!$G20,"<"&MONTH(Auxiliares!E$102)) -> 0 | F112: =COUNTIF(DedPersonales!$F20,"<="&MONTH(Auxiliares!F$102))-COUNTIF(DedPersonales!$G20,"<"&MONTH(Auxiliares!F$102)) -> 0 | G112: =COUNTIF(DedPersonales!$F20,"<="&MONTH(Auxiliares!G$102))-COUNTIF(DedPersonales!$G20,"<"&MONTH(Auxiliares!G$102)) -> 0 | H112: =COUNTIF(DedPersonales!$F20,"<="&MONTH(Auxiliares!H$102))-COUNTIF(DedPersonales!$G20,"<"&MONTH(Auxiliares!H$102)) -> 0 | I112: =COUNTIF(DedPersonales!$F20,"<="&MONTH(Auxiliares!I$102))-COUNTIF(DedPersonales!$G20,"<"&MONTH(Auxiliares!I$102)) -> 0 | J112: =COUNTIF(DedPersonales!$F20,"<="&MONTH(Auxiliares!J$102))-COUNTIF(DedPersonales!$G20,"<"&MONTH(Auxiliares!J$102)) -> 0 | K112: =COUNTIF(DedPersonales!$F20,"<="&MONTH(Auxiliares!K$102))-COUNTIF(DedPersonales!$G20,"<"&MONTH(Auxiliares!K$102)) -> 0 | L112: =COUNTIF(DedPersonales!$F20,"<="&MONTH(Auxiliares!L$102))-COUNTIF(DedPersonales!$G20,"<"&MONTH(Auxiliares!L$102)) -> 0 | M112: =COUNTIF(DedPersonales!$F20,"<="&MONTH(Auxiliares!M$102))-COUNTIF(DedPersonales!$G20,"<"&MONTH(Auxiliares!M$102)) -> 0 | N112: =COUNTIF(DedPersonales!$F20,"<="&MONTH(Auxiliares!N$102))-COUNTIF(DedPersonales!$G20,"<"&MONTH(Auxiliares!N$102)) -> 0 | O112: =COUNTIF(DedPersonales!$F20,"<="&MONTH(Auxiliares!O$102))-COUNTIF(DedPersonales!$G20,"<"&MONTH(Auxiliares!O$102)) -> 0 | Q112: 0
C113: Hijo8 | D113: =COUNTIF(DedPersonales!$F21,"<="&MONTH(Auxiliares!D$102))-COUNTIF(DedPersonales!$G21,"<"&MONTH(Auxiliares!D$102)) -> 0 | E113: =COUNTIF(DedPersonales!$F21,"<="&MONTH(Auxiliares!E$102))-COUNTIF(DedPersonales!$G21,"<"&MONTH(Auxiliares!E$102)) -> 0 | F113: =COUNTIF(DedPersonales!$F21,"<="&MONTH(Auxiliares!F$102))-COUNTIF(DedPersonales!$G21,"<"&MONTH(Auxiliares!F$102)) -> 0 | G113: =COUNTIF(DedPersonales!$F21,"<="&MONTH(Auxiliares!G$102))-COUNTIF(DedPersonales!$G21,"<"&MONTH(Auxiliares!G$102)) -> 0 | H113: =COUNTIF(DedPersonales!$F21,"<="&MONTH(Auxiliares!H$102))-COUNTIF(DedPersonales!$G21,"<"&MONTH(Auxiliares!H$102)) -> 0 | I113: =COUNTIF(DedPersonales!$F21,"<="&MONTH(Auxiliares!I$102))-COUNTIF(DedPersonales!$G21,"<"&MONTH(Auxiliares!I$102)) -> 0 | J113: =COUNTIF(DedPersonales!$F21,"<="&MONTH(Auxiliares!J$102))-COUNTIF(DedPersonales!$G21,"<"&MONTH(Auxiliares!J$102)) -> 0 | K113: =COUNTIF(DedPersonales!$F21,"<="&MONTH(Auxiliares!K$102))-COUNTIF(DedPersonales!$G21,"<"&MONTH(Auxiliares!K$102)) -> 0 | L113: =COUNTIF(DedPersonales!$F21,"<="&MONTH(Auxiliares!L$102))-COUNTIF(DedPersonales!$G21,"<"&MONTH(Auxiliares!L$102)) -> 0 | M113: =COUNTIF(DedPersonales!$F21,"<="&MONTH(Auxiliares!M$102))-COUNTIF(DedPersonales!$G21,"<"&MONTH(Auxiliares!M$102)) -> 0 | N113: =COUNTIF(DedPersonales!$F21,"<="&MONTH(Auxiliares!N$102))-COUNTIF(DedPersonales!$G21,"<"&MONTH(Auxiliares!N$102)) -> 0 | O113: =COUNTIF(DedPersonales!$F21,"<="&MONTH(Auxiliares!O$102))-COUNTIF(DedPersonales!$G21,"<"&MONTH(Auxiliares!O$102)) -> 0 | Q113: 0
C114: Hijo9 | D114: =COUNTIF(DedPersonales!$F22,"<="&MONTH(Auxiliares!D$102))-COUNTIF(DedPersonales!$G22,"<"&MONTH(Auxiliares!D$102)) -> 0 | E114: =COUNTIF(DedPersonales!$F22,"<="&MONTH(Auxiliares!E$102))-COUNTIF(DedPersonales!$G22,"<"&MONTH(Auxiliares!E$102)) -> 0 | F114: =COUNTIF(DedPersonales!$F22,"<="&MONTH(Auxiliares!F$102))-COUNTIF(DedPersonales!$G22,"<"&MONTH(Auxiliares!F$102)) -> 0 | G114: =COUNTIF(DedPersonales!$F22,"<="&MONTH(Auxiliares!G$102))-COUNTIF(DedPersonales!$G22,"<"&MONTH(Auxiliares!G$102)) -> 0 | H114: =COUNTIF(DedPersonales!$F22,"<="&MONTH(Auxiliares!H$102))-COUNTIF(DedPersonales!$G22,"<"&MONTH(Auxiliares!H$102)) -> 0 | I114: =COUNTIF(DedPersonales!$F22,"<="&MONTH(Auxiliares!I$102))-COUNTIF(DedPersonales!$G22,"<"&MONTH(Auxiliares!I$102)) -> 0 | J114: =COUNTIF(DedPersonales!$F22,"<="&MONTH(Auxiliares!J$102))-COUNTIF(DedPersonales!$G22,"<"&MONTH(Auxiliares!J$102)) -> 0 | K114: =COUNTIF(DedPersonales!$F22,"<="&MONTH(Auxiliares!K$102))-COUNTIF(DedPersonales!$G22,"<"&MONTH(Auxiliares!K$102)) -> 0 | L114: =COUNTIF(DedPersonales!$F22,"<="&MONTH(Auxiliares!L$102))-COUNTIF(DedPersonales!$G22,"<"&MONTH(Auxiliares!L$102)) -> 0 | M114: =COUNTIF(DedPersonales!$F22,"<="&MONTH(Auxiliares!M$102))-COUNTIF(DedPersonales!$G22,"<"&MONTH(Auxiliares!M$102)) -> 0 | N114: =COUNTIF(DedPersonales!$F22,"<="&MONTH(Auxiliares!N$102))-COUNTIF(DedPersonales!$G22,"<"&MONTH(Auxiliares!N$102)) -> 0 | O114: =COUNTIF(DedPersonales!$F22,"<="&MONTH(Auxiliares!O$102))-COUNTIF(DedPersonales!$G22,"<"&MONTH(Auxiliares!O$102)) -> 0 | Q114: 0
C115: Hijo10 | D115: =COUNTIF(DedPersonales!$F23,"<="&MONTH(Auxiliares!D$102))-COUNTIF(DedPersonales!$G23,"<"&MONTH(Auxiliares!D$102)) -> 0 | E115: =COUNTIF(DedPersonales!$F23,"<="&MONTH(Auxiliares!E$102))-COUNTIF(DedPersonales!$G23,"<"&MONTH(Auxiliares!E$102)) -> 0 | F115: =COUNTIF(DedPersonales!$F23,"<="&MONTH(Auxiliares!F$102))-COUNTIF(DedPersonales!$G23,"<"&MONTH(Auxiliares!F$102)) -> 0 | G115: =COUNTIF(DedPersonales!$F23,"<="&MONTH(Auxiliares!G$102))-COUNTIF(DedPersonales!$G23,"<"&MONTH(Auxiliares!G$102)) -> 0 | H115: =COUNTIF(DedPersonales!$F23,"<="&MONTH(Auxiliares!H$102))-COUNTIF(DedPersonales!$G23,"<"&MONTH(Auxiliares!H$102)) -> 0 | I115: =COUNTIF(DedPersonales!$F23,"<="&MONTH(Auxiliares!I$102))-COUNTIF(DedPersonales!$G23,"<"&MONTH(Auxiliares!I$102)) -> 0 | J115: =COUNTIF(DedPersonales!$F23,"<="&MONTH(Auxiliares!J$102))-COUNTIF(DedPersonales!$G23,"<"&MONTH(Auxiliares!J$102)) -> 0 | K115: =COUNTIF(DedPersonales!$F23,"<="&MONTH(Auxiliares!K$102))-COUNTIF(DedPersonales!$G23,"<"&MONTH(Auxiliares!K$102)) -> 0 | L115: =COUNTIF(DedPersonales!$F23,"<="&MONTH(Auxiliares!L$102))-COUNTIF(DedPersonales!$G23,"<"&MONTH(Auxiliares!L$102)) -> 0 | M115: =COUNTIF(DedPersonales!$F23,"<="&MONTH(Auxiliares!M$102))-COUNTIF(DedPersonales!$G23,"<"&MONTH(Auxiliares!M$102)) -> 0 | N115: =COUNTIF(DedPersonales!$F23,"<="&MONTH(Auxiliares!N$102))-COUNTIF(DedPersonales!$G23,"<"&MONTH(Auxiliares!N$102)) -> 0 | O115: =COUNTIF(DedPersonales!$F23,"<="&MONTH(Auxiliares!O$102))-COUNTIF(DedPersonales!$G23,"<"&MONTH(Auxiliares!O$102)) -> 0 | Q115: 0
C116: Hijo11 | D116: =COUNTIF(DedPersonales!$F24,"<="&MONTH(Auxiliares!D$102))-COUNTIF(DedPersonales!$G24,"<"&MONTH(Auxiliares!D$102)) -> 0 | E116: =COUNTIF(DedPersonales!$F24,"<="&MONTH(Auxiliares!E$102))-COUNTIF(DedPersonales!$G24,"<"&MONTH(Auxiliares!E$102)) -> 0 | F116: =COUNTIF(DedPersonales!$F24,"<="&MONTH(Auxiliares!F$102))-COUNTIF(DedPersonales!$G24,"<"&MONTH(Auxiliares!F$102)) -> 0 | G116: =COUNTIF(DedPersonales!$F24,"<="&MONTH(Auxiliares!G$102))-COUNTIF(DedPersonales!$G24,"<"&MONTH(Auxiliares!G$102)) -> 0 | H116: =COUNTIF(DedPersonales!$F24,"<="&MONTH(Auxiliares!H$102))-COUNTIF(DedPersonales!$G24,"<"&MONTH(Auxiliares!H$102)) -> 0 | I116: =COUNTIF(DedPersonales!$F24,"<="&MONTH(Auxiliares!I$102))-COUNTIF(DedPersonales!$G24,"<"&MONTH(Auxiliares!I$102)) -> 0 | J116: =COUNTIF(DedPersonales!$F24,"<="&MONTH(Auxiliares!J$102))-COUNTIF(DedPersonales!$G24,"<"&MONTH(Auxiliares!J$102)) -> 0 | K116: =COUNTIF(DedPersonales!$F24,"<="&MONTH(Auxiliares!K$102))-COUNTIF(DedPersonales!$G24,"<"&MONTH(Auxiliares!K$102)) -> 0 | L116: =COUNTIF(DedPersonales!$F24,"<="&MONTH(Auxiliares!L$102))-COUNTIF(DedPersonales!$G24,"<"&MONTH(Auxiliares!L$102)) -> 0 | M116: =COUNTIF(DedPersonales!$F24,"<="&MONTH(Auxiliares!M$102))-COUNTIF(DedPersonales!$G24,"<"&MONTH(Auxiliares!M$102)) -> 0 | N116: =COUNTIF(DedPersonales!$F24,"<="&MONTH(Auxiliares!N$102))-COUNTIF(DedPersonales!$G24,"<"&MONTH(Auxiliares!N$102)) -> 0 | O116: =COUNTIF(DedPersonales!$F24,"<="&MONTH(Auxiliares!O$102))-COUNTIF(DedPersonales!$G24,"<"&MONTH(Auxiliares!O$102)) -> 0 | Q116: 0
C117: Hijo12 | D117: =COUNTIF(DedPersonales!$F25,"<="&MONTH(Auxiliares!D$102))-COUNTIF(DedPersonales!$G25,"<"&MONTH(Auxiliares!D$102)) -> 0 | E117: =COUNTIF(DedPersonales!$F25,"<="&MONTH(Auxiliares!E$102))-COUNTIF(DedPersonales!$G25,"<"&MONTH(Auxiliares!E$102)) -> 0 | F117: =COUNTIF(DedPersonales!$F25,"<="&MONTH(Auxiliares!F$102))-COUNTIF(DedPersonales!$G25,"<"&MONTH(Auxiliares!F$102)) -> 0 | G117: =COUNTIF(DedPersonales!$F25,"<="&MONTH(Auxiliares!G$102))-COUNTIF(DedPersonales!$G25,"<"&MONTH(Auxiliares!G$102)) -> 0 | H117: =COUNTIF(DedPersonales!$F25,"<="&MONTH(Auxiliares!H$102))-COUNTIF(DedPersonales!$G25,"<"&MONTH(Auxiliares!H$102)) -> 0 | I117: =COUNTIF(DedPersonales!$F25,"<="&MONTH(Auxiliares!I$102))-COUNTIF(DedPersonales!$G25,"<"&MONTH(Auxiliares!I$102)) -> 0 | J117: =COUNTIF(DedPersonales!$F25,"<="&MONTH(Auxiliares!J$102))-COUNTIF(DedPersonales!$G25,"<"&MONTH(Auxiliares!J$102)) -> 0 | K117: =COUNTIF(DedPersonales!$F25,"<="&MONTH(Auxiliares!K$102))-COUNTIF(DedPersonales!$G25,"<"&MONTH(Auxiliares!K$102)) -> 0 | L117: =COUNTIF(DedPersonales!$F25,"<="&MONTH(Auxiliares!L$102))-COUNTIF(DedPersonales!$G25,"<"&MONTH(Auxiliares!L$102)) -> 0 | M117: =COUNTIF(DedPersonales!$F25,"<="&MONTH(Auxiliares!M$102))-COUNTIF(DedPersonales!$G25,"<"&MONTH(Auxiliares!M$102)) -> 0 | N117: =COUNTIF(DedPersonales!$F25,"<="&MONTH(Auxiliares!N$102))-COUNTIF(DedPersonales!$G25,"<"&MONTH(Auxiliares!N$102)) -> 0 | O117: =COUNTIF(DedPersonales!$F25,"<="&MONTH(Auxiliares!O$102))-COUNTIF(DedPersonales!$G25,"<"&MONTH(Auxiliares!O$102)) -> 0 | Q117: 0
C118: Hijo13 | D118: =COUNTIF(DedPersonales!$F26,"<="&MONTH(Auxiliares!D$102))-COUNTIF(DedPersonales!$G26,"<"&MONTH(Auxiliares!D$102)) -> 0 | E118: =COUNTIF(DedPersonales!$F26,"<="&MONTH(Auxiliares!E$102))-COUNTIF(DedPersonales!$G26,"<"&MONTH(Auxiliares!E$102)) -> 0 | F118: =COUNTIF(DedPersonales!$F26,"<="&MONTH(Auxiliares!F$102))-COUNTIF(DedPersonales!$G26,"<"&MONTH(Auxiliares!F$102)) -> 0 | G118: =COUNTIF(DedPersonales!$F26,"<="&MONTH(Auxiliares!G$102))-COUNTIF(DedPersonales!$G26,"<"&MONTH(Auxiliares!G$102)) -> 0 | H118: =COUNTIF(DedPersonales!$F26,"<="&MONTH(Auxiliares!H$102))-COUNTIF(DedPersonales!$G26,"<"&MONTH(Auxiliares!H$102)) -> 0 | I118: =COUNTIF(DedPersonales!$F26,"<="&MONTH(Auxiliares!I$102))-COUNTIF(DedPersonales!$G26,"<"&MONTH(Auxiliares!I$102)) -> 0 | J118: =COUNTIF(DedPersonales!$F26,"<="&MONTH(Auxiliares!J$102))-COUNTIF(DedPersonales!$G26,"<"&MONTH(Auxiliares!J$102)) -> 0 | K118: =COUNTIF(DedPersonales!$F26,"<="&MONTH(Auxiliares!K$102))-COUNTIF(DedPersonales!$G26,"<"&MONTH(Auxiliares!K$102)) -> 0 | L118: =COUNTIF(DedPersonales!$F26,"<="&MONTH(Auxiliares!L$102))-COUNTIF(DedPersonales!$G26,"<"&MONTH(Auxiliares!L$102)) -> 0 | M118: =COUNTIF(DedPersonales!$F26,"<="&MONTH(Auxiliares!M$102))-COUNTIF(DedPersonales!$G26,"<"&MONTH(Auxiliares!M$102)) -> 0 | N118: =COUNTIF(DedPersonales!$F26,"<="&MONTH(Auxiliares!N$102))-COUNTIF(DedPersonales!$G26,"<"&MONTH(Auxiliares!N$102)) -> 0 | O118: =COUNTIF(DedPersonales!$F26,"<="&MONTH(Auxiliares!O$102))-COUNTIF(DedPersonales!$G26,"<"&MONTH(Auxiliares!O$102)) -> 0 | Q118: 0
C119: Hijo14 | D119: =COUNTIF(DedPersonales!$F27,"<="&MONTH(Auxiliares!D$102))-COUNTIF(DedPersonales!$G27,"<"&MONTH(Auxiliares!D$102)) -> 0 | E119: =COUNTIF(DedPersonales!$F27,"<="&MONTH(Auxiliares!E$102))-COUNTIF(DedPersonales!$G27,"<"&MONTH(Auxiliares!E$102)) -> 0 | F119: =COUNTIF(DedPersonales!$F27,"<="&MONTH(Auxiliares!F$102))-COUNTIF(DedPersonales!$G27,"<"&MONTH(Auxiliares!F$102)) -> 0 | G119: =COUNTIF(DedPersonales!$F27,"<="&MONTH(Auxiliares!G$102))-COUNTIF(DedPersonales!$G27,"<"&MONTH(Auxiliares!G$102)) -> 0 | H119: =COUNTIF(DedPersonales!$F27,"<="&MONTH(Auxiliares!H$102))-COUNTIF(DedPersonales!$G27,"<"&MONTH(Auxiliares!H$102)) -> 0 | I119: =COUNTIF(DedPersonales!$F27,"<="&MONTH(Auxiliares!I$102))-COUNTIF(DedPersonales!$G27,"<"&MONTH(Auxiliares!I$102)) -> 0 | J119: =COUNTIF(DedPersonales!$F27,"<="&MONTH(Auxiliares!J$102))-COUNTIF(DedPersonales!$G27,"<"&MONTH(Auxiliares!J$102)) -> 0 | K119: =COUNTIF(DedPersonales!$F27,"<="&MONTH(Auxiliares!K$102))-COUNTIF(DedPersonales!$G27,"<"&MONTH(Auxiliares!K$102)) -> 0 | L119: =COUNTIF(DedPersonales!$F27,"<="&MONTH(Auxiliares!L$102))-COUNTIF(DedPersonales!$G27,"<"&MONTH(Auxiliares!L$102)) -> 0 | M119: =COUNTIF(DedPersonales!$F27,"<="&MONTH(Auxiliares!M$102))-COUNTIF(DedPersonales!$G27,"<"&MONTH(Auxiliares!M$102)) -> 0 | N119: =COUNTIF(DedPersonales!$F27,"<="&MONTH(Auxiliares!N$102))-COUNTIF(DedPersonales!$G27,"<"&MONTH(Auxiliares!N$102)) -> 0 | O119: =COUNTIF(DedPersonales!$F27,"<="&MONTH(Auxiliares!O$102))-COUNTIF(DedPersonales!$G27,"<"&MONTH(Auxiliares!O$102)) -> 0 | Q119: 0
C120: Hijo15 | D120: =COUNTIF(DedPersonales!$F28,"<="&MONTH(Auxiliares!D$102))-COUNTIF(DedPersonales!$G28,"<"&MONTH(Auxiliares!D$102)) -> 0 | E120: =COUNTIF(DedPersonales!$F28,"<="&MONTH(Auxiliares!E$102))-COUNTIF(DedPersonales!$G28,"<"&MONTH(Auxiliares!E$102)) -> 0 | F120: =COUNTIF(DedPersonales!$F28,"<="&MONTH(Auxiliares!F$102))-COUNTIF(DedPersonales!$G28,"<"&MONTH(Auxiliares!F$102)) -> 0 | G120: =COUNTIF(DedPersonales!$F28,"<="&MONTH(Auxiliares!G$102))-COUNTIF(DedPersonales!$G28,"<"&MONTH(Auxiliares!G$102)) -> 0 | H120: =COUNTIF(DedPersonales!$F28,"<="&MONTH(Auxiliares!H$102))-COUNTIF(DedPersonales!$G28,"<"&MONTH(Auxiliares!H$102)) -> 0 | I120: =COUNTIF(DedPersonales!$F28,"<="&MONTH(Auxiliares!I$102))-COUNTIF(DedPersonales!$G28,"<"&MONTH(Auxiliares!I$102)) -> 0 | J120: =COUNTIF(DedPersonales!$F28,"<="&MONTH(Auxiliares!J$102))-COUNTIF(DedPersonales!$G28,"<"&MONTH(Auxiliares!J$102)) -> 0 | K120: =COUNTIF(DedPersonales!$F28,"<="&MONTH(Auxiliares!K$102))-COUNTIF(DedPersonales!$G28,"<"&MONTH(Auxiliares!K$102)) -> 0 | L120: =COUNTIF(DedPersonales!$F28,"<="&MONTH(Auxiliares!L$102))-COUNTIF(DedPersonales!$G28,"<"&MONTH(Auxiliares!L$102)) -> 0 | M120: =COUNTIF(DedPersonales!$F28,"<="&MONTH(Auxiliares!M$102))-COUNTIF(DedPersonales!$G28,"<"&MONTH(Auxiliares!M$102)) -> 0 | N120: =COUNTIF(DedPersonales!$F28,"<="&MONTH(Auxiliares!N$102))-COUNTIF(DedPersonales!$G28,"<"&MONTH(Auxiliares!N$102)) -> 0 | O120: =COUNTIF(DedPersonales!$F28,"<="&MONTH(Auxiliares!O$102))-COUNTIF(DedPersonales!$G28,"<"&MONTH(Auxiliares!O$102)) -> 0 | Q120: 0
C121: Hijo16 | D121: =COUNTIF(DedPersonales!$F29,"<="&MONTH(Auxiliares!D$102))-COUNTIF(DedPersonales!$G29,"<"&MONTH(Auxiliares!D$102)) -> 0 | E121: =COUNTIF(DedPersonales!$F29,"<="&MONTH(Auxiliares!E$102))-COUNTIF(DedPersonales!$G29,"<"&MONTH(Auxiliares!E$102)) -> 0 | F121: =COUNTIF(DedPersonales!$F29,"<="&MONTH(Auxiliares!F$102))-COUNTIF(DedPersonales!$G29,"<"&MONTH(Auxiliares!F$102)) -> 0 | G121: =COUNTIF(DedPersonales!$F29,"<="&MONTH(Auxiliares!G$102))-COUNTIF(DedPersonales!$G29,"<"&MONTH(Auxiliares!G$102)) -> 0 | H121: =COUNTIF(DedPersonales!$F29,"<="&MONTH(Auxiliares!H$102))-COUNTIF(DedPersonales!$G29,"<"&MONTH(Auxiliares!H$102)) -> 0 | I121: =COUNTIF(DedPersonales!$F29,"<="&MONTH(Auxiliares!I$102))-COUNTIF(DedPersonales!$G29,"<"&MONTH(Auxiliares!I$102)) -> 0 | J121: =COUNTIF(DedPersonales!$F29,"<="&MONTH(Auxiliares!J$102))-COUNTIF(DedPersonales!$G29,"<"&MONTH(Auxiliares!J$102)) -> 0 | K121: =COUNTIF(DedPersonales!$F29,"<="&MONTH(Auxiliares!K$102))-COUNTIF(DedPersonales!$G29,"<"&MONTH(Auxiliares!K$102)) -> 0 | L121: =COUNTIF(DedPersonales!$F29,"<="&MONTH(Auxiliares!L$102))-COUNTIF(DedPersonales!$G29,"<"&MONTH(Auxiliares!L$102)) -> 0 | M121: =COUNTIF(DedPersonales!$F29,"<="&MONTH(Auxiliares!M$102))-COUNTIF(DedPersonales!$G29,"<"&MONTH(Auxiliares!M$102)) -> 0 | N121: =COUNTIF(DedPersonales!$F29,"<="&MONTH(Auxiliares!N$102))-COUNTIF(DedPersonales!$G29,"<"&MONTH(Auxiliares!N$102)) -> 0 | O121: =COUNTIF(DedPersonales!$F29,"<="&MONTH(Auxiliares!O$102))-COUNTIF(DedPersonales!$G29,"<"&MONTH(Auxiliares!O$102)) -> 0 | Q121: 0
C123: Mes de información
C124: Cónyuge | D124: =IF(DedPersonales!$G$8=MONTH(D$102),1,0) -> 0 | E124: =IF(DedPersonales!$G$8=MONTH(E$102),1,0) -> 0 | F124: =IF(DedPersonales!$G$8=MONTH(F$102),1,0) -> 0 | G124: =IF(DedPersonales!$G$8=MONTH(G$102),1,0) -> 0 | H124: =IF(DedPersonales!$G$8=MONTH(H$102),1,0) -> 0 | I124: =IF(DedPersonales!$G$8=MONTH(I$102),1,0) -> 0 | J124: =IF(DedPersonales!$G$8=MONTH(J$102),1,0) -> 0 | K124: =IF(DedPersonales!$G$8=MONTH(K$102),1,0) -> 0 | L124: =IF(DedPersonales!$G$8=MONTH(L$102),1,0) -> 0 | M124: =IF(DedPersonales!$G$8=MONTH(M$102),1,0) -> 0 | N124: =IF(DedPersonales!$G$8=MONTH(N$102),1,0) -> 0 | O124: =IF(DedPersonales!$G$8=MONTH(O$102),1,0) -> 0
C126: Hijo1 | D126: =IF(DedPersonales!$H14=MONTH(D$102),1,0) -> 0 | E126: =IF(DedPersonales!$H14=MONTH(E$102),1,0) -> 0 | F126: =IF(DedPersonales!$H14=MONTH(F$102),1,0) -> 0 | G126: =IF(DedPersonales!$H14=MONTH(G$102),1,0) -> 0 | H126: =IF(DedPersonales!$H14=MONTH(H$102),1,0) -> 0 | I126: =IF(DedPersonales!$H14=MONTH(I$102),1,0) -> 0 | J126: =IF(DedPersonales!$H14=MONTH(J$102),1,0) -> 0 | K126: =IF(DedPersonales!$H14=MONTH(K$102),1,0) -> 0 | L126: =IF(DedPersonales!$H14=MONTH(L$102),1,0) -> 0 | M126: =IF(DedPersonales!$H14=MONTH(M$102),1,0) -> 0 | N126: =IF(DedPersonales!$H14=MONTH(N$102),1,0) -> 0 | O126: =IF(DedPersonales!$H14=MONTH(O$102),1,0) -> 0
C127: Hijo2 | D127: =IF(DedPersonales!$H15=MONTH(D$102),1,0) -> 0 | E127: =IF(DedPersonales!$H15=MONTH(E$102),1,0) -> 0 | F127: =IF(DedPersonales!$H15=MONTH(F$102),1,0) -> 0 | G127: =IF(DedPersonales!$H15=MONTH(G$102),1,0) -> 0 | H127: =IF(DedPersonales!$H15=MONTH(H$102),1,0) -> 0 | I127: =IF(DedPersonales!$H15=MONTH(I$102),1,0) -> 0 | J127: =IF(DedPersonales!$H15=MONTH(J$102),1,0) -> 0 | K127: =IF(DedPersonales!$H15=MONTH(K$102),1,0) -> 0 | L127: =IF(DedPersonales!$H15=MONTH(L$102),1,0) -> 0 | M127: =IF(DedPersonales!$H15=MONTH(M$102),1,0) -> 0 | N127: =IF(DedPersonales!$H15=MONTH(N$102),1,0) -> 0 | O127: =IF(DedPersonales!$H15=MONTH(O$102),1,0) -> 0
C128: Hijo3 | D128: =IF(DedPersonales!$H16=MONTH(D$102),1,0) -> 0 | E128: =IF(DedPersonales!$H16=MONTH(E$102),1,0) -> 0 | F128: =IF(DedPersonales!$H16=MONTH(F$102),1,0) -> 0 | G128: =IF(DedPersonales!$H16=MONTH(G$102),1,0) -> 0 | H128: =IF(DedPersonales!$H16=MONTH(H$102),1,0) -> 0 | I128: =IF(DedPersonales!$H16=MONTH(I$102),1,0) -> 0 | J128: =IF(DedPersonales!$H16=MONTH(J$102),1,0) -> 0 | K128: =IF(DedPersonales!$H16=MONTH(K$102),1,0) -> 0 | L128: =IF(DedPersonales!$H16=MONTH(L$102),1,0) -> 0 | M128: =IF(DedPersonales!$H16=MONTH(M$102),1,0) -> 0 | N128: =IF(DedPersonales!$H16=MONTH(N$102),1,0) -> 0 | O128: =IF(DedPersonales!$H16=MONTH(O$102),1,0) -> 0
C129: Hijo4 | D129: =IF(DedPersonales!$H17=MONTH(D$102),1,0) -> 0 | E129: =IF(DedPersonales!$H17=MONTH(E$102),1,0) -> 0 | F129: =IF(DedPersonales!$H17=MONTH(F$102),1,0) -> 0 | G129: =IF(DedPersonales!$H17=MONTH(G$102),1,0) -> 0 | H129: =IF(DedPersonales!$H17=MONTH(H$102),1,0) -> 0 | I129: =IF(DedPersonales!$H17=MONTH(I$102),1,0) -> 0 | J129: =IF(DedPersonales!$H17=MONTH(J$102),1,0) -> 0 | K129: =IF(DedPersonales!$H17=MONTH(K$102),1,0) -> 0 | L129: =IF(DedPersonales!$H17=MONTH(L$102),1,0) -> 0 | M129: =IF(DedPersonales!$H17=MONTH(M$102),1,0) -> 0 | N129: =IF(DedPersonales!$H17=MONTH(N$102),1,0) -> 0 | O129: =IF(DedPersonales!$H17=MONTH(O$102),1,0) -> 0
C130: Hijo5 | D130: =IF(DedPersonales!$H18=MONTH(D$102),1,0) -> 0 | E130: =IF(DedPersonales!$H18=MONTH(E$102),1,0) -> 0 | F130: =IF(DedPersonales!$H18=MONTH(F$102),1,0) -> 0 | G130: =IF(DedPersonales!$H18=MONTH(G$102),1,0) -> 0 | H130: =IF(DedPersonales!$H18=MONTH(H$102),1,0) -> 0 | I130: =IF(DedPersonales!$H18=MONTH(I$102),1,0) -> 0 | J130: =IF(DedPersonales!$H18=MONTH(J$102),1,0) -> 0 | K130: =IF(DedPersonales!$H18=MONTH(K$102),1,0) -> 0 | L130: =IF(DedPersonales!$H18=MONTH(L$102),1,0) -> 0 | M130: =IF(DedPersonales!$H18=MONTH(M$102),1,0) -> 0 | N130: =IF(DedPersonales!$H18=MONTH(N$102),1,0) -> 0 | O130: =IF(DedPersonales!$H18=MONTH(O$102),1,0) -> 0
C131: Hijo6 | D131: =IF(DedPersonales!$H19=MONTH(D$102),1,0) -> 0 | E131: =IF(DedPersonales!$H19=MONTH(E$102),1,0) -> 0 | F131: =IF(DedPersonales!$H19=MONTH(F$102),1,0) -> 0 | G131: =IF(DedPersonales!$H19=MONTH(G$102),1,0) -> 0 | H131: =IF(DedPersonales!$H19=MONTH(H$102),1,0) -> 0 | I131: =IF(DedPersonales!$H19=MONTH(I$102),1,0) -> 0 | J131: =IF(DedPersonales!$H19=MONTH(J$102),1,0) -> 0 | K131: =IF(DedPersonales!$H19=MONTH(K$102),1,0) -> 0 | L131: =IF(DedPersonales!$H19=MONTH(L$102),1,0) -> 0 | M131: =IF(DedPersonales!$H19=MONTH(M$102),1,0) -> 0 | N131: =IF(DedPersonales!$H19=MONTH(N$102),1,0) -> 0 | O131: =IF(DedPersonales!$H19=MONTH(O$102),1,0) -> 0
C132: Hijo7 | D132: =IF(DedPersonales!$H20=MONTH(D$102),1,0) -> 0 | E132: =IF(DedPersonales!$H20=MONTH(E$102),1,0) -> 0 | F132: =IF(DedPersonales!$H20=MONTH(F$102),1,0) -> 0 | G132: =IF(DedPersonales!$H20=MONTH(G$102),1,0) -> 0 | H132: =IF(DedPersonales!$H20=MONTH(H$102),1,0) -> 0 | I132: =IF(DedPersonales!$H20=MONTH(I$102),1,0) -> 0 | J132: =IF(DedPersonales!$H20=MONTH(J$102),1,0) -> 0 | K132: =IF(DedPersonales!$H20=MONTH(K$102),1,0) -> 0 | L132: =IF(DedPersonales!$H20=MONTH(L$102),1,0) -> 0 | M132: =IF(DedPersonales!$H20=MONTH(M$102),1,0) -> 0 | N132: =IF(DedPersonales!$H20=MONTH(N$102),1,0) -> 0 | O132: =IF(DedPersonales!$H20=MONTH(O$102),1,0) -> 0
C133: Hijo8 | D133: =IF(DedPersonales!$H21=MONTH(D$102),1,0) -> 0 | E133: =IF(DedPersonales!$H21=MONTH(E$102),1,0) -> 0 | F133: =IF(DedPersonales!$H21=MONTH(F$102),1,0) -> 0 | G133: =IF(DedPersonales!$H21=MONTH(G$102),1,0) -> 0 | H133: =IF(DedPersonales!$H21=MONTH(H$102),1,0) -> 0 | I133: =IF(DedPersonales!$H21=MONTH(I$102),1,0) -> 0 | J133: =IF(DedPersonales!$H21=MONTH(J$102),1,0) -> 0 | K133: =IF(DedPersonales!$H21=MONTH(K$102),1,0) -> 0 | L133: =IF(DedPersonales!$H21=MONTH(L$102),1,0) -> 0 | M133: =IF(DedPersonales!$H21=MONTH(M$102),1,0) -> 0 | N133: =IF(DedPersonales!$H21=MONTH(N$102),1,0) -> 0 | O133: =IF(DedPersonales!$H21=MONTH(O$102),1,0) -> 0
C134: Hijo9 | D134: =IF(DedPersonales!$H22=MONTH(D$102),1,0) -> 0 | E134: =IF(DedPersonales!$H22=MONTH(E$102),1,0) -> 0 | F134: =IF(DedPersonales!$H22=MONTH(F$102),1,0) -> 0 | G134: =IF(DedPersonales!$H22=MONTH(G$102),1,0) -> 0 | H134: =IF(DedPersonales!$H22=MONTH(H$102),1,0) -> 0 | I134: =IF(DedPersonales!$H22=MONTH(I$102),1,0) -> 0 | J134: =IF(DedPersonales!$H22=MONTH(J$102),1,0) -> 0 | K134: =IF(DedPersonales!$H22=MONTH(K$102),1,0) -> 0 | L134: =IF(DedPersonales!$H22=MONTH(L$102),1,0) -> 0 | M134: =IF(DedPersonales!$H22=MONTH(M$102),1,0) -> 0 | N134: =IF(DedPersonales!$H22=MONTH(N$102),1,0) -> 0 | O134: =IF(DedPersonales!$H22=MONTH(O$102),1,0) -> 0
C135: Hijo10 | D135: =IF(DedPersonales!$H23=MONTH(D$102),1,0) -> 0 | E135: =IF(DedPersonales!$H23=MONTH(E$102),1,0) -> 0 | F135: =IF(DedPersonales!$H23=MONTH(F$102),1,0) -> 0 | G135: =IF(DedPersonales!$H23=MONTH(G$102),1,0) -> 0 | H135: =IF(DedPersonales!$H23=MONTH(H$102),1,0) -> 0 | I135: =IF(DedPersonales!$H23=MONTH(I$102),1,0) -> 0 | J135: =IF(DedPersonales!$H23=MONTH(J$102),1,0) -> 0 | K135: =IF(DedPersonales!$H23=MONTH(K$102),1,0) -> 0 | L135: =IF(DedPersonales!$H23=MONTH(L$102),1,0) -> 0 | M135: =IF(DedPersonales!$H23=MONTH(M$102),1,0) -> 0 | N135: =IF(DedPersonales!$H23=MONTH(N$102),1,0) -> 0 | O135: =IF(DedPersonales!$H23=MONTH(O$102),1,0) -> 0
C136: Hijo11 | D136: =IF(DedPersonales!$H24=MONTH(D$102),1,0) -> 0 | E136: =IF(DedPersonales!$H24=MONTH(E$102),1,0) -> 0 | F136: =IF(DedPersonales!$H24=MONTH(F$102),1,0) -> 0 | G136: =IF(DedPersonales!$H24=MONTH(G$102),1,0) -> 0 | H136: =IF(DedPersonales!$H24=MONTH(H$102),1,0) -> 0 | I136: =IF(DedPersonales!$H24=MONTH(I$102),1,0) -> 0 | J136: =IF(DedPersonales!$H24=MONTH(J$102),1,0) -> 0 | K136: =IF(DedPersonales!$H24=MONTH(K$102),1,0) -> 0 | L136: =IF(DedPersonales!$H24=MONTH(L$102),1,0) -> 0 | M136: =IF(DedPersonales!$H24=MONTH(M$102),1,0) -> 0 | N136: =IF(DedPersonales!$H24=MONTH(N$102),1,0) -> 0 | O136: =IF(DedPersonales!$H24=MONTH(O$102),1,0) -> 0
C137: Hijo12 | D137: =IF(DedPersonales!$H25=MONTH(D$102),1,0) -> 0 | E137: =IF(DedPersonales!$H25=MONTH(E$102),1,0) -> 0 | F137: =IF(DedPersonales!$H25=MONTH(F$102),1,0) -> 0 | G137: =IF(DedPersonales!$H25=MONTH(G$102),1,0) -> 0 | H137: =IF(DedPersonales!$H25=MONTH(H$102),1,0) -> 0 | I137: =IF(DedPersonales!$H25=MONTH(I$102),1,0) -> 0 | J137: =IF(DedPersonales!$H25=MONTH(J$102),1,0) -> 0 | K137: =IF(DedPersonales!$H25=MONTH(K$102),1,0) -> 0 | L137: =IF(DedPersonales!$H25=MONTH(L$102),1,0) -> 0 | M137: =IF(DedPersonales!$H25=MONTH(M$102),1,0) -> 0 | N137: =IF(DedPersonales!$H25=MONTH(N$102),1,0) -> 0 | O137: =IF(DedPersonales!$H25=MONTH(O$102),1,0) -> 0
C138: Hijo13 | D138: =IF(DedPersonales!$H26=MONTH(D$102),1,0) -> 0 | E138: =IF(DedPersonales!$H26=MONTH(E$102),1,0) -> 0 | F138: =IF(DedPersonales!$H26=MONTH(F$102),1,0) -> 0 | G138: =IF(DedPersonales!$H26=MONTH(G$102),1,0) -> 0 | H138: =IF(DedPersonales!$H26=MONTH(H$102),1,0) -> 0 | I138: =IF(DedPersonales!$H26=MONTH(I$102),1,0) -> 0 | J138: =IF(DedPersonales!$H26=MONTH(J$102),1,0) -> 0 | K138: =IF(DedPersonales!$H26=MONTH(K$102),1,0) -> 0 | L138: =IF(DedPersonales!$H26=MONTH(L$102),1,0) -> 0 | M138: =IF(DedPersonales!$H26=MONTH(M$102),1,0) -> 0 | N138: =IF(DedPersonales!$H26=MONTH(N$102),1,0) -> 0 | O138: =IF(DedPersonales!$H26=MONTH(O$102),1,0) -> 0
C139: Hijo14 | D139: =IF(DedPersonales!$H27=MONTH(D$102),1,0) -> 0 | E139: =IF(DedPersonales!$H27=MONTH(E$102),1,0) -> 0 | F139: =IF(DedPersonales!$H27=MONTH(F$102),1,0) -> 0 | G139: =IF(DedPersonales!$H27=MONTH(G$102),1,0) -> 0 | H139: =IF(DedPersonales!$H27=MONTH(H$102),1,0) -> 0 | I139: =IF(DedPersonales!$H27=MONTH(I$102),1,0) -> 0 | J139: =IF(DedPersonales!$H27=MONTH(J$102),1,0) -> 0 | K139: =IF(DedPersonales!$H27=MONTH(K$102),1,0) -> 0 | L139: =IF(DedPersonales!$H27=MONTH(L$102),1,0) -> 0 | M139: =IF(DedPersonales!$H27=MONTH(M$102),1,0) -> 0 | N139: =IF(DedPersonales!$H27=MONTH(N$102),1,0) -> 0 | O139: =IF(DedPersonales!$H27=MONTH(O$102),1,0) -> 0
C140: Hijo15 | D140: =IF(DedPersonales!$H28=MONTH(D$102),1,0) -> 0 | E140: =IF(DedPersonales!$H28=MONTH(E$102),1,0) -> 0 | F140: =IF(DedPersonales!$H28=MONTH(F$102),1,0) -> 0 | G140: =IF(DedPersonales!$H28=MONTH(G$102),1,0) -> 0 | H140: =IF(DedPersonales!$H28=MONTH(H$102),1,0) -> 0 | I140: =IF(DedPersonales!$H28=MONTH(I$102),1,0) -> 0 | J140: =IF(DedPersonales!$H28=MONTH(J$102),1,0) -> 0 | K140: =IF(DedPersonales!$H28=MONTH(K$102),1,0) -> 0 | L140: =IF(DedPersonales!$H28=MONTH(L$102),1,0) -> 0 | M140: =IF(DedPersonales!$H28=MONTH(M$102),1,0) -> 0 | N140: =IF(DedPersonales!$H28=MONTH(N$102),1,0) -> 0 | O140: =IF(DedPersonales!$H28=MONTH(O$102),1,0) -> 0
C141: Hijo16 | D141: =IF(DedPersonales!$H29=MONTH(D$102),1,0) -> 0 | E141: =IF(DedPersonales!$H29=MONTH(E$102),1,0) -> 0 | F141: =IF(DedPersonales!$H29=MONTH(F$102),1,0) -> 0 | G141: =IF(DedPersonales!$H29=MONTH(G$102),1,0) -> 0 | H141: =IF(DedPersonales!$H29=MONTH(H$102),1,0) -> 0 | I141: =IF(DedPersonales!$H29=MONTH(I$102),1,0) -> 0 | J141: =IF(DedPersonales!$H29=MONTH(J$102),1,0) -> 0 | K141: =IF(DedPersonales!$H29=MONTH(K$102),1,0) -> 0 | L141: =IF(DedPersonales!$H29=MONTH(L$102),1,0) -> 0 | M141: =IF(DedPersonales!$H29=MONTH(M$102),1,0) -> 0 | N141: =IF(DedPersonales!$H29=MONTH(N$102),1,0) -> 0 | O141: =IF(DedPersonales!$H29=MONTH(O$102),1,0) -> 0
C143: Imputación
C144: Cónyuge | D144: =IF(D124=1,SUM($D104:D104),0) -> 0 | E144: =IF(OR(E124=1,D144<>0),SUM($D104:E104),0) -> 0 | F144: =IF(OR(F124=1,E144<>0),SUM($D104:F104),0) -> 0 | G144: =IF(OR(G124=1,F144<>0),SUM($D104:G104),0) -> 0 | H144: =IF(OR(H124=1,G144<>0),SUM($D104:H104),0) -> 0 | I144: =IF(OR(I124=1,H144<>0),SUM($D104:I104),0) -> 0 | J144: =IF(OR(J124=1,I144<>0),SUM($D104:J104),0) -> 0 | K144: =IF(OR(K124=1,J144<>0),SUM($D104:K104),0) -> 0 | L144: =IF(OR(L124=1,K144<>0),SUM($D104:L104),0) -> 0 | M144: =IF(OR(M124=1,L144<>0),SUM($D104:M104),0) -> 0 | N144: =IF(OR(N124=1,M144<>0),SUM($D104:N104),0) -> 0 | O144: =IF(OR(O124=1,N144<>0),SUM($D104:O104),0) -> 0 | P144: =O144 -> 0
C146: Hijo1 | D146: =IF(D126=1,SUM($D106:D106),0) -> 0 | E146: =IF(OR(E126=1,D146<>0),SUM($D106:E106),0) -> 0 | F146: =IF(OR(F126=1,E146<>0),SUM($D106:F106),0) -> 0 | G146: =IF(OR(G126=1,F146<>0),SUM($D106:G106),0) -> 0 | H146: =IF(OR(H126=1,G146<>0),SUM($D106:H106),0) -> 0 | I146: =IF(OR(I126=1,H146<>0),SUM($D106:I106),0) -> 0 | J146: =IF(OR(J126=1,I146<>0),SUM($D106:J106),0) -> 0 | K146: =IF(OR(K126=1,J146<>0),SUM($D106:K106),0) -> 0 | L146: =IF(OR(L126=1,K146<>0),SUM($D106:L106),0) -> 0 | M146: =IF(OR(M126=1,L146<>0),SUM($D106:M106),0) -> 0 | N146: =IF(OR(N126=1,M146<>0),SUM($D106:N106),0) -> 0 | O146: =IF(OR(O126=1,N146<>0),SUM($D106:O106),0) -> 0 | P146: =O146 -> 0
C147: Hijo2 | D147: =IF(D127=1,SUM($D107:D107),0) -> 0 | E147: =IF(OR(E127=1,D147<>0),SUM($D107:E107),0) -> 0 | F147: =IF(OR(F127=1,E147<>0),SUM($D107:F107),0) -> 0 | G147: =IF(OR(G127=1,F147<>0),SUM($D107:G107),0) -> 0 | H147: =IF(OR(H127=1,G147<>0),SUM($D107:H107),0) -> 0 | I147: =IF(OR(I127=1,H147<>0),SUM($D107:I107),0) -> 0 | J147: =IF(OR(J127=1,I147<>0),SUM($D107:J107),0) -> 0 | K147: =IF(OR(K127=1,J147<>0),SUM($D107:K107),0) -> 0 | L147: =IF(OR(L127=1,K147<>0),SUM($D107:L107),0) -> 0 | M147: =IF(OR(M127=1,L147<>0),SUM($D107:M107),0) -> 0 | N147: =IF(OR(N127=1,M147<>0),SUM($D107:N107),0) -> 0 | O147: =IF(OR(O127=1,N147<>0),SUM($D107:O107),0) -> 0 | P147: 0
C148: Hijo3 | D148: =IF(D128=1,SUM($D108:D108),0) -> 0 | E148: =IF(OR(E128=1,D148<>0),SUM($D108:E108),0) -> 0 | F148: =IF(OR(F128=1,E148<>0),SUM($D108:F108),0) -> 0 | G148: =IF(OR(G128=1,F148<>0),SUM($D108:G108),0) -> 0 | H148: =IF(OR(H128=1,G148<>0),SUM($D108:H108),0) -> 0 | I148: =IF(OR(I128=1,H148<>0),SUM($D108:I108),0) -> 0 | J148: =IF(OR(J128=1,I148<>0),SUM($D108:J108),0) -> 0 | K148: =IF(OR(K128=1,J148<>0),SUM($D108:K108),0) -> 0 | L148: =IF(OR(L128=1,K148<>0),SUM($D108:L108),0) -> 0 | M148: =IF(OR(M128=1,L148<>0),SUM($D108:M108),0) -> 0 | N148: =IF(OR(N128=1,M148<>0),SUM($D108:N108),0) -> 0 | O148: =IF(OR(O128=1,N148<>0),SUM($D108:O108),0) -> 0 | P148: 0
C149: Hijo4 | D149: =IF(D129=1,SUM($D109:D109),0) -> 0 | E149: =IF(OR(E129=1,D149<>0),SUM($D109:E109),0) -> 0 | F149: =IF(OR(F129=1,E149<>0),SUM($D109:F109),0) -> 0 | G149: =IF(OR(G129=1,F149<>0),SUM($D109:G109),0) -> 0 | H149: =IF(OR(H129=1,G149<>0),SUM($D109:H109),0) -> 0 | I149: =IF(OR(I129=1,H149<>0),SUM($D109:I109),0) -> 0 | J149: =IF(OR(J129=1,I149<>0),SUM($D109:J109),0) -> 0 | K149: =IF(OR(K129=1,J149<>0),SUM($D109:K109),0) -> 0 | L149: =IF(OR(L129=1,K149<>0),SUM($D109:L109),0) -> 0 | M149: =IF(OR(M129=1,L149<>0),SUM($D109:M109),0) -> 0 | N149: =IF(OR(N129=1,M149<>0),SUM($D109:N109),0) -> 0 | O149: =IF(OR(O129=1,N149<>0),SUM($D109:O109),0) -> 0 | P149: 0
C150: Hijo5 | D150: =IF(D130=1,SUM($D110:D110),0) -> 0 | E150: =IF(OR(E130=1,D150<>0),SUM($D110:E110),0) -> 0 | F150: =IF(OR(F130=1,E150<>0),SUM($D110:F110),0) -> 0 | G150: =IF(OR(G130=1,F150<>0),SUM($D110:G110),0) -> 0 | H150: =IF(OR(H130=1,G150<>0),SUM($D110:H110),0) -> 0 | I150: =IF(OR(I130=1,H150<>0),SUM($D110:I110),0) -> 0 | J150: =IF(OR(J130=1,I150<>0),SUM($D110:J110),0) -> 0 | K150: =IF(OR(K130=1,J150<>0),SUM($D110:K110),0) -> 0 | L150: =IF(OR(L130=1,K150<>0),SUM($D110:L110),0) -> 0 | M150: =IF(OR(M130=1,L150<>0),SUM($D110:M110),0) -> 0 | N150: =IF(OR(N130=1,M150<>0),SUM($D110:N110),0) -> 0 | O150: =IF(OR(O130=1,N150<>0),SUM($D110:O110),0) -> 0 | P150: 0
C151: Hijo6 | D151: =IF(D131=1,SUM($D111:D111),0) -> 0 | E151: =IF(OR(E131=1,D151<>0),SUM($D111:E111),0) -> 0 | F151: =IF(OR(F131=1,E151<>0),SUM($D111:F111),0) -> 0 | G151: =IF(OR(G131=1,F151<>0),SUM($D111:G111),0) -> 0 | H151: =IF(OR(H131=1,G151<>0),SUM($D111:H111),0) -> 0 | I151: =IF(OR(I131=1,H151<>0),SUM($D111:I111),0) -> 0 | J151: =IF(OR(J131=1,I151<>0),SUM($D111:J111),0) -> 0 | K151: =IF(OR(K131=1,J151<>0),SUM($D111:K111),0) -> 0 | L151: =IF(OR(L131=1,K151<>0),SUM($D111:L111),0) -> 0 | M151: =IF(OR(M131=1,L151<>0),SUM($D111:M111),0) -> 0 | N151: =IF(OR(N131=1,M151<>0),SUM($D111:N111),0) -> 0 | O151: =IF(OR(O131=1,N151<>0),SUM($D111:O111),0) -> 0 | P151: 0
C152: Hijo7 | D152: =IF(D132=1,SUM($D112:D112),0) -> 0 | E152: =IF(OR(E132=1,D152<>0),SUM($D112:E112),0) -> 0 | F152: =IF(OR(F132=1,E152<>0),SUM($D112:F112),0) -> 0 | G152: =IF(OR(G132=1,F152<>0),SUM($D112:G112),0) -> 0 | H152: =IF(OR(H132=1,G152<>0),SUM($D112:H112),0) -> 0 | I152: =IF(OR(I132=1,H152<>0),SUM($D112:I112),0) -> 0 | J152: =IF(OR(J132=1,I152<>0),SUM($D112:J112),0) -> 0 | K152: =IF(OR(K132=1,J152<>0),SUM($D112:K112),0) -> 0 | L152: =IF(OR(L132=1,K152<>0),SUM($D112:L112),0) -> 0 | M152: =IF(OR(M132=1,L152<>0),SUM($D112:M112),0) -> 0 | N152: =IF(OR(N132=1,M152<>0),SUM($D112:N112),0) -> 0 | O152: =IF(OR(O132=1,N152<>0),SUM($D112:O112),0) -> 0 | P152: 0
C153: Hijo8 | D153: =IF(D133=1,SUM($D113:D113),0) -> 0 | E153: =IF(OR(E133=1,D153<>0),SUM($D113:E113),0) -> 0 | F153: =IF(OR(F133=1,E153<>0),SUM($D113:F113),0) -> 0 | G153: =IF(OR(G133=1,F153<>0),SUM($D113:G113),0) -> 0 | H153: =IF(OR(H133=1,G153<>0),SUM($D113:H113),0) -> 0 | I153: =IF(OR(I133=1,H153<>0),SUM($D113:I113),0) -> 0 | J153: =IF(OR(J133=1,I153<>0),SUM($D113:J113),0) -> 0 | K153: =IF(OR(K133=1,J153<>0),SUM($D113:K113),0) -> 0 | L153: =IF(OR(L133=1,K153<>0),SUM($D113:L113),0) -> 0 | M153: =IF(OR(M133=1,L153<>0),SUM($D113:M113),0) -> 0 | N153: =IF(OR(N133=1,M153<>0),SUM($D113:N113),0) -> 0 | O153: =IF(OR(O133=1,N153<>0),SUM($D113:O113),0) -> 0 | P153: 0
C154: Hijo9 | D154: =IF(D134=1,SUM($D114:D114),0) -> 0 | E154: =IF(OR(E134=1,D154<>0),SUM($D114:E114),0) -> 0 | F154: =IF(OR(F134=1,E154<>0),SUM($D114:F114),0) -> 0 | G154: =IF(OR(G134=1,F154<>0),SUM($D114:G114),0) -> 0 | H154: =IF(OR(H134=1,G154<>0),SUM($D114:H114),0) -> 0 | I154: =IF(OR(I134=1,H154<>0),SUM($D114:I114),0) -> 0 | J154: =IF(OR(J134=1,I154<>0),SUM($D114:J114),0) -> 0 | K154: =IF(OR(K134=1,J154<>0),SUM($D114:K114),0) -> 0 | L154: =IF(OR(L134=1,K154<>0),SUM($D114:L114),0) -> 0 | M154: =IF(OR(M134=1,L154<>0),SUM($D114:M114),0) -> 0 | N154: =IF(OR(N134=1,M154<>0),SUM($D114:N114),0) -> 0 | O154: =IF(OR(O134=1,N154<>0),SUM($D114:O114),0) -> 0 | P154: 0
C155: Hijo10 | D155: =IF(D135=1,SUM($D115:D115),0) -> 0 | E155: =IF(OR(E135=1,D155<>0),SUM($D115:E115),0) -> 0 | F155: =IF(OR(F135=1,E155<>0),SUM($D115:F115),0) -> 0 | G155: =IF(OR(G135=1,F155<>0),SUM($D115:G115),0) -> 0 | H155: =IF(OR(H135=1,G155<>0),SUM($D115:H115),0) -> 0 | I155: =IF(OR(I135=1,H155<>0),SUM($D115:I115),0) -> 0 | J155: =IF(OR(J135=1,I155<>0),SUM($D115:J115),0) -> 0 | K155: =IF(OR(K135=1,J155<>0),SUM($D115:K115),0) -> 0 | L155: =IF(OR(L135=1,K155<>0),SUM($D115:L115),0) -> 0 | M155: =IF(OR(M135=1,L155<>0),SUM($D115:M115),0) -> 0 | N155: =IF(OR(N135=1,M155<>0),SUM($D115:N115),0) -> 0 | O155: =IF(OR(O135=1,N155<>0),SUM($D115:O115),0) -> 0 | P155: 0
C156: Hijo11 | D156: =IF(D136=1,SUM($D116:D116),0) -> 0 | E156: =IF(OR(E136=1,D156<>0),SUM($D116:E116),0) -> 0 | F156: =IF(OR(F136=1,E156<>0),SUM($D116:F116),0) -> 0 | G156: =IF(OR(G136=1,F156<>0),SUM($D116:G116),0) -> 0 | H156: =IF(OR(H136=1,G156<>0),SUM($D116:H116),0) -> 0 | I156: =IF(OR(I136=1,H156<>0),SUM($D116:I116),0) -> 0 | J156: =IF(OR(J136=1,I156<>0),SUM($D116:J116),0) -> 0 | K156: =IF(OR(K136=1,J156<>0),SUM($D116:K116),0) -> 0 | L156: =IF(OR(L136=1,K156<>0),SUM($D116:L116),0) -> 0 | M156: =IF(OR(M136=1,L156<>0),SUM($D116:M116),0) -> 0 | N156: =IF(OR(N136=1,M156<>0),SUM($D116:N116),0) -> 0 | O156: =IF(OR(O136=1,N156<>0),SUM($D116:O116),0) -> 0 | P156: 0
C157: Hijo12 | D157: =IF(D137=1,SUM($D117:D117),0) -> 0 | E157: =IF(OR(E137=1,D157<>0),SUM($D117:E117),0) -> 0 | F157: =IF(OR(F137=1,E157<>0),SUM($D117:F117),0) -> 0 | G157: =IF(OR(G137=1,F157<>0),SUM($D117:G117),0) -> 0 | H157: =IF(OR(H137=1,G157<>0),SUM($D117:H117),0) -> 0 | I157: =IF(OR(I137=1,H157<>0),SUM($D117:I117),0) -> 0 | J157: =IF(OR(J137=1,I157<>0),SUM($D117:J117),0) -> 0 | K157: =IF(OR(K137=1,J157<>0),SUM($D117:K117),0) -> 0 | L157: =IF(OR(L137=1,K157<>0),SUM($D117:L117),0) -> 0 | M157: =IF(OR(M137=1,L157<>0),SUM($D117:M117),0) -> 0 | N157: =IF(OR(N137=1,M157<>0),SUM($D117:N117),0) -> 0 | O157: =IF(OR(O137=1,N157<>0),SUM($D117:O117),0) -> 0 | P157: 0
C158: Hijo13 | D158: =IF(D138=1,SUM($D118:D118),0) -> 0 | E158: =IF(OR(E138=1,D158<>0),SUM($D118:E118),0) -> 0 | F158: =IF(OR(F138=1,E158<>0),SUM($D118:F118),0) -> 0 | G158: =IF(OR(G138=1,F158<>0),SUM($D118:G118),0) -> 0 | H158: =IF(OR(H138=1,G158<>0),SUM($D118:H118),0) -> 0 | I158: =IF(OR(I138=1,H158<>0),SUM($D118:I118),0) -> 0 | J158: =IF(OR(J138=1,I158<>0),SUM($D118:J118),0) -> 0 | K158: =IF(OR(K138=1,J158<>0),SUM($D118:K118),0) -> 0 | L158: =IF(OR(L138=1,K158<>0),SUM($D118:L118),0) -> 0 | M158: =IF(OR(M138=1,L158<>0),SUM($D118:M118),0) -> 0 | N158: =IF(OR(N138=1,M158<>0),SUM($D118:N118),0) -> 0 | O158: =IF(OR(O138=1,N158<>0),SUM($D118:O118),0) -> 0 | P158: 0
C159: Hijo14 | D159: =IF(D139=1,SUM($D119:D119),0) -> 0 | E159: =IF(OR(E139=1,D159<>0),SUM($D119:E119),0) -> 0 | F159: =IF(OR(F139=1,E159<>0),SUM($D119:F119),0) -> 0 | G159: =IF(OR(G139=1,F159<>0),SUM($D119:G119),0) -> 0 | H159: =IF(OR(H139=1,G159<>0),SUM($D119:H119),0) -> 0 | I159: =IF(OR(I139=1,H159<>0),SUM($D119:I119),0) -> 0 | J159: =IF(OR(J139=1,I159<>0),SUM($D119:J119),0) -> 0 | K159: =IF(OR(K139=1,J159<>0),SUM($D119:K119),0) -> 0 | L159: =IF(OR(L139=1,K159<>0),SUM($D119:L119),0) -> 0 | M159: =IF(OR(M139=1,L159<>0),SUM($D119:M119),0) -> 0 | N159: =IF(OR(N139=1,M159<>0),SUM($D119:N119),0) -> 0 | O159: =IF(OR(O139=1,N159<>0),SUM($D119:O119),0) -> 0 | P159: 0
C160: Hijo15 | D160: =IF(D140=1,SUM($D120:D120),0) -> 0 | E160: =IF(OR(E140=1,D160<>0),SUM($D120:E120),0) -> 0 | F160: =IF(OR(F140=1,E160<>0),SUM($D120:F120),0) -> 0 | G160: =IF(OR(G140=1,F160<>0),SUM($D120:G120),0) -> 0 | H160: =IF(OR(H140=1,G160<>0),SUM($D120:H120),0) -> 0 | I160: =IF(OR(I140=1,H160<>0),SUM($D120:I120),0) -> 0 | J160: =IF(OR(J140=1,I160<>0),SUM($D120:J120),0) -> 0 | K160: =IF(OR(K140=1,J160<>0),SUM($D120:K120),0) -> 0 | L160: =IF(OR(L140=1,K160<>0),SUM($D120:L120),0) -> 0 | M160: =IF(OR(M140=1,L160<>0),SUM($D120:M120),0) -> 0 | N160: =IF(OR(N140=1,M160<>0),SUM($D120:N120),0) -> 0 | O160: =IF(OR(O140=1,N160<>0),SUM($D120:O120),0) -> 0 | P160: 0
C161: Hijo16 | D161: =IF(D141=1,SUM($D121:D121),0) -> 0 | E161: =IF(OR(E141=1,D161<>0),SUM($D121:E121),0) -> 0 | F161: =IF(OR(F141=1,E161<>0),SUM($D121:F121),0) -> 0 | G161: =IF(OR(G141=1,F161<>0),SUM($D121:G121),0) -> 0 | H161: =IF(OR(H141=1,G161<>0),SUM($D121:H121),0) -> 0 | I161: =IF(OR(I141=1,H161<>0),SUM($D121:I121),0) -> 0 | J161: =IF(OR(J141=1,I161<>0),SUM($D121:J121),0) -> 0 | K161: =IF(OR(K141=1,J161<>0),SUM($D121:K121),0) -> 0 | L161: =IF(OR(L141=1,K161<>0),SUM($D121:L121),0) -> 0 | M161: =IF(OR(M141=1,L161<>0),SUM($D121:M121),0) -> 0 | N161: =IF(OR(N141=1,M161<>0),SUM($D121:N121),0) -> 0 | O161: =IF(OR(O141=1,N161<>0),SUM($D121:O121),0) -> 0 | P161: 0
C163: Retenciones al SAC | D163: 2017-01-01 | E163: 2017-02-01 | F163: 2017-03-01 | G163: 2017-04-01 | H163: 2017-05-01 | I163: 2017-06-01 | J163: 2017-07-01 | K163: 2017-08-01 | L163: 2017-09-01 | M163: 2017-10-01 | N163: 2017-11-01 | O163: 2017-12-01 | P163: Anual
C164: SAC Importe | D164: =+Ingresos!C12+Ingresos!C51 -> 0 | E164: =+Ingresos!D12+Ingresos!D51 -> 0 | F164: =+Ingresos!E12+Ingresos!E51 -> 0 | G164: =+Ingresos!F12+Ingresos!F51 -> 0 | H164: =+Ingresos!G12+Ingresos!G51 -> 0 | I164: =+Ingresos!H12+Ingresos!H51 -> 0 | J164: =+Ingresos!I12+Ingresos!I51 -> 0 | K164: =+Ingresos!J12+Ingresos!J51 -> 0 | L164: =+Ingresos!K12+Ingresos!K51 -> 0 | M164: =+Ingresos!L12+Ingresos!L51 -> 0 | N164: =+Ingresos!M12+Ingresos!M51 -> 0 | O164: =+Ingresos!N12+Ingresos!N51 -> 0 | P164: =SUM(D164:O164) -> 0
C165: SUMA Remunerativo | D165: =+D10+D9 -> 0 | E165: 0 | F165: 0 | G165: 0 | H165: 0 | I165: 0 | J165: 0 | K165: 0 | L165: 0 | M165: 0 | N165: 0 | O165: 0 | P165: =SUM(D165:O165) -> 0
C166: Empleo + Pluriempleo
C167: =+C30 -> Jubilación | D167: =IF(D$164<>0,retenciones(Check!$B$8,$R167,SUM(D$164:D$165),Tablas!C$7*1.5,Tablas!C8,D$164,0),0) -> 0 | E167: =IF(E$164<>0,retenciones(Check!$B$8,$R167,SUM(E$164:E$165),Tablas!D$7*1.5,Tablas!D8,E$164,0),0) -> 0 | F167: =IF(F$164<>0,retenciones(Check!$B$8,$R167,SUM(F$164:F$165),Tablas!E$7*1.5,Tablas!E8,F$164,0),0) -> 0 | G167: =IF(G$164<>0,retenciones(Check!$B$8,$R167,SUM(G$164:G$165),Tablas!F$7*1.5,Tablas!F8,G$164,0),0) -> 0 | H167: =IF(H$164<>0,retenciones(Check!$B$8,$R167,SUM(H$164:H$165),Tablas!G$7*1.5,Tablas!G8,H$164,0),0) -> 0 | I167: =IF(I$164<>0,retenciones(Check!$B$8,$R167,SUM(I$164:I$165),Tablas!H$7*1.5,Tablas!H8,I$164,0),0) -> 0 | J167: =IF(J$164<>0,retenciones(Check!$B$8,$R167,SUM(J$164:J$165),Tablas!I$7*1.5,Tablas!I8,J$164,0),0) -> 0 | K167: =IF(K$164<>0,retenciones(Check!$B$8,$R167,SUM(K$164:K$165),Tablas!J$7*1.5,Tablas!J8,K$164,0),0) -> 0 | L167: =IF(L$164<>0,retenciones(Check!$B$8,$R167,SUM(L$164:L$165),Tablas!K$7*1.5,Tablas!K8,L$164,0),0) -> 0 | M167: =IF(M$164<>0,retenciones(Check!$B$8,$R167,SUM(M$164:M$165),Tablas!L$7*1.5,Tablas!L8,M$164,0),0) -> 0 | N167: =IF(N$164<>0,retenciones(Check!$B$8,$R167,SUM(N$164:N$165),Tablas!M$7*1.5,Tablas!M8,N$164,0),0) -> 0 | O167: =IF(O$164<>0,retenciones(Check!$B$8,$R167,SUM(O$164:O$165),Tablas!N$7*1.5,Tablas!N8,O$164,0),0) -> 0 | P167: =IF(Check!$B$8="Ok",SUM(D167:O167),DedGrales!P23) -> 0 | R167: =+R30 -> Sí
C168: Ley 19032 | D168: =IF(D$164<>0,retenciones(Check!$B$8,$R168,SUM(D$164:D$165),Tablas!C$7*1.5,Tablas!C9,D$164,0),0) -> 0 | E168: =IF(E$164<>0,retenciones(Check!$B$8,$R168,SUM(E$164:E$165),Tablas!D$7*1.5,Tablas!D9,E$164,0),0) -> 0 | F168: =IF(F$164<>0,retenciones(Check!$B$8,$R168,SUM(F$164:F$165),Tablas!E$7*1.5,Tablas!E9,F$164,0),0) -> 0 | G168: =IF(G$164<>0,retenciones(Check!$B$8,$R168,SUM(G$164:G$165),Tablas!F$7*1.5,Tablas!F9,G$164,0),0) -> 0 | H168: =IF(H$164<>0,retenciones(Check!$B$8,$R168,SUM(H$164:H$165),Tablas!G$7*1.5,Tablas!G9,H$164,0),0) -> 0 | I168: =IF(I$164<>0,retenciones(Check!$B$8,$R168,SUM(I$164:I$165),Tablas!H$7*1.5,Tablas!H9,I$164,0),0) -> 0 | J168: =IF(J$164<>0,retenciones(Check!$B$8,$R168,SUM(J$164:J$165),Tablas!I$7*1.5,Tablas!I9,J$164,0),0) -> 0 | K168: =IF(K$164<>0,retenciones(Check!$B$8,$R168,SUM(K$164:K$165),Tablas!J$7*1.5,Tablas!J9,K$164,0),0) -> 0 | L168: =IF(L$164<>0,retenciones(Check!$B$8,$R168,SUM(L$164:L$165),Tablas!K$7*1.5,Tablas!K9,L$164,0),0) -> 0 | M168: =IF(M$164<>0,retenciones(Check!$B$8,$R168,SUM(M$164:M$165),Tablas!L$7*1.5,Tablas!L9,M$164,0),0) -> 0 | N168: =IF(N$164<>0,retenciones(Check!$B$8,$R168,SUM(N$164:N$165),Tablas!M$7*1.5,Tablas!M9,N$164,0),0) -> 0 | O168: =IF(O$164<>0,retenciones(Check!$B$8,$R168,SUM(O$164:O$165),Tablas!N$7*1.5,Tablas!N9,O$164,0),0) -> 0 | P168: =IF(Check!$B$8="Ok",SUM(D168:O168),DedGrales!P24) -> 0 | R168: Sí
C169: Obra social | D169: =IF(D$164<>0,retenciones(Check!$B$8,$R169,SUM(D$164:D$165),Tablas!C$7*1.5,Tablas!C10,D$164,0),0) -> 0 | E169: =IF(E$164<>0,retenciones(Check!$B$8,$R169,SUM(E$164:E$165),Tablas!D$7*1.5,Tablas!D10,E$164,0),0) -> 0 | F169: =IF(F$164<>0,retenciones(Check!$B$8,$R169,SUM(F$164:F$165),Tablas!E$7*1.5,Tablas!E10,F$164,0),0) -> 0 | G169: =IF(G$164<>0,retenciones(Check!$B$8,$R169,SUM(G$164:G$165),Tablas!F$7*1.5,Tablas!F10,G$164,0),0) -> 0 | H169: =IF(H$164<>0,retenciones(Check!$B$8,$R169,SUM(H$164:H$165),Tablas!G$7*1.5,Tablas!G10,H$164,0),0) -> 0 | I169: =IF(I$164<>0,retenciones(Check!$B$8,$R169,SUM(I$164:I$165),Tablas!H$7*1.5,Tablas!H10,I$164,0),0) -> 0 | J169: =IF(J$164<>0,retenciones(Check!$B$8,$R169,SUM(J$164:J$165),Tablas!I$7*1.5,Tablas!I10,J$164,0),0) -> 0 | K169: =IF(K$164<>0,retenciones(Check!$B$8,$R169,SUM(K$164:K$165),Tablas!J$7*1.5,Tablas!J10,K$164,0),0) -> 0 | L169: =IF(L$164<>0,retenciones(Check!$B$8,$R169,SUM(L$164:L$165),Tablas!K$7*1.5,Tablas!K10,L$164,0),0) -> 0 | M169: =IF(M$164<>0,retenciones(Check!$B$8,$R169,SUM(M$164:M$165),Tablas!L$7*1.5,Tablas!L10,M$164,0),0) -> 0 | N169: =IF(N$164<>0,retenciones(Check!$B$8,$R169,SUM(N$164:N$165),Tablas!M$7*1.5,Tablas!M10,N$164,0),0) -> 0 | O169: =IF(O$164<>0,retenciones(Check!$B$8,$R169,SUM(O$164:O$165),Tablas!N$7*1.5,Tablas!N10,O$164,0),0) -> 0 | P169: =IF(Check!$B$8="Ok",SUM(D169:O169),DedGrales!P25) -> 0 | R169: Sí
C170: Sindicato | D170: =IF(D$164<>0,retenciones(Check!$B$8,$R170,SUM(D$164:D$165),Tablas!C$7*1.5,Tablas!C11,D$164,0),0) -> 0 | E170: =IF(E$164<>0,retenciones(Check!$B$8,$R170,SUM(E$164:E$165),Tablas!D$7*1.5,Tablas!D11,E$164,0),0) -> 0 | F170: =IF(F$164<>0,retenciones(Check!$B$8,$R170,SUM(F$164:F$165),Tablas!E$7*1.5,Tablas!E11,F$164,0),0) -> 0 | G170: =IF(G$164<>0,retenciones(Check!$B$8,$R170,SUM(G$164:G$165),Tablas!F$7*1.5,Tablas!F11,G$164,0),0) -> 0 | H170: =IF(H$164<>0,retenciones(Check!$B$8,$R170,SUM(H$164:H$165),Tablas!G$7*1.5,Tablas!G11,H$164,0),0) -> 0 | I170: =IF(I$164<>0,retenciones(Check!$B$8,$R170,SUM(I$164:I$165),Tablas!H$7*1.5,Tablas!H11,I$164,0),0) -> 0 | J170: =IF(J$164<>0,retenciones(Check!$B$8,$R170,SUM(J$164:J$165),Tablas!I$7*1.5,Tablas!I11,J$164,0),0) -> 0 | K170: =IF(K$164<>0,retenciones(Check!$B$8,$R170,SUM(K$164:K$165),Tablas!J$7*1.5,Tablas!J11,K$164,0),0) -> 0 | L170: =IF(L$164<>0,retenciones(Check!$B$8,$R170,SUM(L$164:L$165),Tablas!K$7*1.5,Tablas!K11,L$164,0),0) -> 0 | M170: =IF(M$164<>0,retenciones(Check!$B$8,$R170,SUM(M$164:M$165),Tablas!L$7*1.5,Tablas!L11,M$164,0),0) -> 0 | N170: =IF(N$164<>0,retenciones(Check!$B$8,$R170,SUM(N$164:N$165),Tablas!M$7*1.5,Tablas!M11,N$164,0),0) -> 0 | O170: =IF(O$164<>0,retenciones(Check!$B$8,$R170,SUM(O$164:O$165),Tablas!N$7*1.5,Tablas!N11,O$164,0),0) -> 0 | P170: =IF(Check!$B$8="Ok",SUM(D170:O170),DedGrales!P26) -> 0 | R170: No
C171: 0 | D171: =IF(D$164<>0,retenciones(Check!$B$8,$R171,SUM(D$164:D$165),Tablas!C$7*1.5,Tablas!C12,D$164,0),0) -> 0 | E171: =IF(E$164<>0,retenciones(Check!$B$8,$R171,SUM(E$164:E$165),Tablas!D$7*1.5,Tablas!D12,E$164,0),0) -> 0 | F171: =IF(F$164<>0,retenciones(Check!$B$8,$R171,SUM(F$164:F$165),Tablas!E$7*1.5,Tablas!E12,F$164,0),0) -> 0 | G171: =IF(G$164<>0,retenciones(Check!$B$8,$R171,SUM(G$164:G$165),Tablas!F$7*1.5,Tablas!F12,G$164,0),0) -> 0 | H171: =IF(H$164<>0,retenciones(Check!$B$8,$R171,SUM(H$164:H$165),Tablas!G$7*1.5,Tablas!G12,H$164,0),0) -> 0 | I171: =IF(I$164<>0,retenciones(Check!$B$8,$R171,SUM(I$164:I$165),Tablas!H$7*1.5,Tablas!H12,I$164,0),0) -> 0 | J171: =IF(J$164<>0,retenciones(Check!$B$8,$R171,SUM(J$164:J$165),Tablas!I$7*1.5,Tablas!I12,J$164,0),0) -> 0 | K171: =IF(K$164<>0,retenciones(Check!$B$8,$R171,SUM(K$164:K$165),Tablas!J$7*1.5,Tablas!J12,K$164,0),0) -> 0 | L171: =IF(L$164<>0,retenciones(Check!$B$8,$R171,SUM(L$164:L$165),Tablas!K$7*1.5,Tablas!K12,L$164,0),0) -> 0 | M171: =IF(M$164<>0,retenciones(Check!$B$8,$R171,SUM(M$164:M$165),Tablas!L$7*1.5,Tablas!L12,M$164,0),0) -> 0 | N171: =IF(N$164<>0,retenciones(Check!$B$8,$R171,SUM(N$164:N$165),Tablas!M$7*1.5,Tablas!M12,N$164,0),0) -> 0 | O171: =IF(O$164<>0,retenciones(Check!$B$8,$R171,SUM(O$164:O$165),Tablas!N$7*1.5,Tablas!N12,O$164,0),0) -> 0 | P171: =IF(Check!$B$8="Ok",SUM(D171:O171),DedGrales!P27) -> 0 | R171: No
C172: 0 | D172: =IF(D$164<>0,retenciones(Check!$B$8,$R172,SUM(D$164:D$165),Tablas!C$7*1.5,Tablas!C13,D$164,0),0) -> 0 | E172: =IF(E$164<>0,retenciones(Check!$B$8,$R172,SUM(E$164:E$165),Tablas!D$7*1.5,Tablas!D13,E$164,0),0) -> 0 | F172: =IF(F$164<>0,retenciones(Check!$B$8,$R172,SUM(F$164:F$165),Tablas!E$7*1.5,Tablas!E13,F$164,0),0) -> 0 | G172: =IF(G$164<>0,retenciones(Check!$B$8,$R172,SUM(G$164:G$165),Tablas!F$7*1.5,Tablas!F13,G$164,0),0) -> 0 | H172: =IF(H$164<>0,retenciones(Check!$B$8,$R172,SUM(H$164:H$165),Tablas!G$7*1.5,Tablas!G13,H$164,0),0) -> 0 | I172: =IF(I$164<>0,retenciones(Check!$B$8,$R172,SUM(I$164:I$165),Tablas!H$7*1.5,Tablas!H13,I$164,0),0) -> 0 | J172: =IF(J$164<>0,retenciones(Check!$B$8,$R172,SUM(J$164:J$165),Tablas!I$7*1.5,Tablas!I13,J$164,0),0) -> 0 | K172: =IF(K$164<>0,retenciones(Check!$B$8,$R172,SUM(K$164:K$165),Tablas!J$7*1.5,Tablas!J13,K$164,0),0) -> 0 | L172: =IF(L$164<>0,retenciones(Check!$B$8,$R172,SUM(L$164:L$165),Tablas!K$7*1.5,Tablas!K13,L$164,0),0) -> 0 | M172: =IF(M$164<>0,retenciones(Check!$B$8,$R172,SUM(M$164:M$165),Tablas!L$7*1.5,Tablas!L13,M$164,0),0) -> 0 | N172: =IF(N$164<>0,retenciones(Check!$B$8,$R172,SUM(N$164:N$165),Tablas!M$7*1.5,Tablas!M13,N$164,0),0) -> 0 | O172: =IF(O$164<>0,retenciones(Check!$B$8,$R172,SUM(O$164:O$165),Tablas!N$7*1.5,Tablas!N13,O$164,0),0) -> 0 | P172: =IF(Check!$B$8="Ok",SUM(D172:O172),DedGrales!P28) -> 0 | R172: No
C173: Total | D173: =+SUM(D167:D172) -> 0 | E173: 0 | F173: 0 | G173: 0 | H173: 0 | I173: 0 | J173: 0 | K173: 0 | L173: 0 | M173: 0 | N173: 0 | O173: 0 | P173: =+SUM(P167:P172) -> 0
C174: Filtro
C175: Retenciones estimadas | D175: 2017-01-01 | E175: 2017-02-01 | F175: 2017-03-01 | G175: 2017-04-01 | H175: 2017-05-01 | I175: 2017-06-01 | J175: 2017-07-01 | K175: 2017-08-01 | L175: 2017-09-01 | M175: 2017-10-01 | N175: 2017-11-01 | O175: 2017-12-01 | P175: Anual
C176: SAC Importe estimado bruto 1 | D176: =+D197 -> 0 | E176: =+E197 -> 0 | F176: 0 | G176: 0 | H176: 0 | I176: 0 | J176: 0 | K176: 0 | L176: 0 | M176: 0 | N176: 0 | O176: 0
C177: =+C167 -> Jubilación | D177: =maximo(D$176,Tablas!C$7/12)*Tablas!C8 -> 0 | E177: =maximo(E$176,Tablas!D$7/12)*Tablas!D8 -> 0 | F177: =maximo(F$176,Tablas!E$7/12)*Tablas!E8 -> 0 | G177: =maximo(G$176,Tablas!F$7/12)*Tablas!F8 -> 0 | H177: =maximo(H$176,Tablas!G$7/12)*Tablas!G8 -> 0 | I177: =maximo(I$176,Tablas!H$7/12)*Tablas!H8 -> 0 | J177: =maximo(J$176,Tablas!I$7/12)*Tablas!I8 -> 0 | K177: =maximo(K$176,Tablas!J$7/12)*Tablas!J8 -> 0 | L177: =maximo(L$176,Tablas!K$7/12)*Tablas!K8 -> 0 | M177: =maximo(M$176,Tablas!L$7/12)*Tablas!L8 -> 0 | N177: =maximo(N$176,Tablas!M$7/12)*Tablas!M8 -> 0 | O177: =maximo(O$176,Tablas!N$7/12)*Tablas!N8 -> 0 | P177: =IF(Check!$B$8="Ok",SUM(D177:O177),DedGrales!P161) -> 0 | R177: =+R30 -> Sí
C178: =+C168 -> Ley 19032 | D178: =maximo(D$176,Tablas!C$7/12)*Tablas!C9 -> 0 | E178: =maximo(E$176,Tablas!D$7/12)*Tablas!D9 -> 0 | F178: =maximo(F$176,Tablas!E$7/12)*Tablas!E9 -> 0 | G178: =maximo(G$176,Tablas!F$7/12)*Tablas!F9 -> 0 | H178: =maximo(H$176,Tablas!G$7/12)*Tablas!G9 -> 0 | I178: =maximo(I$176,Tablas!H$7/12)*Tablas!H9 -> 0 | J178: =maximo(J$176,Tablas!I$7/12)*Tablas!I9 -> 0 | K178: =maximo(K$176,Tablas!J$7/12)*Tablas!J9 -> 0 | L178: =maximo(L$176,Tablas!K$7/12)*Tablas!K9 -> 0 | M178: =maximo(M$176,Tablas!L$7/12)*Tablas!L9 -> 0 | N178: =maximo(N$176,Tablas!M$7/12)*Tablas!M9 -> 0 | O178: =maximo(O$176,Tablas!N$7/12)*Tablas!N9 -> 0 | P178: =IF(Check!$B$8="Ok",SUM(D178:O178),DedGrales!P162) -> 0 | R178: Sí
C179: Obra social | D179: =maximo(D$176,Tablas!C$7/12)*Tablas!C10 -> 0 | E179: =maximo(E$176,Tablas!D$7/12)*Tablas!D10 -> 0 | F179: =maximo(F$176,Tablas!E$7/12)*Tablas!E10 -> 0 | G179: =maximo(G$176,Tablas!F$7/12)*Tablas!F10 -> 0 | H179: =maximo(H$176,Tablas!G$7/12)*Tablas!G10 -> 0 | I179: =maximo(I$176,Tablas!H$7/12)*Tablas!H10 -> 0 | J179: =maximo(J$176,Tablas!I$7/12)*Tablas!I10 -> 0 | K179: =maximo(K$176,Tablas!J$7/12)*Tablas!J10 -> 0 | L179: =maximo(L$176,Tablas!K$7/12)*Tablas!K10 -> 0 | M179: =maximo(M$176,Tablas!L$7/12)*Tablas!L10 -> 0 | N179: =maximo(N$176,Tablas!M$7/12)*Tablas!M10 -> 0 | O179: =maximo(O$176,Tablas!N$7/12)*Tablas!N10 -> 0 | P179: =IF(Check!$B$8="Ok",SUM(D179:O179),DedGrales!P163) -> 0 | R179: Sí
C180: Sindicato | D180: =maximo(D$176,Tablas!C$7/12)*Tablas!C11 -> 0 | E180: =maximo(E$176,Tablas!D$7/12)*Tablas!D11 -> 0 | F180: =maximo(F$176,Tablas!E$7/12)*Tablas!E11 -> 0 | G180: =maximo(G$176,Tablas!F$7/12)*Tablas!F11 -> 0 | H180: =maximo(H$176,Tablas!G$7/12)*Tablas!G11 -> 0 | I180: =maximo(I$176,Tablas!H$7/12)*Tablas!H11 -> 0 | J180: =maximo(J$176,Tablas!I$7/12)*Tablas!I11 -> 0 | K180: =maximo(K$176,Tablas!J$7/12)*Tablas!J11 -> 0 | L180: =maximo(L$176,Tablas!K$7/12)*Tablas!K11 -> 0 | M180: =maximo(M$176,Tablas!L$7/12)*Tablas!L11 -> 0 | N180: =maximo(N$176,Tablas!M$7/12)*Tablas!M11 -> 0 | O180: =maximo(O$176,Tablas!N$7/12)*Tablas!N11 -> 0 | P180: =IF(Check!$B$8="Ok",SUM(D180:O180),DedGrales!P164) -> 0 | R180: No
C181: 0 | D181: =maximo(D$176,Tablas!C$7/12)*Tablas!C12 -> 0 | E181: =maximo(E$176,Tablas!D$7/12)*Tablas!D12 -> 0 | F181: =maximo(F$176,Tablas!E$7/12)*Tablas!E12 -> 0 | G181: =maximo(G$176,Tablas!F$7/12)*Tablas!F12 -> 0 | H181: =maximo(H$176,Tablas!G$7/12)*Tablas!G12 -> 0 | I181: =maximo(I$176,Tablas!H$7/12)*Tablas!H12 -> 0 | J181: =maximo(J$176,Tablas!I$7/12)*Tablas!I12 -> 0 | K181: =maximo(K$176,Tablas!J$7/12)*Tablas!J12 -> 0 | L181: =maximo(L$176,Tablas!K$7/12)*Tablas!K12 -> 0 | M181: =maximo(M$176,Tablas!L$7/12)*Tablas!L12 -> 0 | N181: =maximo(N$176,Tablas!M$7/12)*Tablas!M12 -> 0 | O181: =maximo(O$176,Tablas!N$7/12)*Tablas!N12 -> 0 | P181: =IF(Check!$B$8="Ok",SUM(D181:O181),DedGrales!P165) -> 0 | R181: No
C182: 0 | D182: =maximo(D$176,Tablas!C$7/12)*Tablas!C13 -> 0 | E182: =maximo(E$176,Tablas!D$7/12)*Tablas!D13 -> 0 | F182: =maximo(F$176,Tablas!E$7/12)*Tablas!E13 -> 0 | G182: =maximo(G$176,Tablas!F$7/12)*Tablas!F13 -> 0 | H182: =maximo(H$176,Tablas!G$7/12)*Tablas!G13 -> 0 | I182: =maximo(I$176,Tablas!H$7/12)*Tablas!H13 -> 0 | J182: =maximo(J$176,Tablas!I$7/12)*Tablas!I13 -> 0 | K182: =maximo(K$176,Tablas!J$7/12)*Tablas!J13 -> 0 | L182: =maximo(L$176,Tablas!K$7/12)*Tablas!K13 -> 0 | M182: =maximo(M$176,Tablas!L$7/12)*Tablas!L13 -> 0 | N182: =maximo(N$176,Tablas!M$7/12)*Tablas!M13 -> 0 | O182: =maximo(O$176,Tablas!N$7/12)*Tablas!N13 -> 0 | P182: =IF(Check!$B$8="Ok",SUM(D182:O182),DedGrales!P166) -> 0 | R182: No
C183: Total | D183: =+SUM(D177:D182) -> 0 | E183: 0 | F183: 0 | G183: 0 | H183: 0 | I183: 0 | J183: 0 | K183: 0 | L183: 0 | M183: 0 | N183: 0 | O183: 0 | P183: =+SUM(P177:P182) -> 0
C185: Retenciones estimadas | D185: 2017-01-01 | E185: 2017-02-01 | F185: 2017-03-01 | G185: 2017-04-01 | H185: 2017-05-01 | I185: 2017-06-01 | J185: 2017-07-01 | K185: 2017-08-01 | L185: 2017-09-01 | M185: 2017-10-01 | N185: 2017-11-01 | O185: 2017-12-01 | P185: Anual
C186: SAC Importe estimado bruto 2 | D186: =+D202 -> 0 | E186: =+E202 -> 0 | F186: 0 | G186: 0 | H186: 0 | I186: 0 | J186: 0 | K186: 0 | L186: 0 | M186: 0 | N186: 0 | O186: 0
C187: =+C177 -> Jubilación | D187: =maximo(D$186,Tablas!C$7/12)*Tablas!C8 -> 0 | E187: =maximo(E$186,Tablas!D$7/12)*Tablas!D8 -> 0 | F187: =maximo(F$186,Tablas!E$7/12)*Tablas!E8 -> 0 | G187: =maximo(G$186,Tablas!F$7/12)*Tablas!F8 -> 0 | H187: =maximo(H$186,Tablas!G$7/12)*Tablas!G8 -> 0 | I187: =maximo(I$186,Tablas!H$7/12)*Tablas!H8 -> 0 | J187: =maximo(J$186,Tablas!I$7/12)*Tablas!I8 -> 0 | K187: =maximo(K$186,Tablas!J$7/12)*Tablas!J8 -> 0 | L187: =maximo(L$186,Tablas!K$7/12)*Tablas!K8 -> 0 | M187: =maximo(M$186,Tablas!L$7/12)*Tablas!L8 -> 0 | N187: =maximo(N$186,Tablas!M$7/12)*Tablas!M8 -> 0 | O187: =maximo(O$186,Tablas!N$7/12)*Tablas!N8 -> 0 | P187: =IF(Check!$B$8="Ok",SUM(D187:O187),DedGrales!P171) -> 0 | R187: =+R40 -> No
C188: =+C178 -> Ley 19032 | D188: =maximo(D$186,Tablas!C$7/12)*Tablas!C9 -> 0 | E188: =maximo(E$186,Tablas!D$7/12)*Tablas!D9 -> 0 | F188: =maximo(F$186,Tablas!E$7/12)*Tablas!E9 -> 0 | G188: =maximo(G$186,Tablas!F$7/12)*Tablas!F9 -> 0 | H188: =maximo(H$186,Tablas!G$7/12)*Tablas!G9 -> 0 | I188: =maximo(I$186,Tablas!H$7/12)*Tablas!H9 -> 0 | J188: =maximo(J$186,Tablas!I$7/12)*Tablas!I9 -> 0 | K188: =maximo(K$186,Tablas!J$7/12)*Tablas!J9 -> 0 | L188: =maximo(L$186,Tablas!K$7/12)*Tablas!K9 -> 0 | M188: =maximo(M$186,Tablas!L$7/12)*Tablas!L9 -> 0 | N188: =maximo(N$186,Tablas!M$7/12)*Tablas!M9 -> 0 | O188: =maximo(O$186,Tablas!N$7/12)*Tablas!N9 -> 0 | P188: =IF(Check!$B$8="Ok",SUM(D188:O188),DedGrales!P172) -> 0 | R188: No
C189: Obra social | D189: =maximo(D$186,Tablas!C$7/12)*Tablas!C10 -> 0 | E189: =maximo(E$186,Tablas!D$7/12)*Tablas!D10 -> 0 | F189: =maximo(F$186,Tablas!E$7/12)*Tablas!E10 -> 0 | G189: =maximo(G$186,Tablas!F$7/12)*Tablas!F10 -> 0 | H189: =maximo(H$186,Tablas!G$7/12)*Tablas!G10 -> 0 | I189: =maximo(I$186,Tablas!H$7/12)*Tablas!H10 -> 0 | J189: =maximo(J$186,Tablas!I$7/12)*Tablas!I10 -> 0 | K189: =maximo(K$186,Tablas!J$7/12)*Tablas!J10 -> 0 | L189: =maximo(L$186,Tablas!K$7/12)*Tablas!K10 -> 0 | M189: =maximo(M$186,Tablas!L$7/12)*Tablas!L10 -> 0 | N189: =maximo(N$186,Tablas!M$7/12)*Tablas!M10 -> 0 | O189: =maximo(O$186,Tablas!N$7/12)*Tablas!N10 -> 0 | P189: =IF(Check!$B$8="Ok",SUM(D189:O189),DedGrales!P173) -> 0 | R189: No
C190: Sindicato | D190: =maximo(D$186,Tablas!C$7/12)*Tablas!C11 -> 0 | E190: =maximo(E$186,Tablas!D$7/12)*Tablas!D11 -> 0 | F190: =maximo(F$186,Tablas!E$7/12)*Tablas!E11 -> 0 | G190: =maximo(G$186,Tablas!F$7/12)*Tablas!F11 -> 0 | H190: =maximo(H$186,Tablas!G$7/12)*Tablas!G11 -> 0 | I190: =maximo(I$186,Tablas!H$7/12)*Tablas!H11 -> 0 | J190: =maximo(J$186,Tablas!I$7/12)*Tablas!I11 -> 0 | K190: =maximo(K$186,Tablas!J$7/12)*Tablas!J11 -> 0 | L190: =maximo(L$186,Tablas!K$7/12)*Tablas!K11 -> 0 | M190: =maximo(M$186,Tablas!L$7/12)*Tablas!L11 -> 0 | N190: =maximo(N$186,Tablas!M$7/12)*Tablas!M11 -> 0 | O190: =maximo(O$186,Tablas!N$7/12)*Tablas!N11 -> 0 | P190: =IF(Check!$B$8="Ok",SUM(D190:O190),DedGrales!P174) -> 0 | R190: 0
C191: 0 | D191: =maximo(D$186,Tablas!C$7/12)*Tablas!C12 -> 0 | E191: =maximo(E$186,Tablas!D$7/12)*Tablas!D12 -> 0 | F191: =maximo(F$186,Tablas!E$7/12)*Tablas!E12 -> 0 | G191: =maximo(G$186,Tablas!F$7/12)*Tablas!F12 -> 0 | H191: =maximo(H$186,Tablas!G$7/12)*Tablas!G12 -> 0 | I191: =maximo(I$186,Tablas!H$7/12)*Tablas!H12 -> 0 | J191: =maximo(J$186,Tablas!I$7/12)*Tablas!I12 -> 0 | K191: =maximo(K$186,Tablas!J$7/12)*Tablas!J12 -> 0 | L191: =maximo(L$186,Tablas!K$7/12)*Tablas!K12 -> 0 | M191: =maximo(M$186,Tablas!L$7/12)*Tablas!L12 -> 0 | N191: =maximo(N$186,Tablas!M$7/12)*Tablas!M12 -> 0 | O191: =maximo(O$186,Tablas!N$7/12)*Tablas!N12 -> 0 | P191: =IF(Check!$B$8="Ok",SUM(D191:O191),DedGrales!P175) -> 0 | R191: 0
C192: 0 | D192: =maximo(D$186,Tablas!C$7/12)*Tablas!C13 -> 0 | E192: =maximo(E$186,Tablas!D$7/12)*Tablas!D13 -> 0 | F192: =maximo(F$186,Tablas!E$7/12)*Tablas!E13 -> 0 | G192: =maximo(G$186,Tablas!F$7/12)*Tablas!F13 -> 0 | H192: =maximo(H$186,Tablas!G$7/12)*Tablas!G13 -> 0 | I192: =maximo(I$186,Tablas!H$7/12)*Tablas!H13 -> 0 | J192: =maximo(J$186,Tablas!I$7/12)*Tablas!I13 -> 0 | K192: =maximo(K$186,Tablas!J$7/12)*Tablas!J13 -> 0 | L192: =maximo(L$186,Tablas!K$7/12)*Tablas!K13 -> 0 | M192: =maximo(M$186,Tablas!L$7/12)*Tablas!L13 -> 0 | N192: =maximo(N$186,Tablas!M$7/12)*Tablas!M13 -> 0 | O192: =maximo(O$186,Tablas!N$7/12)*Tablas!N13 -> 0 | P192: =IF(Check!$B$8="Ok",SUM(D192:O192),DedGrales!P176) -> 0 | R192: 0
C193: Total | D193: =+SUM(D187:D192) -> 0 | E193: 0 | F193: 0 | G193: 0 | H193: 0 | I193: 0 | J193: 0 | K193: 0 | L193: 0 | M193: 0 | N193: 0 | O193: 0 | P193: =+SUM(P187:P192) -> 0
C195: Base estimada | D195: =SUMIF(Ingresos!$S8:$S38,"Sí",Ingresos!C$8:C$38) -> 0 | E195: =SUMIF(Ingresos!$S8:$S38,"Sí",Ingresos!D$8:D$38) -> 0 | F195: =SUMIF(Ingresos!$S8:$S38,"Sí",Ingresos!E$8:E$38) -> 0 | G195: =SUMIF(Ingresos!$S8:$S38,"Sí",Ingresos!F$8:F$38) -> 0 | H195: =SUMIF(Ingresos!$S8:$S38,"Sí",Ingresos!G$8:G$38) -> 0 | I195: =SUMIF(Ingresos!$S8:$S38,"Sí",Ingresos!H$8:H$38) -> 0 | J195: =SUMIF(Ingresos!$S8:$S38,"Sí",Ingresos!I$8:I$38) -> 0 | K195: =SUMIF(Ingresos!$S8:$S38,"Sí",Ingresos!J$8:J$38) -> 0 | L195: =SUMIF(Ingresos!$S8:$S38,"Sí",Ingresos!K$8:K$38) -> 0 | M195: =SUMIF(Ingresos!$S8:$S38,"Sí",Ingresos!L$8:L$38) -> 0 | N195: =SUMIF(Ingresos!$S8:$S38,"Sí",Ingresos!M$8:M$38) -> 0 | O195: =SUMIF(Ingresos!$S8:$S38,"Sí",Ingresos!N$8:N$38) -> 0
C196: Máx | D196: =MAX($D$195:D195) -> 0 | E196: =MAX($D$195:E195) -> 0 | F196: =MAX($D$195:F195) -> 0 | G196: =MAX($D$195:G195) -> 0 | H196: =MAX($D$195:H195) -> 0 | I196: =MAX($D$195:I195) -> 0 | J196: =MAX($J$195:J195) -> 0 | K196: =MAX($J$195:K195) -> 0 | L196: =MAX($J$195:L195) -> 0 | M196: =MAX($J$195:M195) -> 0 | N196: =MAX($J$195:N195) -> 0 | O196: =MAX($J$195:O195) -> 0
C197: SAC estimado bruto 1 | D197: =D195/12 -> 0 | E197: =E195/12 -> 0 | F197: 0 | G197: 0 | H197: 0 | I197: 0 | J197: 0 | K197: 0 | L197: 0 | M197: 0 | N197: 0 | O197: 0
C198: SAC estimado neto 1 | D198: =IF(Check!$B$8="Ok",D176-D183,Ingresos!C41) -> 0 | E198: =IF(Check!$B$8="Ok",E176-E183,Ingresos!D41) -> 0 | F198: =IF(Check!$B$8="Ok",F176-F183,Ingresos!E41) -> 0 | G198: =IF(Check!$B$8="Ok",G176-G183,Ingresos!F41) -> 0 | H198: =IF(Check!$B$8="Ok",H176-H183,Ingresos!G41) -> 0 | I198: =IF(Check!$B$8="Ok",I176-I183,Ingresos!H41) -> 0 | J198: =IF(Check!$B$8="Ok",J176-J183,Ingresos!I41) -> 0 | K198: =IF(Check!$B$8="Ok",K176-K183,Ingresos!J41) -> 0 | L198: =IF(Check!$B$8="Ok",L176-L183,Ingresos!K41) -> 0 | M198: =IF(Check!$B$8="Ok",M176-M183,Ingresos!L41) -> 0 | N198: =IF(Check!$B$8="Ok",N176-N183,Ingresos!M41) -> 0 | O198: =IF(Check!$B$8="Ok",O176-O183,Ingresos!N41) -> 0
C200: Base estimada | D200: =SUMIF(Ingresos!$S47:$S69,"Sí",Ingresos!C$47:C$77) -> 0 | E200: =SUMIF(Ingresos!$S47:$S69,"Sí",Ingresos!D$47:D$77) -> 0 | F200: =SUMIF(Ingresos!$S47:$S69,"Sí",Ingresos!E$47:E$77) -> 0 | G200: =SUMIF(Ingresos!$S47:$S69,"Sí",Ingresos!F$47:F$77) -> 0 | H200: =SUMIF(Ingresos!$S47:$S69,"Sí",Ingresos!G$47:G$77) -> 0 | I200: =SUMIF(Ingresos!$S47:$S69,"Sí",Ingresos!H$47:H$77) -> 0 | J200: =SUMIF(Ingresos!$S47:$S69,"Sí",Ingresos!I$47:I$77) -> 0 | K200: =SUMIF(Ingresos!$S47:$S69,"Sí",Ingresos!J$47:J$77) -> 0 | L200: =SUMIF(Ingresos!$S47:$S69,"Sí",Ingresos!K$47:K$77) -> 0 | M200: =SUMIF(Ingresos!$S47:$S69,"Sí",Ingresos!L$47:L$77) -> 0 | N200: =SUMIF(Ingresos!$S47:$S69,"Sí",Ingresos!M$47:M$77) -> 0 | O200: =SUMIF(Ingresos!$S47:$S69,"Sí",Ingresos!N$47:N$77) -> 0
C201: Máx | D201: =MAX($D$200:D200) -> 0 | E201: =MAX($D$200:E200) -> 0 | F201: =MAX($D$200:F200) -> 0 | G201: =MAX($D$200:G200) -> 0 | H201: =MAX($D$200:H200) -> 0 | I201: =MAX($D$200:I200) -> 0 | J201: =MAX($D$200:J200) -> 0 | K201: =MAX($D$200:K200) -> 0 | L201: =MAX($D$200:L200) -> 0 | M201: =MAX($D$200:M200) -> 0 | N201: =MAX($D$200:N200) -> 0 | O201: =MAX($D$200:O200) -> 0
C202: SAC estimado bruto 2 | D202: =D200/12 -> 0 | E202: =E200/12 -> 0 | F202: 0 | G202: 0 | H202: 0 | I202: 0 | J202: 0 | K202: 0 | L202: 0 | M202: 0 | N202: 0 | O202: 0
C203: SAC estimado neto 2 | D203: =IF(Check!$B$8="Ok",D186-D193,Ingresos!C80) -> 0 | E203: =IF(Check!$B$8="Ok",E186-E193,Ingresos!D80) -> 0 | F203: =IF(Check!$B$8="Ok",F186-F193,Ingresos!E80) -> 0 | G203: =IF(Check!$B$8="Ok",G186-G193,Ingresos!F80) -> 0 | H203: =IF(Check!$B$8="Ok",H186-H193,Ingresos!G80) -> 0 | I203: =IF(Check!$B$8="Ok",I186-I193,Ingresos!H80) -> 0 | J203: =IF(Check!$B$8="Ok",J186-J193,Ingresos!I80) -> 0 | K203: =IF(Check!$B$8="Ok",K186-K193,Ingresos!J80) -> 0 | L203: =IF(Check!$B$8="Ok",L186-L193,Ingresos!K80) -> 0 | M203: =IF(Check!$B$8="Ok",M186-M193,Ingresos!L80) -> 0 | N203: =IF(Check!$B$8="Ok",N186-N193,Ingresos!M80) -> 0 | O203: =IF(Check!$B$8="Ok",O186-O193,Ingresos!N80) -> 0
C206: Formulario
D207: 2017-01-01 | E207: 2017-02-01 | F207: 2017-03-01 | G207: 2017-04-01 | H207: 2017-05-01 | I207: 2017-06-01 | J207: 2017-07-01 | K207: 2017-08-01 | L207: 2017-09-01 | M207: 2017-10-01 | N207: 2017-11-01 | O207: 2017-12-01
C208: Remunerativo | D208: =SUMIFS(Ingresos!C8:C38,Ingresos!$R$8:$R$38,"Sí") -> 0 | E208: =SUMIFS(Ingresos!D8:D38,Ingresos!$R$8:$R$38,"Sí") -> 0 | F208: =SUMIFS(Ingresos!E8:E38,Ingresos!$R$8:$R$38,"Sí") -> 0 | G208: =SUMIFS(Ingresos!F8:F38,Ingresos!$R$8:$R$38,"Sí") -> 0 | H208: =SUMIFS(Ingresos!G8:G38,Ingresos!$R$8:$R$38,"Sí") -> 0 | I208: =SUMIFS(Ingresos!H8:H38,Ingresos!$R$8:$R$38,"Sí") -> 0 | J208: =SUMIFS(Ingresos!I8:I38,Ingresos!$R$8:$R$38,"Sí") -> 0 | K208: =SUMIFS(Ingresos!J8:J38,Ingresos!$R$8:$R$38,"Sí") -> 0 | L208: =SUMIFS(Ingresos!K8:K38,Ingresos!$R$8:$R$38,"Sí") -> 0 | M208: =SUMIFS(Ingresos!L8:L38,Ingresos!$R$8:$R$38,"Sí") -> 0 | N208: =SUMIFS(Ingresos!M8:M38,Ingresos!$R$8:$R$38,"Sí") -> 0 | O208: =SUMIFS(Ingresos!N8:N38,Ingresos!$R$8:$R$38,"Sí") -> 0
C209: Si hay SAC | D209: =IF(Ingresos!C12+Ingresos!C51>0,1.5,1) -> 1 | E209: =IF(Ingresos!D12+Ingresos!D51>0,1.5,1) -> 1 | F209: =IF(Ingresos!E12+Ingresos!E51>0,1.5,1) -> 1 | G209: =IF(Ingresos!F12+Ingresos!F51>0,1.5,1) -> 1 | H209: =IF(Ingresos!G12+Ingresos!G51>0,1.5,1) -> 1 | I209: =IF(Ingresos!H12+Ingresos!H51>0,1.5,1) -> 1 | J209: =IF(Ingresos!I12+Ingresos!I51>0,1.5,1) -> 1 | K209: =IF(Ingresos!J12+Ingresos!J51>0,1.5,1) -> 1 | L209: =IF(Ingresos!K12+Ingresos!K51>0,1.5,1) -> 1 | M209: =IF(Ingresos!L12+Ingresos!L51>0,1.5,1) -> 1 | N209: =IF(Ingresos!M12+Ingresos!M51>0,1.5,1) -> 1 | O209: =IF(Ingresos!N12+Ingresos!N51>0,1.5,1) -> 1 | S209: Proporción exento-nogravado/total | T209: Deducciones hs. Extras exentas
C210: Jubilaciones | D210: =(IF(Check!$B$8="Ok",IF($R$210="Sí",maximo(D$208,Tablas!C$7*Auxiliares!D$209)*Tablas!C8,D$208*Tablas!C8),DedGrales!D12)-D214)*D217 -> 0 | E210: =(IF(Check!$B$8="Ok",IF($R$210="Sí",maximo(E$208,Tablas!D$7*Auxiliares!E$209)*Tablas!D8,E$208*Tablas!D8),DedGrales!E12)-E214)*E217 -> 0 | F210: =(IF(Check!$B$8="Ok",IF($R$210="Sí",maximo(F$208,Tablas!E$7*Auxiliares!F$209)*Tablas!E8,F$208*Tablas!E8),DedGrales!F12)-F214)*F217 -> 0 | G210: =(IF(Check!$B$8="Ok",IF($R$210="Sí",maximo(G$208,Tablas!F$7*Auxiliares!G$209)*Tablas!F8,G$208*Tablas!F8),DedGrales!G12)-G214)*G217 -> 0 | H210: =(IF(Check!$B$8="Ok",IF($R$210="Sí",maximo(H$208,Tablas!G$7*Auxiliares!H$209)*Tablas!G8,H$208*Tablas!G8),DedGrales!H12)-H214)*H217 -> 0 | I210: =(IF(Check!$B$8="Ok",IF($R$210="Sí",maximo(I$208,Tablas!H$7*Auxiliares!I$209)*Tablas!H8,I$208*Tablas!H8),DedGrales!I12)-I214)*I217 -> 0 | J210: =(IF(Check!$B$8="Ok",IF($R$210="Sí",maximo(J$208,Tablas!I$7*Auxiliares!J$209)*Tablas!I8,J$208*Tablas!I8),DedGrales!J12)-J214)*J217 -> 0 | K210: =(IF(Check!$B$8="Ok",IF($R$210="Sí",maximo(K$208,Tablas!J$7*Auxiliares!K$209)*Tablas!J8,K$208*Tablas!J8),DedGrales!K12)-K214)*K217 -> 0 | L210: =(IF(Check!$B$8="Ok",IF($R$210="Sí",maximo(L$208,Tablas!K$7*Auxiliares!L$209)*Tablas!K8,L$208*Tablas!K8),DedGrales!L12)-L214)*L217 -> 0 | M210: =(IF(Check!$B$8="Ok",IF($R$210="Sí",maximo(M$208,Tablas!L$7*Auxiliares!M$209)*Tablas!L8,M$208*Tablas!L8),DedGrales!M12)-M214)*M217 -> 0 | N210: =(IF(Check!$B$8="Ok",IF($R$210="Sí",maximo(N$208,Tablas!M$7*Auxiliares!N$209)*Tablas!M8,N$208*Tablas!M8),DedGrales!N12)-N214)*N217 -> 0 | O210: =(IF(Check!$B$8="Ok",IF($R$210="Sí",maximo(O$208,Tablas!N$7*Auxiliares!O$209)*Tablas!N8,O$208*Tablas!N8),DedGrales!O12)-O214)*O217 -> 0 | P210: =SUM(D210:O210) -> 0 | R210: =+R30 -> Sí | S210: =SUM(P210:P216)-SUM(D218:O218) -> 0
C211: Obra social | D211: =(IF(Check!$B$8="Ok",IF($R$211="Sí",maximo(D$208,Tablas!C$7*D$209)*(Tablas!C9+Tablas!C10),D$208*(Tablas!C9+Tablas!C10)),DedGrales!D13+DedGrales!D14)-D215)*D217 -> 0 | E211: =(IF(Check!$B$8="Ok",IF($R$211="Sí",maximo(E$208,Tablas!D$7*E$209)*(Tablas!D9+Tablas!D10),E$208*(Tablas!D9+Tablas!D10)),DedGrales!E13+DedGrales!E14)-E215)*E217 -> 0 | F211: =(IF(Check!$B$8="Ok",IF($R$211="Sí",maximo(F$208,Tablas!E$7*F$209)*(Tablas!E9+Tablas!E10),F$208*(Tablas!E9+Tablas!E10)),DedGrales!F13+DedGrales!F14)-F215)*F217 -> 0 | G211: =(IF(Check!$B$8="Ok",IF($R$211="Sí",maximo(G$208,Tablas!F$7*G$209)*(Tablas!F9+Tablas!F10),G$208*(Tablas!F9+Tablas!F10)),DedGrales!G13+DedGrales!G14)-G215)*G217 -> 0 | H211: =(IF(Check!$B$8="Ok",IF($R$211="Sí",maximo(H$208,Tablas!G$7*H$209)*(Tablas!G9+Tablas!G10),H$208*(Tablas!G9+Tablas!G10)),DedGrales!H13+DedGrales!H14)-H215)*H217 -> 0 | I211: =(IF(Check!$B$8="Ok",IF($R$211="Sí",maximo(I$208,Tablas!H$7*I$209)*(Tablas!H9+Tablas!H10),I$208*(Tablas!H9+Tablas!H10)),DedGrales!I13+DedGrales!I14)-I215)*I217 -> 0 | J211: =(IF(Check!$B$8="Ok",IF($R$211="Sí",maximo(J$208,Tablas!I$7*J$209)*(Tablas!I9+Tablas!I10),J$208*(Tablas!I9+Tablas!I10)),DedGrales!J13+DedGrales!J14)-J215)*J217 -> 0 | K211: =(IF(Check!$B$8="Ok",IF($R$211="Sí",maximo(K$208,Tablas!J$7*K$209)*(Tablas!J9+Tablas!J10),K$208*(Tablas!J9+Tablas!J10)),DedGrales!K13+DedGrales!K14)-K215)*K217 -> 0 | L211: =(IF(Check!$B$8="Ok",IF($R$211="Sí",maximo(L$208,Tablas!K$7*L$209)*(Tablas!K9+Tablas!K10),L$208*(Tablas!K9+Tablas!K10)),DedGrales!L13+DedGrales!L14)-L215)*L217 -> 0 | M211: =(IF(Check!$B$8="Ok",IF($R$211="Sí",maximo(M$208,Tablas!L$7*M$209)*(Tablas!L9+Tablas!L10),M$208*(Tablas!L9+Tablas!L10)),DedGrales!M13+DedGrales!M14)-M215)*M217 -> 0 | N211: =(IF(Check!$B$8="Ok",IF($R$211="Sí",maximo(N$208,Tablas!M$7*N$209)*(Tablas!M9+Tablas!M10),N$208*(Tablas!M9+Tablas!M10)),DedGrales!N13+DedGrales!N14)-N215)*N217 -> 0 | O211: =(IF(Check!$B$8="Ok",IF($R$211="Sí",maximo(O$208,Tablas!N$7*O$209)*(Tablas!N9+Tablas!N10),O$208*(Tablas!N9+Tablas!N10)),DedGrales!O13+DedGrales!O14)-O215)*O217 -> 0 | P211: =SUM(D211:O211) -> 0 | R211: =+R31 -> Sí
C212: Cuota sindical | D212: =IF(D33=0,0,(IF(Check!$B$8="Ok",IF($R$212="Sí",maximo(D$208,Tablas!C$7*D$209)*Tablas!C11,D$208*Tablas!C11),DedGrales!D15)-D216)*D217) -> 0 | E212: =IF(E33=0,0,(IF(Check!$B$8="Ok",IF($R$212="Sí",maximo(E$208,Tablas!D$7*E$209)*Tablas!D11,E$208*Tablas!D11),DedGrales!E15)-E216)*E217) -> 0 | F212: =IF(F33=0,0,(IF(Check!$B$8="Ok",IF($R$212="Sí",maximo(F$208,Tablas!E$7*F$209)*Tablas!E11,F$208*Tablas!E11),DedGrales!F15)-F216)*F217) -> 0 | G212: =IF(G33=0,0,(IF(Check!$B$8="Ok",IF($R$212="Sí",maximo(G$208,Tablas!F$7*G$209)*Tablas!F11,G$208*Tablas!F11),DedGrales!G15)-G216)*G217) -> 0 | H212: =IF(H33=0,0,(IF(Check!$B$8="Ok",IF($R$212="Sí",maximo(H$208,Tablas!G$7*H$209)*Tablas!G11,H$208*Tablas!G11),DedGrales!H15)-H216)*H217) -> 0 | I212: =IF(I33=0,0,(IF(Check!$B$8="Ok",IF($R$212="Sí",maximo(I$208,Tablas!H$7*I$209)*Tablas!H11,I$208*Tablas!H11),DedGrales!I15)-I216)*I217) -> 0 | J212: =IF(J33=0,0,(IF(Check!$B$8="Ok",IF($R$212="Sí",maximo(J$208,Tablas!I$7*J$209)*Tablas!I11,J$208*Tablas!I11),DedGrales!J15)-J216)*J217) -> 0 | K212: =IF(K33=0,0,(IF(Check!$B$8="Ok",IF($R$212="Sí",maximo(K$208,Tablas!J$7*K$209)*Tablas!J11,K$208*Tablas!J11),DedGrales!K15)-K216)*K217) -> 0 | L212: =IF(L33=0,0,(IF(Check!$B$8="Ok",IF($R$212="Sí",maximo(L$208,Tablas!K$7*L$209)*Tablas!K11,L$208*Tablas!K11),DedGrales!L15)-L216)*L217) -> 0 | M212: =IF(M33=0,0,(IF(Check!$B$8="Ok",IF($R$212="Sí",maximo(M$208,Tablas!L$7*M$209)*Tablas!L11,M$208*Tablas!L11),DedGrales!M15)-M216)*M217) -> 0 | N212: =IF(N33=0,0,(IF(Check!$B$8="Ok",IF($R$212="Sí",maximo(N$208,Tablas!M$7*N$209)*Tablas!M11,N$208*Tablas!M11),DedGrales!N15)-N216)*N217) -> 0 | O212: =IF(O33=0,0,(IF(Check!$B$8="Ok",IF($R$212="Sí",maximo(O$208,Tablas!N$7*O$209)*Tablas!N11,O$208*Tablas!N11),DedGrales!O15)-O216)*O217) -> 0 | P212: =SUM(D212:O212) -> 0 | R212: =+R33 -> No
C213: Otros empleos (remunerativo) | D213: =SUMIFS(Ingresos!C47:C77,Ingresos!$R$47:$R$77,"Sí")+D208 -> 0 | E213: =SUMIFS(Ingresos!D47:D77,Ingresos!$R$47:$R$77,"Sí")+E208 -> 0 | F213: =SUMIFS(Ingresos!E47:E77,Ingresos!$R$47:$R$77,"Sí")+F208 -> 0 | G213: =SUMIFS(Ingresos!F47:F77,Ingresos!$R$47:$R$77,"Sí")+G208 -> 0 | H213: =SUMIFS(Ingresos!G47:G77,Ingresos!$R$47:$R$77,"Sí")+H208 -> 0 | I213: =SUMIFS(Ingresos!H47:H77,Ingresos!$R$47:$R$77,"Sí")+I208 -> 0 | J213: =SUMIFS(Ingresos!I47:I77,Ingresos!$R$47:$R$77,"Sí")+J208 -> 0 | K213: =SUMIFS(Ingresos!J47:J77,Ingresos!$R$47:$R$77,"Sí")+K208 -> 0 | L213: =SUMIFS(Ingresos!K47:K77,Ingresos!$R$47:$R$77,"Sí")+L208 -> 0 | M213: =SUMIFS(Ingresos!L47:L77,Ingresos!$R$47:$R$77,"Sí")+M208 -> 0 | N213: =SUMIFS(Ingresos!M47:M77,Ingresos!$R$47:$R$77,"Sí")+N208 -> 0 | O213: =SUMIFS(Ingresos!N47:N77,Ingresos!$R$47:$R$77,"Sí")+O208 -> 0
C214: Aportes jubilatorios otros empleos | D214: =(IF(Check!$B$8="Ok",IF(AND($R$214="Sí",D208<>0),(maximo(D$213,Tablas!C$7*D209)*Tablas!C8)*(D$213-D$208)/D$213,(D$213-D$208)*Tablas!C8),DedGrales!D23))*D217 -> 0 | E214: =(IF(Check!$B$8="Ok",IF(AND($R$214="Sí",E208<>0),(maximo(E$213,Tablas!D$7*E209)*Tablas!D8)*(E$213-E$208)/E$213,(E$213-E$208)*Tablas!D8),DedGrales!E23))*E217 -> 0 | F214: =(IF(Check!$B$8="Ok",IF(AND($R$214="Sí",F208<>0),(maximo(F$213,Tablas!E$7*F209)*Tablas!E8)*(F$213-F$208)/F$213,(F$213-F$208)*Tablas!E8),DedGrales!F23))*F217 -> 0 | G214: =(IF(Check!$B$8="Ok",IF(AND($R$214="Sí",G208<>0),(maximo(G$213,Tablas!F$7*G209)*Tablas!F8)*(G$213-G$208)/G$213,(G$213-G$208)*Tablas!F8),DedGrales!G23))*G217 -> 0 | H214: =(IF(Check!$B$8="Ok",IF(AND($R$214="Sí",H208<>0),(maximo(H$213,Tablas!G$7*H209)*Tablas!G8)*(H$213-H$208)/H$213,(H$213-H$208)*Tablas!G8),DedGrales!H23))*H217 -> 0 | I214: =(IF(Check!$B$8="Ok",IF(AND($R$214="Sí",I208<>0),(maximo(I$213,Tablas!H$7*I209)*Tablas!H8)*(I$213-I$208)/I$213,(I$213-I$208)*Tablas!H8),DedGrales!I23))*I217 -> 0 | J214: =(IF(Check!$B$8="Ok",IF(AND($R$214="Sí",J208<>0),(maximo(J$213,Tablas!I$7*J209)*Tablas!I8)*(J$213-J$208)/J$213,(J$213-J$208)*Tablas!I8),DedGrales!J23))*J217 -> 0 | K214: =(IF(Check!$B$8="Ok",IF(AND($R$214="Sí",K208<>0),(maximo(K$213,Tablas!J$7*K209)*Tablas!J8)*(K$213-K$208)/K$213,(K$213-K$208)*Tablas!J8),DedGrales!K23))*K217 -> 0 | L214: =(IF(Check!$B$8="Ok",IF(AND($R$214="Sí",L208<>0),(maximo(L$213,Tablas!K$7*L209)*Tablas!K8)*(L$213-L$208)/L$213,(L$213-L$208)*Tablas!K8),DedGrales!L23))*L217 -> 0 | M214: =(IF(Check!$B$8="Ok",IF(AND($R$214="Sí",M208<>0),(maximo(M$213,Tablas!L$7*M209)*Tablas!L8)*(M$213-M$208)/M$213,(M$213-M$208)*Tablas!L8),DedGrales!M23))*M217 -> 0 | N214: =(IF(Check!$B$8="Ok",IF(AND($R$214="Sí",N208<>0),(maximo(N$213,Tablas!M$7*N209)*Tablas!M8)*(N$213-N$208)/N$213,(N$213-N$208)*Tablas!M8),DedGrales!N23))*N217 -> 0 | O214: =(IF(Check!$B$8="Ok",IF(AND($R$214="Sí",O208<>0),(maximo(O$213,Tablas!N$7*O209)*Tablas!N8)*(O$213-O$208)/O$213,(O$213-O$208)*Tablas!N8),DedGrales!O23))*O217 -> 0 | P214: =SUM(D214:O214) -> 0 | R214: =+R210 -> Sí
C215: Aportes obra social otros empleos | D215: =(IF(Check!$B$8="Ok",IF(AND($R$215="Sí",D208<>0),(maximo(D$213,Tablas!C$7*D209)*Tablas!C9)*(D$213-D$208)/D$213,(D$213-D$208)*Tablas!C9),DedGrales!D24+DedGrales!D25))*D217 -> 0 | E215: =(IF(Check!$B$8="Ok",IF(AND($R$215="Sí",E208<>0),(maximo(E$213,Tablas!D$7*E209)*Tablas!D9)*(E$213-E$208)/E$213,(E$213-E$208)*Tablas!D9),DedGrales!E24+DedGrales!E25))*E217 -> 0 | F215: =(IF(Check!$B$8="Ok",IF(AND($R$215="Sí",F208<>0),(maximo(F$213,Tablas!E$7*F209)*Tablas!E9)*(F$213-F$208)/F$213,(F$213-F$208)*Tablas!E9),DedGrales!F24+DedGrales!F25))*F217 -> 0 | G215: =(IF(Check!$B$8="Ok",IF(AND($R$215="Sí",G208<>0),(maximo(G$213,Tablas!F$7*G209)*Tablas!F9)*(G$213-G$208)/G$213,(G$213-G$208)*Tablas!F9),DedGrales!G24+DedGrales!G25))*G217 -> 0 | H215: =(IF(Check!$B$8="Ok",IF(AND($R$215="Sí",H208<>0),(maximo(H$213,Tablas!G$7*H209)*Tablas!G9)*(H$213-H$208)/H$213,(H$213-H$208)*Tablas!G9),DedGrales!H24+DedGrales!H25))*H217 -> 0 | I215: =(IF(Check!$B$8="Ok",IF(AND($R$215="Sí",I208<>0),(maximo(I$213,Tablas!H$7*I209)*Tablas!H9)*(I$213-I$208)/I$213,(I$213-I$208)*Tablas!H9),DedGrales!I24+DedGrales!I25))*I217 -> 0 | J215: =(IF(Check!$B$8="Ok",IF(AND($R$215="Sí",J208<>0),(maximo(J$213,Tablas!I$7*J209)*Tablas!I9)*(J$213-J$208)/J$213,(J$213-J$208)*Tablas!I9),DedGrales!J24+DedGrales!J25))*J217 -> 0 | K215: =(IF(Check!$B$8="Ok",IF(AND($R$215="Sí",K208<>0),(maximo(K$213,Tablas!J$7*K209)*Tablas!J9)*(K$213-K$208)/K$213,(K$213-K$208)*Tablas!J9),DedGrales!K24+DedGrales!K25))*K217 -> 0 | L215: =(IF(Check!$B$8="Ok",IF(AND($R$215="Sí",L208<>0),(maximo(L$213,Tablas!K$7*L209)*Tablas!K9)*(L$213-L$208)/L$213,(L$213-L$208)*Tablas!K9),DedGrales!L24+DedGrales!L25))*L217 -> 0 | M215: =(IF(Check!$B$8="Ok",IF(AND($R$215="Sí",M208<>0),(maximo(M$213,Tablas!L$7*M209)*Tablas!L9)*(M$213-M$208)/M$213,(M$213-M$208)*Tablas!L9),DedGrales!M24+DedGrales!M25))*M217 -> 0 | N215: =(IF(Check!$B$8="Ok",IF(AND($R$215="Sí",N208<>0),(maximo(N$213,Tablas!M$7*N209)*Tablas!M9)*(N$213-N$208)/N$213,(N$213-N$208)*Tablas!M9),DedGrales!N24+DedGrales!N25))*N217 -> 0 | O215: =(IF(Check!$B$8="Ok",IF(AND($R$215="Sí",O208<>0),(maximo(O$213,Tablas!N$7*O209)*Tablas!N9)*(O$213-O$208)/O$213,(O$213-O$208)*Tablas!N9),DedGrales!O24+DedGrales!O25))*O217 -> 0 | P215: =SUM(D215:O215) -> 0 | R215: =+R211 -> Sí
C216: Cuota sindical otros empleos | D216: =IF(D40=0,0,(IF(Check!$B$8="Ok",IF($R$216="Sí",(maximo(D$213,Tablas!C$7*D209)*Tablas!C10)*(D$213-D$208)/D$213,(D$213-D$208)*Tablas!C10),DedGrales!D26))*D217) -> 0 | E216: =IF(E40=0,0,(IF(Check!$B$8="Ok",IF($R$216="Sí",(maximo(E$213,Tablas!D$7*E209)*Tablas!D10)*(E$213-E$208)/E$213,(E$213-E$208)*Tablas!D10),DedGrales!E26))*E217) -> 0 | F216: =IF(F40=0,0,(IF(Check!$B$8="Ok",IF($R$216="Sí",(maximo(F$213,Tablas!E$7*F209)*Tablas!E10)*(F$213-F$208)/F$213,(F$213-F$208)*Tablas!E10),DedGrales!F26))*F217) -> 0 | G216: =IF(G40=0,0,(IF(Check!$B$8="Ok",IF($R$216="Sí",(maximo(G$213,Tablas!F$7*G209)*Tablas!F10)*(G$213-G$208)/G$213,(G$213-G$208)*Tablas!F10),DedGrales!G26))*G217) -> 0 | H216: =IF(H40=0,0,(IF(Check!$B$8="Ok",IF($R$216="Sí",(maximo(H$213,Tablas!G$7*H209)*Tablas!G10)*(H$213-H$208)/H$213,(H$213-H$208)*Tablas!G10),DedGrales!H26))*H217) -> 0 | I216: =IF(I40=0,0,(IF(Check!$B$8="Ok",IF($R$216="Sí",(maximo(I$213,Tablas!H$7*I209)*Tablas!H10)*(I$213-I$208)/I$213,(I$213-I$208)*Tablas!H10),DedGrales!I26))*I217) -> 0 | J216: =IF(J40=0,0,(IF(Check!$B$8="Ok",IF($R$216="Sí",(maximo(J$213,Tablas!I$7*J209)*Tablas!I10)*(J$213-J$208)/J$213,(J$213-J$208)*Tablas!I10),DedGrales!J26))*J217) -> 0 | K216: =IF(K40=0,0,(IF(Check!$B$8="Ok",IF($R$216="Sí",(maximo(K$213,Tablas!J$7*K209)*Tablas!J10)*(K$213-K$208)/K$213,(K$213-K$208)*Tablas!J10),DedGrales!K26))*K217) -> 0 | L216: =IF(L40=0,0,(IF(Check!$B$8="Ok",IF($R$216="Sí",(maximo(L$213,Tablas!K$7*L209)*Tablas!K10)*(L$213-L$208)/L$213,(L$213-L$208)*Tablas!K10),DedGrales!L26))*L217) -> 0 | M216: =IF(M40=0,0,(IF(Check!$B$8="Ok",IF($R$216="Sí",(maximo(M$213,Tablas!L$7*M209)*Tablas!L10)*(M$213-M$208)/M$213,(M$213-M$208)*Tablas!L10),DedGrales!M26))*M217) -> 0 | N216: =IF(N40=0,0,(IF(Check!$B$8="Ok",IF($R$216="Sí",(maximo(N$213,Tablas!M$7*N209)*Tablas!M10)*(N$213-N$208)/N$213,(N$213-N$208)*Tablas!M10),DedGrales!N26))*N217) -> 0 | O216: =IF(O40=0,0,(IF(Check!$B$8="Ok",IF($R$216="Sí",(maximo(O$213,Tablas!N$7*O209)*Tablas!N10)*(O$213-O$208)/O$213,(O$213-O$208)*Tablas!N10),DedGrales!O26))*O217) -> 0 | P216: =SUM(D216:O216) -> 0 | R216: =+R212 -> No
C217: Proporción Gravado/Total | D217: =proporcionGravado(SUM(D9:D10),SUM(D9:D10,D16:D17,D23:D24)) -> 0 | E217: 0 | F217: 0 | G217: 0 | H217: 0 | I217: 0 | J217: 0 | K217: 0 | L217: 0 | M217: 0 | N217: 0 | O217: 0 | P217: =+SUM(D217:O217)/12 -> 0
C218: Para restar horas extras exentas | D218: =IF(OR(TYPE(+D210/D217)=16,TYPE(+D211/D217)=16,TYPE(+D212/D217)=16,TYPE(+D214/D217)=16,TYPE(+D214/D217)=16,TYPE(+D215/D217)=16,TYPE(+D216/D217)=16),0,+D210/D217+D211/D217+D212/D217+D214/D217+D215/D217+D216/D217) -> 0 | E218: =IF(OR(TYPE(+E210/E217)=16,TYPE(+E211/E217)=16,TYPE(+E212/E217)=16,TYPE(+E214/E217)=16,TYPE(+E214/E217)=16,TYPE(+E215/E217)=16,TYPE(+E216/E217)=16),0,+E210/E217+E211/E217+E212/E217+E214/E217+E215/E217+E216/E217) -> 0 | F218: 0 | G218: 0 | H218: 0 | I218: 0 | J218: 0 | K218: 0 | L218: 0 | M218: 0 | N218: 0 | O218: 0
C219: Retenciones Hs Extras
C220: HsExtras1 | D220: =+Ingresos!C9+Ingresos!C11 -> 0 | E220: =+Ingresos!D9+Ingresos!D11 -> 0 | F220: =+Ingresos!E9+Ingresos!E11 -> 0 | G220: =+Ingresos!F9+Ingresos!F11 -> 0 | H220: =+Ingresos!G9+Ingresos!G11 -> 0 | I220: =+Ingresos!H9+Ingresos!H11 -> 0 | J220: =+Ingresos!I9+Ingresos!I11 -> 0 | K220: =+Ingresos!J9+Ingresos!J11 -> 0 | L220: =+Ingresos!K9+Ingresos!K11 -> 0 | M220: =+Ingresos!L9+Ingresos!L11 -> 0 | N220: =+Ingresos!M9+Ingresos!M11 -> 0 | O220: =+Ingresos!N9+Ingresos!N11 -> 0
C221: HsExtras2 | D221: =+Ingresos!C48+Ingresos!C50 -> 0 | E221: =+Ingresos!D48+Ingresos!D50 -> 0 | F221: =+Ingresos!E48+Ingresos!E50 -> 0 | G221: =+Ingresos!F48+Ingresos!F50 -> 0 | H221: =+Ingresos!G48+Ingresos!G50 -> 0 | I221: =+Ingresos!H48+Ingresos!H50 -> 0 | J221: =+Ingresos!I48+Ingresos!I50 -> 0 | K221: =+Ingresos!J48+Ingresos!J50 -> 0 | L221: =+Ingresos!K48+Ingresos!K50 -> 0 | M221: =+Ingresos!L48+Ingresos!L50 -> 0 | N221: =+Ingresos!M48+Ingresos!M50 -> 0 | O221: =+Ingresos!N48+Ingresos!N50 -> 0
C222: =+C167 -> Jubilación | D222: =retenciones(Check!$B$8,Auxiliares!$R$222,SUM(D$9:D$10,D$16:D$17,D$23:D$24),Tablas!C$7,Tablas!C8,D$220,0) -> 0 | E222: =retenciones(Check!$B$8,Auxiliares!$R$222,SUM(E$9:E$10,E$16:E$17,E$23:E$24),Tablas!D$7,Tablas!D8,E$220,0) -> 0 | F222: =retenciones(Check!$B$8,Auxiliares!$R$222,SUM(F$9:F$10,F$16:F$17,F$23:F$24),Tablas!E$7,Tablas!E8,F$220,0) -> 0 | G222: =retenciones(Check!$B$8,Auxiliares!$R$222,SUM(G$9:G$10,G$16:G$17,G$23:G$24),Tablas!F$7,Tablas!F8,G$220,0) -> 0 | H222: =retenciones(Check!$B$8,Auxiliares!$R$222,SUM(H$9:H$10,H$16:H$17,H$23:H$24),Tablas!G$7,Tablas!G8,H$220,0) -> 0 | I222: =retenciones(Check!$B$8,Auxiliares!$R$222,SUM(I$9:I$10,I$16:I$17,I$23:I$24),Tablas!H$7,Tablas!H8,I$220,0) -> 0 | J222: =retenciones(Check!$B$8,Auxiliares!$R$222,SUM(J$9:J$10,J$16:J$17,J$23:J$24),Tablas!I$7,Tablas!I8,J$220,0) -> 0 | K222: =retenciones(Check!$B$8,Auxiliares!$R$222,SUM(K$9:K$10,K$16:K$17,K$23:K$24),Tablas!J$7,Tablas!J8,K$220,0) -> 0 | L222: =retenciones(Check!$B$8,Auxiliares!$R$222,SUM(L$9:L$10,L$16:L$17,L$23:L$24),Tablas!K$7,Tablas!K8,L$220,0) -> 0 | M222: =retenciones(Check!$B$8,Auxiliares!$R$222,SUM(M$9:M$10,M$16:M$17,M$23:M$24),Tablas!L$7,Tablas!L8,M$220,0) -> 0 | N222: =retenciones(Check!$B$8,Auxiliares!$R$222,SUM(N$9:N$10,N$16:N$17,N$23:N$24),Tablas!M$7,Tablas!M8,N$220,0) -> 0 | O222: =retenciones(Check!$B$8,Auxiliares!$R$222,SUM(O$9:O$10,O$16:O$17,O$23:O$24),Tablas!N$7,Tablas!N8,O$220,0) -> 0 | R222: =+R167 -> Sí
C223: Ley 19032 | D223: =retenciones(Check!$B$8,Auxiliares!$R$223,SUM(D$9:D$10,D$16:D$17,D$23:D$24),Tablas!C$7,Tablas!C9,D$220,0) -> 0 | E223: =retenciones(Check!$B$8,Auxiliares!$R$223,SUM(E$9:E$10,E$16:E$17,E$23:E$24),Tablas!D$7,Tablas!D9,E$220,0) -> 0 | F223: =retenciones(Check!$B$8,Auxiliares!$R$223,SUM(F$9:F$10,F$16:F$17,F$23:F$24),Tablas!E$7,Tablas!E9,F$220,0) -> 0 | G223: =retenciones(Check!$B$8,Auxiliares!$R$223,SUM(G$9:G$10,G$16:G$17,G$23:G$24),Tablas!F$7,Tablas!F9,G$220,0) -> 0 | H223: =retenciones(Check!$B$8,Auxiliares!$R$223,SUM(H$9:H$10,H$16:H$17,H$23:H$24),Tablas!G$7,Tablas!G9,H$220,0) -> 0 | I223: =retenciones(Check!$B$8,Auxiliares!$R$223,SUM(I$9:I$10,I$16:I$17,I$23:I$24),Tablas!H$7,Tablas!H9,I$220,0) -> 0 | J223: =retenciones(Check!$B$8,Auxiliares!$R$223,SUM(J$9:J$10,J$16:J$17,J$23:J$24),Tablas!I$7,Tablas!I9,J$220,0) -> 0 | K223: =retenciones(Check!$B$8,Auxiliares!$R$223,SUM(K$9:K$10,K$16:K$17,K$23:K$24),Tablas!J$7,Tablas!J9,K$220,0) -> 0 | L223: =retenciones(Check!$B$8,Auxiliares!$R$223,SUM(L$9:L$10,L$16:L$17,L$23:L$24),Tablas!K$7,Tablas!K9,L$220,0) -> 0 | M223: =retenciones(Check!$B$8,Auxiliares!$R$223,SUM(M$9:M$10,M$16:M$17,M$23:M$24),Tablas!L$7,Tablas!L9,M$220,0) -> 0 | N223: =retenciones(Check!$B$8,Auxiliares!$R$223,SUM(N$9:N$10,N$16:N$17,N$23:N$24),Tablas!M$7,Tablas!M9,N$220,0) -> 0 | O223: =retenciones(Check!$B$8,Auxiliares!$R$223,SUM(O$9:O$10,O$16:O$17,O$23:O$24),Tablas!N$7,Tablas!N9,O$220,0) -> 0 | R223: Sí
C224: Obra social | D224: =retenciones(Check!$B$8,Auxiliares!$R$224,SUM(D$9:D$10,D$16:D$17,D$23:D$24),Tablas!C$7,Tablas!C10,D$220,0) -> 0 | E224: =retenciones(Check!$B$8,Auxiliares!$R$224,SUM(E$9:E$10,E$16:E$17,E$23:E$24),Tablas!D$7,Tablas!D10,E$220,0) -> 0 | F224: =retenciones(Check!$B$8,Auxiliares!$R$224,SUM(F$9:F$10,F$16:F$17,F$23:F$24),Tablas!E$7,Tablas!E10,F$220,0) -> 0 | G224: =retenciones(Check!$B$8,Auxiliares!$R$224,SUM(G$9:G$10,G$16:G$17,G$23:G$24),Tablas!F$7,Tablas!F10,G$220,0) -> 0 | H224: =retenciones(Check!$B$8,Auxiliares!$R$224,SUM(H$9:H$10,H$16:H$17,H$23:H$24),Tablas!G$7,Tablas!G10,H$220,0) -> 0 | I224: =retenciones(Check!$B$8,Auxiliares!$R$224,SUM(I$9:I$10,I$16:I$17,I$23:I$24),Tablas!H$7,Tablas!H10,I$220,0) -> 0 | J224: =retenciones(Check!$B$8,Auxiliares!$R$224,SUM(J$9:J$10,J$16:J$17,J$23:J$24),Tablas!I$7,Tablas!I10,J$220,0) -> 0 | K224: =retenciones(Check!$B$8,Auxiliares!$R$224,SUM(K$9:K$10,K$16:K$17,K$23:K$24),Tablas!J$7,Tablas!J10,K$220,0) -> 0 | L224: =retenciones(Check!$B$8,Auxiliares!$R$224,SUM(L$9:L$10,L$16:L$17,L$23:L$24),Tablas!K$7,Tablas!K10,L$220,0) -> 0 | M224: =retenciones(Check!$B$8,Auxiliares!$R$224,SUM(M$9:M$10,M$16:M$17,M$23:M$24),Tablas!L$7,Tablas!L10,M$220,0) -> 0 | N224: =retenciones(Check!$B$8,Auxiliares!$R$224,SUM(N$9:N$10,N$16:N$17,N$23:N$24),Tablas!M$7,Tablas!M10,N$220,0) -> 0 | O224: =retenciones(Check!$B$8,Auxiliares!$R$224,SUM(O$9:O$10,O$16:O$17,O$23:O$24),Tablas!N$7,Tablas!N10,O$220,0) -> 0 | R224: Sí
C225: Sindicato | D225: =retenciones(Check!$B$8,Auxiliares!$R$225,SUM(D$9:D$10,D$16:D$17,D$23:D$24),Tablas!C$7,Tablas!C11,D$220,0) -> 0 | E225: =retenciones(Check!$B$8,Auxiliares!$R$225,SUM(E$9:E$10,E$16:E$17,E$23:E$24),Tablas!D$7,Tablas!D11,E$220,0) -> 0 | F225: =retenciones(Check!$B$8,Auxiliares!$R$225,SUM(F$9:F$10,F$16:F$17,F$23:F$24),Tablas!E$7,Tablas!E11,F$220,0) -> 0 | G225: =retenciones(Check!$B$8,Auxiliares!$R$225,SUM(G$9:G$10,G$16:G$17,G$23:G$24),Tablas!F$7,Tablas!F11,G$220,0) -> 0 | H225: =retenciones(Check!$B$8,Auxiliares!$R$225,SUM(H$9:H$10,H$16:H$17,H$23:H$24),Tablas!G$7,Tablas!G11,H$220,0) -> 0 | I225: =retenciones(Check!$B$8,Auxiliares!$R$225,SUM(I$9:I$10,I$16:I$17,I$23:I$24),Tablas!H$7,Tablas!H11,I$220,0) -> 0 | J225: =retenciones(Check!$B$8,Auxiliares!$R$225,SUM(J$9:J$10,J$16:J$17,J$23:J$24),Tablas!I$7,Tablas!I11,J$220,0) -> 0 | K225: =retenciones(Check!$B$8,Auxiliares!$R$225,SUM(K$9:K$10,K$16:K$17,K$23:K$24),Tablas!J$7,Tablas!J11,K$220,0) -> 0 | L225: =retenciones(Check!$B$8,Auxiliares!$R$225,SUM(L$9:L$10,L$16:L$17,L$23:L$24),Tablas!K$7,Tablas!K11,L$220,0) -> 0 | M225: =retenciones(Check!$B$8,Auxiliares!$R$225,SUM(M$9:M$10,M$16:M$17,M$23:M$24),Tablas!L$7,Tablas!L11,M$220,0) -> 0 | N225: =retenciones(Check!$B$8,Auxiliares!$R$225,SUM(N$9:N$10,N$16:N$17,N$23:N$24),Tablas!M$7,Tablas!M11,N$220,0) -> 0 | O225: =retenciones(Check!$B$8,Auxiliares!$R$225,SUM(O$9:O$10,O$16:O$17,O$23:O$24),Tablas!N$7,Tablas!N11,O$220,0) -> 0 | R225: No
C226: 0 | D226: =retenciones(Check!$B$8,Auxiliares!$R$226,SUM(D$9:D$10,D$16:D$17,D$23:D$24),Tablas!C$7,Tablas!C12,D$220,0) -> 0 | E226: =retenciones(Check!$B$8,Auxiliares!$R$226,SUM(E$9:E$10,E$16:E$17,E$23:E$24),Tablas!D$7,Tablas!D12,E$220,0) -> 0 | F226: =retenciones(Check!$B$8,Auxiliares!$R$226,SUM(F$9:F$10,F$16:F$17,F$23:F$24),Tablas!E$7,Tablas!E12,F$220,0) -> 0 | G226: =retenciones(Check!$B$8,Auxiliares!$R$226,SUM(G$9:G$10,G$16:G$17,G$23:G$24),Tablas!F$7,Tablas!F12,G$220,0) -> 0 | H226: =retenciones(Check!$B$8,Auxiliares!$R$226,SUM(H$9:H$10,H$16:H$17,H$23:H$24),Tablas!G$7,Tablas!G12,H$220,0) -> 0 | I226: =retenciones(Check!$B$8,Auxiliares!$R$226,SUM(I$9:I$10,I$16:I$17,I$23:I$24),Tablas!H$7,Tablas!H12,I$220,0) -> 0 | J226: =retenciones(Check!$B$8,Auxiliares!$R$226,SUM(J$9:J$10,J$16:J$17,J$23:J$24),Tablas!I$7,Tablas!I12,J$220,0) -> 0 | K226: =retenciones(Check!$B$8,Auxiliares!$R$226,SUM(K$9:K$10,K$16:K$17,K$23:K$24),Tablas!J$7,Tablas!J12,K$220,0) -> 0 | L226: =retenciones(Check!$B$8,Auxiliares!$R$226,SUM(L$9:L$10,L$16:L$17,L$23:L$24),Tablas!K$7,Tablas!K12,L$220,0) -> 0 | M226: =retenciones(Check!$B$8,Auxiliares!$R$226,SUM(M$9:M$10,M$16:M$17,M$23:M$24),Tablas!L$7,Tablas!L12,M$220,0) -> 0 | N226: =retenciones(Check!$B$8,Auxiliares!$R$226,SUM(N$9:N$10,N$16:N$17,N$23:N$24),Tablas!M$7,Tablas!M12,N$220,0) -> 0 | O226: =retenciones(Check!$B$8,Auxiliares!$R$226,SUM(O$9:O$10,O$16:O$17,O$23:O$24),Tablas!N$7,Tablas!N12,O$220,0) -> 0 | R226: No
... 210 more rows

Sheet Tablas
B2: TABLAS
B4: RETENCIONES DE LA SEGURIDAD SOCIAL
B6: Concepto | C6: enero | D6: febrero | E6: marzo | F6: abril | G6: mayo | H6: junio | I6: julio | J6: agosto | K6: septiembre | L6: octubre | M6: noviembre | N6: diciembre | O6: Aplica tope?
B7: BI Máx | C7: 548651.9 | D7: =+C7 -> 548651.9 | E7: =IF(Check!$B$1="Ok",Tablas!D7,642142.18) -> 548651.9 | F7: 642142.18 | G7: =+F7 -> 642142.18 | H7: =IF(Check!$B$1="Ok",Tablas!G7,776478.32) -> 642142.18 | I7: 776478.32 | J7: =+I7 -> 776478.32 | K7: =IF(Check!$B$1="Ok",Tablas!J7,957320.12) -> 776478.32 | L7: =957320.12 -> 957320.12 | M7: 957320.12 | N7: =IF(Check!$B$1="Ok",Tablas!M7,1157112.83) -> 957320.12
B8: Jubilación | C8: 0.11 | D8: 0.11 | E8: 0.11 | F8: 0.11 | G8: 0.11 | H8: 0.11 | I8: 0.11 | J8: 0.11 | K8: 0.11 | L8: 0.11 | M8: 0.11 | N8: 0.11 | O8: Sí
B9: Ley 19032 | C9: 0.03 | D9: 0.03 | E9: 0.03 | F9: 0.03 | G9: 0.03 | H9: 0.03 | I9: 0.03 | J9: 0.03 | K9: 0.03 | L9: 0.03 | M9: 0.03 | N9: 0.03 | O9: Sí
B10: Obra social | C10: 0.03 | D10: 0.03 | E10: 0.03 | F10: 0.03 | G10: 0.03 | H10: 0.03 | I10: 0.03 | J10: 0.03 | K10: 0.03 | L10: 0.03 | M10: 0.03 | N10: 0.03 | O10: Sí
B11: Sindicato | C11: 0 | D11: 0 | E11: 0 | F11: 0 | G11: 0 | H11: 0 | I11: 0 | J11: 0 | K11: 0 | L11: 0 | M11: 0 | N11: 0 | O11: No
C12: 0 | D12: 0 | E12: 0 | F12: 0 | G12: 0 | H12: 0 | I12: 0 | J12: 0 | K12: 0 | L12: 0 | M12: 0 | N12: 0 | O12: No
C13: 0 | D13: 0 | E13: 0 | F13: 0 | G13: 0 | H13: 0 | I13: 0 | J13: 0 | K13: 0 | L13: 0 | M13: 0 | N13: 0 | O13: No
B15: DEDUCCIONES GENERALES
B17: Concepto | C17: 2017-01-01 | D17: 2017-02-01 | E17: 2017-03-01 | F17: 2017-04-01 | G17: 2017-05-01 | H17: 2017-06-01 | I17: 2017-07-01 | J17: 2017-08-01 | K17: 2017-09-01 | L17: 2017-10-01 | M17: 2017-11-01 | N17: 2017-12-01 | O17: Anual
B18: Seguro de vida | C18: =+$O$18 -> 42921.24 | D18: 42921.24 | E18: 42921.24 | F18: 42921.24 | G18: 42921.24 | H18: 42921.24 | I18: 42921.24 | J18: 42921.24 | K18: 42921.24 | L18: 42921.24 | M18: 42921.24 | N18: =+$O$18 -> 42921.24 | O18: 42921.24
B19: Seguro mixto | C19: =+$O$19 -> 42921.24 | D19: 42921.24 | E19: 42921.24 | F19: 42921.24 | G19: 42921.24 | H19: 42921.24 | I19: 42921.24 | J19: 42921.24 | K19: 42921.24 | L19: 42921.24 | M19: 42921.24 | N19: =+$O$19 -> 42921.24 | O19: =+O18 -> 42921.24
B20: Fondo común de inversión | C20: =+$O$20 -> 42921.24 | D20: 42921.24 | E20: 42921.24 | F20: 42921.24 | G20: 42921.24 | H20: 42921.24 | I20: 42921.24 | J20: 42921.24 | K20: 42921.24 | L20: 42921.24 | M20: 42921.24 | N20: =+$O$20 -> 42921.24 | O20: =+O19 -> 42921.24
B21: Seguro de retiro privado | C21: =+$O$21 -> 42921.24 | D21: 42921.24 | E21: 42921.24 | F21: 42921.24 | G21: 42921.24 | H21: 42921.24 | I21: 42921.24 | J21: 42921.24 | K21: 42921.24 | L21: 42921.24 | M21: 42921.24 | N21: =+$O$21 -> 42921.24 | O21: =+O20 -> 42921.24
B22: Gastos de sepelio | C22: =+$N$22/12*DedGrales!$D$85 -> 83.01916667 | D22: =(+$N$22/12+C22)*DedGrales!$D$85 -> 166.0383333 | E22: =(+$N$22/12+D22)*DedGrales!$D$85 -> 249.0575 | F22: =(+$N$22/12+E22)*DedGrales!$D$85 -> 332.0766667 | G22: =(+$N$22/12+F22)*DedGrales!$D$85 -> 415.0958333 | H22: =(+$N$22/12+G22)*DedGrales!$D$85 -> 498.115 | I22: =(+$N$22/12+H22)*DedGrales!$D$85 -> 581.1341667 | J22: =(+$N$22/12+I22)*DedGrales!$D$85 -> 664.1533333 | K22: =(+$N$22/12+J22)*DedGrales!$D$85 -> 747.1725 | L22: =(+$N$22/12+K22)*DedGrales!$D$85 -> 830.1916667 | M22: =(+$N$22/12+L22)*DedGrales!$D$85 -> 913.2108333 | N22: 996.23 | O22: =+N22 -> 996.23
B23: Intereses créditos hipotecarios | C23: 20000 | D23: 20000 | E23: 20000 | F23: 20000 | G23: 20000 | H23: 20000 | I23: 20000 | J23: 20000 | K23: 20000 | L23: 20000 | M23: 20000 | N23: 20000 | O23: 20000 | Q23: Base de cálculo
B24: Personal de Casas Particulares | C24: =+$Q$24 -> 451683.19 | D24: 451683.19 | E24: 451683.19 | F24: 451683.19 | G24: 451683.19 | H24: 451683.19 | I24: 451683.19 | J24: 451683.19 | K24: =+$Q$24 -> 451683.19 | L24: =+$O$24 -> 451683.19 | M24: =+$O$24 -> 451683.19 | N24: 451683.19 | O24: =IF(Datos!$F$21="Zona patagónica",$Q$24*1.22,$Q$24) -> 451683.19 | Q24: 451683.19
B25: Alquiler de casa habitación | C25: =$Q$24/12*MONTH(C17) -> 37640.26583 | D25: 75280.53167 | E25: 112920.7975 | F25: 150561.0633 | G25: 188201.3292 | H25: 225841.595 | I25: 263481.8608 | J25: 301122.1267 | K25: =$Q$24/12*MONTH(K17) -> 338762.3925 | L25: =$O$25/12*MONTH(L17) -> 376402.6583 | M25: 414042.9242 | N25: 451683.19 | O25: =IF(Datos!$F$21="Zona patagónica",$Q$24*1.22,$Q$24) -> 451683.19
B26: Viáticos | C26: =$Q$24*0.4 -> 180673.276 | D26: =$Q$24*0.4 -> 180673.276 | E26: 180673.276 | F26: 180673.276 | G26: 180673.276 | H26: 180673.276 | I26: 180673.276 | J26: 180673.276 | K26: 180673.276 | L26: =+$O$26 -> 180673.276 | M26: =+$O$26 -> 180673.276 | N26: 180673.276 | O26: =IF(Datos!$F$21="Zona patagónica",$Q$24*1.22*0.4,$Q$24*0.4) -> 180673.276
B27: Viáticos (larga distancia) | C27: =+$Q$24 -> 451683.19 | D27: =+$Q$24 -> 451683.19 | E27: 451683.19 | F27: 451683.19 | G27: 451683.19 | H27: 451683.19 | I27: 451683.19 | J27: 451683.19 | K27: 451683.19 | L27: =+$O$27 -> 451683.19 | M27: =+$O$27 -> 451683.19 | N27: 451683.19 | O27: =IF(Datos!$F$21="Zona patagónica",$Q$24*1.22,$Q$24) -> 451683.19
B28: Viáticos (larga distancia - Camioneros) | C28: =+O28 -> 2258415.95 | D28: =+C28 -> 2258415.95 | E28: =+D28 -> 2258415.95 | F28: 2258415.95 | G28: 2258415.95 | H28: 2258415.95 | I28: 2258415.95 | J28: 2258415.95 | K28: 2258415.95 | L28: 2258415.95 | M28: 2258415.95 | N28: 2258415.95 | O28: =+Q24*5 -> 2258415.95
B29: Viajantes de comercio (sin tope)
B30: Gastos educativos | C30: =+$Q$24*0.4 -> 180673.276 | D30: =+$Q$24*0.4 -> 180673.276 | E30: 180673.276 | F30: 180673.276 | G30: 180673.276 | H30: 180673.276 | I30: 180673.276 | J30: 180673.276 | K30: 180673.276 | L30: =+$O$30 -> 180673.276 | M30: =+$O$30 -> 180673.276 | N30: 180673.276 | O30: =IF(Datos!$F$21="Zona patagónica",$Q$24*1.22*0.4,$Q$24*0.4) -> 180673.276
B31: Tope 5% ganancia neta | C31: =Liquidacion!F117*0.05 -> 0 | D31: =Liquidacion!G117*0.05 -> 0 | E31: =Liquidacion!H117*0.05 -> 0 | F31: =Liquidacion!I117*0.05 -> 0 | G31: =Liquidacion!J117*0.05 -> 0 | H31: =Liquidacion!K117*0.05 -> 0 | I31: =Liquidacion!L117*0.05 -> 0 | J31: =Liquidacion!M117*0.05 -> 0 | K31: =Liquidacion!N117*0.05 -> 0 | L31: =Liquidacion!O117*0.05 -> 0 | M31: =Liquidacion!P117*0.05 -> 0 | N31: =Liquidacion!Q117*0.05 -> 0 | O31: =+Liquidacion!S117*0.05 -> 0
B33: DEDUCCIONES PERSONALES
B35: Concepto | C35: enero | D35: febrero | E35: marzo | F35: abril | G35: mayo | H35: junio | I35: julio | J35: agosto | K35: septiembre | L35: octubre | M35: noviembre | N35: diciembre | O35: Anual
B36: GNI | C36: =+$O$36/12 -> 37640.26583 | D36: =+$O$36/12 -> 37640.26583 | E36: 37640.26583 | F36: 37640.26583 | G36: 37640.26583 | H36: 37640.26583 | I36: 37640.26583 | J36: 37640.26583 | K36: 37640.26583 | L36: 37640.26583 | M36: 37640.26583 | N36: 37640.26583 | O36: =IF(Datos!$F$21="Zona patagónica",Q24*1.22,Q24) -> 451683.19
B37: Deducción especial | C37: =+$O$37/12 -> 180673.276 | D37: =+$O$37/12 -> 180673.276 | E37: 180673.276 | F37: 180673.276 | G37: 180673.276 | H37: 180673.276 | I37: 180673.276 | J37: 180673.276 | K37: 180673.276 | L37: 180673.276 | M37: 180673.276 | N37: 180673.276 | O37: =IF(Datos!$F$21="Zona patagónica",Q24*4.8*1.22,Q24*4.8) -> 2168079.312
B38: Deducción específica | C38: 400994.08 | D38: 400994.08 | E38: 469323.44 | F38: 469323.44 | G38: 469323.44 | H38: 567505.92 | I38: 567505.92 | J38: 567505.92 | K38: =87459.76*8 -> 699678.08 | L38: =87459.76*8 -> 699678.08 | M38: 699678.08 | N38: 699678.08 | O38: =+SUM(C38:N38) -> 6711188.56
B39: Cónyuge | C39: =+$O$39/12 -> 35090.68667 | D39: =+$O$39/12 -> 35090.68667 | E39: 35090.68667 | F39: 35090.68667 | G39: 35090.68667 | H39: 35090.68667 | I39: 35090.68667 | J39: 35090.68667 | K39: 35090.68667 | L39: 35090.68667 | M39: 35090.68667 | N39: 35090.68667 | O39: =IF(Datos!$F$21="Zona patagónica",421088.24*1.22,421088.24) -> 421088.24
B40: Hijo | C40: =+$O$40/12 -> 17696.36417 | D40: =+$O$40/12 -> 17696.36417 | E40: 17696.36417 | F40: 17696.36417 | G40: 17696.36417 | H40: 17696.36417 | I40: 17696.36417 | J40: 17696.36417 | K40: 17696.36417 | L40: 17696.36417 | M40: 17696.36417 | N40: 17696.36417 | O40: =IF(Datos!$F$21="Zona patagónica",212356.37*1.22,212356.37) -> 212356.37
C43: 2017-01-01 | D43: 2017-02-01 | E43: 2017-03-01 | F43: 2017-04-01 | G43: 2017-05-01 | H43: 2017-06-01 | I43: 2017-07-01 | J43: 2017-08-01 | K43: 2017-09-01 | L43: 2017-10-01 | M43: 2017-11-01 | N43: 2017-12-01
B44: Remuneración bruta | C44: =SUMIF(Ingresos!$T$8:$T$38,"Sí",Ingresos!C8:C38)+SUMIF(Ingresos!$T$47:$T$77,"Sí",Ingresos!C47:C77) -> 0 | D44: =SUMIF(Ingresos!$T$8:$T$38,"Sí",Ingresos!D8:D38)+SUMIF(Ingresos!$T$47:$T$77,"Sí",Ingresos!D47:D77) -> 0 | E44: =SUMIF(Ingresos!$T$8:$T$38,"Sí",Ingresos!E8:E38)+SUMIF(Ingresos!$T$47:$T$77,"Sí",Ingresos!E47:E77) -> 0 | F44: =SUMIF(Ingresos!$T$8:$T$38,"Sí",Ingresos!F8:F38)+SUMIF(Ingresos!$T$47:$T$77,"Sí",Ingresos!F47:F77) -> 0 | G44: =SUMIF(Ingresos!$T$8:$T$38,"Sí",Ingresos!G8:G38)+SUMIF(Ingresos!$T$47:$T$77,"Sí",Ingresos!G47:G77) -> 0 | H44: =SUMIF(Ingresos!$T$8:$T$38,"Sí",Ingresos!H8:H38)+SUMIF(Ingresos!$T$47:$T$77,"Sí",Ingresos!H47:H77) -> 0 | I44: =SUMIF(Ingresos!$T$8:$T$38,"Sí",Ingresos!I8:I38)+SUMIF(Ingresos!$T$47:$T$77,"Sí",Ingresos!I47:I77) -> 0 | J44: =SUMIF(Ingresos!$T$8:$T$38,"Sí",Ingresos!J8:J38)+SUMIF(Ingresos!$T$47:$T$77,"Sí",Ingresos!J47:J77) -> 0 | K44: =SUMIF(Ingresos!$T$8:$T$38,"Sí",Ingresos!K8:K38)+SUMIF(Ingresos!$T$47:$T$77,"Sí",Ingresos!K47:K77) -> 0 | L44: =SUMIF(Ingresos!$T$8:$T$38,"Sí",Ingresos!L8:L38)+SUMIF(Ingresos!$T$47:$T$77,"Sí",Ingresos!L47:L77) -> 0 | M44: =SUMIF(Ingresos!$T$8:$T$38,"Sí",Ingresos!M8:M38)+SUMIF(Ingresos!$T$47:$T$77,"Sí",Ingresos!M47:M77) -> 0 | N44: =SUMIF(Ingresos!$T$8:$T$38,"Sí",Ingresos!N8:N38)+SUMIF(Ingresos!$T$47:$T$77,"Sí",Ingresos!N47:N77) -> 0
B45: Remuneración Promedio | C45: =SUM($C$44:C44)/COUNT($C$44:C44) -> 0 | D45: =SUM($C$44:D44)/COUNT($C$44:D44) -> 0 | E45: =SUM($C$44:E44)/COUNT($C$44:E44) -> 0 | F45: =SUM($C$44:F44)/COUNT($C$44:F44) -> 0 | G45: =IF(Check!$B$1="Ok",SUM($C$44:G44)/COUNT($C$44:G44),SUM($G$44:G44)/COUNT($G$44:G44)) -> 0 | H45: =IF(Check!$B$1="Ok",SUM($H$44:H44)/COUNT($H$44:H44),SUM($G$44:H44)/COUNT($G$44:H44)) -> 0 | I45: =IF(Check!$B$1="Ok",SUM($H$44:I44)/COUNT($H$44:I44),SUM($G$44:I44)/COUNT($G$44:I44)) -> 0 | J45: =IF(Check!$B$1="Ok",SUM($H$44:J44)/COUNT($H$44:J44),SUM($J$44:J44)/COUNT($J$44:J44)) -> 0 | K45: =IF(Check!$B$1="Ok",SUM($K$44:K44)/COUNT($K$44:K44),SUM($J$44:K44)/COUNT($J$44:K44)) -> 0 | L45: =IF(Check!$B$1="Ok",SUM($J$44:L44)/COUNT($J$44:L44),SUM($L$44:L44)/COUNT($L$44:L44)) -> 0 | M45: =IF(Check!$B$1="Ok",SUM($M$44:M44)/COUNT($M$44:M44),SUM($L$44:M44)/COUNT($L$44:M44)) -> 0 | N45: =IF(Check!$B$1="Ok",SUM($M$44:N44)/COUNT($M$44:N44),SUM($L$44:N44)/COUNT($L$44:N44)) -> 0
B46: Remuneración Promedio (SAC) | C46: =SUM($C$44:C44)/COUNT($C$44:C44) -> 0 | D46: =SUM($C$44:D44)/COUNT($C$44:D44) -> 0 | E46: =SUM($C$44:E44)/COUNT($C$44:E44) -> 0 | F46: =SUM($C$44:F44)/COUNT($C$44:F44) -> 0 | G46: =SUM($C$44:G44)/COUNT($C$44:G44) -> 0 | H46: =SUM($C$44:H44)/COUNT($C$44:H44) -> 0 | I46: =SUM($I$44:I44)/COUNT($I$44:I44) -> 0 | J46: =SUM($I$44:J44)/COUNT($I$44:J44) -> 0 | K46: =SUM($I$44:K44)/COUNT($I$44:K44) -> 0 | L46: =SUM($I$44:L44)/COUNT($I$44:L44) -> 0 | M46: =SUM($I$44:M44)/COUNT($I$44:M44) -> 0 | N46: =SUM($I$44:N44)/COUNT($I$44:N44) -> 0
B47: Tramo | C47: =IF(MIN(C44:C45)<=$O$60,"<"&$O$60,IF(MIN(C44:C45)<=$O$61,"<"&$O$61,">"&$O$61)) -> <404062 | D47: =IF(MIN(D44:D45)<=$O$60,"<"&$O$60,IF(MIN(D44:D45)<=$O$61,"<"&$O$61,">"&$O$61)) -> <404062 | E47: =IF(MIN(E44:E45)<=$O$60,"<"&$O$60,IF(MIN(E44:E45)<=$O$61,"<"&$O$61,">"&$O$61)) -> <404062 | F47: =IF(MIN(F44:F45)<=$O$60,"<"&$O$60,IF(MIN(F44:F45)<=$O$61,"<"&$O$61,">"&$O$61)) -> <404062 | G47: =IF(Check!$B$1="Ok",IF(MIN(G44:G45)<=$O$60,"<"&$O$60,IF(MIN(G44:G45)<=$O$61,"<"&$O$61,">"&$O$61)),IF(MIN(G44:G45)<=$O$65,"<"&$O$65,IF(MIN(G44:G45)<=$O$66,"<"&$O$66,">"&$O$66))) -> <404062 | H47: =IF(MIN(H44:H45)<=$O$65,"<"&$O$65,IF(MIN(H44:H45)<=$O$66,"<"&$O$66,">"&$O$66)) -> <506230 | I47: =IF(MIN(I44:I45)<=$O$65,"<"&$O$65,IF(MIN(I44:I45)<=$O$66,"<"&$O$66,">"&$O$66)) -> <506230 | J47: =IF(Check!$B$1="Ok",IF(MIN(J44:J45)<=$O$65,"<"&$O$65,IF(MIN(J44:J45)<=$O$66,"<"&$O$66,">"&$O$66)),IF(MIN(J44:J45)<=$O$70,"<"&$O$70,IF(MIN(J44:J45)<=$O$71,"<"&$O$71,">"&$O$71))) -> <506230 | K47: =IF(MIN(K44:K45)<=$O$70,"<"&$O$70,IF(MIN(K44:K45)<=$O$71,"<"&$O$71,">"&$O$71)) -> <700875 | L47: =IF(Check!$B$1="Ok",IF(MIN(L44:L45)<=$O$70,"<"&$O$70,IF(MIN(L44:L45)<=$O$71,"<"&$O$71,">"&$O$71)),IF(MIN(L44:L45)<=L56,"<"&L56,">"&L$56)) -> <700875 | M47: =IF(MIN(M44:M45)<=M56,"<"&M56,">"&M56) -> <1980000 | N47: =IF(MIN(N44:N45)<=N56,"<"&N56,">"&N56) -> <1980000
B48: Tramo (SAC) | C48: =IF(C46<=$O$60,"<"&$O$60,IF(C46<=$O$61,"<"&$O$61,">"&$O$61)) -> <404062 | D48: =IF(D46<=$O$60,"<"&$O$60,IF(D46<=$O$61,"<"&$O$61,">"&$O$61)) -> <404062 | E48: <404062 | F48: <404062 | G48: =IF(Check!$B$1="Ok",IF(G46<=$O$60,"<"&$O$60,IF(G46<=$O$61,"<"&$O$61,">"&$O$61)),IF(G46<=$O$65,"<"&$O$65,IF(G46<=$O$66,"<"&$O$66,">"&$O$66))) -> <404062 | H48: =IF(MIN(H44,H46)<=$R$60,"<"&$R$60,IF(H46<=$R$60,"<"&$R$60,">"&$R$60)) -> <880000 | I48: <880000 | J48: <880000 | K48: =IF(MIN(K44,K46)<=K$56,"<"&K$56,IF(K46<=K$56,"<"&K$56,">"&K$56)) -> <1770000 | L48: =IF(MIN(L44,L46)<=$L$56,"<"&$K$56,">"&$K$56) -> <1770000 | M48: =IF(MIN(M44,M46)<=$L$56,"<"&$K$56,">"&$K$56) -> <1770000 | N48: <1770000
B49: Deducción especial (incremento, primera parte) | C49: =+Auxiliares!D399 -> 0 | D49: =+Auxiliares!E399 -> 0 | E49: =+Auxiliares!F399 -> 0 | F49: =+Auxiliares!G399 -> 0 | G49: =+Auxiliares!H399 -> 0 | H49: =+Auxiliares!I399 -> 0 | I49: =+Auxiliares!J399 -> 0 | J49: =+Auxiliares!K399 -> 0 | K49: =+Auxiliares!L399 -> 0 | L49: =+Auxiliares!M399 -> 0 | M49: =+Auxiliares!N399 -> 0 | N49: =+Auxiliares!O399 -> 0
B50: Deducción especial (acumulada, primera parte) | C50: =+Auxiliares!D402 -> 0 | D50: =+Auxiliares!E402 -> 0 | E50: =+Auxiliares!F402 -> 0 | F50: =+Auxiliares!G402 -> 0 | G50: =+Auxiliares!H402 -> 0 | H50: =+Auxiliares!I402 -> 0 | I50: =+Auxiliares!J402 -> 0 | J50: =+Auxiliares!K402 -> 0 | K50: =+Auxiliares!L402 -> 0 | L50: =+Auxiliares!M402 -> 0 | M50: =+Auxiliares!N402 -> 0 | N50: =+Auxiliares!O402 -> 0
B51: Deducción especial (incremento, segunda parte) | C51: =IF(C47="<"&$O$61,VLOOKUP(MIN(C44:C45),$B$60:$D$289,3,TRUE),0) -> 0 | D51: =IF(D47="<"&$O$61,VLOOKUP(MIN(D44:D45),$B$60:$D$289,3,TRUE),0) -> 0 | E51: =IF(E47="<"&$O$61,VLOOKUP(MIN(E44:E45),$B$60:$D$289,3,TRUE),0) -> 0 | F51: =IF(F47="<"&$O$61,VLOOKUP(MIN(F44:F45),$B$60:$D$289,3,TRUE),0) -> 0 | G51: =IF(AND(Check!$B$1="Ok",G47="<"&$O$61),VLOOKUP(MIN(G44:G45),$B$60:$D$289,3,TRUE),IF(G47="<"&$O$66,VLOOKUP(MIN(G44:G45),$F$60:$H$289,3,TRUE),0)) -> 0 | H51: =IF(H47="<"&$O$66,VLOOKUP(MIN(H44:H45),$F$60:$H$289,3,TRUE),0) -> 0 | I51: 0 | J51: =IF(AND(Check!$B$1="Ok",J47="<"&$O$66),VLOOKUP(MIN(J44:J45),$F$60:$H$289,3,TRUE),IF(J47="<"&$O$71,VLOOKUP(MIN(J44:J45),$J$60:$L$289,3,TRUE),0)) -> 0 | K51: =IF(K47="<"&$O$71,VLOOKUP(MIN(K44:K45),$J$60:$L$289,3,TRUE),0) -> 0 | L51: =IF(L47="<"&$O$71,VLOOKUP(MIN(L44:L45),$J$60:$L$289,3,TRUE),0) -> 0 | M51: 0 | N51: 0
B52: Deducción especial (acumulada, segunda parte) | C52: =+Auxiliares!D403 -> 0 | D52: =+Auxiliares!E403 -> 0 | E52: =+Auxiliares!F403 -> 0 | F52: =+Auxiliares!G403 -> 0 | G52: =+Auxiliares!H403 -> 0 | H52: =+Auxiliares!I403 -> 0 | I52: =+Auxiliares!J403 -> 0 | J52: =+Auxiliares!K403 -> 0 | K52: =+Auxiliares!L403 -> 0 | L52: =+Auxiliares!M403 -> 0 | M52: =+Auxiliares!N403 -> 0 | N52: =+Auxiliares!O403 -> 0
B53: Deducción especial incrementada (acumulada) | C53: =+C50+C52 -> 0 | D53: 0 | E53: 0 | F53: 0 | G53: 0 | H53: =+H50+H52 -> 0 | I53: =+I50+I52 -> 0 | J53: 0 | K53: 0 | L53: 0 | M53: 0 | N53: 0
C55: 2017-01-01 | D55: 2017-02-01 | E55: 2017-03-01 | F55: 2017-04-01 | G55: 2017-05-01 | H55: 2017-06-01 | I55: 2017-07-01 | J55: 2017-08-01 | K55: 2017-09-01 | L55: 2017-10-01 | M55: 2017-11-01 | N55: 2017-12-01
B56: 15 SMVyM | K56: =118000*15 -> 1770000 | L56: 1980000 | M56: =+L56 -> 1980000 | N56: =+M56 -> 1980000
B58: INCREMENTO DE LA DEDUCCIÓN ESPECIAL (de 404.062 a 466.017) | F58: INCREMENTO DE LA DEDUCCIÓN ESPECIAL (de 506.230 a 583.851) | J58: INCREMENTO DE LA DEDUCCIÓN ESPECIAL (de 700.875 a 808.341)
B59: Sueldo bruto mensual desde | C59: Sueldo bruto hasta | D59: Incremento de la deducción | F59: Sueldo bruto mensual desde | G59: Sueldo bruto hasta | H59: DEI | J59: Sueldo bruto mensual desde | K59: Sueldo bruto hasta | L59: DEI | N59: Desde enero 2023 | O59: Importe | Q59: 1er SAC | R59: Importe
B60: 404062.01 | C60: 404331 | D60: 115775 | F60: 506230.01 | G60: 506568 | H60: 199645 | J60: 700875.01 | K60: 701316 | L60: 359613 | N60: Grupo 1 | O60: 404062 | Q60: Exento | R60: 880000
B61: 404331.01 | C61: 404601 | D61: 114779 | F61: 506568.01 | G61: 506906 | H61: 197921 | J61: 701316.01 | K61: 701785 | L61: 356488 | N61: Grupo 2 | O61: 466017
B62: 404601.01 | C62: 404871 | D62: 113865 | F62: 506906.01 | G62: 507244 | H62: 196344 | J62: 701785.01 | K62: 702253 | L62: 353639 | N62: Grupo 3 | Q62: 2do SAC | R62: Importe
B63: 404871.01 | C63: 405139 | D63: 113003 | F63: 507244.01 | G63: 507580 | H63: 194867 | J63: 702253.01 | K63: 702718 | L63: 350973 | Q63: Exento | R63: =+K56 -> 1770000
B64: 405139.01 | C64: 405409 | D64: 112178 | F64: 507580.01 | G64: 507918 | H64: 193441 | J64: 702718.01 | K64: 703186 | L64: 348400 | N64: Desde mayo 2023 | O64: Importe
B65: 405409.01 | C65: 405679 | D65: 111381 | F65: 507918.01 | G65: 508256 | H65: 192064 | J65: 703186.01 | K65: 703655 | L65: 345916 | N65: Grupo 1 | O65: 506230
B66: 405679.01 | C66: 405947 | D66: 110608 | F66: 508256.01 | G66: 508592 | H66: 190735 | J66: 703655.01 | K66: 704119 | L66: 343520 | N66: Grupo 2 | O66: 583851
B67: 405947.01 | C67: 406217 | D67: 109852 | F67: 508592.01 | G67: 508930 | H67: 189428 | J67: 704119.01 | K67: 704588 | L67: 341164 | N67: Grupo 3
B68: 406217.01 | C68: 406486 | D68: 109109 | F68: 508930.01 | G68: 509267 | H68: 188153 | J68: 704588.01 | K68: 705054 | L68: 338868
B69: 406486.01 | C69: 406756 | D69: 108385 | F69: 509267.01 | G69: 509606 | H69: 186898 | J69: 705054.01 | K69: 705523 | L69: 336606 | N69: Desde agosto 2023 | O69: Importe
B70: 406756.01 | C70: 407026 | D70: 107672 | F70: 509606.01 | G70: 509944 | H70: 185664 | J70: 705523.01 | K70: 705991 | L70: 334382 | N70: Grupo 1 | O70: 700875
B71: 407026.01 | C71: 407294 | D71: 106969 | F71: 509944.01 | G71: 510280 | H71: 184458 | J71: 705991.01 | K71: 706456 | L71: 332209 | N71: Grupo 2 | O71: 808341
B72: 407294.01 | C72: 407564 | D72: 106273 | F72: 510280.01 | G72: 510618 | H72: 183260 | J72: 706456.01 | K72: 706924 | L72: 330051 | N72: Grupo 3
B73: 407564.01 | C73: 407834 | D73: 105592 | F73: 510618.01 | G73: 510956 | H73: 182078 | J73: 706924.01 | K73: 707392 | L73: 327921
B74: 407834.01 | C74: 408102 | D74: 104916 | F74: 510956.01 | G74: 511292 | H74: 180918 | J74: 707392.01 | K74: 707857 | L74: 325832
B75: 408102.01 | C75: 408372 | D75: 104249 | F75: 511292.01 | G75: 511630 | H75: 179763 | J75: 707857.01 | K75: 708326 | L75: 323751
B76: 408372.01 | C76: 408641 | D76: 103585 | F76: 511630.01 | G76: 511967 | H76: 178625 | J76: 708326.01 | K76: 708792 | L76: 321701
B77: 408641.01 | C77: 408911 | D77: 102931 | F77: 511967.01 | G77: 512306 | H77: 177494 | J77: 708792.01 | K77: 709261 | L77: 319663
B78: 408911.01 | C78: 409181 | D78: 102281 | F78: 512306.01 | G78: 512644 | H78: 176373 | J78: 709261.01 | K78: 709729 | L78: 317644
B79: 409181.01 | C79: 409449 | D79: 101641 | F79: 512644.01 | G79: 512980 | H79: 175271 | J79: 709729.01 | K79: 710194 | L79: 315659
B80: 409449.01 | C80: 409719 | D80: 101003 | F80: 512980.01 | G80: 513318 | H80: 174169 | J80: 710194.01 | K80: 710662 | L80: 313675
B81: 409719.01 | C81: 409989 | D81: 100371 | F81: 513318.01 | G81: 513656 | H81: 173077 | J81: 710662.01 | K81: 711130 | L81: 311708
B82: 409989.01 | C82: 410257 | D82: 99744 | F82: 513656.01 | G82: 513992 | H82: 172001 | J82: 711130.01 | K82: 711595 | L82: 309770
B83: 410257.01 | C83: 410527 | D83: 99121 | F83: 513992.01 | G83: 514330 | H83: 170925 | J83: 711595.01 | K83: 712064 | L83: 307832
B84: 410527.01 | C84: 410796 | D84: 98502 | F84: 514330.01 | G84: 514667 | H84: 169860 | J84: 712064.01 | K84: 712530 | L84: 305915
B85: 410796.01 | C85: 411066 | D85: 97887 | F85: 514667.01 | G85: 515006 | H85: 168799 | J85: 712530.01 | K85: 712998 | L85: 304003
B86: 411066.01 | C86: 411336 | D86: 97279 | F86: 515006.01 | G86: 515344 | H86: 167745 | J86: 712998.01 | K86: 713467 | L86: 302105
B87: 411336.01 | C87: 411604 | D87: 96673 | F87: 515344.01 | G87: 515680 | H87: 166705 | J87: 713467.01 | K87: 713932 | L87: 300232
B88: 411604.01 | C88: 411874 | D88: 96070 | F88: 515680.01 | G88: 516018 | H88: 165664 | J88: 713932.01 | K88: 714400 | L88: 298357
B89: 411874.01 | C89: 412144 | D89: 95471 | F89: 516018.01 | G89: 516356 | H89: 164629 | J89: 714400.01 | K89: 714868 | L89: 296493
B90: 412144.01 | C90: 412412 | D90: 94876 | F90: 516356.01 | G90: 516692 | H90: 163607 | J90: 714868.01 | K90: 715333 | L90: 294653
B91: 412412.01 | C91: 412682 | D91: 94284 | F91: 516692.01 | G91: 517030 | H91: 162583 | J91: 715333.01 | K91: 715801 | L91: 292809
B92: 412682.01 | C92: 412951 | D92: 93693 | F92: 517030.01 | G92: 517367 | H92: 161569 | J92: 715801.01 | K92: 716268 | L92: 290982
B93: 412951.01 | C93: 413221 | D93: 93109 | F93: 517367.01 | G93: 517705 | H93: 160555 | J93: 716268.01 | K93: 716736 | L93: 289158
B94: 413221.01 | C94: 413491 | D94: 92526 | F94: 517705.01 | G94: 518044 | H94: 159547 | J94: 716736.01 | K94: 717205 | L94: 287342
B95: 413491.01 | C95: 413759 | D95: 91946 | F95: 518044.01 | G95: 518379 | H95: 158552 | J95: 717205.01 | K95: 717669 | L95: 285549
B96: 413759.01 | C96: 414029 | D96: 91367 | F96: 518379.01 | G96: 518718 | H96: 157553 | J96: 717669.01 | K96: 718138 | L96: 283751
B97: 414029.01 | C97: 414299 | D97: 90793 | F97: 518718.01 | G97: 519056 | H97: 156559 | J97: 718138.01 | K97: 718606 | L97: 281962
B98: 414299.01 | C98: 414567 | D98: 90219 | F98: 519056.01 | G98: 519392 | H98: 155577 | J98: 718606.01 | K98: 719071 | L98: 280193
B99: 414567.01 | C99: 414837 | D99: 89650 | F99: 519392.01 | G99: 519730 | H99: 154592 | J99: 719071.01 | K99: 719539 | L99: 278420
B100: 414837.01 | C100: 415106 | D100: 89083 | F100: 519730.01 | G100: 520067 | H100: 153615 | J100: 719539.01 | K100: 720006 | L100: 276660
B101: 415106.01 | C101: 415376 | D101: 88516 | F101: 520067.01 | G101: 520405 | H101: 152638 | J101: 720006.01 | K101: 720474 | L101: 274901
B102: 415376.01 | C102: 415646 | D102: 87953 | F102: 520405.01 | G102: 520744 | H102: 151665 | J102: 720474.01 | K102: 720942 | L102: 273149
B103: 415646.01 | C103: 415914 | D103: 87393 | F103: 520744.01 | G103: 521079 | H103: 150703 | J103: 720942.01 | K103: 721407 | L103: 271417
B104: 415914.01 | C104: 416184 | D104: 86835 | F104: 521079.01 | G104: 521418 | H104: 149738 | J104: 721407.01 | K104: 721876 | L104: 269678
B105: 416184.01 | C105: 416454 | D105: 86279 | F105: 521418.01 | G105: 521756 | H105: 148776 | J105: 721876.01 | K105: 722344 | L105: 267947
B106: 416454.01 | C106: 416722 | D106: 85726 | F106: 521756.01 | G106: 522092 | H106: 147825 | J106: 722344.01 | K106: 722809 | L106: 266234
B107: 416722.01 | C107: 416992 | D107: 85170 | F107: 522092.01 | G107: 522430 | H107: 146871 | J107: 722809.01 | K107: 723277 | L107: 264515
B108: 416992.01 | C108: 417261 | D108: 84621 | F108: 522430.01 | G108: 522767 | H108: 145923 | J108: 723277.01 | K108: 723744 | L108: 262809
B109: 417261.01 | C109: 417531 | D109: 84074 | F109: 522767.01 | G109: 523105 | H109: 144975 | J109: 723744.01 | K109: 724212 | L109: 261102
B110: 417531.01 | C110: 417801 | D110: 83528 | F110: 523105.01 | G110: 523444 | H110: 144030 | J110: 724212.01 | K110: 724680 | L110: 259400
B111: 417801.01 | C111: 418069 | D111: 82981 | F111: 523444.01 | G111: 523779 | H111: 143095 | J111: 724680.01 | K111: 725145 | L111: 257717
B112: 418069.01 | C112: 418339 | D112: 82439 | F112: 523779.01 | G112: 524118 | H112: 142157 | J112: 725145.01 | K112: 725614 | L112: 256027
B113: 418339.01 | C113: 418609 | D113: 81897 | F113: 524118.01 | G113: 524456 | H113: 141221 | J113: 725614.01 | K113: 726082 | L113: 254343
B114: 418609.01 | C114: 418877 | D114: 81359 | F114: 524456.01 | G114: 524792 | H114: 140295 | J114: 726082.01 | K114: 726547 | L114: 252676
B115: 418877.01 | C115: 419147 | D115: 80821 | F115: 524792.01 | G115: 525130 | H115: 139366 | J115: 726547.01 | K115: 727015 | L115: 251002
B116: 419147.01 | C116: 419416 | D116: 80284 | F116: 525130.01 | G116: 525467 | H116: 138442 | J116: 727015.01 | K116: 727482 | L116: 249339
B117: 419416.01 | C117: 419686 | D117: 79748 | F117: 525467.01 | G117: 525805 | H117: 137518 | J117: 727482.01 | K117: 727950 | L117: 247675
B118: 419686.01 | C118: 419956 | D118: 79215 | F118: 525805.01 | G118: 526143 | H118: 136597 | J118: 727950.01 | K118: 728418 | L118: 246016
B119: 419956.01 | C119: 420224 | D119: 78684 | F119: 526143.01 | G119: 526479 | H119: 135685 | J119: 728418.01 | K119: 728883 | L119: 244373
B120: 420224.01 | C120: 420494 | D120: 78154 | F120: 526479.01 | G120: 526817 | H120: 134768 | J120: 728883.01 | K120: 729351 | L120: 242724
B121: 420494.01 | C121: 420764 | D121: 77625 | F121: 526817.01 | G121: 527156 | H121: 133855 | J121: 729351.01 | K121: 729820 | L121: 241079
B122: 420764.01 | C122: 421032 | D122: 77097 | F122: 527156.01 | G122: 527491 | H122: 132950 | J122: 729820.01 | K122: 730285 | L122: 239450
B123: 421032.01 | C123: 421302 | D123: 76573 | F123: 527491.01 | G123: 527830 | H123: 132042 | J123: 730285.01 | K123: 730753 | L123: 237814
B124: 421302.01 | C124: 421571 | D124: 76047 | F124: 527830.01 | G124: 528167 | H124: 131139 | J124: 730753.01 | K124: 731219 | L124: 236188
B125: 421571.01 | C125: 421841 | D125: 75525 | F125: 528167.01 | G125: 528505 | H125: 130235 | J125: 731219.01 | K125: 731688 | L125: 234561
B126: 421841.01 | C126: 422111 | D126: 75005 | F126: 528505.01 | G126: 528843 | H126: 129333 | J126: 731688.01 | K126: 732156 | L126: 232937
B127: 422111.01 | C127: 422379 | D127: 74484 | F127: 528843.01 | G127: 529179 | H127: 128440 | J127: 732156.01 | K127: 732621 | L127: 231330
B128: 422379.01 | C128: 422649 | D128: 73964 | F128: 529179.01 | G128: 529517 | H128: 127543 | J128: 732621.01 | K128: 733089 | L128: 229715
B129: 422649.01 | C129: 422919 | D129: 73447 | F129: 529517.01 | G129: 529856 | H129: 126648 | J129: 733089.01 | K129: 733558 | L129: 228103
B130: 422919.01 | C130: 423187 | D130: 72930 | F130: 529856.01 | G130: 530191 | H130: 125762 | J130: 733558.01 | K130: 734022 | L130: 226508
B131: 423187.01 | C131: 423457 | D131: 72415 | F131: 530191.01 | G131: 530530 | H131: 124872 | J131: 734022.01 | K131: 734491 | L131: 224904
B132: 423457.01 | C132: 423726 | D132: 71902 | F132: 530530.01 | G132: 530867 | H132: 123987 | J132: 734491.01 | K132: 734957 | L132: 223311
B133: 423726.01 | C133: 423996 | D133: 71387 | F133: 530867.01 | G133: 531205 | H133: 123100 | J133: 734957.01 | K133: 735426 | L133: 221715
B134: 423996.01 | C134: 424266 | D134: 70875 | F134: 531205.01 | G134: 531543 | H134: 122216 | J134: 735426.01 | K134: 735894 | L134: 220122
B135: 424266.01 | C135: 424534 | D135: 70366 | F135: 531543.01 | G135: 531879 | H135: 121340 | J135: 735894.01 | K135: 736359 | L135: 218545
B136: 424534.01 | C136: 424804 | D136: 69856 | F136: 531879.01 | G136: 532217 | H136: 120460 | J136: 736359.01 | K136: 736827 | L136: 216960
B137: 424804.01 | C137: 425074 | D137: 69348 | F137: 532217.01 | G137: 532556 | H137: 119581 | J137: 736827.01 | K137: 737295 | L137: 215379
B138: 425074.01 | C138: 425342 | D138: 68842 | F138: 532556.01 | G138: 532891 | H138: 118711 | J138: 737295.01 | K138: 737760 | L138: 213812
B139: 425342.01 | C139: 425612 | D139: 68334 | F139: 532891.01 | G139: 533230 | H139: 117836 | J139: 737760.01 | K139: 738229 | L139: 212237
B140: 425612.01 | C140: 425881 | D140: 67832 | F140: 533230.01 | G140: 533567 | H140: 116967 | J140: 738229.01 | K140: 738695 | L140: 210672
B141: 425881.01 | C141: 426151 | D141: 67327 | F141: 533567.01 | G141: 533905 | H141: 116096 | J141: 738695.01 | K141: 739164 | L141: 209103
B142: 426151.01 | C142: 426421 | D142: 66823 | F142: 533905.01 | G142: 534243 | H142: 115227 | J142: 739164.01 | K142: 739632 | L142: 207539
B143: 426421.01 | C143: 426689 | D143: 66322 | F143: 534243.01 | G143: 534579 | H143: 114366 | J143: 739632.01 | K143: 740097 | L143: 205988
B144: 426689.01 | C144: 426959 | D144: 65822 | F144: 534579.01 | G144: 534917 | H144: 113500 | J144: 740097.01 | K144: 740565 | L144: 204430
B145: 426959.01 | C145: 427229 | D145: 65321 | F145: 534917.01 | G145: 535255 | H145: 112636 | J145: 740565.01 | K145: 741033 | L145: 202874
B146: 427229.01 | C146: 427497 | D146: 64822 | F146: 535255.01 | G146: 535591 | H146: 111780 | J146: 741033.01 | K146: 741498 | L146: 201333
B147: 427497.01 | C147: 427767 | D147: 64325 | F147: 535591.01 | G147: 535929 | H147: 110920 | J147: 741498.01 | K147: 741966 | L147: 199784
B148: 427767.01 | C148: 428036 | D148: 63827 | F148: 535929.01 | G148: 536266 | H148: 110064 | J148: 741966.01 | K148: 742433 | L148: 198243
B149: 428036.01 | C149: 428306 | D149: 63332 | F149: 536266.01 | G149: 536605 | H149: 109207 | J149: 742433.01 | K149: 742901 | L149: 196700
B150: 428306.01 | C150: 428576 | D150: 62837 | F150: 536605.01 | G150: 536943 | H150: 108351 | J150: 742901.01 | K150: 743370 | L150: 195160
B151: 428576.01 | C151: 428844 | D151: 62341 | F151: 536943.01 | G151: 537279 | H151: 107504 | J151: 743370.01 | K151: 743835 | L151: 193633
B152: 428844.01 | C152: 429114 | D152: 61848 | F152: 537279.01 | G152: 537617 | H152: 106651 | J152: 743835.01 | K152: 744303 | L152: 192099
B153: 429114.01 | C153: 429384 | D153: 61358 | F153: 537617.01 | G153: 537955 | H153: 105801 | J153: 744303.01 | K153: 744771 | L153: 190567
B154: 429384.01 | C154: 429652 | D154: 60866 | F154: 537955.01 | G154: 538291 | H154: 104957 | J154: 744771.01 | K154: 745236 | L154: 189049
B155: 429652.01 | C155: 429922 | D155: 60374 | F155: 538291.01 | G155: 538629 | H155: 104110 | J155: 745236.01 | K155: 745704 | L155: 187522
B156: 429922.01 | C156: 430191 | D156: 59884 | F156: 538629.01 | G156: 538966 | H156: 103266 | J156: 745704.01 | K156: 746171 | L156: 186004
B157: 430191.01 | C157: 430461 | D157: 59398 | F157: 538966.01 | G157: 539305 | H157: 102422 | J157: 746171.01 | K157: 746639 | L157: 184483
B158: 430461.01 | C158: 430731 | D158: 58909 | F158: 539305.01 | G158: 539643 | H158: 101578 | J158: 746639.01 | K158: 747108 | L158: 182965
B159: 430731.01 | C159: 430999 | D159: 58421 | F159: 539643.01 | G159: 539979 | H159: 100743 | J159: 747108.01 | K159: 747572 | L159: 181460
B160: 430999.01 | C160: 431269 | D160: 57935 | F160: 539979.01 | G160: 540317 | H160: 99902 | J160: 747572.01 | K160: 748041 | L160: 179947
B161: 431269.01 | C161: 431539 | D161: 57450 | F161: 540317.01 | G161: 540655 | H161: 99063 | J161: 748041.01 | K161: 748509 | L161: 178436
B162: 431539.01 | C162: 431807 | D162: 56965 | F162: 540655.01 | G162: 540991 | H162: 98232 | J162: 748509.01 | K162: 748974 | L162: 176939
B163: 431807.01 | C163: 432077 | D163: 56483 | F163: 540991.01 | G163: 541329 | H163: 97395 | J163: 748974.01 | K163: 749442 | L163: 175433
B164: 432077.01 | C164: 432346 | D164: 55998 | F164: 541329.01 | G164: 541666 | H164: 96563 | J164: 749442.01 | K164: 749909 | L164: 173936
B165: 432346.01 | C165: 432616 | D165: 55515 | F165: 541666.01 | G165: 542005 | H165: 95730 | J165: 749909.01 | K165: 750377 | L165: 172435
B166: 432616.01 | C166: 432886 | D166: 55034 | F166: 542005.01 | G166: 542343 | H166: 94898 | J166: 750377.01 | K166: 750845 | L166: 170936
B167: 432886.01 | C167: 433154 | D167: 54553 | F167: 542343.01 | G167: 542679 | H167: 94073 | J167: 750845.01 | K167: 751310 | L167: 169452
B168: 433154.01 | C168: 433424 | D168: 54074 | F168: 542679.01 | G168: 543017 | H168: 93243 | J168: 751310.01 | K168: 751779 | L168: 167958
B169: 433424.01 | C169: 433694 | D169: 53594 | F169: 543017.01 | G169: 543355 | H169: 92415 | J169: 751779.01 | K169: 752247 | L169: 166466
B170: 433694.01 | C170: 433962 | D170: 53115 | F170: 543355.01 | G170: 543691 | H170: 91594 | J170: 752247.01 | K170: 752712 | L170: 164988
B171: 433962.01 | C171: 434232 | D171: 52639 | F171: 543691.01 | G171: 544029 | H171: 90768 | J171: 752712.01 | K171: 753180 | L171: 163502
B172: 434232.01 | C172: 434501 | D172: 52162 | F172: 544029.01 | G172: 544366 | H172: 89947 | J172: 753180.01 | K172: 753647 | L172: 162023
B173: 434501.01 | C173: 434771 | D173: 51684 | F173: 544366.01 | G173: 544704 | H173: 89124 | J173: 753647.01 | K173: 754115 | L173: 160540
B174: 434771.01 | C174: 435041 | D174: 51209 | F174: 544704.01 | G174: 545043 | H174: 88301 | J174: 754115.01 | K174: 754583 | L174: 159060
B175: 435041.01 | C175: 435309 | D175: 50735 | F175: 545043.01 | G175: 545378 | H175: 87487 | J175: 754583.01 | K175: 755048 | L175: 157593
B176: 435309.01 | C176: 435579 | D176: 50261 | F176: 545378.01 | G176: 545717 | H176: 86667 | J176: 755048.01 | K176: 755516 | L176: 156118
B177: 435579.01 | C177: 435849 | D177: 49785 | F177: 545717.01 | G177: 546055 | H177: 85849 | J177: 755516.01 | K177: 755985 | L177: 154644
B178: 435849.01 | C178: 436117 | D178: 49315 | F178: 546055.01 | G178: 546391 | H178: 85037 | J178: 755985.01 | K178: 756450 | L178: 153184
B179: 436117.01 | C179: 436387 | D179: 48843 | F179: 546391.01 | G179: 546729 | H179: 84221 | J179: 756450.01 | K179: 756918 | L179: 151714
B180: 436387.01 | C180: 436656 | D180: 48372 | F180: 546729.01 | G180: 547066 | H180: 83409 | J180: 756918.01 | K180: 757385 | L180: 150252
B181: 436656.01 | C181: 436926 | D181: 47900 | F181: 547066.01 | G181: 547404 | H181: 82596 | J181: 757385.01 | K181: 757853 | L181: 148787
B182: 436926.01 | C182: 437196 | D182: 47428 | F182: 547404.01 | G182: 547743 | H182: 81783 | J182: 757853.01 | K182: 758321 | L182: 147324
B183: 437196.01 | C183: 437464 | D183: 46959 | F183: 547743.01 | G183: 548078 | H183: 80977 | J183: 758321.01 | K183: 758786 | L183: 145874
B184: 437464.01 | C184: 437734 | D184: 46491 | F184: 548078.01 | G184: 548417 | H184: 80167 | J184: 758786.01 | K184: 759254 | L184: 144415
B185: 437734.01 | C185: 438004 | D185: 46022 | F185: 548417.01 | G185: 548755 | H185: 79358 | J185: 759254.01 | K185: 759723 | L185: 142957
B186: 438004.01 | C186: 438272 | D186: 45554 | F186: 548755.01 | G186: 549091 | H186: 78555 | J186: 759723.01 | K186: 760188 | L186: 141513
B187: 438272.01 | C187: 438542 | D187: 45089 | F187: 549091.01 | G187: 549429 | H187: 77748 | J187: 760188.01 | K187: 760656 | L187: 140060
B188: 438542.01 | C188: 438811 | D188: 44622 | F188: 549429.01 | G188: 549766 | H188: 76945 | J188: 760656.01 | K188: 761122 | L188: 138614
B189: 438811.01 | C189: 439081 | D189: 44155 | F189: 549766.01 | G189: 550104 | H189: 76140 | J189: 761122.01 | K189: 761591 | L189: 137164
B190: 439081.01 | C190: 439351 | D190: 43690 | F190: 550104.01 | G190: 550443 | H190: 75336 | J190: 761591.01 | K190: 762059 | L190: 135717
B191: 439351.01 | C191: 439619 | D191: 43227 | F191: 550443.01 | G191: 550778 | H191: 74539 | J191: 762059.01 | K191: 762524 | L191: 134282
B192: 439619.01 | C192: 439889 | D192: 42764 | F192: 550778.01 | G192: 551117 | H192: 73737 | J192: 762524.01 | K192: 762992 | L192: 132838
B193: 439889.01 | C193: 440159 | D193: 42301 | F193: 551117.01 | G193: 551455 | H193: 72936 | J193: 762992.01 | K193: 763461 | L193: 131396
B194: 440159.01 | C194: 440427 | D194: 41836 | F194: 551455.01 | G194: 551791 | H194: 72142 | J194: 763461.01 | K194: 763925 | L194: 129967
B195: 440427.01 | C195: 440697 | D195: 41373 | F195: 551791.01 | G195: 552129 | H195: 71343 | J195: 763925.01 | K195: 764394 | L195: 128529
B196: 440697.01 | C196: 440966 | D196: 40913 | F196: 552129.01 | G196: 552466 | H196: 70549 | J196: 764394.01 | K196: 764860 | L196: 127098
B197: 440966.01 | C197: 441236 | D197: 40451 | F197: 552466.01 | G197: 552804 | H197: 69752 | J197: 764860.01 | K197: 765329 | L197: 125663
B198: 441236.01 | C198: 441506 | D198: 39992 | F198: 552804.01 | G198: 553142 | H198: 68956 | J198: 765329.01 | K198: 765797 | L198: 124230
B199: 441506.01 | C199: 441774 | D199: 39530 | F199: 553142.01 | G199: 553478 | H199: 68167 | J199: 765797.01 | K199: 766262 | L199: 122809
B200: 441774.01 | C200: 442044 | D200: 39073 | F200: 553478.01 | G200: 553816 | H200: 67373 | J200: 766262.01 | K200: 766730 | L200: 121380
B201: 442044.01 | C201: 442314 | D201: 38613 | F201: 553816.01 | G201: 554155 | H201: 66580 | J201: 766730.01 | K201: 767198 | L201: 119952
B202: 442314.01 | C202: 442582 | D202: 38153 | F202: 554155.01 | G202: 554490 | H202: 65794 | J202: 767198.01 | K202: 767663 | L202: 118537
B203: 442582.01 | C203: 442852 | D203: 37696 | F203: 554490.01 | G203: 554829 | H203: 65003 | J203: 767663.01 | K203: 768132 | L203: 117112
B204: 442852.01 | C204: 443121 | D204: 37238 | F204: 554829.01 | G204: 555166 | H204: 64215 | J204: 768132.01 | K204: 768598 | L204: 115695
B205: 443121.01 | C205: 443391 | D205: 36784 | F205: 555166.01 | G205: 555504 | H205: 63426 | J205: 768598.01 | K205: 769066 | L205: 114274
B206: 443391.01 | C206: 443661 | D206: 36327 | F206: 555504.01 | G206: 555842 | H206: 62638 | J206: 769066.01 | K206: 769535 | L206: 112855
B207: 443661.01 | C207: 443929 | D207: 35873 | F207: 555842.01 | G207: 556178 | H207: 61856 | J207: 769535.01 | K207: 770000 | L207: 111448
B208: 443929.01 | C208: 444199 | D208: 35417 | F208: 556178.01 | G208: 556516 | H208: 61070 | J208: 770000.01 | K208: 770468 | L208: 110032
B209: 444199.01 | C209: 444469 | D209: 34963 | F209: 556516.01 | G209: 556855 | H209: 60284 | J209: 770468.01 | K209: 770936 | L209: 108617
B210: 444469.01 | C210: 444737 | D210: 34507 | F210: 556855.01 | G210: 557190 | H210: 59505 | J210: 770936.01 | K210: 771401 | L210: 107215
B211: 444737.01 | C211: 445007 | D211: 34054 | F211: 557190.01 | G211: 557529 | H211: 58721 | J211: 771401.01 | K211: 771869 | L211: 105803
... 78 more rows

Sheet Liquidacion
F2: =IF(MONTH(F7)<=MONTH('F1357'!$D$11),1,0) -> 1 | G2: =IF(MONTH(G7)<=MONTH('F1357'!$D$11),1,0) -> 1 | H2: =IF(MONTH(H7)<=MONTH('F1357'!$D$11),1,0) -> 1 | I2: =IF(MONTH(I7)<=MONTH('F1357'!$D$11),1,0) -> 1 | J2: =IF(MONTH(J7)<=MONTH('F1357'!$D$11),1,0) -> 1 | K2: =IF(MONTH(K7)<=MONTH('F1357'!$D$11),1,0) -> 1 | L2: =IF(MONTH(L7)<=MONTH('F1357'!$D$11),1,0) -> 1 | M2: =IF(MONTH(M7)<=MONTH('F1357'!$D$11),1,0) -> 1 | N2: =IF(MONTH(N7)<=MONTH('F1357'!$D$11),1,0) -> 1 | O2: =IF(MONTH(O7)<=MONTH('F1357'!$D$11),1,0) -> 0 | P2: =IF(MONTH(P7)<=MONTH('F1357'!$D$11),1,0) -> 0 | Q2: =IF(MONTH(Q7)<=MONTH('F1357'!$D$11),1,0) -> 0
F3: =IF(MONTH(F7)=MONTH('F1357'!$D$11),1,0) -> 0 | G3: =IF(MONTH(G7)=MONTH('F1357'!$D$11),1,0) -> 0 | H3: =IF(MONTH(H7)=MONTH('F1357'!$D$11),1,0) -> 0 | I3: =IF(MONTH(I7)=MONTH('F1357'!$D$11),1,0) -> 0 | J3: =IF(MONTH(J7)=MONTH('F1357'!$D$11),1,0) -> 0 | K3: =IF(MONTH(K7)=MONTH('F1357'!$D$11),1,0) -> 0 | L3: =IF(MONTH(L7)=MONTH('F1357'!$D$11),1,0) -> 0 | M3: =IF(MONTH(M7)=MONTH('F1357'!$D$11),1,0) -> 0 | N3: =IF(MONTH(N7)=MONTH('F1357'!$D$11),1,0) -> 1 | O3: =IF(MONTH(O7)=MONTH('F1357'!$D$11),1,0) -> 0 | P3: =IF(MONTH(P7)=MONTH('F1357'!$D$11),1,0) -> 0 | Q3: =IF(MONTH(Q7)=MONTH('F1357'!$D$11),1,0) -> 0 | T3: 1
F4: 1 | G4: 2 | H4: 3 | I4: 4 | J4: 5 | K4: 6 | L4: 7 | M4: 8 | N4: 9 | O4: 10 | P4: 11 | Q4: 12
D5: ="Período fiscal "&Datos!F13 -> Período fiscal 2023 | F5: ="Trabajador:"&Datos!F16&" "&Datos!F17 -> Trabajador: | K5: Legajo: | L5: =Datos!F18 -> 0 | O5: CUIL: | P5: =Datos!F19 -> 0
B7: Datos Mensuales | D7: Conceptos | F7: 2016-01-31 | G7: 2016-02-28 | H7: 2016-03-31 | I7: 2016-04-30 | J7: 2016-05-31 | K7: 2016-06-30 | L7: 2016-07-31 | M7: 2016-08-31 | N7: 2016-09-30 | O7: 2016-10-31 | P7: 2016-11-30 | Q7: 2016-12-31 | S7: Anual | U7: F. 1357
D8: Ingresos
D9: =Ingresos!B8 -> Sueldo bruto | F9: =Ingresos!C8 -> 0 | G9: =Ingresos!D8 -> 0 | H9: =Ingresos!E8 -> 0 | I9: =Ingresos!F8 -> 0 | J9: =Ingresos!G8 -> 0 | K9: =Ingresos!H8 -> 0 | L9: =Ingresos!I8 -> 0 | M9: =Ingresos!J8 -> 0 | N9: =Ingresos!K8 -> 0 | O9: =Ingresos!L8 -> 0 | P9: =Ingresos!M8 -> 0 | Q9: =Ingresos!N8 -> 0 | S9: =SUM(F9:Q9) -> 0 | U9: =Ingresos!U8 -> Remuneración bruta gravada | V9: =SUMIF($F$2:$Q$2,1,F9:Q9) -> 0
D10: =Ingresos!B9 -> Horas extras (días inhábiles) | F10: =Ingresos!C9 -> 0 | G10: =Ingresos!D9 -> 0 | H10: =Ingresos!E9 -> 0 | I10: =Ingresos!F9 -> 0 | J10: =Ingresos!G9 -> 0 | K10: =Ingresos!H9 -> 0 | L10: =Ingresos!I9 -> 0 | M10: =Ingresos!J9 -> 0 | N10: =Ingresos!K9 -> 0 | O10: =Ingresos!L9 -> 0 | P10: =Ingresos!M9 -> 0 | Q10: =Ingresos!N9 -> 0 | S10: 0 | U10: =Ingresos!U9 -> Horas extras remuneración gravada | V10: 0
D11: =Ingresos!B10 -> Plus horas extras (días inhábiles) | F11: =Ingresos!C10 -> 0 | G11: =Ingresos!D10 -> 0 | H11: =Ingresos!E10 -> 0 | I11: =Ingresos!F10 -> 0 | J11: =Ingresos!G10 -> 0 | K11: =Ingresos!H10 -> 0 | L11: =Ingresos!I10 -> 0 | M11: =Ingresos!J10 -> 0 | N11: =Ingresos!K10 -> 0 | O11: =Ingresos!L10 -> 0 | P11: =Ingresos!M10 -> 0 | Q11: =Ingresos!N10 -> 0 | S11: 0 | U11: =Ingresos!U10 -> Horas extras remuneración exenta | V11: 0
D12: =Ingresos!B11 -> Horas extras (días hábiles) | F12: =Ingresos!C11 -> 0 | G12: =Ingresos!D11 -> 0 | H12: =Ingresos!E11 -> 0 | I12: =Ingresos!F11 -> 0 | J12: =Ingresos!G11 -> 0 | K12: =Ingresos!H11 -> 0 | L12: =Ingresos!I11 -> 0 | M12: =Ingresos!J11 -> 0 | N12: =Ingresos!K11 -> 0 | O12: =Ingresos!L11 -> 0 | P12: =Ingresos!M11 -> 0 | Q12: =Ingresos!N11 -> 0 | S12: 0 | U12: =Ingresos!U11 -> Horas extras remuneración gravada | V12: 0
D13: =Ingresos!B12 -> SAC gravado | F13: =Ingresos!C12 -> 0 | G13: =Ingresos!D12 -> 0 | H13: =Ingresos!E12 -> 0 | I13: =Ingresos!F12 -> 0 | J13: =Ingresos!G12 -> 0 | K13: =Ingresos!H12 -> 0 | L13: =Ingresos!I12 -> 0 | M13: =Ingresos!J12 -> 0 | N13: =Ingresos!K12 -> 0 | O13: =Ingresos!L12 -> 0 | P13: =Ingresos!M12 -> 0 | Q13: =Ingresos!N12 -> 0 | S13: 0 | U13: =Ingresos!U12 -> SAC | V13: 0
D14: =Ingresos!B13 -> SAC no gravado o exento | F14: =Ingresos!C13 -> 0 | G14: =Ingresos!D13 -> 0 | H14: =Ingresos!E13 -> 0 | I14: =Ingresos!F13 -> 0 | J14: =Ingresos!G13 -> 0 | K14: =Ingresos!H13 -> 0 | L14: =Ingresos!I13 -> 0 | M14: =Ingresos!J13 -> 0 | N14: =Ingresos!K13 -> 0 | O14: =Ingresos!L13 -> 0 | P14: =Ingresos!M13 -> 0 | Q14: =Ingresos!N13 -> 0 | S14: 0 | U14: =Ingresos!U13 -> SAC | V14: 0
D15: =Ingresos!B14 -> Plus Vacacional | F15: =Ingresos!C14 -> 0 | G15: =Ingresos!D14 -> 0 | H15: =Ingresos!E14 -> 0 | I15: =Ingresos!F14 -> 0 | J15: =Ingresos!G14 -> 0 | K15: =Ingresos!H14 -> 0 | L15: =Ingresos!I14 -> 0 | M15: =Ingresos!J14 -> 0 | N15: =Ingresos!K14 -> 0 | O15: =Ingresos!L14 -> 0 | P15: =Ingresos!M14 -> 0 | Q15: =Ingresos!N14 -> 0 | S15: 0 | U15: =Ingresos!U14 -> Retribuciones no habituales gravadas | V15: 0
D16: =Ingresos!B15 -> Plus Feriado | F16: =Ingresos!C15 -> 0 | G16: =Ingresos!D15 -> 0 | H16: =Ingresos!E15 -> 0 | I16: =Ingresos!F15 -> 0 | J16: =Ingresos!G15 -> 0 | K16: =Ingresos!H15 -> 0 | L16: =Ingresos!I15 -> 0 | M16: =Ingresos!J15 -> 0 | N16: =Ingresos!K15 -> 0 | O16: =Ingresos!L15 -> 0 | P16: =Ingresos!M15 -> 0 | Q16: =Ingresos!N15 -> 0 | S16: 0 | U16: =Ingresos!U15 -> Remuneración bruta gravada | V16: 0
D17: =Ingresos!B16 -> Movilidad y viáticos (gravado) | F17: =Ingresos!C16 -> 0 | G17: =Ingresos!D16 -> 0 | H17: =Ingresos!E16 -> 0 | I17: =Ingresos!F16 -> 0 | J17: =Ingresos!G16 -> 0 | K17: =Ingresos!H16 -> 0 | L17: =Ingresos!I16 -> 0 | M17: =Ingresos!J16 -> 0 | N17: =Ingresos!K16 -> 0 | O17: =Ingresos!L16 -> 0 | P17: =Ingresos!M16 -> 0 | Q17: =Ingresos!N16 -> 0 | S17: 0 | U17: =Ingresos!U16 -> Movilidad y viáticos remuneración gravada | V17: 0
D18: =Ingresos!B17 -> Movilidad y viáticos (exento) | F18: =Ingresos!C17 -> 0 | G18: =Ingresos!D17 -> 0 | H18: =Ingresos!E17 -> 0 | I18: =Ingresos!F17 -> 0 | J18: =Ingresos!G17 -> 0 | K18: =Ingresos!H17 -> 0 | L18: =Ingresos!I17 -> 0 | M18: =Ingresos!J17 -> 0 | N18: =Ingresos!K17 -> 0 | O18: =Ingresos!L17 -> 0 | P18: =Ingresos!M17 -> 0 | Q18: =Ingresos!N17 -> 0 | S18: 0 | U18: =Ingresos!U17 -> Movilidad y viáticos remuneración exenta | V18: 0
D19: =Ingresos!B18 -> Compensación de gastos por teletrabajo | F19: =Ingresos!C18 -> 0 | G19: =Ingresos!D18 -> 0 | H19: =Ingresos!E18 -> 0 | I19: =Ingresos!F18 -> 0 | J19: =Ingresos!G18 -> 0 | K19: =Ingresos!H18 -> 0 | L19: =Ingresos!I18 -> 0 | M19: =Ingresos!J18 -> 0 | N19: =Ingresos!K18 -> 0 | O19: =Ingresos!L18 -> 0 | P19: =Ingresos!M18 -> 0 | Q19: =Ingresos!N18 -> 0 | S19: 0 | U19: =Ingresos!U18 -> Compensación gastos teletrabajo exentos | V19: 0
D20: =Ingresos!B19 -> Bono por productividad (gravado) | F20: =Ingresos!C19 -> 0 | G20: =Ingresos!D19 -> 0 | H20: =Ingresos!E19 -> 0 | I20: =Ingresos!F19 -> 0 | J20: =Ingresos!G19 -> 0 | K20: =Ingresos!H19 -> 0 | L20: =Ingresos!I19 -> 0 | M20: =Ingresos!J19 -> 0 | N20: =Ingresos!K19 -> 0 | O20: =Ingresos!L19 -> 0 | P20: =Ingresos!M19 -> 0 | Q20: =Ingresos!N19 -> 0 | S20: 0 | U20: =Ingresos!U19 -> Bonos de productividad gravados | V20: 0
D21: =Ingresos!B20 -> Bono por productividad (exento) | F21: =Ingresos!C20 -> 0 | G21: =Ingresos!D20 -> 0 | H21: =Ingresos!E20 -> 0 | I21: =Ingresos!F20 -> 0 | J21: =Ingresos!G20 -> 0 | K21: =Ingresos!H20 -> 0 | L21: =Ingresos!I20 -> 0 | M21: =Ingresos!J20 -> 0 | N21: =Ingresos!K20 -> 0 | O21: =Ingresos!L20 -> 0 | P21: =Ingresos!M20 -> 0 | Q21: =Ingresos!N20 -> 0 | S21: 0 | U21: =Ingresos!U20 -> Bonos de productividad exentos | V21: 0
D22: =Ingresos!B21 -> Fallo de caja (gravado) | F22: =Ingresos!C21 -> 0 | G22: =Ingresos!D21 -> 0 | H22: =Ingresos!E21 -> 0 | I22: =Ingresos!F21 -> 0 | J22: =Ingresos!G21 -> 0 | K22: =Ingresos!H21 -> 0 | L22: =Ingresos!I21 -> 0 | M22: =Ingresos!J21 -> 0 | N22: =Ingresos!K21 -> 0 | O22: =Ingresos!L21 -> 0 | P22: =Ingresos!M21 -> 0 | Q22: =Ingresos!N21 -> 0 | S22: 0 | U22: =Ingresos!U21 -> Fallos de caja gravados | V22: 0
D23: =Ingresos!B22 -> Fallo de caja (exento) | F23: =Ingresos!C22 -> 0 | G23: =Ingresos!D22 -> 0 | H23: =Ingresos!E22 -> 0 | I23: =Ingresos!F22 -> 0 | J23: =Ingresos!G22 -> 0 | K23: =Ingresos!H22 -> 0 | L23: =Ingresos!I22 -> 0 | M23: =Ingresos!J22 -> 0 | N23: =Ingresos!K22 -> 0 | O23: =Ingresos!L22 -> 0 | P23: =Ingresos!M22 -> 0 | Q23: =Ingresos!N22 -> 0 | S23: 0 | U23: =Ingresos!U22 -> Fallos de caja exentos | V23: 0
D24: =Ingresos!B23 -> Suplementos particulares por actividad militar | F24: =Ingresos!C23 -> 0 | G24: =Ingresos!D23 -> 0 | H24: =Ingresos!E23 -> 0 | I24: =Ingresos!F23 -> 0 | J24: =Ingresos!G23 -> 0 | K24: =Ingresos!H23 -> 0 | L24: =Ingresos!I23 -> 0 | M24: =Ingresos!J23 -> 0 | N24: =Ingresos!K23 -> 0 | O24: =Ingresos!L23 -> 0 | P24: =Ingresos!M23 -> 0 | Q24: =Ingresos!N23 -> 0 | S24: 0 | U24: =Ingresos!U23 -> Remuneración no alcanzada o exenta | V24: 0
D25: =Ingresos!B24 -> Cursos o seminarios de capacitación | F25: =Ingresos!C24 -> 0 | G25: =Ingresos!D24 -> 0 | H25: =Ingresos!E24 -> 0 | I25: =Ingresos!F24 -> 0 | J25: =Ingresos!G24 -> 0 | K25: =Ingresos!H24 -> 0 | L25: =Ingresos!I24 -> 0 | M25: =Ingresos!J24 -> 0 | N25: =Ingresos!K24 -> 0 | O25: =Ingresos!L24 -> 0 | P25: =Ingresos!M24 -> 0 | Q25: =Ingresos!N24 -> 0 | S25: 0 | U25: =Ingresos!U24 -> Remuneración no alcanzada o exenta | V25: 0
D26: =Ingresos!B25 -> Reintegro de gastos de guardería y/o jardín materno-infantil | F26: =Ingresos!C25 -> 0 | G26: =Ingresos!D25 -> 0 | H26: =Ingresos!E25 -> 0 | I26: =Ingresos!F25 -> 0 | J26: =Ingresos!G25 -> 0 | K26: =Ingresos!H25 -> 0 | L26: =Ingresos!I25 -> 0 | M26: =Ingresos!J25 -> 0 | N26: =Ingresos!K25 -> 0 | O26: =Ingresos!L25 -> 0 | P26: =Ingresos!M25 -> 0 | Q26: =Ingresos!N25 -> 0 | S26: 0 | U26: =Ingresos!U25 -> Remuneración no alcanzada o exenta | V26: 0
D27: =Ingresos!B26 -> Provisión de herramientas educativas (gravado) | F27: =Ingresos!C26 -> 0 | G27: =Ingresos!D26 -> 0 | H27: =Ingresos!E26 -> 0 | I27: =Ingresos!F26 -> 0 | J27: =Ingresos!G26 -> 0 | K27: =Ingresos!H26 -> 0 | L27: =Ingresos!I26 -> 0 | M27: =Ingresos!J26 -> 0 | N27: =Ingresos!K26 -> 0 | O27: =Ingresos!L26 -> 0 | P27: =Ingresos!M26 -> 0 | Q27: =Ingresos!N26 -> 0 | S27: 0 | U27: =Ingresos!U26 -> Remuneración bruta gravada | V27: 0
D28: =Ingresos!B27 -> Cursos o seminarios de capacitación para hijos/as y hijastros/as (gravado) | F28: =Ingresos!C27 -> 0 | G28: =Ingresos!D27 -> 0 | H28: =Ingresos!E27 -> 0 | I28: =Ingresos!F27 -> 0 | J28: =Ingresos!G27 -> 0 | K28: =Ingresos!H27 -> 0 | L28: =Ingresos!I27 -> 0 | M28: =Ingresos!J27 -> 0 | N28: =Ingresos!K27 -> 0 | O28: =Ingresos!L27 -> 0 | P28: =Ingresos!M27 -> 0 | Q28: =Ingresos!N27 -> 0 | S28: 0 | U28: =Ingresos!U27 -> Remuneración bruta gravada | V28: 0
D29: =Ingresos!B28 -> Cursos o seminarios de capacitación para hijos/as y hijastros/as (exento) | F29: =Ingresos!C28 -> 0 | G29: =Ingresos!D28 -> 0 | H29: =Ingresos!E28 -> 0 | I29: =Ingresos!F28 -> 0 | J29: =Ingresos!G28 -> 0 | K29: =Ingresos!H28 -> 0 | L29: =Ingresos!I28 -> 0 | M29: =Ingresos!J28 -> 0 | N29: =Ingresos!K28 -> 0 | O29: =Ingresos!L28 -> 0 | P29: =Ingresos!M28 -> 0 | Q29: =Ingresos!N28 -> 0 | S29: 0 | U29: =Ingresos!U28 -> Conceptos de similar naturaleza exentos | V29: 0
D30: =Ingresos!B29 -> Licencias varias | F30: =Ingresos!C29 -> 0 | G30: =Ingresos!D29 -> 0 | H30: =Ingresos!E29 -> 0 | I30: =Ingresos!F29 -> 0 | J30: =Ingresos!G29 -> 0 | K30: =Ingresos!H29 -> 0 | L30: =Ingresos!I29 -> 0 | M30: =Ingresos!J29 -> 0 | N30: =Ingresos!K29 -> 0 | O30: =Ingresos!L29 -> 0 | P30: =Ingresos!M29 -> 0 | Q30: =Ingresos!N29 -> 0 | S30: 0 | U30: =Ingresos!U29 -> Remuneración bruta gravada | V30: 0
D31: =Ingresos!B30 -> Benef. Soc. (no rem.) | F31: =Ingresos!C30 -> 0 | G31: =Ingresos!D30 -> 0 | H31: =Ingresos!E30 -> 0 | I31: =Ingresos!F30 -> 0 | J31: =Ingresos!G30 -> 0 | K31: =Ingresos!H30 -> 0 | L31: =Ingresos!I30 -> 0 | M31: =Ingresos!J30 -> 0 | N31: =Ingresos!K30 -> 0 | O31: =Ingresos!L30 -> 0 | P31: =Ingresos!M30 -> 0 | Q31: =Ingresos!N30 -> 0 | S31: 0 | U31: =Ingresos!U30 -> Remuneración bruta gravada | V31: 0
D32: =Ingresos!B31 -> Indemnización art. 245 | F32: =Ingresos!C31 -> 0 | G32: =Ingresos!D31 -> 0 | H32: =Ingresos!E31 -> 0 | I32: =Ingresos!F31 -> 0 | J32: =Ingresos!G31 -> 0 | K32: =Ingresos!H31 -> 0 | L32: =Ingresos!I31 -> 0 | M32: =Ingresos!J31 -> 0 | N32: =Ingresos!K31 -> 0 | O32: =Ingresos!L31 -> 0 | P32: =Ingresos!M31 -> 0 | Q32: =Ingresos!N31 -> 0 | S32: 0 | U32: =Ingresos!U31 -> Remuneración no alcanzada o exenta | V32: 0
D33: =Ingresos!B32 -> Preaviso | F33: =Ingresos!C32 -> 0 | G33: =Ingresos!D32 -> 0 | H33: =Ingresos!E32 -> 0 | I33: =Ingresos!F32 -> 0 | J33: =Ingresos!G32 -> 0 | K33: =Ingresos!H32 -> 0 | L33: =Ingresos!I32 -> 0 | M33: =Ingresos!J32 -> 0 | N33: =Ingresos!K32 -> 0 | O33: =Ingresos!L32 -> 0 | P33: =Ingresos!M32 -> 0 | Q33: =Ingresos!N32 -> 0 | S33: 0 | U33: =Ingresos!U32 -> Remuneración bruta gravada | V33: 0
D34: =Ingresos!B33 -> SAC s/preaviso | F34: =Ingresos!C33 -> 0 | G34: =Ingresos!D33 -> 0 | H34: =Ingresos!E33 -> 0 | I34: =Ingresos!F33 -> 0 | J34: =Ingresos!G33 -> 0 | K34: =Ingresos!H33 -> 0 | L34: =Ingresos!I33 -> 0 | M34: =Ingresos!J33 -> 0 | N34: =Ingresos!K33 -> 0 | O34: =Ingresos!L33 -> 0 | P34: =Ingresos!M33 -> 0 | Q34: =Ingresos!N33 -> 0 | S34: 0 | U34: =Ingresos!U33 -> Remuneración bruta gravada | V34: 0
D35: =Ingresos!B34 -> Vacaciones no gozadas | F35: =Ingresos!C34 -> 0 | G35: =Ingresos!D34 -> 0 | H35: =Ingresos!E34 -> 0 | I35: =Ingresos!F34 -> 0 | J35: =Ingresos!G34 -> 0 | K35: =Ingresos!H34 -> 0 | L35: =Ingresos!I34 -> 0 | M35: =Ingresos!J34 -> 0 | N35: =Ingresos!K34 -> 0 | O35: =Ingresos!L34 -> 0 | P35: =Ingresos!M34 -> 0 | Q35: =Ingresos!N34 -> 0 | S35: 0 | U35: =Ingresos!U34 -> Remuneración bruta gravada | V35: 0
D36: =Ingresos!B35 -> SAC s/vacaciones no gozadas | F36: =Ingresos!C35 -> 0 | G36: =Ingresos!D35 -> 0 | H36: =Ingresos!E35 -> 0 | I36: =Ingresos!F35 -> 0 | J36: =Ingresos!G35 -> 0 | K36: =Ingresos!H35 -> 0 | L36: =Ingresos!I35 -> 0 | M36: =Ingresos!J35 -> 0 | N36: =Ingresos!K35 -> 0 | O36: =Ingresos!L35 -> 0 | P36: =Ingresos!M35 -> 0 | Q36: =Ingresos!N35 -> 0 | S36: 0 | U36: =Ingresos!U35 -> Remuneración bruta gravada | V36: 0
D37: =Ingresos!B36 -> Integración mes de despido | F37: =Ingresos!C36 -> 0 | G37: =Ingresos!D36 -> 0 | H37: =Ingresos!E36 -> 0 | I37: =Ingresos!F36 -> 0 | J37: =Ingresos!G36 -> 0 | K37: =Ingresos!H36 -> 0 | L37: =Ingresos!I36 -> 0 | M37: =Ingresos!J36 -> 0 | N37: =Ingresos!K36 -> 0 | O37: =Ingresos!L36 -> 0 | P37: =Ingresos!M36 -> 0 | Q37: =Ingresos!N36 -> 0 | S37: 0 | U37: =Ingresos!U36 -> Remuneración bruta gravada | V37: 0
D38: =Ingresos!B37 -> SAC s/integración mes de despido | F38: =Ingresos!C37 -> 0 | G38: =Ingresos!D37 -> 0 | H38: =Ingresos!E37 -> 0 | I38: =Ingresos!F37 -> 0 | J38: =Ingresos!G37 -> 0 | K38: =Ingresos!H37 -> 0 | L38: =Ingresos!I37 -> 0 | M38: =Ingresos!J37 -> 0 | N38: =Ingresos!K37 -> 0 | O38: =Ingresos!L37 -> 0 | P38: =Ingresos!M37 -> 0 | Q38: =Ingresos!N37 -> 0 | S38: 0 | U38: =Ingresos!U37 -> Remuneración bruta gravada | V38: 0
D39: =Ingresos!B38 -> Gratificación por cese | F39: =Ingresos!C38 -> 0 | G39: =Ingresos!D38 -> 0 | H39: =Ingresos!E38 -> 0 | I39: =Ingresos!F38 -> 0 | J39: =Ingresos!G38 -> 0 | K39: =Ingresos!H38 -> 0 | L39: =Ingresos!I38 -> 0 | M39: =Ingresos!J38 -> 0 | N39: =Ingresos!K38 -> 0 | O39: =Ingresos!L38 -> 0 | P39: =Ingresos!M38 -> 0 | Q39: =Ingresos!N38 -> 0 | S39: 0 | U39: =Ingresos!U38 -> Remuneración no alcanzada o exenta | V39: 0
D40: Pluriempleo
D41: =Ingresos!B47 -> Sueldo bruto | F41: =+Ingresos!C47 -> 0 | G41: =+Ingresos!D47 -> 0 | H41: =+Ingresos!E47 -> 0 | I41: =+Ingresos!F47 -> 0 | J41: =+Ingresos!G47 -> 0 | K41: =+Ingresos!H47 -> 0 | L41: =+Ingresos!I47 -> 0 | M41: =+Ingresos!J47 -> 0 | N41: =+Ingresos!K47 -> 0 | O41: =+Ingresos!L47 -> 0 | P41: =+Ingresos!M47 -> 0 | Q41: =+Ingresos!N47 -> 0 | S41: =SUM(F41:Q41) -> 0 | U41: =Ingresos!U47 -> Remuneración bruta gravada | V41: =SUMIF($F$2:$Q$2,1,F41:Q41) -> 0
D42: =Ingresos!B48 -> Horas extras (días inhábiles) | F42: =+Ingresos!C48 -> 0 | G42: =+Ingresos!D48 -> 0 | H42: =+Ingresos!E48 -> 0 | I42: =+Ingresos!F48 -> 0 | J42: =+Ingresos!G48 -> 0 | K42: =+Ingresos!H48 -> 0 | L42: =+Ingresos!I48 -> 0 | M42: =+Ingresos!J48 -> 0 | N42: =+Ingresos!K48 -> 0 | O42: =+Ingresos!L48 -> 0 | P42: =+Ingresos!M48 -> 0 | Q42: =+Ingresos!N48 -> 0 | S42: 0 | U42: =Ingresos!U48 -> Horas extras remuneración gravada | V42: 0
D43: =Ingresos!B49 -> Plus horas extras (días inhábiles) | F43: =+Ingresos!C49 -> 0 | G43: =+Ingresos!D49 -> 0 | H43: =+Ingresos!E49 -> 0 | I43: =+Ingresos!F49 -> 0 | J43: =+Ingresos!G49 -> 0 | K43: =+Ingresos!H49 -> 0 | L43: =+Ingresos!I49 -> 0 | M43: =+Ingresos!J49 -> 0 | N43: =+Ingresos!K49 -> 0 | O43: =+Ingresos!L49 -> 0 | P43: =+Ingresos!M49 -> 0 | Q43: =+Ingresos!N49 -> 0 | S43: 0 | U43: =Ingresos!U49 -> Horas extras remuneración exenta | V43: 0
D44: =Ingresos!B50 -> Horas extras (días hábiles) | F44: =+Ingresos!C50 -> 0 | G44: =+Ingresos!D50 -> 0 | H44: =+Ingresos!E50 -> 0 | I44: =+Ingresos!F50 -> 0 | J44: =+Ingresos!G50 -> 0 | K44: =+Ingresos!H50 -> 0 | L44: =+Ingresos!I50 -> 0 | M44: =+Ingresos!J50 -> 0 | N44: =+Ingresos!K50 -> 0 | O44: =+Ingresos!L50 -> 0 | P44: =+Ingresos!M50 -> 0 | Q44: =+Ingresos!N50 -> 0 | S44: 0 | U44: =Ingresos!U50 -> Horas extras remuneración gravada | V44: 0
D45: =Ingresos!B51 -> SAC gravado | F45: =+Ingresos!C51 -> 0 | G45: =+Ingresos!D51 -> 0 | H45: =+Ingresos!E51 -> 0 | I45: =+Ingresos!F51 -> 0 | J45: =+Ingresos!G51 -> 0 | K45: =+Ingresos!H51 -> 0 | L45: =+Ingresos!I51 -> 0 | M45: =+Ingresos!J51 -> 0 | N45: =+Ingresos!K51 -> 0 | O45: =+Ingresos!L51 -> 0 | P45: =+Ingresos!M51 -> 0 | Q45: =+Ingresos!N51 -> 0 | S45: 0 | U45: =Ingresos!U51 -> SAC | V45: 0
D46: =Ingresos!B52 -> SAC no gravado o exento | F46: =+Ingresos!C52 -> 0 | G46: =+Ingresos!D52 -> 0 | H46: =+Ingresos!E52 -> 0 | I46: =+Ingresos!F52 -> 0 | J46: =+Ingresos!G52 -> 0 | K46: =+Ingresos!H52 -> 0 | L46: =+Ingresos!I52 -> 0 | M46: =+Ingresos!J52 -> 0 | N46: =+Ingresos!K52 -> 0 | O46: =+Ingresos!L52 -> 0 | P46: =+Ingresos!M52 -> 0 | Q46: =+Ingresos!N52 -> 0 | S46: 0 | U46: =Ingresos!U52 -> SAC | V46: 0
D47: =Ingresos!B53 -> Plus Vacacional | F47: =+Ingresos!C53 -> 0 | G47: =+Ingresos!D53 -> 0 | H47: =+Ingresos!E53 -> 0 | I47: =+Ingresos!F53 -> 0 | J47: =+Ingresos!G53 -> 0 | K47: =+Ingresos!H53 -> 0 | L47: =+Ingresos!I53 -> 0 | M47: =+Ingresos!J53 -> 0 | N47: =+Ingresos!K53 -> 0 | O47: =+Ingresos!L53 -> 0 | P47: =+Ingresos!M53 -> 0 | Q47: =+Ingresos!N53 -> 0 | S47: 0 | U47: =Ingresos!U53 -> Remuneración bruta gravada | V47: 0
D48: =Ingresos!B54 -> Plus Feriado | F48: =+Ingresos!C54 -> 0 | G48: =+Ingresos!D54 -> 0 | H48: =+Ingresos!E54 -> 0 | I48: =+Ingresos!F54 -> 0 | J48: =+Ingresos!G54 -> 0 | K48: =+Ingresos!H54 -> 0 | L48: =+Ingresos!I54 -> 0 | M48: =+Ingresos!J54 -> 0 | N48: =+Ingresos!K54 -> 0 | O48: =+Ingresos!L54 -> 0 | P48: =+Ingresos!M54 -> 0 | Q48: =+Ingresos!N54 -> 0 | S48: 0 | U48: =Ingresos!U54 -> Remuneración bruta gravada | V48: 0
D49: =Ingresos!B55 -> Movilidad y viáticos (gravado) | F49: =+Ingresos!C55 -> 0 | G49: =+Ingresos!D55 -> 0 | H49: =+Ingresos!E55 -> 0 | I49: =+Ingresos!F55 -> 0 | J49: =+Ingresos!G55 -> 0 | K49: =+Ingresos!H55 -> 0 | L49: =+Ingresos!I55 -> 0 | M49: =+Ingresos!J55 -> 0 | N49: =+Ingresos!K55 -> 0 | O49: =+Ingresos!L55 -> 0 | P49: =+Ingresos!M55 -> 0 | Q49: =+Ingresos!N55 -> 0 | S49: 0 | U49: =Ingresos!U55 -> Movilidad y viáticos remuneración gravada | V49: 0
D50: =Ingresos!B56 -> Movilidad y viáticos (exento) | F50: =+Ingresos!C56 -> 0 | G50: =+Ingresos!D56 -> 0 | H50: =+Ingresos!E56 -> 0 | I50: =+Ingresos!F56 -> 0 | J50: =+Ingresos!G56 -> 0 | K50: =+Ingresos!H56 -> 0 | L50: =+Ingresos!I56 -> 0 | M50: =+Ingresos!J56 -> 0 | N50: =+Ingresos!K56 -> 0 | O50: =+Ingresos!L56 -> 0 | P50: =+Ingresos!M56 -> 0 | Q50: =+Ingresos!N56 -> 0 | S50: 0 | U50: =Ingresos!U56 -> Movilidad y viáticos remuneración exenta | V50: 0
D51: =Ingresos!B57 -> Compensación de gastos por teletrabajo | F51: =+Ingresos!C57 -> 0 | G51: =+Ingresos!D57 -> 0 | H51: =+Ingresos!E57 -> 0 | I51: =+Ingresos!F57 -> 0 | J51: =+Ingresos!G57 -> 0 | K51: =+Ingresos!H57 -> 0 | L51: =+Ingresos!I57 -> 0 | M51: =+Ingresos!J57 -> 0 | N51: =+Ingresos!K57 -> 0 | O51: =+Ingresos!L57 -> 0 | P51: =+Ingresos!M57 -> 0 | Q51: =+Ingresos!N57 -> 0 | S51: 0 | U51: =Ingresos!U57 -> Compensación gastos teletrabajo exentos | V51: 0
D52: =Ingresos!B58 -> Bono por productividad (gravado) | F52: =+Ingresos!C58 -> 0 | G52: =+Ingresos!D58 -> 0 | H52: =+Ingresos!E58 -> 0 | I52: =+Ingresos!F58 -> 0 | J52: =+Ingresos!G58 -> 0 | K52: =+Ingresos!H58 -> 0 | L52: =+Ingresos!I58 -> 0 | M52: =+Ingresos!J58 -> 0 | N52: =+Ingresos!K58 -> 0 | O52: =+Ingresos!L58 -> 0 | P52: =+Ingresos!M58 -> 0 | Q52: =+Ingresos!N58 -> 0 | S52: 0 | U52: =Ingresos!U58 -> Bonos de productividad gravados | V52: 0
D53: =Ingresos!B59 -> Bono por productividad (exento) | F53: =+Ingresos!C59 -> 0 | G53: =+Ingresos!D59 -> 0 | H53: =+Ingresos!E59 -> 0 | I53: =+Ingresos!F59 -> 0 | J53: =+Ingresos!G59 -> 0 | K53: =+Ingresos!H59 -> 0 | L53: =+Ingresos!I59 -> 0 | M53: =+Ingresos!J59 -> 0 | N53: =+Ingresos!K59 -> 0 | O53: =+Ingresos!L59 -> 0 | P53: =+Ingresos!M59 -> 0 | Q53: =+Ingresos!N59 -> 0 | S53: 0 | U53: =Ingresos!U59 -> Bonos de productividad exentos | V53: 0
D54: =Ingresos!B60 -> Fallo de caja (gravado) | F54: =+Ingresos!C60 -> 0 | G54: =+Ingresos!D60 -> 0 | H54: =+Ingresos!E60 -> 0 | I54: =+Ingresos!F60 -> 0 | J54: =+Ingresos!G60 -> 0 | K54: =+Ingresos!H60 -> 0 | L54: =+Ingresos!I60 -> 0 | M54: =+Ingresos!J60 -> 0 | N54: =+Ingresos!K60 -> 0 | O54: =+Ingresos!L60 -> 0 | P54: =+Ingresos!M60 -> 0 | Q54: =+Ingresos!N60 -> 0 | S54: 0 | U54: =Ingresos!U60 -> Fallos de caja gravados | V54: 0
D55: =Ingresos!B61 -> Fallo de caja (exento) | F55: =+Ingresos!C61 -> 0 | G55: =+Ingresos!D61 -> 0 | H55: =+Ingresos!E61 -> 0 | I55: =+Ingresos!F61 -> 0 | J55: =+Ingresos!G61 -> 0 | K55: =+Ingresos!H61 -> 0 | L55: =+Ingresos!I61 -> 0 | M55: =+Ingresos!J61 -> 0 | N55: =+Ingresos!K61 -> 0 | O55: =+Ingresos!L61 -> 0 | P55: =+Ingresos!M61 -> 0 | Q55: =+Ingresos!N61 -> 0 | S55: 0 | U55: =Ingresos!U61 -> Fallos de caja exentos | V55: 0
D56: =Ingresos!B62 -> Suplementos particulares por actividad militar | F56: =+Ingresos!C62 -> 0 | G56: =+Ingresos!D62 -> 0 | H56: =+Ingresos!E62 -> 0 | I56: =+Ingresos!F62 -> 0 | J56: =+Ingresos!G62 -> 0 | K56: =+Ingresos!H62 -> 0 | L56: =+Ingresos!I62 -> 0 | M56: =+Ingresos!J62 -> 0 | N56: =+Ingresos!K62 -> 0 | O56: =+Ingresos!L62 -> 0 | P56: =+Ingresos!M62 -> 0 | Q56: =+Ingresos!N62 -> 0 | S56: 0 | U56: =Ingresos!U62 -> Suplementos particulares artículo 57 de la Ley 19.101 exentos | V56: 0
D57: =Ingresos!B63 -> Cursos o seminarios de capacitación | F57: =+Ingresos!C63 -> 0 | G57: =+Ingresos!D63 -> 0 | H57: =+Ingresos!E63 -> 0 | I57: =+Ingresos!F63 -> 0 | J57: =+Ingresos!G63 -> 0 | K57: =+Ingresos!H63 -> 0 | L57: =+Ingresos!I63 -> 0 | M57: =+Ingresos!J63 -> 0 | N57: =+Ingresos!K63 -> 0 | O57: =+Ingresos!L63 -> 0 | P57: =+Ingresos!M63 -> 0 | Q57: =+Ingresos!N63 -> 0 | S57: 0 | U57: =Ingresos!U63 -> Remuneración no alcanzada o exenta | V57: 0
D58: =Ingresos!B64 -> Reintegro de gastos de guardería y/o jardín materno-infantil | F58: =+Ingresos!C64 -> 0 | G58: =+Ingresos!D64 -> 0 | H58: =+Ingresos!E64 -> 0 | I58: =+Ingresos!F64 -> 0 | J58: =+Ingresos!G64 -> 0 | K58: =+Ingresos!H64 -> 0 | L58: =+Ingresos!I64 -> 0 | M58: =+Ingresos!J64 -> 0 | N58: =+Ingresos!K64 -> 0 | O58: =+Ingresos!L64 -> 0 | P58: =+Ingresos!M64 -> 0 | Q58: =+Ingresos!N64 -> 0 | S58: 0 | U58: =Ingresos!U64 -> Remuneración no alcanzada o exenta | V58: 0
D59: =Ingresos!B65 -> Provisión de herramientas educativas (gravado) | F59: =+Ingresos!C65 -> 0 | G59: =+Ingresos!D65 -> 0 | H59: =+Ingresos!E65 -> 0 | I59: =+Ingresos!F65 -> 0 | J59: =+Ingresos!G65 -> 0 | K59: =+Ingresos!H65 -> 0 | L59: =+Ingresos!I65 -> 0 | M59: =+Ingresos!J65 -> 0 | N59: =+Ingresos!K65 -> 0 | O59: =+Ingresos!L65 -> 0 | P59: =+Ingresos!M65 -> 0 | Q59: =+Ingresos!N65 -> 0 | S59: 0 | U59: =Ingresos!U65 -> Remuneración bruta gravada | V59: 0
D60: =Ingresos!B66 -> Cursos o seminarios de capacitación para hijos/as y hijastros/as (gravado) | F60: =+Ingresos!C66 -> 0 | G60: =+Ingresos!D66 -> 0 | H60: =+Ingresos!E66 -> 0 | I60: =+Ingresos!F66 -> 0 | J60: =+Ingresos!G66 -> 0 | K60: =+Ingresos!H66 -> 0 | L60: =+Ingresos!I66 -> 0 | M60: =+Ingresos!J66 -> 0 | N60: =+Ingresos!K66 -> 0 | O60: =+Ingresos!L66 -> 0 | P60: =+Ingresos!M66 -> 0 | Q60: =+Ingresos!N66 -> 0 | S60: 0 | U60: =Ingresos!U66 -> Remuneración bruta gravada | V60: 0
D61: =Ingresos!B67 -> Cursos o seminarios de capacitación para hijos/as y hijastros/as (exento) | F61: =+Ingresos!C67 -> 0 | G61: =+Ingresos!D67 -> 0 | H61: =+Ingresos!E67 -> 0 | I61: =+Ingresos!F67 -> 0 | J61: =+Ingresos!G67 -> 0 | K61: =+Ingresos!H67 -> 0 | L61: =+Ingresos!I67 -> 0 | M61: =+Ingresos!J67 -> 0 | N61: =+Ingresos!K67 -> 0 | O61: =+Ingresos!L67 -> 0 | P61: =+Ingresos!M67 -> 0 | Q61: =+Ingresos!N67 -> 0 | S61: 0 | U61: =Ingresos!U67 -> Conceptos de similar naturaleza exentos | V61: 0
D62: =Ingresos!B68 -> Licencias varias | F62: =+Ingresos!C68 -> 0 | G62: =+Ingresos!D68 -> 0 | H62: =+Ingresos!E68 -> 0 | I62: =+Ingresos!F68 -> 0 | J62: =+Ingresos!G68 -> 0 | K62: =+Ingresos!H68 -> 0 | L62: =+Ingresos!I68 -> 0 | M62: =+Ingresos!J68 -> 0 | N62: =+Ingresos!K68 -> 0 | O62: =+Ingresos!L68 -> 0 | P62: =+Ingresos!M68 -> 0 | Q62: =+Ingresos!N68 -> 0 | S62: 0 | U62: =Ingresos!U68 -> Remuneración bruta gravada | V62: 0
D63: =Ingresos!B69 -> Benef. Soc. (no rem.) | F63: =+Ingresos!C69 -> 0 | G63: =+Ingresos!D69 -> 0 | H63: =+Ingresos!E69 -> 0 | I63: =+Ingresos!F69 -> 0 | J63: =+Ingresos!G69 -> 0 | K63: =+Ingresos!H69 -> 0 | L63: =+Ingresos!I69 -> 0 | M63: =+Ingresos!J69 -> 0 | N63: =+Ingresos!K69 -> 0 | O63: =+Ingresos!L69 -> 0 | P63: =+Ingresos!M69 -> 0 | Q63: =+Ingresos!N69 -> 0 | S63: 0 | U63: =Ingresos!U69 -> Remuneración bruta gravada | V63: 0
D64: =Ingresos!B70 -> Indemnización art. 245 | F64: =+Ingresos!C70 -> 0 | G64: =+Ingresos!D70 -> 0 | H64: =+Ingresos!E70 -> 0 | I64: =+Ingresos!F70 -> 0 | J64: =+Ingresos!G70 -> 0 | K64: =+Ingresos!H70 -> 0 | L64: =+Ingresos!I70 -> 0 | M64: =+Ingresos!J70 -> 0 | N64: =+Ingresos!K70 -> 0 | O64: =+Ingresos!L70 -> 0 | P64: =+Ingresos!M70 -> 0 | Q64: =+Ingresos!N70 -> 0 | S64: 0 | U64: =Ingresos!U70 -> Remuneración no alcanzada o exenta | V64: 0
D65: =Ingresos!B71 -> Preaviso | F65: =+Ingresos!C71 -> 0 | G65: =+Ingresos!D71 -> 0 | H65: =+Ingresos!E71 -> 0 | I65: =+Ingresos!F71 -> 0 | J65: =+Ingresos!G71 -> 0 | K65: =+Ingresos!H71 -> 0 | L65: =+Ingresos!I71 -> 0 | M65: =+Ingresos!J71 -> 0 | N65: =+Ingresos!K71 -> 0 | O65: =+Ingresos!L71 -> 0 | P65: =+Ingresos!M71 -> 0 | Q65: =+Ingresos!N71 -> 0 | S65: 0 | U65: =Ingresos!U71 -> Remuneración bruta gravada | V65: 0
D66: =Ingresos!B72 -> SAC s/preaviso | F66: =+Ingresos!C72 -> 0 | G66: =+Ingresos!D72 -> 0 | H66: =+Ingresos!E72 -> 0 | I66: =+Ingresos!F72 -> 0 | J66: =+Ingresos!G72 -> 0 | K66: =+Ingresos!H72 -> 0 | L66: =+Ingresos!I72 -> 0 | M66: =+Ingresos!J72 -> 0 | N66: =+Ingresos!K72 -> 0 | O66: =+Ingresos!L72 -> 0 | P66: =+Ingresos!M72 -> 0 | Q66: =+Ingresos!N72 -> 0 | S66: 0 | U66: =Ingresos!U72 -> Remuneración bruta gravada | V66: 0
D67: =Ingresos!B73 -> Vacaciones no gozadas | F67: =+Ingresos!C73 -> 0 | G67: =+Ingresos!D73 -> 0 | H67: =+Ingresos!E73 -> 0 | I67: =+Ingresos!F73 -> 0 | J67: =+Ingresos!G73 -> 0 | K67: =+Ingresos!H73 -> 0 | L67: =+Ingresos!I73 -> 0 | M67: =+Ingresos!J73 -> 0 | N67: =+Ingresos!K73 -> 0 | O67: =+Ingresos!L73 -> 0 | P67: =+Ingresos!M73 -> 0 | Q67: =+Ingresos!N73 -> 0 | S67: 0 | U67: =Ingresos!U73 -> Remuneración bruta gravada | V67: 0
D68: =Ingresos!B74 -> SAC s/vacaciones no gozadas | F68: =+Ingresos!C74 -> 0 | G68: =+Ingresos!D74 -> 0 | H68: =+Ingresos!E74 -> 0 | I68: =+Ingresos!F74 -> 0 | J68: =+Ingresos!G74 -> 0 | K68: =+Ingresos!H74 -> 0 | L68: =+Ingresos!I74 -> 0 | M68: =+Ingresos!J74 -> 0 | N68: =+Ingresos!K74 -> 0 | O68: =+Ingresos!L74 -> 0 | P68: =+Ingresos!M74 -> 0 | Q68: =+Ingresos!N74 -> 0 | S68: 0 | U68: =Ingresos!U74 -> Remuneración bruta gravada | V68: 0
D69: =Ingresos!B75 -> Integración mes de despido | F69: =+Ingresos!C75 -> 0 | G69: =+Ingresos!D75 -> 0 | H69: =+Ingresos!E75 -> 0 | I69: =+Ingresos!F75 -> 0 | J69: =+Ingresos!G75 -> 0 | K69: =+Ingresos!H75 -> 0 | L69: =+Ingresos!I75 -> 0 | M69: =+Ingresos!J75 -> 0 | N69: =+Ingresos!K75 -> 0 | O69: =+Ingresos!L75 -> 0 | P69: =+Ingresos!M75 -> 0 | Q69: =+Ingresos!N75 -> 0 | S69: 0 | U69: =Ingresos!U75 -> Remuneración bruta gravada | V69: 0
D70: =Ingresos!B76 -> SAC s/integración mes de despido | F70: =+Ingresos!C76 -> 0 | G70: =+Ingresos!D76 -> 0 | H70: =+Ingresos!E76 -> 0 | I70: =+Ingresos!F76 -> 0 | J70: =+Ingresos!G76 -> 0 | K70: =+Ingresos!H76 -> 0 | L70: =+Ingresos!I76 -> 0 | M70: =+Ingresos!J76 -> 0 | N70: =+Ingresos!K76 -> 0 | O70: =+Ingresos!L76 -> 0 | P70: =+Ingresos!M76 -> 0 | Q70: =+Ingresos!N76 -> 0 | S70: 0 | U70: =Ingresos!U76 -> Remuneración bruta gravada | V70: 0
D71: =Ingresos!B77 -> Gratificación por cese | F71: =+Ingresos!C77 -> 0 | G71: =+Ingresos!D77 -> 0 | H71: =+Ingresos!E77 -> 0 | I71: =+Ingresos!F77 -> 0 | J71: =+Ingresos!G77 -> 0 | K71: =+Ingresos!H77 -> 0 | L71: =+Ingresos!I77 -> 0 | M71: =+Ingresos!J77 -> 0 | N71: =+Ingresos!K77 -> 0 | O71: =+Ingresos!L77 -> 0 | P71: =+Ingresos!M77 -> 0 | Q71: =+Ingresos!N77 -> 0 | S71: 0 | U71: =Ingresos!U77 -> Remuneración no alcanzada o exenta | V71: 0
D72: Sub Total Ganancia Bruta | F72: =SUM(F9:F63) -> 0 | G72: 0 | H72: 0 | I72: 0 | J72: 0 | K72: 0 | L72: 0 | M72: 0 | N72: 0 | O72: 0 | P72: 0 | Q72: 0 | S72: =SUM(S9:S63) -> 0
D74: Retenciones computables | F74: 2016-01-31 | G74: 2016-02-28 | H74: 2016-03-31 | I74: 2016-04-30 | J74: 2016-05-31 | K74: 2016-06-30 | L74: 2016-07-31 | M74: 2016-08-31 | N74: 2016-09-30 | O74: 2016-10-31 | P74: 2016-11-30 | Q74: 2016-12-31 | S74: Anual
D75: =Tablas!B8 -> Jubilación | F75: =Auxiliares!D30+Auxiliares!D37+Auxiliares!D167 -> 0 | G75: =Auxiliares!E30+Auxiliares!E37+Auxiliares!E167 -> 0 | H75: =Auxiliares!F30+Auxiliares!F37+Auxiliares!F167 -> 0 | I75: =Auxiliares!G30+Auxiliares!G37+Auxiliares!G167 -> 0 | J75: =Auxiliares!H30+Auxiliares!H37+Auxiliares!H167 -> 0 | K75: =Auxiliares!I30+Auxiliares!I37+Auxiliares!I167 -> 0 | L75: =Auxiliares!J30+Auxiliares!J37+Auxiliares!J167 -> 0 | M75: =Auxiliares!K30+Auxiliares!K37+Auxiliares!K167 -> 0 | N75: =Auxiliares!L30+Auxiliares!L37+Auxiliares!L167 -> 0 | O75: =Auxiliares!M30+Auxiliares!M37+Auxiliares!M167 -> 0 | P75: =Auxiliares!N30+Auxiliares!N37+Auxiliares!N167 -> 0 | Q75: =Auxiliares!O30+Auxiliares!O37+Auxiliares!O167 -> 0 | S75: =SUM(F75:Q75) -> 0
D76: =Tablas!B9 -> Ley 19032 | F76: =Auxiliares!D31+Auxiliares!D38+Auxiliares!D168 -> 0 | G76: =Auxiliares!E31+Auxiliares!E38+Auxiliares!E168 -> 0 | H76: =Auxiliares!F31+Auxiliares!F38+Auxiliares!F168 -> 0 | I76: =Auxiliares!G31+Auxiliares!G38+Auxiliares!G168 -> 0 | J76: =Auxiliares!H31+Auxiliares!H38+Auxiliares!H168 -> 0 | K76: =Auxiliares!I31+Auxiliares!I38+Auxiliares!I168 -> 0 | L76: =Auxiliares!J31+Auxiliares!J38+Auxiliares!J168 -> 0 | M76: =Auxiliares!K31+Auxiliares!K38+Auxiliares!K168 -> 0 | N76: =Auxiliares!L31+Auxiliares!L38+Auxiliares!L168 -> 0 | O76: =Auxiliares!M31+Auxiliares!M38+Auxiliares!M168 -> 0 | P76: =Auxiliares!N31+Auxiliares!N38+Auxiliares!N168 -> 0 | Q76: =Auxiliares!O31+Auxiliares!O38+Auxiliares!O168 -> 0 | S76: 0
D77: =Tablas!B10 -> Obra social | F77: =Auxiliares!D32+Auxiliares!D39+Auxiliares!D169 -> 0 | G77: =Auxiliares!E32+Auxiliares!E39+Auxiliares!E169 -> 0 | H77: =Auxiliares!F32+Auxiliares!F39+Auxiliares!F169 -> 0 | I77: =Auxiliares!G32+Auxiliares!G39+Auxiliares!G169 -> 0 | J77: =Auxiliares!H32+Auxiliares!H39+Auxiliares!H169 -> 0 | K77: =Auxiliares!I32+Auxiliares!I39+Auxiliares!I169 -> 0 | L77: =Auxiliares!J32+Auxiliares!J39+Auxiliares!J169 -> 0 | M77: =Auxiliares!K32+Auxiliares!K39+Auxiliares!K169 -> 0 | N77: =Auxiliares!L32+Auxiliares!L39+Auxiliares!L169 -> 0 | O77: =Auxiliares!M32+Auxiliares!M39+Auxiliares!M169 -> 0 | P77: =Auxiliares!N32+Auxiliares!N39+Auxiliares!N169 -> 0 | Q77: =Auxiliares!O32+Auxiliares!O39+Auxiliares!O169 -> 0 | S77: 0
D78: =Tablas!B11 -> Sindicato | F78: =Auxiliares!D33+Auxiliares!D40+Auxiliares!D170 -> 0 | G78: =Auxiliares!E33+Auxiliares!E40+Auxiliares!E170 -> 0 | H78: =Auxiliares!F33+Auxiliares!F40+Auxiliares!F170 -> 0 | I78: =Auxiliares!G33+Auxiliares!G40+Auxiliares!G170 -> 0 | J78: =Auxiliares!H33+Auxiliares!H40+Auxiliares!H170 -> 0 | K78: =Auxiliares!I33+Auxiliares!I40+Auxiliares!I170 -> 0 | L78: =Auxiliares!J33+Auxiliares!J40+Auxiliares!J170 -> 0 | M78: =Auxiliares!K33+Auxiliares!K40+Auxiliares!K170 -> 0 | N78: =Auxiliares!L33+Auxiliares!L40+Auxiliares!L170 -> 0 | O78: =Auxiliares!M33+Auxiliares!M40+Auxiliares!M170 -> 0 | P78: =Auxiliares!N33+Auxiliares!N40+Auxiliares!N170 -> 0 | Q78: =Auxiliares!O33+Auxiliares!O40+Auxiliares!O170 -> 0 | S78: 0
D79: =Tablas!B12 -> 0 | F79: =Auxiliares!D34+Auxiliares!D41+Auxiliares!D171 -> 0 | G79: =Auxiliares!E34+Auxiliares!E41+Auxiliares!E171 -> 0 | H79: =Auxiliares!F34+Auxiliares!F41+Auxiliares!F171 -> 0 | I79: =Auxiliares!G34+Auxiliares!G41+Auxiliares!G171 -> 0 | J79: =Auxiliares!H34+Auxiliares!H41+Auxiliares!H171 -> 0 | K79: =Auxiliares!I34+Auxiliares!I41+Auxiliares!I171 -> 0 | L79: =Auxiliares!J34+Auxiliares!J41+Auxiliares!J171 -> 0 | M79: =Auxiliares!K34+Auxiliares!K41+Auxiliares!K171 -> 0 | N79: =Auxiliares!L34+Auxiliares!L41+Auxiliares!L171 -> 0 | O79: =Auxiliares!M34+Auxiliares!M41+Auxiliares!M171 -> 0 | P79: =Auxiliares!N34+Auxiliares!N41+Auxiliares!N171 -> 0 | Q79: =Auxiliares!O34+Auxiliares!O41+Auxiliares!O171 -> 0 | S79: 0
D80: =Tablas!B13 -> 0 | F80: =Auxiliares!D35+Auxiliares!D42+Auxiliares!D172 -> 0 | G80: =Auxiliares!E35+Auxiliares!E42+Auxiliares!E172 -> 0 | H80: =Auxiliares!F35+Auxiliares!F42+Auxiliares!F172 -> 0 | I80: =Auxiliares!G35+Auxiliares!G42+Auxiliares!G172 -> 0 | J80: =Auxiliares!H35+Auxiliares!H42+Auxiliares!H172 -> 0 | K80: =Auxiliares!I35+Auxiliares!I42+Auxiliares!I172 -> 0 | L80: =Auxiliares!J35+Auxiliares!J42+Auxiliares!J172 -> 0 | M80: =Auxiliares!K35+Auxiliares!K42+Auxiliares!K172 -> 0 | N80: =Auxiliares!L35+Auxiliares!L42+Auxiliares!L172 -> 0 | O80: =Auxiliares!M35+Auxiliares!M42+Auxiliares!M172 -> 0 | P80: =Auxiliares!N35+Auxiliares!N42+Auxiliares!N172 -> 0 | Q80: =Auxiliares!O35+Auxiliares!O42+Auxiliares!O172 -> 0 | S80: 0
B82: Datos Acumulados | D82: Ingresos Gravados Acumulados (hasta octubre) | F82: 2016-01-31 | G82: 2016-02-28 | H82: 2016-03-31 | I82: 2016-04-30 | J82: 2016-05-31 | K82: 2016-06-30 | L82: 2016-07-31 | M82: 2016-08-31 | N82: 2016-09-30 | O82: 2016-10-31 | P82: 2016-11-30 | Q82: 2016-12-31 | S82: Anual
D83: Ingresos gravados (menos SAC) | F83: =Auxiliares!D9+Auxiliares!D11 -> 0 | G83: =Auxiliares!E9+Auxiliares!E11+F83 -> 0 | H83: =Auxiliares!F9+Auxiliares!F11+G83 -> 0 | I83: =Auxiliares!G9+Auxiliares!G11+H83 -> 0 | J83: =Auxiliares!H9+Auxiliares!H11+I83 -> 0 | K83: =Auxiliares!I9+Auxiliares!I11+J83 -> 0 | L83: =Auxiliares!J9+Auxiliares!J11+K83 -> 0 | M83: =Auxiliares!K9+Auxiliares!K11+L83 -> 0 | N83: =Auxiliares!L9+Auxiliares!L11+M83 -> 0 | O83: =IF(Check!$B$1="Ok",Auxiliares!M9+Auxiliares!M11+N83,Auxiliares!M9+Auxiliares!M11) -> 0 | P83: =IF(Check!B1="Ok",Auxiliares!N9+Auxiliares!N11,Auxiliares!N9+Auxiliares!N11+O83) -> 0 | Q83: =Auxiliares!O9+Auxiliares!O11+P83 -> 0 | S83: =Q83 -> 0
D84: Ingresos prorrateados (menos SAC) | F84: =+Auxiliares!D49 -> 0 | G84: =+F84+Auxiliares!E49 -> 0 | H84: =+G84+Auxiliares!F49 -> 0 | I84: =+H84+Auxiliares!G49 -> 0 | J84: =+I84+Auxiliares!H49 -> 0 | K84: =+J84+Auxiliares!I49 -> 0 | L84: =+K84+Auxiliares!J49 -> 0 | M84: =+L84+Auxiliares!K49 -> 0 | N84: =+M84+Auxiliares!L49 -> 0 | O84: =IF(Check!$B$1="Ok",+N84+Auxiliares!M49,Auxiliares!M49) -> 0 | P84: =+Auxiliares!N49 -> 0 | Q84: =+Auxiliares!O49 -> 0 | S84: =+Q84 -> 0
